Workbook

Sheet Lotto6_DL560_1
E1: Convenzione | F1: =SUM(J9:J122)*F5 -> 0
E2: 0.2 | F2: =SUM(K9:K122)*F5 -> 0
E3: Totale | F3: =SUM(F1:F2) -> 0
H4: =IF($E$12="TS3L4-VSAN","vSAN ReadyNode™",IF($E$12="TS3L4-GPUDW","GPU Double-Wide Server Ready",IF($E$12="TS3L4-GPUSW","GPU Single-Wide Server Ready",""))) -> 
A5: HPE PROLIANT DL560 Gen10 Consulta la Guida alla Convenzione -> | D5: =HYPERLINK("https://convenzioni.converge.it/docs/L6GuidaAllaConvenzioneTecnologieServer3.pdf","&") -> & | E5: Quantità Server | H5: =Riepilogo!G8 -> Version 4.5
C8: Base | D8: =HYPERLINK("https://convenzioni.converge.it/docs/ts3_datasheet/HPE%20ProLiant%20DL560%20Gen10-spec-sheet.pdf","i") -> i
C9: Proliant DL560 Gen10 | E9: =VLOOKUP($C9,TS3L6_ALL,15,FALSE) -> TS3L6-SRV | F9: =IF($F$5>0,1,"") ->  | J9: =VLOOKUP($C9,TS3L6_ALL,10,FALSE) -> 5912 | L9: =VLOOKUP($C9,TS3L6_ALL,14,FALSE) -> L6N01 | M9: =IF(L9="L6N01",1,0) -> 1
C11: Chassis Configuration
C12: =VLOOKUP($C$9,TS3L6_Chassis,2,FALSE) -> Chassis with 16 x 2.5 Hard Drives
C14: Processor | D14: =HYPERLINK("https://ark.intel.com/content/www/it/it/ark/products/193951/intel-xeon-gold-6252n-processor-35-75m-cache-2-30-ghz.html","i") -> i
C15: 2 x Intel Xeon-Gold 6252N (2.3GHz/24-core/150W)
C17: Additional Processor
C18: No Additional Processor | E18: =IF($M$9=1,VLOOKUP($C$18,TS3L6_CPU,15,FALSE),VLOOKUP($C$18,TS3L6_CPU,13,FALSE)) ->  | F18: =IF(F12=1,VLOOKUP($C$15,TS3L6_CPU,7,FALSE),VLOOKUP($C$18,TS3L6_CPU,7,FALSE)) -> 0 | J18: =IF(F12=1,VLOOKUP($C$15,TS3L6_CPU,10,FALSE),VLOOKUP($C$18,TS3L6_CPU,10,FALSE)) -> 0 | K18: =IF(F12=1,VLOOKUP($C$15,TS3L6_CPU,11,FALSE),VLOOKUP($C$18,TS3L6_CPU,11,FALSE)) -> 0 | L18: =IF($M$9=1,VLOOKUP(C18,TS3L6_ALL,14,FALSE),VLOOKUP(C18,TS3L6_ALL,12,FALSE)) -> 
E19: =IF(E18="TS3L4-CPU8CORE","TS3L4-CPU","") ->  | F19: =IFERROR(O19,"") ->  | J19: =IFERROR(N19,0) -> 0 | L19: =IF(E19="TS3L4-CPU","L4N02",0) -> 0 | N19: =VLOOKUP($L$19,Tabella_prezzi!$A$3:$K$331,4,FALSE) ->  | O19: =VLOOKUP($L$19,Tabella_prezzi!$A$3:$K$331,7,FALSE) -> 
C20: Memory Capacity
C21: 128GB (32GB) | E21: =IF(J21>0,IF(M9=0,"TS3L6-RAM32N","TS3L6-RAM32"),"") ->  | F21: =IFERROR(O21,4) -> 0 | J21: =IFERROR(P21,(184*4)) -> 0 | L21: =IFERROR(Q21,IF(M9=0,N23,N23)) ->  | M21: 32GB | N21: =IF($M$9=1,VLOOKUP($C$21,TS3L6_RAM2CPU,15,FALSE),VLOOKUP($C$21,TS3L6_RAM1CPU,13,FALSE)) ->  | O21: =IF($F$18=1,VLOOKUP($C$21,TS3L6_RAM2CPU,7,FALSE),VLOOKUP($C$21,TS3L6_RAM1CPU,7,FALSE)) -> 0 | P21: =IF($F$18=1,VLOOKUP($C$21,TS3L6_RAM2CPU,10,FALSE),VLOOKUP($C$21,TS3L6_RAM1CPU,10,FALSE)) -> 0 | Q21: =IF(M9=0,IF($F$18=1,VLOOKUP($C$21,TS3L6_RAM2CPU,12,FALSE),VLOOKUP($C$21,TS3L6_RAM1CPU,12,FALSE)),IF($F$18=1,VLOOKUP($C$21,TS3L6_RAM2CPU,14,FALSE),VLOOKUP($C$21,TS3L6_RAM1CPU,14,FALSE))) -> 
E22: =IF(J22>0,IF(M9=0,"TS3L6-RAM64N","TS3L6-RAM64"),"") ->  | F22: =IFERROR(O22,0) -> 0 | J22: =IFERROR(P22,0) -> 0 | L22: =IFERROR(Q22,IF(M9=0,N24,N24)) ->  | M22: 64GB | N22: =IF($M$9=1,VLOOKUP($C$21,TS3L6_RAM2CPU,23,FALSE),VLOOKUP($C$21,TS3L6_RAM1CPU,21,FALSE)) ->  | O22: =IF($F$18=1,VLOOKUP($C$21,TS3L6_RAM2CPU,24,FALSE),VLOOKUP($C$21,TS3L6_RAM1CPU,24,FALSE)) -> 0 | P22: =IF($F$18=1,VLOOKUP($C$21,TS3L6_RAM2CPU,18,FALSE),VLOOKUP($C$21,TS3L6_RAM1CPU,18,FALSE)) -> 0 | Q22: =IF(M9=0,IF($F$18=1,VLOOKUP($C$21,TS3L6_RAM2CPU,20,FALSE),VLOOKUP($C$21,TS3L6_RAM1CPU,20,FALSE)),IF($F$18=1,VLOOKUP($C$21,TS3L6_RAM2CPU,22,FALSE),VLOOKUP($C$21,TS3L6_RAM1CPU,22,FALSE))) -> 
M23: 32GB | N23: =IF(M9=1,"L6N03","L6N03B") -> L6N03
C24: Operating System | M24: 64GB | N24: =IF(M9=1,"L6N04","L6N04B") -> L6N04
C25: No Operating System | E25: =IF($M$9=1,VLOOKUP($C$25,TS3L6_OS,15,FALSE),VLOOKUP($C$25,TS3L6_OS,13,FALSE)) ->  | F25: =VLOOKUP($C$25,TS3L6_OS,7,FALSE) -> 0 | J25: =VLOOKUP($C$25,TS3L6_OS,10,FALSE) -> 0 | K25: =VLOOKUP($C$25,TS3L6_OS,11,FALSE) -> 0 | L25: =IF($M$9=1,VLOOKUP($C25,TS3L6_ALL,14,FALSE),VLOOKUP($C25,TS3L6_ALL,12,FALSE)) -> 
E26: =IF($M$9=1,VLOOKUP($C$25,TS3L6_OS,25,FALSE),VLOOKUP($C$25,TS3L6_OS,24,FALSE)) ->  | F26: =IF(F18=1,VLOOKUP($C$25,TS3L6_OS,16,FALSE),VLOOKUP($C$25,TS3L6_OS,21,FALSE)) -> 0 | J26: =IF(F18=1,VLOOKUP($C$25,TS3L6_OS,19,FALSE),VLOOKUP($C$25,TS3L6_OS,20,FALSE)) -> 0 | L26: =IF($M$9=1,VLOOKUP($C25,TS3L6_OS,23,FALSE),VLOOKUP($C25,TS3L6_OS,22,FALSE)) -> 0
C28: Configurazione opzionale dello chassis
C29: Standard | E29: =IF($M$9=1,VLOOKUP($C$29,TS3L6_ALL,15,FALSE),VLOOKUP($C$29,TS3L6_ALL,13,FALSE)) ->  | F29: =VLOOKUP($C$29,TS3L6_ALL,7,FALSE) ->  | J29: =VLOOKUP($C29,TS3L6_ALL,10,FALSE) -> 0 | K29: =VLOOKUP($C29,TS3L6_ALL,11,FALSE) -> 0 | L29: =IF($M$9=1,VLOOKUP($C29,TS3L6_ALL,14,FALSE),VLOOKUP($C29,TS3L6_ALL,12,FALSE)) -> 
C32: Raid Controller
C33: HPE Smart Array P816i-a SR G10 | D33: =IF($C$33="HBA330 12Gbps SAS HBA Controller (NON-RAID)","vSAN HCL","") ->  | E33: =IF($M$9=1,VLOOKUP($C$33,TS3L6_ALL,15,FALSE),VLOOKUP($C$33,TS3L6_ALL,13,FALSE)) ->  | F33: =VLOOKUP($C$33,TS3L6_ALL,7,FALSE) ->  | H33: Configurazione RAID e/o NOTE | J33: =VLOOKUP($C33,TS3L6_ALL,10,FALSE) -> 0 | K33: =VLOOKUP($C33,TS3L6_ALL,11,FALSE) -> 0 | L33: =IF($M$9=1,VLOOKUP($C33,TS3L6_ALL,14,FALSE),VLOOKUP($C33,TS3L6_ALL,12,FALSE)) -> 
H34: Specificare la configurazione RAID per l'installazione del Sistema Operativo, se richiesto. e/o inserire eventuali note.
C35: =IF(L9="L6N01b","Hard Drivers Bays disponibili n° 12 - NVMe Bays disponibili n° 4",IF(F29=1,"Hard Drivers Bays disponibili n° 24","Hard Drivers Bays disponibili n° 16")) -> Hard Drivers Bays disponibili n° 16 | E35: Usati | F35: Disponibili
D36: HDD/SDD | E36: =F39+F41+F43+F49+F51+F45+F47 -> 2 | F36: =IF(L9="L6N01b",(12-E36),IF(F29=1,(24-E36),(16-E36))) -> 14
D37: =IF(L9="L6N01b","NVMe","") ->  | E37: =IF(L9="L6N01b",F53+F55,"") ->  | F37: =IF(L9="L6N01b",(4-E37),"") -> 
C38: =IF(M9=0,"!!!ATTENZIONE!!! I dischi NVMe possono essere acquistati solo insieme al server. Non sono presenti per gli Acquisti Successivi.","") -> 
C39: =ConfigurationTS3L6!A65 -> HPE 300GB SAS 12G Enterprise 10K SFF (2.5in) SC | E39: =IF($M$9=1,VLOOKUP(C39,TS3L6_HDD,15,FALSE),VLOOKUP(C39,TS3L6_HDD,13,FALSE)) -> TS3L6-HDD300GB | J39: =VLOOKUP($C39,TS3L6_HDD,10,FALSE)*F39 -> 0 | K39: =VLOOKUP($C39,TS3L6_HDD,11,FALSE) -> 0 | L39: =IF($M$9=1,VLOOKUP(C39,TS3L6_ALL,14,FALSE),VLOOKUP(C39,TS3L6_ALL,12,FALSE)) -> L6N12
C41: =ConfigurationTS3L6!A66 -> HPE 1.2TB SAS 12G Enterprise 10K SFF (2.5in) SC | E41: =IF($M$9=1,VLOOKUP(C41,TS3L6_HDD,15,FALSE),VLOOKUP(C41,TS3L6_HDD,13,FALSE)) -> TS3L6-HDD1TB | J41: =VLOOKUP($C41,TS3L6_HDD,10,FALSE)*F41 -> 0 | K41: =VLOOKUP($C41,TS3L6_HDD,11,FALSE) -> 0 | L41: =IF($M$9=1,VLOOKUP(C41,TS3L6_ALL,14,FALSE),VLOOKUP(C41,TS3L6_ALL,12,FALSE)) -> L6N11
C43: =ConfigurationTS3L6!A67 -> HPE 1.8TB SAS 12G Enterprise 10K SFF (2.5in) SC | E43: =IF($M$9=1,VLOOKUP(C43,TS3L6_HDD,15,FALSE),VLOOKUP(C43,TS3L6_HDD,13,FALSE)) -> TS3L6-HDD2TB | J43: =VLOOKUP($C43,TS3L6_HDD,10,FALSE)*F43 -> 0 | K43: =VLOOKUP($C43,TS3L6_HDD,11,FALSE) -> 0 | L43: =IF($M$9=1,VLOOKUP(C43,TS3L6_ALL,14,FALSE),VLOOKUP(C43,TS3L6_ALL,12,FALSE)) -> L6N10
C45: =ConfigurationTS3L6!A68 -> HPE 960GB SAS 12G Read Intensive SFF (2.5in) SC | E45: =IF($M$9=1,VLOOKUP(C45,TS3L6_HDD,15,FALSE),VLOOKUP(C45,TS3L6_HDD,13,FALSE)) -> TS3L6-RI800GB | J45: =VLOOKUP($C45,TS3L6_HDD,10,FALSE)*F45 -> 0 | K45: =VLOOKUP($C45,TS3L6_HDD,11,FALSE) -> 0 | L45: =IF($M$9=1,VLOOKUP(C45,TS3L6_ALL,14,FALSE),VLOOKUP(C45,TS3L6_ALL,12,FALSE)) -> L6N15
C47: =ConfigurationTS3L6!A69 -> HPE 1.92TB SAS 12G Read Intensive SFF (2.5in) SC | E47: =IF($M$9=1,VLOOKUP(C47,TS3L6_HDD,15,FALSE),VLOOKUP(C47,TS3L6_HDD,13,FALSE)) -> TS3L6-RI1600GB | J47: =VLOOKUP($C47,TS3L6_HDD,10,FALSE)*F47 -> 0 | K47: =VLOOKUP($C47,TS3L6_HDD,11,FALSE) -> 0 | L47: =IF($M$9=1,VLOOKUP(C47,TS3L6_ALL,14,FALSE),VLOOKUP(C47,TS3L6_ALL,12,FALSE)) -> L6N13
C49: =ConfigurationTS3L6!A71 -> HPE 800GB SAS 12G Mixed Use SFF (2.5in) SC | E49: =IF($M$9=1,VLOOKUP(C49,TS3L6_HDD,15,FALSE),VLOOKUP(C49,TS3L6_HDD,13,FALSE)) -> TS3L6-MU800GB | F49: 2 | J49: =IF(F49>2,VLOOKUP($C49,TS3L6_HDD,10,FALSE)*(F49-2),0) -> 0 | K49: =VLOOKUP($C49,TS3L6_HDD,11,FALSE)*F49 -> 0 | L49: =IF($M$9=1,VLOOKUP(C49,TS3L6_ALL,14,FALSE),VLOOKUP(C49,TS3L6_ALL,12,FALSE)) -> L6N16
C51: =ConfigurationTS3L6!A72 -> HPE 1.6TB SAS 12G Mixed Use SFF (2.5in) SC | E51: =IF($M$9=1,VLOOKUP(C51,TS3L6_HDD,15,FALSE),VLOOKUP(C51,TS3L6_HDD,13,FALSE)) -> TS3L6-MU1600GB | J51: =VLOOKUP($C51,TS3L6_HDD,10,FALSE)*F51 -> 0 | K51: =VLOOKUP($C51,TS3L6_HDD,11,FALSE) -> 0 | L51: =IF($M$9=1,VLOOKUP(C51,TS3L6_ALL,14,FALSE),VLOOKUP(C51,TS3L6_ALL,12,FALSE)) -> L6N14
C53: =IF($L$9="L6N01b",ConfigurationTS3L6!A73,"") ->  | E53: =IF($M$9=1,VLOOKUP(C53,TS3L6_HDD,15,FALSE),VLOOKUP(C53,TS3L6_HDD,13,FALSE)) ->  | J53: =IF($L$9="L6N01b",VLOOKUP($C53,TS3L6_HDD,10,FALSE)*F53,0) -> 0 | K53: =VLOOKUP($C53,TS3L6_HDD,11,FALSE)*F53 -> 0 | L53: =IF($M$9=1,VLOOKUP(C53,TS3L6_ALL,14,FALSE),VLOOKUP(C53,TS3L6_ALL,12,FALSE)) -> 
C55: =IF($L$9="L6N01b",ConfigurationTS3L6!A74,"") ->  | E55: =IF($M$9=1,VLOOKUP(C55,TS3L6_HDD,15,FALSE),VLOOKUP(C55,TS3L6_HDD,13,FALSE)) ->  | J55: =IF($L$9="L6N01b",VLOOKUP($C55,TS3L6_HDD,10,FALSE)*F55,0) -> 0 | K55: =VLOOKUP($C55,TS3L6_HDD,11,FALSE)*F55 -> 0 | L55: =IF($M$9=1,VLOOKUP(C55,TS3L6_ALL,14,FALSE),VLOOKUP(C55,TS3L6_ALL,12,FALSE)) -> 
C57: Power Supply
C58: Dual, Hot-plug, Redundant Power Supply (1+1), 1600W
C60: HPE OneView Advanced (with HPE iLO Advanced) | D60: =HYPERLINK("https://convenzioni.converge.it/docs/ts3_datasheet/ilo-spec-sheet.pdf","i") -> i
C61: None | E61: =IF($M$9=1,VLOOKUP(C61,TS3L6_ALL,15,FALSE),VLOOKUP(C61,TS3L6_ALL,13,FALSE)) ->  | F61: =VLOOKUP($C61,TS3L6_ALL,7,FALSE) ->  | J61: =VLOOKUP($C61,TS3L6_ALL,10,FALSE) -> 0 | K61: =VLOOKUP($C61,TS3L6_ALL,11,FALSE) -> 0 | L61: =IF($M$9=1,VLOOKUP(C61,TS3L6_ALL,14,FALSE),VLOOKUP(C61,TS3L6_ALL,12,FALSE)) -> 
C63: Micro SD (USB Flash Drive)
C64: None | E64: =IF($M$9=1,VLOOKUP(C64,TS3L6_ALL,15,FALSE),VLOOKUP(C64,TS3L6_ALL,13,FALSE)) ->  | F64: =VLOOKUP($C64,TS3L6_ALL,7,FALSE) ->  | J64: =VLOOKUP($C64,TS3L6_ALL,10,FALSE) -> 0 | K64: =VLOOKUP($C64,TS3L6_ALL,11,FALSE) -> 0 | L64: =IF($M$9=1,VLOOKUP(C64,TS3L6_ALL,14,FALSE),VLOOKUP(C64,TS3L6_ALL,12,FALSE)) -> 
C66: Network Cards
C67: HPE Ethernet 1Gb 4-port FLR-T BCM5719 Adapter
C71: PCI Slot 1 Processor 1 x8 PCIe Gen3
E72: =IF($M$9=1,VLOOKUP(C72,TS3L6_ALL,15,FALSE),VLOOKUP(C72,TS3L6_ALL,13,FALSE)) ->  | F72: =VLOOKUP($C72,TS3L6_ALL,7,FALSE) ->  | J72: =VLOOKUP($C72,TS3L6_ALL,10,FALSE) -> 0 | K72: =VLOOKUP($C72,TS3L6_ALL,11,FALSE) -> 0 | L72: =IF($M$9=1,VLOOKUP(C72,TS3L6_ALL,14,FALSE),VLOOKUP(C72,TS3L6_ALL,12,FALSE)) -> 
C74: =IF($L$9="L6N01b","PCI Slot 2 Processor 1 x8 PCIe Gen3","PCI Slot 2 Processor 1 x16 PCIe Gen3 ----------GPU Slot----------") -> PCI Slot 2 Processor 1 x16 PCIe Gen3 ----------GPU Slot----------
E75: =IF($M$9=1,VLOOKUP(C75,TS3L6_ALL,15,FALSE),VLOOKUP(C75,TS3L6_ALL,13,FALSE)) ->  | F75: =VLOOKUP($C75,TS3L6_ALL,7,FALSE) ->  | J75: =VLOOKUP($C75,TS3L6_ALL,10,FALSE) -> 0 | K75: =VLOOKUP($C75,TS3L6_ALL,11,FALSE) -> 0 | L75: =IF($M$9=1,VLOOKUP(C75,TS3L6_ALL,14,FALSE),VLOOKUP(C75,TS3L6_ALL,12,FALSE)) -> 
C77: PCI Slot 3 Processor 1 x8 PCIe Gen3
E78: =IF($M$9=1,VLOOKUP(C78,TS3L6_ALL,15,FALSE),VLOOKUP(C78,TS3L6_ALL,13,FALSE)) ->  | F78: =VLOOKUP($C78,TS3L6_ALL,7,FALSE) ->  | J78: =VLOOKUP($C78,TS3L6_ALL,10,FALSE) -> 0 | K78: =VLOOKUP($C78,TS3L6_ALL,11,FALSE) -> 0 | L78: =IF($M$9=1,VLOOKUP(C78,TS3L6_ALL,14,FALSE),VLOOKUP(C78,TS3L6_ALL,12,FALSE)) -> 
C80: PCI Slot 4 Processor 2 x8 PCIe Gen3
E81: =IF($M$9=1,VLOOKUP(C81,TS3L6_ALL,15,FALSE),VLOOKUP(C81,TS3L6_ALL,13,FALSE)) ->  | F81: =VLOOKUP($C81,TS3L6_ALL,7,FALSE) ->  | J81: =VLOOKUP($C81,TS3L6_ALL,10,FALSE) -> 0 | K81: =VLOOKUP($C81,TS3L6_ALL,11,FALSE) -> 0 | L81: =IF($M$9=1,VLOOKUP(C81,TS3L6_ALL,14,FALSE),VLOOKUP(C81,TS3L6_ALL,12,FALSE)) -> 
C83: =IF($L$9="L6N01b","PCI Slot 5 Processor 2 x8 PCIe Gen3","PCI Slot 5 Processor 2 x16 PCIe Gen3 ----------GPU Slot----------") -> PCI Slot 5 Processor 2 x16 PCIe Gen3 ----------GPU Slot----------
E84: =IF($M$9=1,VLOOKUP(C84,TS3L6_ALL,15,FALSE),VLOOKUP(C84,TS3L6_ALL,13,FALSE)) ->  | F84: =VLOOKUP($C84,TS3L6_ALL,7,FALSE) ->  | J84: =VLOOKUP($C84,TS3L6_ALL,10,FALSE) -> 0 | K84: =VLOOKUP($C84,TS3L6_ALL,11,FALSE) -> 0 | L84: =IF($M$9=1,VLOOKUP(C84,TS3L6_ALL,14,FALSE),VLOOKUP(C84,TS3L6_ALL,12,FALSE)) -> 
C86: PCI Slot 6 Processor 2 x8 PCIe Gen3
E87: =IF($M$9=1,VLOOKUP(C87,TS3L6_ALL,15,FALSE),VLOOKUP(C87,TS3L6_ALL,13,FALSE)) ->  | F87: =VLOOKUP($C87,TS3L6_ALL,7,FALSE) ->  | J87: =VLOOKUP($C87,TS3L6_ALL,10,FALSE) -> 0 | K87: =VLOOKUP($C87,TS3L6_ALL,11,FALSE) -> 0 | L87: =IF($M$9=1,VLOOKUP(C87,TS3L6_ALL,14,FALSE),VLOOKUP(C87,TS3L6_ALL,12,FALSE)) -> 
C89: PCI Slot 7 Processor 2 x8 PCIe Gen3
E90: =VLOOKUP($C90,TS3L6_ALL,13,FALSE) ->  | F90: =VLOOKUP($C90,TS3L6_ALL,7,FALSE) ->  | H90: =IF(M90="Errore","ERRORE nella selezione del PCI Slot",IFERROR(O91,"ERRORE nella selezione del PCI Slot")) -> 0 | J90: =VLOOKUP($C90,TS3L6_ALL,10,FALSE) -> 0 | K90: =VLOOKUP($C90,TS3L6_ALL,11,FALSE) -> 0 | L90: =VLOOKUP($C90,TS3L6_ALL,12,FALSE) -> 
C92: PCI Slot 8 Processor 2 x16 PCIe Gen3
E93: =VLOOKUP($C93,TS3L6_ALL,13,FALSE) ->  | F93: =VLOOKUP($C93,TS3L6_ALL,7,FALSE) ->  | H93: =IFERROR(O94,"ERRORE nella selezione del PCI Slot") -> 0 | J93: =VLOOKUP($C93,TS3L6_ALL,10,FALSE) -> 0 | K93: =VLOOKUP($C93,TS3L6_ALL,11,FALSE) -> 0 | L93: =VLOOKUP($C93,TS3L6_ALL,12,FALSE) -> 
C95: M.2 - Solid State Drives
C96: None | E96: =IF($M$9=1,VLOOKUP(C96,TS3L6_ALL,15,FALSE),VLOOKUP(C96,TS3L6_ALL,13,FALSE)) ->  | F96: =VLOOKUP($C96,TS3L6_ALL,7,FALSE) ->  | J96: =VLOOKUP($C96,TS3L6_ALL,10,FALSE) -> 0 | K96: =VLOOKUP($C96,TS3L6_ALL,11,FALSE) -> 0 | L96: =IF($M$9=1,VLOOKUP(C96,TS3L6_ALL,14,FALSE),VLOOKUP(C96,TS3L6_ALL,12,FALSE)) -> 
C98: Cables for Intel Omni-Path Adapter
C99: HPE 3M 100Gb QSFP28 Omni-Path Optical Power Class 2 Cable | E99: =IF(K99>0,IF($M$9=1,VLOOKUP(C99,TS3L6_ALL,15,FALSE),VLOOKUP(C99,TS3L6_ALL,13,FALSE)),"") ->  | J99: 0 | K99: =IF(F99>0,VLOOKUP($C99,TS3L6_ALL,11,FALSE)*F99,0) -> 0 | L99: =IF(F99>0,IF($M$9=1,VLOOKUP(C99,TS3L6_ALL,14,FALSE),VLOOKUP(C99,TS3L6_ALL,12,FALSE)),"") -> 
C100: HPE 5M 100Gb QSFP28 Omni-Path Optical Power Class 2 Cable | E100: =IF(K100>0,IF($M$9=1,VLOOKUP(C100,TS3L6_ALL,15,FALSE),VLOOKUP(C100,TS3L6_ALL,13,FALSE)),"") ->  | J100: 0 | K100: =IF(F100>0,VLOOKUP($C100,TS3L6_ALL,11,FALSE)*F100,0) -> 0 | L100: =IF(F100>0,IF($M$9=1,VLOOKUP(C100,TS3L6_ALL,14,FALSE),VLOOKUP(C100,TS3L6_ALL,12,FALSE)),"") -> 
C101: HPE 7M 100Gb QSFP28 Omni-Path Optical Power Class 2 Cable | E101: =IF(K101>0,IF($M$9=1,VLOOKUP(C101,TS3L6_ALL,15,FALSE),VLOOKUP(C101,TS3L6_ALL,13,FALSE)),"") ->  | J101: 0 | K101: =IF(F101>0,VLOOKUP($C101,TS3L6_ALL,11,FALSE)*F101,0) -> 0 | L101: =IF(F101>0,IF($M$9=1,VLOOKUP(C101,TS3L6_ALL,14,FALSE),VLOOKUP(C101,TS3L6_ALL,12,FALSE)),"") -> 
C103: Transceiver
C104: HPE 10G SFP+ LR Transceiver | E104: =IF(K104>0,IF($M$9=1,VLOOKUP(C104,TS3L6_ALL,15,FALSE),VLOOKUP(C104,TS3L6_ALL,13,FALSE)),"") ->  | J104: 0 | K104: =IF(F104>0,VLOOKUP($C104,TS3L6_ALL,11,FALSE)*F104,0) -> 0 | L104: =IF(F104>0,IF($M$9=1,VLOOKUP(C104,TS3L6_ALL,14,FALSE),VLOOKUP(C104,TS3L6_ALL,12,FALSE)),"") -> 
C105: HPE 10G SFP+ SR Transceiver | E105: =IF(K105>0,IF($M$9=1,VLOOKUP(C105,TS3L6_ALL,15,FALSE),VLOOKUP(C105,TS3L6_ALL,13,FALSE)),"") ->  | J105: 0 | K105: =IF(F105>0,VLOOKUP($C105,TS3L6_ALL,11,FALSE)*F105,0) -> 0 | L105: =IF(F105>0,IF($M$9=1,VLOOKUP(C105,TS3L6_ALL,14,FALSE),VLOOKUP(C105,TS3L6_ALL,12,FALSE)),"") -> 
C107: Cables
C108: Cavo DAC HPE 10GB SFP+ SFP+ 3 metri | E108: =IF(K108>0,IF($M$9=1,VLOOKUP(C108,TS3L6_ALL,15,FALSE),VLOOKUP(C108,TS3L6_ALL,13,FALSE)),"") ->  | J108: 0 | K108: =IF(F108>0,VLOOKUP($C108,TS3L6_ALL,11,FALSE)*F108,0) -> 0 | L108: =IF(F108>0,IF($M$9=1,VLOOKUP(C108,TS3L6_ALL,14,FALSE),VLOOKUP(C108,TS3L6_ALL,12,FALSE)),"") -> 
C109: HPE Premier Flex LC/LC OM4 2f 2m Cbl | E109: =IF(K109>0,IF($M$9=1,VLOOKUP(C109,TS3L6_ALL,15,FALSE),VLOOKUP(C109,TS3L6_ALL,13,FALSE)),"") ->  | J109: 0 | K109: =IF(F109>0,VLOOKUP($C109,TS3L6_ALL,11,FALSE)*F109,0) -> 0 | L109: =IF(F109>0,IF($M$9=1,VLOOKUP(C109,TS3L6_ALL,14,FALSE),VLOOKUP(C109,TS3L6_ALL,12,FALSE)),"") -> 
C110: HPE 25Gb SFP28 to SFP28 3m DAC | E110: =IF(K110>0,IF($M$9=1,VLOOKUP(C110,TS3L6_ALL,15,FALSE),VLOOKUP(C110,TS3L6_ALL,13,FALSE)),"") ->  | J110: 0 | K110: =IF(F110>0,VLOOKUP($C110,TS3L6_ALL,11,FALSE)*F110,0) -> 0 | L110: =IF(F110>0,IF($M$9=1,VLOOKUP(C110,TS3L6_ALL,14,FALSE),VLOOKUP(C110,TS3L6_ALL,12,FALSE)),"") -> 
E112: =IF(K112>0,VLOOKUP($C112,ConfigurationTS3L6!$A$1:$O$4574,13,FALSE),"") ->  | J112: 0 | K112: =IF(F112>0,VLOOKUP($C112,TS3L6_ALL,11,FALSE)*F112,0) -> 0 | L112: =IF(F112>0,VLOOKUP($C112,TS3L6_ALL,12,FALSE),0) -> 0
C114: Cavi RJ45
C115: Cavo “patch” di 3 mt RJ45 certificato per gigabit ethernet | E115: =IF(K115>0,IF($M$9=1,VLOOKUP(C115,TS3L6_ALL,15,FALSE),VLOOKUP(C115,TS3L6_ALL,13,FALSE)),"") -> TS3L6-RJ453M | F115: 5 | J115: 0 | K115: =IF(F115>0,IF($M$9=1,VLOOKUP(C115,TS3L6_ALL,11,FALSE)*(F115),VLOOKUP(C115,TS3L6_ALL,11,FALSE)*(F115)),0) -> 15 | L115: =IF(F115>0,IF($M$9=1,VLOOKUP(C115,TS3L6_ALL,14,FALSE),VLOOKUP(C115,TS3L6_ALL,12,FALSE)),"") -> L6N34
C117: Warranty | D117: =HYPERLINK("https://convenzioni.converge.it/docs/ts3_datasheet/TS3warranty_hpe.pdf","i") -> i
C118: Manutenzione in garanzia (36 mesi) | E118: =IF($M$9=1,VLOOKUP(C118,TS3L6_ALL,15,FALSE),VLOOKUP(C118,TS3L6_ALL,13,FALSE)) ->  | F118: =VLOOKUP($C118,TS3L6_WARRANTY,7,FALSE) ->  | J118: =VLOOKUP($C118,TS3L6_WARRANTY,10,FALSE) -> 0 | K118: =VLOOKUP($C118,TS3L6_WARRANTY,11,FALSE) -> 0 | L118: =IF($M$9=1,VLOOKUP(C118,TS3L6_ALL,14,FALSE),VLOOKUP(C118,TS3L6_ALL,12,FALSE)) -> 
C120: Hard Disk Retention | D120: =HYPERLINK("https://convenzioni.converge.it/docs/ts3_datasheet/HPE_HDD_KYHD.pdf","i") -> i
E121: =IF($M$9=0,$N$122,$N$121) ->  | F121: =IF(C121="","",1) ->  | J121: =IFERROR(Q121,VLOOKUP(C121,TS3L6_ALL,10,FALSE)) -> 0 | K121: =IFERROR(R121,VLOOKUP(C121,TS3L6_ALL,11,FALSE)) -> 0 | L121: =IF(M9=0,O122,O121) ->  | N121: =IFERROR($P$121,VLOOKUP($C$121,TS3L6_ALL,15,FALSE)) ->  | O121: =IFERROR($S$121,VLOOKUP($C$121,TS3L6_ALL,14,FALSE)) ->  | P121: =IF(F118+F121=2,VLOOKUP("Hard Disk Retention (60 mesi)",TS3L6_ALL,15,FALSE),VLOOKUP(C121,TS3L6_ALL,15,FALSE)) ->  | Q121: =IF(F118+F121=2,VLOOKUP("Hard Disk Retention (60 mesi)",TS3L6_ALL,10,FALSE),VLOOKUP(C121,TS3L6_ALL,10,FALSE)) ->  | R121: =IF(F118+F121=2,VLOOKUP("Hard Disk Retention (60 mesi)",TS3L6_ALL,11,FALSE),VLOOKUP(C121,TS3L6_ALL,11,FALSE)) ->  | S121: =IF(F118+F121=2,VLOOKUP("Hard Disk Retention (60 mesi)",TS3L6_ALL,14,FALSE),VLOOKUP(C121,TS3L6_ALL,14,FALSE)) -> 
N122: =IFERROR($P$122,VLOOKUP($C$121,TS3L6_ALL,13,FALSE)) ->  | O122: =IFERROR($S$122,VLOOKUP($C$121,TS3L6_ALL,12,FALSE)) ->  | P122: =IF(F118+F121=2,VLOOKUP("Hard Disk Retention (60 mesi)",TS3L6_ALL,13,FALSE),VLOOKUP(C121,TS3L6_ALL,13,FALSE)) ->  | Q122: =IF(F118+F121=2,VLOOKUP("Hard Disk Retention (60 mesi)",TS3L6_ALL,10,FALSE),VLOOKUP(C121,TS3L6_ALL,10,FALSE)) ->  | R122: =IF(F118+F121=2,VLOOKUP("Hard Disk Retention (60 mesi)",TS3L6_ALL,11,FALSE),VLOOKUP(C121,TS3L6_ALL,11,FALSE)) ->  | S122: =IF(F118+F121=2,VLOOKUP("Hard Disk Retention (60 mesi)",TS3L6_ALL,12,FALSE),VLOOKUP(C121,TS3L6_ALL,12,FALSE)) -> 
N123: =IFERROR($P$122,VLOOKUP($C$121,TS3L6_ALL,13,FALSE)) ->  | O123: =IFERROR($S$122,VLOOKUP($C$121,TS3L6_ALL,12,FALSE)) ->  | P123: =IF(F119+F122=2,VLOOKUP("Hard Disk Retention (60 mesi)",TS3L6_ALL,13,FALSE),VLOOKUP(C122,TS3L6_ALL,13,FALSE)) ->  | Q123: =IF(F119+F122=2,VLOOKUP("Hard Disk Retention (60 mesi)",TS3L6_ALL,10,FALSE),VLOOKUP(C122,TS3L6_ALL,10,FALSE)) ->  | R123: =IF(F119+F122=2,VLOOKUP("Hard Disk Retention (60 mesi)",TS3L6_ALL,11,FALSE),VLOOKUP(C122,TS3L6_ALL,11,FALSE)) ->  | S123: =IF(F119+F122=2,VLOOKUP("Hard Disk Retention (60 mesi)",TS3L6_ALL,12,FALSE),VLOOKUP(C122,TS3L6_ALL,12,FALSE)) -> 

Sheet Lotto6_DL560_2
E1: Convenzione | F1: =SUM(J9:J122)*F5 -> 0
E2: 0.2 | F2: =SUM(K9:K122)*F5 -> 0
E3: Totale | F3: =SUM(F1:F2) -> 0
H4: =IF($E$12="TS3L4-VSAN","vSAN ReadyNode™",IF($E$12="TS3L4-GPUDW","GPU Double-Wide Server Ready",IF($E$12="TS3L4-GPUSW","GPU Single-Wide Server Ready",""))) -> 
A5: HPE PROLIANT DL560 Gen10 Consulta la Guida alla Convenzione -> | D5: =HYPERLINK("https://convenzioni.converge.it/docs/L6GuidaAllaConvenzioneTecnologieServer3.pdf","&") -> & | E5: Quantità Server | H5: =Riepilogo!G8 -> Version 4.5
C8: Base | D8: =HYPERLINK("https://convenzioni.converge.it/docs/ts3_datasheet/HPE%20ProLiant%20DL560%20Gen10-spec-sheet.pdf","i") -> i
C9: Proliant DL560 Gen10 | E9: =VLOOKUP($C9,TS3L6_ALL,15,FALSE) -> TS3L6-SRV | F9: =IF($F$5>0,1,"") ->  | J9: =VLOOKUP($C9,TS3L6_ALL,10,FALSE) -> 5912 | L9: =VLOOKUP($C9,TS3L6_ALL,14,FALSE) -> L6N01 | M9: =IF(L9="L6N01",1,0) -> 1
C11: Chassis Configuration
C12: =VLOOKUP($C$9,TS3L6_Chassis,2,FALSE) -> Chassis with 16 x 2.5 Hard Drives
C14: Processor | D14: =HYPERLINK("https://ark.intel.com/content/www/it/it/ark/products/193951/intel-xeon-gold-6252n-processor-35-75m-cache-2-30-ghz.html","i") -> i
C15: 2 x Intel Xeon-Gold 6252N (2.3GHz/24-core/150W)
C17: Additional Processor
C18: No Additional Processor | E18: =IF($M$9=1,VLOOKUP($C$18,TS3L6_CPU,15,FALSE),VLOOKUP($C$18,TS3L6_CPU,13,FALSE)) ->  | F18: =IF(F12=1,VLOOKUP($C$15,TS3L6_CPU,7,FALSE),VLOOKUP($C$18,TS3L6_CPU,7,FALSE)) -> 0 | J18: =IF(F12=1,VLOOKUP($C$15,TS3L6_CPU,10,FALSE),VLOOKUP($C$18,TS3L6_CPU,10,FALSE)) -> 0 | K18: =IF(F12=1,VLOOKUP($C$15,TS3L6_CPU,11,FALSE),VLOOKUP($C$18,TS3L6_CPU,11,FALSE)) -> 0 | L18: =IF($M$9=1,VLOOKUP(C18,TS3L6_ALL,14,FALSE),VLOOKUP(C18,TS3L6_ALL,12,FALSE)) -> 
E19: =IF(E18="TS3L4-CPU8CORE","TS3L4-CPU","") ->  | F19: =IFERROR(O19,"") ->  | J19: =IFERROR(N19,0) -> 0 | L19: =IF(E19="TS3L4-CPU","L4N02",0) -> 0 | N19: =VLOOKUP($L$19,Tabella_prezzi!$A$3:$K$331,4,FALSE) ->  | O19: =VLOOKUP($L$19,Tabella_prezzi!$A$3:$K$331,7,FALSE) -> 
C20: Memory Capacity
C21: 128GB (32GB) | E21: =IF(J21>0,IF(M9=0,"TS3L6-RAM32N","TS3L6-RAM32"),"") ->  | F21: =IFERROR(O21,4) -> 0 | J21: =IFERROR(P21,(184*4)) -> 0 | L21: =IFERROR(Q21,IF(M9=0,N23,N23)) ->  | M21: 32GB | N21: =IF($M$9=1,VLOOKUP($C$21,TS3L6_RAM2CPU,15,FALSE),VLOOKUP($C$21,TS3L6_RAM1CPU,13,FALSE)) ->  | O21: =IF($F$18=1,VLOOKUP($C$21,TS3L6_RAM2CPU,7,FALSE),VLOOKUP($C$21,TS3L6_RAM1CPU,7,FALSE)) -> 0 | P21: =IF($F$18=1,VLOOKUP($C$21,TS3L6_RAM2CPU,10,FALSE),VLOOKUP($C$21,TS3L6_RAM1CPU,10,FALSE)) -> 0 | Q21: =IF(M9=0,IF($F$18=1,VLOOKUP($C$21,TS3L6_RAM2CPU,12,FALSE),VLOOKUP($C$21,TS3L6_RAM1CPU,12,FALSE)),IF($F$18=1,VLOOKUP($C$21,TS3L6_RAM2CPU,14,FALSE),VLOOKUP($C$21,TS3L6_RAM1CPU,14,FALSE))) -> 
E22: =IF(J22>0,IF(M9=0,"TS3L6-RAM64N","TS3L6-RAM64"),"") ->  | F22: =IFERROR(O22,0) -> 0 | J22: =IFERROR(P22,0) -> 0 | L22: =IFERROR(Q22,IF(M9=0,N24,N24)) ->  | M22: 64GB | N22: =IF($M$9=1,VLOOKUP($C$21,TS3L6_RAM2CPU,23,FALSE),VLOOKUP($C$21,TS3L6_RAM1CPU,21,FALSE)) ->  | O22: =IF($F$18=1,VLOOKUP($C$21,TS3L6_RAM2CPU,24,FALSE),VLOOKUP($C$21,TS3L6_RAM1CPU,24,FALSE)) -> 0 | P22: =IF($F$18=1,VLOOKUP($C$21,TS3L6_RAM2CPU,18,FALSE),VLOOKUP($C$21,TS3L6_RAM1CPU,18,FALSE)) -> 0 | Q22: =IF(M9=0,IF($F$18=1,VLOOKUP($C$21,TS3L6_RAM2CPU,20,FALSE),VLOOKUP($C$21,TS3L6_RAM1CPU,20,FALSE)),IF($F$18=1,VLOOKUP($C$21,TS3L6_RAM2CPU,22,FALSE),VLOOKUP($C$21,TS3L6_RAM1CPU,22,FALSE))) -> 
M23: 32GB | N23: =IF(M9=1,"L6N03","L6N03B") -> L6N03
C24: Operating System
C25: No Operating System | E25: =IF($M$9=1,VLOOKUP($C$25,TS3L6_OS,15,FALSE),VLOOKUP($C$25,TS3L6_OS,13,FALSE)) ->  | F25: =VLOOKUP($C$25,TS3L6_OS,7,FALSE) -> 0 | J25: =VLOOKUP($C$25,TS3L6_OS,10,FALSE) -> 0 | K25: =VLOOKUP($C$25,TS3L6_OS,11,FALSE) -> 0 | L25: =IF($M$9=1,VLOOKUP($C25,TS3L6_ALL,14,FALSE),VLOOKUP($C25,TS3L6_ALL,12,FALSE)) -> 
E26: =IF($M$9=1,VLOOKUP($C$25,TS3L6_OS,25,FALSE),VLOOKUP($C$25,TS3L6_OS,24,FALSE)) ->  | F26: =IF(F18=1,VLOOKUP($C$25,TS3L6_OS,16,FALSE),VLOOKUP($C$25,TS3L6_OS,21,FALSE)) -> 0 | J26: =IF(F18=1,VLOOKUP($C$25,TS3L6_OS,19,FALSE),VLOOKUP($C$25,TS3L6_OS,20,FALSE)) -> 0 | L26: =IF($M$9=1,VLOOKUP($C25,TS3L6_OS,23,FALSE),VLOOKUP($C25,TS3L6_OS,22,FALSE)) -> 0
C28: Configurazione opzionale dello chassis
C29: Standard | E29: =IF($M$9=1,VLOOKUP($C$29,TS3L6_ALL,15,FALSE),VLOOKUP($C$29,TS3L6_ALL,13,FALSE)) ->  | F29: =VLOOKUP($C$29,TS3L6_ALL,7,FALSE) ->  | J29: =VLOOKUP($C29,TS3L6_ALL,10,FALSE) -> 0 | K29: =VLOOKUP($C29,TS3L6_ALL,11,FALSE) -> 0 | L29: =IF($M$9=1,VLOOKUP($C29,TS3L6_ALL,14,FALSE),VLOOKUP($C29,TS3L6_ALL,12,FALSE)) -> 
C32: Raid Controller
C33: HPE Smart Array P816i-a SR G10 | D33: =IF($C$33="HBA330 12Gbps SAS HBA Controller (NON-RAID)","vSAN HCL","") ->  | E33: =IF($M$9=1,VLOOKUP($C$33,TS3L6_ALL,15,FALSE),VLOOKUP($C$33,TS3L6_ALL,13,FALSE)) ->  | F33: =VLOOKUP($C$33,TS3L6_ALL,7,FALSE) ->  | H33: Configurazione RAID e/o NOTE | J33: =VLOOKUP($C33,TS3L6_ALL,10,FALSE) -> 0 | K33: =VLOOKUP($C33,TS3L6_ALL,11,FALSE) -> 0 | L33: =IF($M$9=1,VLOOKUP($C33,TS3L6_ALL,14,FALSE),VLOOKUP($C33,TS3L6_ALL,12,FALSE)) -> 
H34: Specificare la configurazione RAID per l'installazione del Sistema Operativo, se richiesto. e/o inserire eventuali note.
C35: =IF(L8="L6N01b","Hard Drivers Bays disponibili n° 12 - NVMe Bays disponibili n° 4",IF(F28=1,"Hard Drivers Bays disponibili n° 24","Hard Drivers Bays disponibili n° 16")) -> Hard Drivers Bays disponibili n° 16 | E35: Usati | F35: Disponibili
D36: HDD/SDD | E36: =F39+F41+F43+F49+F51+F45+F47 -> 2 | F36: =IF(L8="L6N01b",(12-E36),IF(F29=1,(24-E36),(16-E36))) -> 14
D37: =IF(L9="L6N01b","NVMe","") ->  | E37: =IF(L9="L6N01b",F53+F55,"") ->  | F37: =IF(L9="L6N01b",(4-E37),"") -> 
C38: =IF(M9=0,"!!!ATTENZIONE!!! I dischi NVMe possono essere acquistati solo insieme al server. Non sono presenti per gli Acquisti Successivi.","") -> 
C39: =ConfigurationTS3L6!A65 -> HPE 300GB SAS 12G Enterprise 10K SFF (2.5in) SC | E39: =IF($M$9=1,VLOOKUP(C39,TS3L6_HDD,15,FALSE),VLOOKUP(C39,TS3L6_HDD,13,FALSE)) -> TS3L6-HDD300GB | J39: =VLOOKUP($C39,TS3L6_HDD,10,FALSE)*F39 -> 0 | K39: =VLOOKUP($C39,TS3L6_HDD,11,FALSE) -> 0 | L39: =IF($M$9=1,VLOOKUP(C39,TS3L6_ALL,14,FALSE),VLOOKUP(C39,TS3L6_ALL,12,FALSE)) -> L6N12
C41: =ConfigurationTS3L6!A66 -> HPE 1.2TB SAS 12G Enterprise 10K SFF (2.5in) SC | E41: =IF($M$9=1,VLOOKUP(C41,TS3L6_HDD,15,FALSE),VLOOKUP(C41,TS3L6_HDD,13,FALSE)) -> TS3L6-HDD1TB | J41: =VLOOKUP($C41,TS3L6_HDD,10,FALSE)*F41 -> 0 | K41: =VLOOKUP($C41,TS3L6_HDD,11,FALSE) -> 0 | L41: =IF($M$9=1,VLOOKUP(C41,TS3L6_ALL,14,FALSE),VLOOKUP(C41,TS3L6_ALL,12,FALSE)) -> L6N11
C43: =ConfigurationTS3L6!A67 -> HPE 1.8TB SAS 12G Enterprise 10K SFF (2.5in) SC | E43: =IF($M$9=1,VLOOKUP(C43,TS3L6_HDD,15,FALSE),VLOOKUP(C43,TS3L6_HDD,13,FALSE)) -> TS3L6-HDD2TB | J43: =VLOOKUP($C43,TS3L6_HDD,10,FALSE)*F43 -> 0 | K43: =VLOOKUP($C43,TS3L6_HDD,11,FALSE) -> 0 | L43: =IF($M$9=1,VLOOKUP(C43,TS3L6_ALL,14,FALSE),VLOOKUP(C43,TS3L6_ALL,12,FALSE)) -> L6N10
C45: =ConfigurationTS3L6!A68 -> HPE 960GB SAS 12G Read Intensive SFF (2.5in) SC | E45: =IF($M$9=1,VLOOKUP(C45,TS3L6_HDD,15,FALSE),VLOOKUP(C45,TS3L6_HDD,13,FALSE)) -> TS3L6-RI800GB | J45: =VLOOKUP($C45,TS3L6_HDD,10,FALSE)*F45 -> 0 | K45: =VLOOKUP($C45,TS3L6_HDD,11,FALSE) -> 0 | L45: =IF($M$9=1,VLOOKUP(C45,TS3L6_ALL,14,FALSE),VLOOKUP(C45,TS3L6_ALL,12,FALSE)) -> L6N15
C47: =ConfigurationTS3L6!A69 -> HPE 1.92TB SAS 12G Read Intensive SFF (2.5in) SC | E47: =IF($M$9=1,VLOOKUP(C47,TS3L6_HDD,15,FALSE),VLOOKUP(C47,TS3L6_HDD,13,FALSE)) -> TS3L6-RI1600GB | J47: =VLOOKUP($C47,TS3L6_HDD,10,FALSE)*F47 -> 0 | K47: =VLOOKUP($C47,TS3L6_HDD,11,FALSE) -> 0 | L47: =IF($M$9=1,VLOOKUP(C47,TS3L6_ALL,14,FALSE),VLOOKUP(C47,TS3L6_ALL,12,FALSE)) -> L6N13
C49: =ConfigurationTS3L6!A71 -> HPE 800GB SAS 12G Mixed Use SFF (2.5in) SC | E49: =IF($M$9=1,VLOOKUP(C49,TS3L6_HDD,15,FALSE),VLOOKUP(C49,TS3L6_HDD,13,FALSE)) -> TS3L6-MU800GB | F49: 2 | J49: =IF(F49>2,VLOOKUP($C49,TS3L6_HDD,10,FALSE)*(F49-2),0) -> 0 | K49: =VLOOKUP($C49,TS3L6_HDD,11,FALSE)*F49 -> 0 | L49: =IF($M$9=1,VLOOKUP(C49,TS3L6_ALL,14,FALSE),VLOOKUP(C49,TS3L6_ALL,12,FALSE)) -> L6N16
C51: =ConfigurationTS3L6!A72 -> HPE 1.6TB SAS 12G Mixed Use SFF (2.5in) SC | E51: =IF($M$9=1,VLOOKUP(C51,TS3L6_HDD,15,FALSE),VLOOKUP(C51,TS3L6_HDD,13,FALSE)) -> TS3L6-MU1600GB | J51: =VLOOKUP($C51,TS3L6_HDD,10,FALSE)*F51 -> 0 | K51: =VLOOKUP($C51,TS3L6_HDD,11,FALSE) -> 0 | L51: =IF($M$9=1,VLOOKUP(C51,TS3L6_ALL,14,FALSE),VLOOKUP(C51,TS3L6_ALL,12,FALSE)) -> L6N14
C53: =IF($L$9="L6N01b",ConfigurationTS3L6!A73,"") ->  | E53: =IF($M$9=1,VLOOKUP(C53,TS3L6_HDD,15,FALSE),VLOOKUP(C53,TS3L6_HDD,13,FALSE)) ->  | J53: =IF($L$9="L6N01b",VLOOKUP($C53,TS3L6_HDD,10,FALSE)*F53,0) -> 0 | K53: =VLOOKUP($C53,TS3L6_HDD,11,FALSE)*F53 -> 0 | L53: =IF($M$9=1,VLOOKUP(C53,TS3L6_ALL,14,FALSE),VLOOKUP(C53,TS3L6_ALL,12,FALSE)) -> 
C55: =IF($L$9="L6N01b",ConfigurationTS3L6!A74,"") ->  | E55: =IF($M$9=1,VLOOKUP(C55,TS3L6_HDD,15,FALSE),VLOOKUP(C55,TS3L6_HDD,13,FALSE)) ->  | J55: =IF($L$9="L6N01b",VLOOKUP($C55,TS3L6_HDD,10,FALSE)*F55,0) -> 0 | K55: =VLOOKUP($C55,TS3L6_HDD,11,FALSE)*F55 -> 0 | L55: =IF($M$9=1,VLOOKUP(C55,TS3L6_ALL,14,FALSE),VLOOKUP(C55,TS3L6_ALL,12,FALSE)) -> 
C57: Power Supply
C58: Dual, Hot-plug, Redundant Power Supply (1+1), 1600W
C60: HPE OneView Advanced (with HPE iLO Advanced) | D60: =HYPERLINK("https://convenzioni.converge.it/docs/ts3_datasheet/ilo-spec-sheet.pdf","i") -> i
C61: None | E61: =IF($M$9=1,VLOOKUP(C61,TS3L6_ALL,15,FALSE),VLOOKUP(C61,TS3L6_ALL,13,FALSE)) ->  | F61: =VLOOKUP($C61,TS3L6_ALL,7,FALSE) ->  | J61: =VLOOKUP($C61,TS3L6_ALL,10,FALSE) -> 0 | K61: =VLOOKUP($C61,TS3L6_ALL,11,FALSE) -> 0 | L61: =IF($M$9=1,VLOOKUP(C61,TS3L6_ALL,14,FALSE),VLOOKUP(C61,TS3L6_ALL,12,FALSE)) -> 
C63: Micro SD (USB Flash Drive)
C64: None | E64: =IF($M$9=1,VLOOKUP(C64,TS3L6_ALL,15,FALSE),VLOOKUP(C64,TS3L6_ALL,13,FALSE)) ->  | F64: =VLOOKUP($C64,TS3L6_ALL,7,FALSE) ->  | J64: =VLOOKUP($C64,TS3L6_ALL,10,FALSE) -> 0 | K64: =VLOOKUP($C64,TS3L6_ALL,11,FALSE) -> 0 | L64: =IF($M$9=1,VLOOKUP(C64,TS3L6_ALL,14,FALSE),VLOOKUP(C64,TS3L6_ALL,12,FALSE)) -> 
C66: Network Cards
C67: HPE Ethernet 1Gb 4-port FLR-T BCM5719 Adapter
C71: PCI Slot 1 Processor 1 x8 PCIe Gen3
E72: =IF($M$9=1,VLOOKUP(C72,TS3L6_ALL,15,FALSE),VLOOKUP(C72,TS3L6_ALL,13,FALSE)) ->  | F72: =VLOOKUP($C72,TS3L6_ALL,7,FALSE) ->  | J72: =VLOOKUP($C72,TS3L6_ALL,10,FALSE) -> 0 | K72: =VLOOKUP($C72,TS3L6_ALL,11,FALSE) -> 0 | L72: =IF($M$9=1,VLOOKUP(C72,TS3L6_ALL,14,FALSE),VLOOKUP(C72,TS3L6_ALL,12,FALSE)) -> 
C74: =IF($L$9="L6N01b","PCI Slot 2 Processor 1 x8 PCIe Gen3","PCI Slot 2 Processor 1 x16 PCIe Gen3 ----------GPU Slot----------") -> PCI Slot 2 Processor 1 x16 PCIe Gen3 ----------GPU Slot----------
E75: =IF($M$9=1,VLOOKUP(C75,TS3L6_ALL,15,FALSE),VLOOKUP(C75,TS3L6_ALL,13,FALSE)) ->  | F75: =VLOOKUP($C75,TS3L6_ALL,7,FALSE) ->  | J75: =VLOOKUP($C75,TS3L6_ALL,10,FALSE) -> 0 | K75: =VLOOKUP($C75,TS3L6_ALL,11,FALSE) -> 0 | L75: =IF($M$9=1,VLOOKUP(C75,TS3L6_ALL,14,FALSE),VLOOKUP(C75,TS3L6_ALL,12,FALSE)) -> 
C77: PCI Slot 3 Processor 1 x8 PCIe Gen3
E78: =IF($M$9=1,VLOOKUP(C78,TS3L6_ALL,15,FALSE),VLOOKUP(C78,TS3L6_ALL,13,FALSE)) ->  | F78: =VLOOKUP($C78,TS3L6_ALL,7,FALSE) ->  | J78: =VLOOKUP($C78,TS3L6_ALL,10,FALSE) -> 0 | K78: =VLOOKUP($C78,TS3L6_ALL,11,FALSE) -> 0 | L78: =IF($M$9=1,VLOOKUP(C78,TS3L6_ALL,14,FALSE),VLOOKUP(C78,TS3L6_ALL,12,FALSE)) -> 
C80: PCI Slot 4 Processor 2 x8 PCIe Gen3
E81: =IF($M$9=1,VLOOKUP(C81,TS3L6_ALL,15,FALSE),VLOOKUP(C81,TS3L6_ALL,13,FALSE)) ->  | F81: =VLOOKUP($C81,TS3L6_ALL,7,FALSE) ->  | J81: =VLOOKUP($C81,TS3L6_ALL,10,FALSE) -> 0 | K81: =VLOOKUP($C81,TS3L6_ALL,11,FALSE) -> 0 | L81: =IF($M$9=1,VLOOKUP(C81,TS3L6_ALL,14,FALSE),VLOOKUP(C81,TS3L6_ALL,12,FALSE)) -> 
C83: =IF($L$9="L6N01b","PCI Slot 5 Processor 2 x8 PCIe Gen3","PCI Slot 5 Processor 2 x16 PCIe Gen3 ----------GPU Slot----------") -> PCI Slot 5 Processor 2 x16 PCIe Gen3 ----------GPU Slot----------
E84: =IF($M$9=1,VLOOKUP(C84,TS3L6_ALL,15,FALSE),VLOOKUP(C84,TS3L6_ALL,13,FALSE)) ->  | F84: =VLOOKUP($C84,TS3L6_ALL,7,FALSE) ->  | J84: =VLOOKUP($C84,TS3L6_ALL,10,FALSE) -> 0 | K84: =VLOOKUP($C84,TS3L6_ALL,11,FALSE) -> 0 | L84: =IF($M$9=1,VLOOKUP(C84,TS3L6_ALL,14,FALSE),VLOOKUP(C84,TS3L6_ALL,12,FALSE)) -> 
C86: PCI Slot 6 Processor 2 x8 PCIe Gen3
E87: =IF($M$9=1,VLOOKUP(C87,TS3L6_ALL,15,FALSE),VLOOKUP(C87,TS3L6_ALL,13,FALSE)) ->  | F87: =VLOOKUP($C87,TS3L6_ALL,7,FALSE) ->  | J87: =VLOOKUP($C87,TS3L6_ALL,10,FALSE) -> 0 | K87: =VLOOKUP($C87,TS3L6_ALL,11,FALSE) -> 0 | L87: =IF($M$9=1,VLOOKUP(C87,TS3L6_ALL,14,FALSE),VLOOKUP(C87,TS3L6_ALL,12,FALSE)) -> 
C89: PCI Slot 7 Processor 2 x8 PCIe Gen3
E90: =VLOOKUP($C90,TS3L6_ALL,13,FALSE) ->  | F90: =VLOOKUP($C90,TS3L6_ALL,7,FALSE) ->  | H90: =IF(M90="Errore","ERRORE nella selezione del PCI Slot",IFERROR(O91,"ERRORE nella selezione del PCI Slot")) -> 0 | J90: =VLOOKUP($C90,TS3L6_ALL,10,FALSE) -> 0 | K90: =VLOOKUP($C90,TS3L6_ALL,11,FALSE) -> 0 | L90: =VLOOKUP($C90,TS3L6_ALL,12,FALSE) -> 
C92: PCI Slot 8 Processor 2 x16 PCIe Gen3
E93: =VLOOKUP($C93,TS3L6_ALL,13,FALSE) ->  | F93: =VLOOKUP($C93,TS3L6_ALL,7,FALSE) ->  | H93: =IFERROR(O94,"ERRORE nella selezione del PCI Slot") -> 0 | J93: =VLOOKUP($C93,TS3L6_ALL,10,FALSE) -> 0 | K93: =VLOOKUP($C93,TS3L6_ALL,11,FALSE) -> 0 | L93: =VLOOKUP($C93,TS3L6_ALL,12,FALSE) -> 
C95: M.2 - Solid State Drives
C96: None | E96: =IF($M$9=1,VLOOKUP(C96,TS3L6_ALL,15,FALSE),VLOOKUP(C96,TS3L6_ALL,13,FALSE)) ->  | F96: =VLOOKUP($C96,TS3L6_ALL,7,FALSE) ->  | J96: =VLOOKUP($C96,TS3L6_ALL,10,FALSE) -> 0 | K96: =VLOOKUP($C96,TS3L6_ALL,11,FALSE) -> 0 | L96: =IF($M$9=1,VLOOKUP(C96,TS3L6_ALL,14,FALSE),VLOOKUP(C96,TS3L6_ALL,12,FALSE)) -> 
C98: Cables for Intel Omni-Path Adapter
C99: HPE 3M 100Gb QSFP28 Omni-Path Optical Power Class 2 Cable | E99: =IF(K99>0,IF($M$9=1,VLOOKUP(C99,TS3L6_ALL,15,FALSE),VLOOKUP(C99,TS3L6_ALL,13,FALSE)),"") ->  | J99: 0 | K99: =IF(F99>0,VLOOKUP($C99,TS3L6_ALL,11,FALSE)*F99,0) -> 0 | L99: =IF(F99>0,IF($M$9=1,VLOOKUP(C99,TS3L6_ALL,14,FALSE),VLOOKUP(C99,TS3L6_ALL,12,FALSE)),"") -> 
C100: HPE 5M 100Gb QSFP28 Omni-Path Optical Power Class 2 Cable | E100: =IF(K100>0,IF($M$9=1,VLOOKUP(C100,TS3L6_ALL,15,FALSE),VLOOKUP(C100,TS3L6_ALL,13,FALSE)),"") ->  | J100: 0 | K100: =IF(F100>0,VLOOKUP($C100,TS3L6_ALL,11,FALSE)*F100,0) -> 0 | L100: =IF(F100>0,IF($M$9=1,VLOOKUP(C100,TS3L6_ALL,14,FALSE),VLOOKUP(C100,TS3L6_ALL,12,FALSE)),"") -> 
C101: HPE 7M 100Gb QSFP28 Omni-Path Optical Power Class 2 Cable | E101: =IF(K101>0,IF($M$9=1,VLOOKUP(C101,TS3L6_ALL,15,FALSE),VLOOKUP(C101,TS3L6_ALL,13,FALSE)),"") ->  | J101: 0 | K101: =IF(F101>0,VLOOKUP($C101,TS3L6_ALL,11,FALSE)*F101,0) -> 0 | L101: =IF(F101>0,IF($M$9=1,VLOOKUP(C101,TS3L6_ALL,14,FALSE),VLOOKUP(C101,TS3L6_ALL,12,FALSE)),"") -> 
C103: Transceiver
C104: HPE 10G SFP+ LR Transceiver | E104: =IF(K104>0,IF($M$9=1,VLOOKUP(C104,TS3L6_ALL,15,FALSE),VLOOKUP(C104,TS3L6_ALL,13,FALSE)),"") ->  | J104: 0 | K104: =IF(F104>0,VLOOKUP($C104,TS3L6_ALL,11,FALSE)*F104,0) -> 0 | L104: =IF(F104>0,IF($M$9=1,VLOOKUP(C104,TS3L6_ALL,14,FALSE),VLOOKUP(C104,TS3L6_ALL,12,FALSE)),"") -> 
C105: HPE 10G SFP+ SR Transceiver | E105: =IF(K105>0,IF($M$9=1,VLOOKUP(C105,TS3L6_ALL,15,FALSE),VLOOKUP(C105,TS3L6_ALL,13,FALSE)),"") ->  | J105: 0 | K105: =IF(F105>0,VLOOKUP($C105,TS3L6_ALL,11,FALSE)*F105,0) -> 0 | L105: =IF(F105>0,IF($M$9=1,VLOOKUP(C105,TS3L6_ALL,14,FALSE),VLOOKUP(C105,TS3L6_ALL,12,FALSE)),"") -> 
C107: Cables
C108: Cavo DAC HPE 10GB SFP+ SFP+ 3 metri | E108: =IF(K108>0,IF($M$9=1,VLOOKUP(C108,TS3L6_ALL,15,FALSE),VLOOKUP(C108,TS3L6_ALL,13,FALSE)),"") ->  | J108: 0 | K108: =IF(F108>0,VLOOKUP($C108,TS3L6_ALL,11,FALSE)*F108,0) -> 0 | L108: =IF(F108>0,IF($M$9=1,VLOOKUP(C108,TS3L6_ALL,14,FALSE),VLOOKUP(C108,TS3L6_ALL,12,FALSE)),"") -> 
C109: HPE Premier Flex LC/LC OM4 2f 2m Cbl | E109: =IF(K109>0,IF($M$9=1,VLOOKUP(C109,TS3L6_ALL,15,FALSE),VLOOKUP(C109,TS3L6_ALL,13,FALSE)),"") ->  | J109: 0 | K109: =IF(F109>0,VLOOKUP($C109,TS3L6_ALL,11,FALSE)*F109,0) -> 0 | L109: =IF(F109>0,IF($M$9=1,VLOOKUP(C109,TS3L6_ALL,14,FALSE),VLOOKUP(C109,TS3L6_ALL,12,FALSE)),"") -> 
C110: HPE 25Gb SFP28 to SFP28 3m DAC | E110: =IF(K110>0,IF($M$9=1,VLOOKUP(C110,TS3L6_ALL,15,FALSE),VLOOKUP(C110,TS3L6_ALL,13,FALSE)),"") ->  | J110: 0 | K110: =IF(F110>0,VLOOKUP($C110,TS3L6_ALL,11,FALSE)*F110,0) -> 0 | L110: =IF(F110>0,IF($M$9=1,VLOOKUP(C110,TS3L6_ALL,14,FALSE),VLOOKUP(C110,TS3L6_ALL,12,FALSE)),"") -> 
E112: =IF(K112>0,VLOOKUP($C112,ConfigurationTS3L6!$A$1:$O$4574,13,FALSE),"") ->  | J112: 0 | K112: =IF(F112>0,VLOOKUP($C112,TS3L6_ALL,11,FALSE)*F112,0) -> 0 | L112: =IF(F112>0,VLOOKUP($C112,TS3L6_ALL,12,FALSE),0) -> 0
C114: Cavi RJ45
C115: Cavo “patch” di 3 mt RJ45 certificato per gigabit ethernet | E115: =IF(K115>0,IF($M$9=1,VLOOKUP(C115,TS3L6_ALL,15,FALSE),VLOOKUP(C115,TS3L6_ALL,13,FALSE)),"") -> TS3L6-RJ453M | F115: 5 | J115: 0 | K115: =IF(F115>0,IF($M$9=1,VLOOKUP(C115,TS3L6_ALL,11,FALSE)*(F115),VLOOKUP(C115,TS3L6_ALL,11,FALSE)*(F115)),0) -> 15 | L115: =IF(F115>0,IF($M$9=1,VLOOKUP(C115,TS3L6_ALL,14,FALSE),VLOOKUP(C115,TS3L6_ALL,12,FALSE)),"") -> L6N34
C117: Warranty | D117: =HYPERLINK("https://convenzioni.converge.it/docs/ts3_datasheet/TS3warranty_hpe.pdf","i") -> i
C118: Manutenzione in garanzia (36 mesi) | E118: =IF($M$9=1,VLOOKUP(C118,TS3L6_ALL,15,FALSE),VLOOKUP(C118,TS3L6_ALL,13,FALSE)) ->  | F118: =VLOOKUP($C118,TS3L6_WARRANTY,7,FALSE) ->  | J118: =VLOOKUP($C118,TS3L6_WARRANTY,10,FALSE) -> 0 | K118: =VLOOKUP($C118,TS3L6_WARRANTY,11,FALSE) -> 0 | L118: =IF($M$9=1,VLOOKUP(C118,TS3L6_ALL,14,FALSE),VLOOKUP(C118,TS3L6_ALL,12,FALSE)) -> 
C120: Hard Disk Retention | D120: =HYPERLINK("https://convenzioni.converge.it/docs/ts3_datasheet/HPE_HDD_KYHD.pdf","i") -> i
E121: =IF($M$9=0,$N$122,$N$121) ->  | F121: =IF(C121="","",1) ->  | J121: =IFERROR(Q121,VLOOKUP(C121,TS3L6_ALL,10,FALSE)) -> 0 | K121: =IFERROR(R121,VLOOKUP(C121,TS3L6_ALL,11,FALSE)) -> 0 | L121: =IF(M9=0,O122,O121) ->  | N121: =IFERROR($P$121,VLOOKUP($C$121,TS3L6_ALL,15,FALSE)) ->  | O121: =IFERROR($S$121,VLOOKUP($C$121,TS3L6_ALL,14,FALSE)) ->  | P121: =IF(F118+F121=2,VLOOKUP("Hard Disk Retention (60 mesi)",TS3L6_ALL,15,FALSE),VLOOKUP(C121,TS3L6_ALL,15,FALSE)) ->  | Q121: =IF(F118+F121=2,VLOOKUP("Hard Disk Retention (60 mesi)",TS3L6_ALL,10,FALSE),VLOOKUP(C121,TS3L6_ALL,10,FALSE)) ->  | R121: =IF(F118+F121=2,VLOOKUP("Hard Disk Retention (60 mesi)",TS3L6_ALL,11,FALSE),VLOOKUP(C121,TS3L6_ALL,11,FALSE)) ->  | S121: =IF(F118+F121=2,VLOOKUP("Hard Disk Retention (60 mesi)",TS3L6_ALL,14,FALSE),VLOOKUP(C121,TS3L6_ALL,14,FALSE)) -> 
N122: =IFERROR($P$122,VLOOKUP($C$121,TS3L6_ALL,13,FALSE)) ->  | O122: =IFERROR($S$122,VLOOKUP($C$121,TS3L6_ALL,12,FALSE)) ->  | P122: =IF(F118+F121=2,VLOOKUP("Hard Disk Retention (60 mesi)",TS3L6_ALL,13,FALSE),VLOOKUP(C121,TS3L6_ALL,13,FALSE)) ->  | Q122: =IF(F118+F121=2,VLOOKUP("Hard Disk Retention (60 mesi)",TS3L6_ALL,10,FALSE),VLOOKUP(C121,TS3L6_ALL,10,FALSE)) ->  | R122: =IF(F118+F121=2,VLOOKUP("Hard Disk Retention (60 mesi)",TS3L6_ALL,11,FALSE),VLOOKUP(C121,TS3L6_ALL,11,FALSE)) ->  | S122: =IF(F118+F121=2,VLOOKUP("Hard Disk Retention (60 mesi)",TS3L6_ALL,12,FALSE),VLOOKUP(C121,TS3L6_ALL,12,FALSE)) -> 

Sheet Lotto6_DL560_3
E1: Convenzione | F1: =SUM(J9:J121)*F5 -> 0
E2: 0.2 | F2: =SUM(K9:K121)*F5 -> 0
E3: Totale | F3: =SUM(F1:F2) -> 0
H4: =IF($E$12="TS3L4-VSAN","vSAN ReadyNode™",IF($E$12="TS3L4-GPUDW","GPU Double-Wide Server Ready",IF($E$12="TS3L4-GPUSW","GPU Single-Wide Server Ready",""))) -> 
A5: HPE PROLIANT DL560 Gen10 Consulta la Guida alla Convenzione -> | D5: =HYPERLINK("https://convenzioni.converge.it/docs/L6GuidaAllaConvenzioneTecnologieServer3.pdf","&") -> & | E5: Quantità Server | H5: =Riepilogo!G8 -> Version 4.5
C8: Base | D8: =HYPERLINK("https://convenzioni.converge.it/docs/ts3_datasheet/HPE%20ProLiant%20DL560%20Gen10-spec-sheet.pdf","i") -> i
C9: Proliant DL560 Gen10 | E9: =VLOOKUP($C9,TS3L6_ALL,15,FALSE) -> TS3L6-SRV | F9: =IF($F$5>0,1,"") ->  | J9: =VLOOKUP($C9,TS3L6_ALL,10,FALSE) -> 5912 | L9: =VLOOKUP($C9,TS3L6_ALL,14,FALSE) -> L6N01 | M9: =IF(L9="L6N01",1,0) -> 1
C11: Chassis Configuration
C12: =VLOOKUP($C$9,TS3L6_Chassis,2,FALSE) -> Chassis with 16 x 2.5 Hard Drives
C14: Processor | D14: =HYPERLINK("https://ark.intel.com/content/www/it/it/ark/products/193951/intel-xeon-gold-6252n-processor-35-75m-cache-2-30-ghz.html","i") -> i
C15: 2 x Intel Xeon-Gold 6252N (2.3GHz/24-core/150W)
C17: Additional Processor
C18: No Additional Processor | E18: =IF($M$9=1,VLOOKUP($C$18,TS3L6_CPU,15,FALSE),VLOOKUP($C$18,TS3L6_CPU,13,FALSE)) ->  | F18: =IF(F12=1,VLOOKUP($C$15,TS3L6_CPU,7,FALSE),VLOOKUP($C$18,TS3L6_CPU,7,FALSE)) -> 0 | J18: =IF(F12=1,VLOOKUP($C$15,TS3L6_CPU,10,FALSE),VLOOKUP($C$18,TS3L6_CPU,10,FALSE)) -> 0 | K18: =IF(F12=1,VLOOKUP($C$15,TS3L6_CPU,11,FALSE),VLOOKUP($C$18,TS3L6_CPU,11,FALSE)) -> 0 | L18: =IF($M$9=1,VLOOKUP(C18,TS3L6_ALL,14,FALSE),VLOOKUP(C18,TS3L6_ALL,12,FALSE)) -> 
E19: =IF(E18="TS3L4-CPU8CORE","TS3L4-CPU","") ->  | F19: =IFERROR(O19,"") ->  | J19: =IFERROR(N19,0) -> 0 | L19: =IF(E19="TS3L4-CPU","L4N02",0) -> 0 | N19: =VLOOKUP($L$19,Tabella_prezzi!$A$3:$K$331,4,FALSE) ->  | O19: =VLOOKUP($L$19,Tabella_prezzi!$A$3:$K$331,7,FALSE) -> 
C20: Memory Capacity
C21: 128GB (32GB) | E21: =IF(J21>0,IF(M9=0,"TS3L6-RAM32N","TS3L6-RAM32"),"") ->  | F21: =IFERROR(O21,4) -> 0 | J21: =IFERROR(P21,(184*4)) -> 0 | L21: =IFERROR(Q21,IF(M9=0,N23,N23)) ->  | M21: 32GB | N21: =IF($M$9=1,VLOOKUP($C$21,TS3L6_RAM2CPU,15,FALSE),VLOOKUP($C$21,TS3L6_RAM1CPU,13,FALSE)) ->  | O21: =IF($F$18=1,VLOOKUP($C$21,TS3L6_RAM2CPU,7,FALSE),VLOOKUP($C$21,TS3L6_RAM1CPU,7,FALSE)) -> 0 | P21: =IF($F$18=1,VLOOKUP($C$21,TS3L6_RAM2CPU,10,FALSE),VLOOKUP($C$21,TS3L6_RAM1CPU,10,FALSE)) -> 0 | Q21: =IF(M9=0,IF($F$18=1,VLOOKUP($C$21,TS3L6_RAM2CPU,12,FALSE),VLOOKUP($C$21,TS3L6_RAM1CPU,12,FALSE)),IF($F$18=1,VLOOKUP($C$21,TS3L6_RAM2CPU,14,FALSE),VLOOKUP($C$21,TS3L6_RAM1CPU,14,FALSE))) -> 
E22: =IF(J22>0,IF(M9=0,"TS3L6-RAM64N","TS3L6-RAM64"),"") ->  | F22: =IFERROR(O22,0) -> 0 | J22: =IFERROR(P22,0) -> 0 | L22: =IFERROR(Q22,IF(M9=0,N24,N24)) ->  | M22: 64GB | N22: =IF($M$9=1,VLOOKUP($C$21,TS3L6_RAM2CPU,23,FALSE),VLOOKUP($C$21,TS3L6_RAM1CPU,21,FALSE)) ->  | O22: =IF($F$18=1,VLOOKUP($C$21,TS3L6_RAM2CPU,24,FALSE),VLOOKUP($C$21,TS3L6_RAM1CPU,24,FALSE)) -> 0 | P22: =IF($F$18=1,VLOOKUP($C$21,TS3L6_RAM2CPU,18,FALSE),VLOOKUP($C$21,TS3L6_RAM1CPU,18,FALSE)) -> 0 | Q22: =IF(M9=0,IF($F$18=1,VLOOKUP($C$21,TS3L6_RAM2CPU,20,FALSE),VLOOKUP($C$21,TS3L6_RAM1CPU,20,FALSE)),IF($F$18=1,VLOOKUP($C$21,TS3L6_RAM2CPU,22,FALSE),VLOOKUP($C$21,TS3L6_RAM1CPU,22,FALSE))) -> 
M23: 32GB | N23: =IF(M9=1,"L6N03","L6N03B") -> L6N03
C24: Operating System
C25: No Operating System | E25: =IF($M$9=1,VLOOKUP($C$25,TS3L6_OS,15,FALSE),VLOOKUP($C$25,TS3L6_OS,13,FALSE)) ->  | F25: =VLOOKUP($C$25,TS3L6_OS,7,FALSE) -> 0 | J25: =VLOOKUP($C$25,TS3L6_OS,10,FALSE) -> 0 | K25: =VLOOKUP($C$25,TS3L6_OS,11,FALSE) -> 0 | L25: =IF($M$9=1,VLOOKUP($C25,TS3L6_ALL,14,FALSE),VLOOKUP($C25,TS3L6_ALL,12,FALSE)) -> 
E26: =IF($M$9=1,VLOOKUP($C$25,TS3L6_OS,25,FALSE),VLOOKUP($C$25,TS3L6_OS,24,FALSE)) ->  | F26: =IF(F18=1,VLOOKUP($C$25,TS3L6_OS,16,FALSE),VLOOKUP($C$25,TS3L6_OS,21,FALSE)) -> 0 | J26: =IF(F18=1,VLOOKUP($C$25,TS3L6_OS,19,FALSE),VLOOKUP($C$25,TS3L6_OS,20,FALSE)) -> 0 | L26: =IF($M$9=1,VLOOKUP($C25,TS3L6_OS,23,FALSE),VLOOKUP($C25,TS3L6_OS,22,FALSE)) -> 0
C28: Configurazione opzionale dello chassis
C29: Standard | E29: =IF($M$9=1,VLOOKUP($C$29,TS3L6_ALL,15,FALSE),VLOOKUP($C$29,TS3L6_ALL,13,FALSE)) ->  | F29: =VLOOKUP($C$29,TS3L6_ALL,7,FALSE) ->  | J29: =VLOOKUP($C29,TS3L6_ALL,10,FALSE) -> 0 | K29: =VLOOKUP($C29,TS3L6_ALL,11,FALSE) -> 0 | L29: =IF($M$9=1,VLOOKUP($C29,TS3L6_ALL,14,FALSE),VLOOKUP($C29,TS3L6_ALL,12,FALSE)) -> 
C32: Raid Controller
C33: HPE Smart Array P816i-a SR G10 | D33: =IF($C$33="HBA330 12Gbps SAS HBA Controller (NON-RAID)","vSAN HCL","") ->  | E33: =IF($M$9=1,VLOOKUP($C$33,TS3L6_ALL,15,FALSE),VLOOKUP($C$33,TS3L6_ALL,13,FALSE)) ->  | F33: =VLOOKUP($C$33,TS3L6_ALL,7,FALSE) ->  | H33: Configurazione RAID e/o NOTE | J33: =VLOOKUP($C33,TS3L6_ALL,10,FALSE) -> 0 | K33: =VLOOKUP($C33,TS3L6_ALL,11,FALSE) -> 0 | L33: =IF($M$9=1,VLOOKUP($C33,TS3L6_ALL,14,FALSE),VLOOKUP($C33,TS3L6_ALL,12,FALSE)) -> 
H34: Specificare la configurazione RAID per l'installazione del Sistema Operativo, se richiesto. e/o inserire eventuali note.
C35: =IF(L8="L6N01b","Hard Drivers Bays disponibili n° 12 - NVMe Bays disponibili n° 4",IF(F28=1,"Hard Drivers Bays disponibili n° 24","Hard Drivers Bays disponibili n° 16")) -> Hard Drivers Bays disponibili n° 16 | E35: Usati | F35: Disponibili
D36: HDD/SDD | E36: =F39+F41+F43+F49+F51+F45+F47 -> 2 | F36: =IF(L8="L6N01b",(12-E36),IF(F29=1,(24-E36),(16-E36))) -> 14
D37: =IF(L9="L6N01b","NVMe","") ->  | E37: =IF(L9="L6N01b",F53+F55,"") ->  | F37: =IF(L9="L6N01b",(4-E37),"") -> 
C38: =IF(M9=0,"!!!ATTENZIONE!!! I dischi NVMe possono essere acquistati solo insieme al server. Non sono presenti per gli Acquisti Successivi.","") -> 
C39: =ConfigurationTS3L6!A65 -> HPE 300GB SAS 12G Enterprise 10K SFF (2.5in) SC | E39: =IF($M$9=1,VLOOKUP(C39,TS3L6_HDD,15,FALSE),VLOOKUP(C39,TS3L6_HDD,13,FALSE)) -> TS3L6-HDD300GB | J39: =VLOOKUP($C39,TS3L6_HDD,10,FALSE)*F39 -> 0 | K39: =VLOOKUP($C39,TS3L6_HDD,11,FALSE) -> 0 | L39: =IF($M$9=1,VLOOKUP(C39,TS3L6_ALL,14,FALSE),VLOOKUP(C39,TS3L6_ALL,12,FALSE)) -> L6N12
C41: =ConfigurationTS3L6!A66 -> HPE 1.2TB SAS 12G Enterprise 10K SFF (2.5in) SC | E41: =IF($M$9=1,VLOOKUP(C41,TS3L6_HDD,15,FALSE),VLOOKUP(C41,TS3L6_HDD,13,FALSE)) -> TS3L6-HDD1TB | J41: =VLOOKUP($C41,TS3L6_HDD,10,FALSE)*F41 -> 0 | K41: =VLOOKUP($C41,TS3L6_HDD,11,FALSE) -> 0 | L41: =IF($M$9=1,VLOOKUP(C41,TS3L6_ALL,14,FALSE),VLOOKUP(C41,TS3L6_ALL,12,FALSE)) -> L6N11
C43: =ConfigurationTS3L6!A67 -> HPE 1.8TB SAS 12G Enterprise 10K SFF (2.5in) SC | E43: =IF($M$9=1,VLOOKUP(C43,TS3L6_HDD,15,FALSE),VLOOKUP(C43,TS3L6_HDD,13,FALSE)) -> TS3L6-HDD2TB | J43: =VLOOKUP($C43,TS3L6_HDD,10,FALSE)*F43 -> 0 | K43: =VLOOKUP($C43,TS3L6_HDD,11,FALSE) -> 0 | L43: =IF($M$9=1,VLOOKUP(C43,TS3L6_ALL,14,FALSE),VLOOKUP(C43,TS3L6_ALL,12,FALSE)) -> L6N10
C45: =ConfigurationTS3L6!A68 -> HPE 960GB SAS 12G Read Intensive SFF (2.5in) SC | E45: =IF($M$9=1,VLOOKUP(C45,TS3L6_HDD,15,FALSE),VLOOKUP(C45,TS3L6_HDD,13,FALSE)) -> TS3L6-RI800GB | J45: =VLOOKUP($C45,TS3L6_HDD,10,FALSE)*F45 -> 0 | K45: =VLOOKUP($C45,TS3L6_HDD,11,FALSE) -> 0 | L45: =IF($M$9=1,VLOOKUP(C45,TS3L6_ALL,14,FALSE),VLOOKUP(C45,TS3L6_ALL,12,FALSE)) -> L6N15
C47: =ConfigurationTS3L6!A69 -> HPE 1.92TB SAS 12G Read Intensive SFF (2.5in) SC | E47: =IF($M$9=1,VLOOKUP(C47,TS3L6_HDD,15,FALSE),VLOOKUP(C47,TS3L6_HDD,13,FALSE)) -> TS3L6-RI1600GB | J47: =VLOOKUP($C47,TS3L6_HDD,10,FALSE)*F47 -> 0 | K47: =VLOOKUP($C47,TS3L6_HDD,11,FALSE) -> 0 | L47: =IF($M$9=1,VLOOKUP(C47,TS3L6_ALL,14,FALSE),VLOOKUP(C47,TS3L6_ALL,12,FALSE)) -> L6N13
C49: =ConfigurationTS3L6!A71 -> HPE 800GB SAS 12G Mixed Use SFF (2.5in) SC | E49: =IF($M$9=1,VLOOKUP(C49,TS3L6_HDD,15,FALSE),VLOOKUP(C49,TS3L6_HDD,13,FALSE)) -> TS3L6-MU800GB | F49: 2 | J49: =IF(F49>2,VLOOKUP($C49,TS3L6_HDD,10,FALSE)*(F49-2),0) -> 0 | K49: =VLOOKUP($C49,TS3L6_HDD,11,FALSE)*F49 -> 0 | L49: =IF($M$9=1,VLOOKUP(C49,TS3L6_ALL,14,FALSE),VLOOKUP(C49,TS3L6_ALL,12,FALSE)) -> L6N16
C51: =ConfigurationTS3L6!A72 -> HPE 1.6TB SAS 12G Mixed Use SFF (2.5in) SC | E51: =IF($M$9=1,VLOOKUP(C51,TS3L6_HDD,15,FALSE),VLOOKUP(C51,TS3L6_HDD,13,FALSE)) -> TS3L6-MU1600GB | J51: =VLOOKUP($C51,TS3L6_HDD,10,FALSE)*F51 -> 0 | K51: =VLOOKUP($C51,TS3L6_HDD,11,FALSE) -> 0 | L51: =IF($M$9=1,VLOOKUP(C51,TS3L6_ALL,14,FALSE),VLOOKUP(C51,TS3L6_ALL,12,FALSE)) -> L6N14
C53: =IF($L$9="L6N01b",ConfigurationTS3L6!A73,"") ->  | E53: =IF($M$9=1,VLOOKUP(C53,TS3L6_HDD,15,FALSE),VLOOKUP(C53,TS3L6_HDD,13,FALSE)) ->  | J53: =IF($L$9="L6N01b",VLOOKUP($C53,TS3L6_HDD,10,FALSE)*F53,0) -> 0 | K53: =VLOOKUP($C53,TS3L6_HDD,11,FALSE)*F53 -> 0 | L53: =IF($M$9=1,VLOOKUP(C53,TS3L6_ALL,14,FALSE),VLOOKUP(C53,TS3L6_ALL,12,FALSE)) -> 
C55: =IF($L$9="L6N01b",ConfigurationTS3L6!A74,"") ->  | E55: =IF($M$9=1,VLOOKUP(C55,TS3L6_HDD,15,FALSE),VLOOKUP(C55,TS3L6_HDD,13,FALSE)) ->  | J55: =IF($L$9="L6N01b",VLOOKUP($C55,TS3L6_HDD,10,FALSE)*F55,0) -> 0 | K55: =VLOOKUP($C55,TS3L6_HDD,11,FALSE)*F55 -> 0 | L55: =IF($M$9=1,VLOOKUP(C55,TS3L6_ALL,14,FALSE),VLOOKUP(C55,TS3L6_ALL,12,FALSE)) -> 
C57: Power Supply
C58: Dual, Hot-plug, Redundant Power Supply (1+1), 1600W
C60: HPE OneView Advanced (with HPE iLO Advanced) | D60: =HYPERLINK("https://convenzioni.converge.it/docs/ts3_datasheet/ilo-spec-sheet.pdf","i") -> i
C61: None | E61: =IF($M$9=1,VLOOKUP(C61,TS3L6_ALL,15,FALSE),VLOOKUP(C61,TS3L6_ALL,13,FALSE)) ->  | F61: =VLOOKUP($C61,TS3L6_ALL,7,FALSE) ->  | J61: =VLOOKUP($C61,TS3L6_ALL,10,FALSE) -> 0 | K61: =VLOOKUP($C61,TS3L6_ALL,11,FALSE) -> 0 | L61: =IF($M$9=1,VLOOKUP(C61,TS3L6_ALL,14,FALSE),VLOOKUP(C61,TS3L6_ALL,12,FALSE)) -> 
C63: Micro SD (USB Flash Drive)
C64: None | E64: =IF($M$9=1,VLOOKUP(C64,TS3L6_ALL,15,FALSE),VLOOKUP(C64,TS3L6_ALL,13,FALSE)) ->  | F64: =VLOOKUP($C64,TS3L6_ALL,7,FALSE) ->  | J64: =VLOOKUP($C64,TS3L6_ALL,10,FALSE) -> 0 | K64: =VLOOKUP($C64,TS3L6_ALL,11,FALSE) -> 0 | L64: =IF($M$9=1,VLOOKUP(C64,TS3L6_ALL,14,FALSE),VLOOKUP(C64,TS3L6_ALL,12,FALSE)) -> 
C66: Network Cards
C67: HPE Ethernet 1Gb 4-port FLR-T BCM5719 Adapter
C71: PCI Slot 1 Processor 1 x8 PCIe Gen3
E72: =IF($M$9=1,VLOOKUP(C72,TS3L6_ALL,15,FALSE),VLOOKUP(C72,TS3L6_ALL,13,FALSE)) ->  | F72: =VLOOKUP($C72,TS3L6_ALL,7,FALSE) ->  | J72: =VLOOKUP($C72,TS3L6_ALL,10,FALSE) -> 0 | K72: =VLOOKUP($C72,TS3L6_ALL,11,FALSE) -> 0 | L72: =IF($M$9=1,VLOOKUP(C72,TS3L6_ALL,14,FALSE),VLOOKUP(C72,TS3L6_ALL,12,FALSE)) -> 
C74: =IF($L$9="L6N01b","PCI Slot 2 Processor 1 x8 PCIe Gen3","PCI Slot 2 Processor 1 x16 PCIe Gen3 ----------GPU Slot----------") -> PCI Slot 2 Processor 1 x16 PCIe Gen3 ----------GPU Slot----------
E75: =IF($M$9=1,VLOOKUP(C75,TS3L6_ALL,15,FALSE),VLOOKUP(C75,TS3L6_ALL,13,FALSE)) ->  | F75: =VLOOKUP($C75,TS3L6_ALL,7,FALSE) ->  | J75: =VLOOKUP($C75,TS3L6_ALL,10,FALSE) -> 0 | K75: =VLOOKUP($C75,TS3L6_ALL,11,FALSE) -> 0 | L75: =IF($M$9=1,VLOOKUP(C75,TS3L6_ALL,14,FALSE),VLOOKUP(C75,TS3L6_ALL,12,FALSE)) -> 
C77: PCI Slot 3 Processor 1 x8 PCIe Gen3
E78: =IF($M$9=1,VLOOKUP(C78,TS3L6_ALL,15,FALSE),VLOOKUP(C78,TS3L6_ALL,13,FALSE)) ->  | F78: =VLOOKUP($C78,TS3L6_ALL,7,FALSE) ->  | J78: =VLOOKUP($C78,TS3L6_ALL,10,FALSE) -> 0 | K78: =VLOOKUP($C78,TS3L6_ALL,11,FALSE) -> 0 | L78: =IF($M$9=1,VLOOKUP(C78,TS3L6_ALL,14,FALSE),VLOOKUP(C78,TS3L6_ALL,12,FALSE)) -> 
C80: PCI Slot 4 Processor 2 x8 PCIe Gen3
E81: =IF($M$9=1,VLOOKUP(C81,TS3L6_ALL,15,FALSE),VLOOKUP(C81,TS3L6_ALL,13,FALSE)) ->  | F81: =VLOOKUP($C81,TS3L6_ALL,7,FALSE) ->  | J81: =VLOOKUP($C81,TS3L6_ALL,10,FALSE) -> 0 | K81: =VLOOKUP($C81,TS3L6_ALL,11,FALSE) -> 0 | L81: =IF($M$9=1,VLOOKUP(C81,TS3L6_ALL,14,FALSE),VLOOKUP(C81,TS3L6_ALL,12,FALSE)) -> 
C83: =IF($L$9="L6N01b","PCI Slot 5 Processor 2 x8 PCIe Gen3","PCI Slot 5 Processor 2 x16 PCIe Gen3 ----------GPU Slot----------") -> PCI Slot 5 Processor 2 x16 PCIe Gen3 ----------GPU Slot----------
E84: =IF($M$9=1,VLOOKUP(C84,TS3L6_ALL,15,FALSE),VLOOKUP(C84,TS3L6_ALL,13,FALSE)) ->  | F84: =VLOOKUP($C84,TS3L6_ALL,7,FALSE) ->  | J84: =VLOOKUP($C84,TS3L6_ALL,10,FALSE) -> 0 | K84: =VLOOKUP($C84,TS3L6_ALL,11,FALSE) -> 0 | L84: =IF($M$9=1,VLOOKUP(C84,TS3L6_ALL,14,FALSE),VLOOKUP(C84,TS3L6_ALL,12,FALSE)) -> 
C86: PCI Slot 6 Processor 2 x8 PCIe Gen3
E87: =IF($M$9=1,VLOOKUP(C87,TS3L6_ALL,15,FALSE),VLOOKUP(C87,TS3L6_ALL,13,FALSE)) ->  | F87: =VLOOKUP($C87,TS3L6_ALL,7,FALSE) ->  | J87: =VLOOKUP($C87,TS3L6_ALL,10,FALSE) -> 0 | K87: =VLOOKUP($C87,TS3L6_ALL,11,FALSE) -> 0 | L87: =IF($M$9=1,VLOOKUP(C87,TS3L6_ALL,14,FALSE),VLOOKUP(C87,TS3L6_ALL,12,FALSE)) -> 
C89: PCI Slot 7 Processor 2 x8 PCIe Gen3
E90: =VLOOKUP($C90,TS3L6_ALL,13,FALSE) ->  | F90: =VLOOKUP($C90,TS3L6_ALL,7,FALSE) ->  | H90: =IF(M90="Errore","ERRORE nella selezione del PCI Slot",IFERROR(O91,"ERRORE nella selezione del PCI Slot")) -> 0 | J90: =VLOOKUP($C90,TS3L6_ALL,10,FALSE) -> 0 | K90: =VLOOKUP($C90,TS3L6_ALL,11,FALSE) -> 0 | L90: =VLOOKUP($C90,TS3L6_ALL,12,FALSE) -> 
C92: PCI Slot 8 Processor 2 x16 PCIe Gen3
E93: =VLOOKUP($C93,TS3L6_ALL,13,FALSE) ->  | F93: =VLOOKUP($C93,TS3L6_ALL,7,FALSE) ->  | H93: =IFERROR(O94,"ERRORE nella selezione del PCI Slot") -> 0 | J93: =VLOOKUP($C93,TS3L6_ALL,10,FALSE) -> 0 | K93: =VLOOKUP($C93,TS3L6_ALL,11,FALSE) -> 0 | L93: =VLOOKUP($C93,TS3L6_ALL,12,FALSE) -> 
C95: M.2 - Solid State Drives
C96: None | E96: =IF($M$9=1,VLOOKUP(C96,TS3L6_ALL,15,FALSE),VLOOKUP(C96,TS3L6_ALL,13,FALSE)) ->  | F96: =VLOOKUP($C96,TS3L6_ALL,7,FALSE) ->  | J96: =VLOOKUP($C96,TS3L6_ALL,10,FALSE) -> 0 | K96: =VLOOKUP($C96,TS3L6_ALL,11,FALSE) -> 0 | L96: =IF($M$9=1,VLOOKUP(C96,TS3L6_ALL,14,FALSE),VLOOKUP(C96,TS3L6_ALL,12,FALSE)) -> 
C98: Cables for Intel Omni-Path Adapter
C99: HPE 3M 100Gb QSFP28 Omni-Path Optical Power Class 2 Cable | E99: =IF(K99>0,IF($M$9=1,VLOOKUP(C99,TS3L6_ALL,15,FALSE),VLOOKUP(C99,TS3L6_ALL,13,FALSE)),"") ->  | J99: 0 | K99: =IF(F99>0,VLOOKUP($C99,TS3L6_ALL,11,FALSE)*F99,0) -> 0 | L99: =IF(F99>0,IF($M$9=1,VLOOKUP(C99,TS3L6_ALL,14,FALSE),VLOOKUP(C99,TS3L6_ALL,12,FALSE)),"") -> 
C100: HPE 5M 100Gb QSFP28 Omni-Path Optical Power Class 2 Cable | E100: =IF(K100>0,IF($M$9=1,VLOOKUP(C100,TS3L6_ALL,15,FALSE),VLOOKUP(C100,TS3L6_ALL,13,FALSE)),"") ->  | J100: 0 | K100: =IF(F100>0,VLOOKUP($C100,TS3L6_ALL,11,FALSE)*F100,0) -> 0 | L100: =IF(F100>0,IF($M$9=1,VLOOKUP(C100,TS3L6_ALL,14,FALSE),VLOOKUP(C100,TS3L6_ALL,12,FALSE)),"") -> 
C101: HPE 7M 100Gb QSFP28 Omni-Path Optical Power Class 2 Cable | E101: =IF(K101>0,IF($M$9=1,VLOOKUP(C101,TS3L6_ALL,15,FALSE),VLOOKUP(C101,TS3L6_ALL,13,FALSE)),"") ->  | J101: 0 | K101: =IF(F101>0,VLOOKUP($C101,TS3L6_ALL,11,FALSE)*F101,0) -> 0 | L101: =IF(F101>0,IF($M$9=1,VLOOKUP(C101,TS3L6_ALL,14,FALSE),VLOOKUP(C101,TS3L6_ALL,12,FALSE)),"") -> 
C103: Transceiver
C104: HPE 10G SFP+ LR Transceiver | E104: =IF(K104>0,IF($M$9=1,VLOOKUP(C104,TS3L6_ALL,15,FALSE),VLOOKUP(C104,TS3L6_ALL,13,FALSE)),"") ->  | J104: 0 | K104: =IF(F104>0,VLOOKUP($C104,TS3L6_ALL,11,FALSE)*F104,0) -> 0 | L104: =IF(F104>0,IF($M$9=1,VLOOKUP(C104,TS3L6_ALL,14,FALSE),VLOOKUP(C104,TS3L6_ALL,12,FALSE)),"") -> 
C105: HPE 10G SFP+ SR Transceiver | E105: =IF(K105>0,IF($M$9=1,VLOOKUP(C105,TS3L6_ALL,15,FALSE),VLOOKUP(C105,TS3L6_ALL,13,FALSE)),"") ->  | J105: 0 | K105: =IF(F105>0,VLOOKUP($C105,TS3L6_ALL,11,FALSE)*F105,0) -> 0 | L105: =IF(F105>0,IF($M$9=1,VLOOKUP(C105,TS3L6_ALL,14,FALSE),VLOOKUP(C105,TS3L6_ALL,12,FALSE)),"") -> 
C107: Cables
C108: Cavo DAC HPE 10GB SFP+ SFP+ 3 metri | E108: =IF(K108>0,IF($M$9=1,VLOOKUP(C108,TS3L6_ALL,15,FALSE),VLOOKUP(C108,TS3L6_ALL,13,FALSE)),"") ->  | J108: 0 | K108: =IF(F108>0,VLOOKUP($C108,TS3L6_ALL,11,FALSE)*F108,0) -> 0 | L108: =IF(F108>0,IF($M$9=1,VLOOKUP(C108,TS3L6_ALL,14,FALSE),VLOOKUP(C108,TS3L6_ALL,12,FALSE)),"") -> 
C109: HPE Premier Flex LC/LC OM4 2f 2m Cbl | E109: =IF(K109>0,IF($M$9=1,VLOOKUP(C109,TS3L6_ALL,15,FALSE),VLOOKUP(C109,TS3L6_ALL,13,FALSE)),"") ->  | J109: 0 | K109: =IF(F109>0,VLOOKUP($C109,TS3L6_ALL,11,FALSE)*F109,0) -> 0 | L109: =IF(F109>0,IF($M$9=1,VLOOKUP(C109,TS3L6_ALL,14,FALSE),VLOOKUP(C109,TS3L6_ALL,12,FALSE)),"") -> 
C110: HPE 25Gb SFP28 to SFP28 3m DAC | E110: =IF(K110>0,IF($M$9=1,VLOOKUP(C110,TS3L6_ALL,15,FALSE),VLOOKUP(C110,TS3L6_ALL,13,FALSE)),"") ->  | J110: 0 | K110: =IF(F110>0,VLOOKUP($C110,TS3L6_ALL,11,FALSE)*F110,0) -> 0 | L110: =IF(F110>0,IF($M$9=1,VLOOKUP(C110,TS3L6_ALL,14,FALSE),VLOOKUP(C110,TS3L6_ALL,12,FALSE)),"") -> 
E112: =IF(K112>0,VLOOKUP($C112,ConfigurationTS3L6!$A$1:$O$4574,13,FALSE),"") ->  | J112: 0 | K112: =IF(F112>0,VLOOKUP($C112,TS3L6_ALL,11,FALSE)*F112,0) -> 0 | L112: =IF(F112>0,VLOOKUP($C112,TS3L6_ALL,12,FALSE),0) -> 0
C114: Cavi RJ45
C115: Cavo “patch” di 3 mt RJ45 certificato per gigabit ethernet | E115: =IF(K115>0,IF($M$9=1,VLOOKUP(C115,TS3L6_ALL,15,FALSE),VLOOKUP(C115,TS3L6_ALL,13,FALSE)),"") -> TS3L6-RJ453M | F115: 5 | J115: 0 | K115: =IF(F115>0,IF($M$9=1,VLOOKUP(C115,TS3L6_ALL,11,FALSE)*(F115),VLOOKUP(C115,TS3L6_ALL,11,FALSE)*(F115)),0) -> 15 | L115: =IF(F115>0,IF($M$9=1,VLOOKUP(C115,TS3L6_ALL,14,FALSE),VLOOKUP(C115,TS3L6_ALL,12,FALSE)),"") -> L6N34
C117: Warranty | D117: =HYPERLINK("https://convenzioni.converge.it/docs/ts3_datasheet/TS3warranty_hpe.pdf","i") -> i
C118: Manutenzione in garanzia (36 mesi) | E118: =IF($M$9=1,VLOOKUP(C118,TS3L6_ALL,15,FALSE),VLOOKUP(C118,TS3L6_ALL,13,FALSE)) ->  | F118: =VLOOKUP($C118,TS3L6_WARRANTY,7,FALSE) ->  | J118: =VLOOKUP($C118,TS3L6_WARRANTY,10,FALSE) -> 0 | K118: =VLOOKUP($C118,TS3L6_WARRANTY,11,FALSE) -> 0 | L118: =IF($M$9=1,VLOOKUP(C118,TS3L6_ALL,14,FALSE),VLOOKUP(C118,TS3L6_ALL,12,FALSE)) -> 
C120: Hard Disk Retention | D120: =HYPERLINK("https://convenzioni.converge.it/docs/ts3_datasheet/HPE_HDD_KYHD.pdf","i") -> i
E121: =IF($M$9=0,$N$122,$N$121) ->  | F121: =IF(C121="","",1) ->  | J121: =IFERROR(Q121,VLOOKUP(C121,TS3L6_ALL,10,FALSE)) -> 0 | K121: =IFERROR(R121,VLOOKUP(C121,TS3L6_ALL,11,FALSE)) -> 0 | L121: =IF(M9=0,O122,O121) ->  | N121: =IFERROR($P$121,VLOOKUP($C$121,TS3L6_ALL,15,FALSE)) ->  | O121: =IFERROR($S$121,VLOOKUP($C$121,TS3L6_ALL,14,FALSE)) ->  | P121: =IF(F118+F121=2,VLOOKUP("Hard Disk Retention (60 mesi)",TS3L6_ALL,15,FALSE),VLOOKUP(C121,TS3L6_ALL,15,FALSE)) ->  | Q121: =IF(F118+F121=2,VLOOKUP("Hard Disk Retention (60 mesi)",TS3L6_ALL,10,FALSE),VLOOKUP(C121,TS3L6_ALL,10,FALSE)) ->  | R121: =IF(F118+F121=2,VLOOKUP("Hard Disk Retention (60 mesi)",TS3L6_ALL,11,FALSE),VLOOKUP(C121,TS3L6_ALL,11,FALSE)) ->  | S121: =IF(F118+F121=2,VLOOKUP("Hard Disk Retention (60 mesi)",TS3L6_ALL,14,FALSE),VLOOKUP(C121,TS3L6_ALL,14,FALSE)) -> 
N122: =IFERROR($P$122,VLOOKUP($C$121,TS3L6_ALL,13,FALSE)) ->  | O122: =IFERROR($S$122,VLOOKUP($C$121,TS3L6_ALL,12,FALSE)) ->  | P122: =IF(F118+F121=2,VLOOKUP("Hard Disk Retention (60 mesi)",TS3L6_ALL,13,FALSE),VLOOKUP(C121,TS3L6_ALL,13,FALSE)) ->  | Q122: =IF(F118+F121=2,VLOOKUP("Hard Disk Retention (60 mesi)",TS3L6_ALL,10,FALSE),VLOOKUP(C121,TS3L6_ALL,10,FALSE)) ->  | R122: =IF(F118+F121=2,VLOOKUP("Hard Disk Retention (60 mesi)",TS3L6_ALL,11,FALSE),VLOOKUP(C121,TS3L6_ALL,11,FALSE)) ->  | S122: =IF(F118+F121=2,VLOOKUP("Hard Disk Retention (60 mesi)",TS3L6_ALL,12,FALSE),VLOOKUP(C121,TS3L6_ALL,12,FALSE)) -> 

Sheet Altre_Opzioni
E1: Convenzione | F1: =SUM(J9:J140) -> 0
E2: 0.2 | F2: =SUM(K9:K140) -> 0
E3: Totale | F3: =SUM(F1:F2) -> 0
C5: Opzioni
C8: Opzione Rack HPE con PDU Monofase | D8: =HYPERLINK("https://convenzioni.converge.it/docs/ts3_datasheet/RACK_HPE.pdf","i") -> i
C9: Armadio Rack HPE 42U 600x1200, comprensivo di 2 PDU Monofase 7.3kVA con 36 connettori C13 e 12 connettori C19 collegamento spina industriale 32A IEC-60309 3 poli (2P+T) | E9: =IF(Riepilogo!$P$129>=1,Riepilogo!$K$129,Riepilogo!$K$130) -> TS3L6-RACKMONON | J9: =VLOOKUP($C9,TS3L6_ALL,10,FALSE)*F9 -> 0 | K9: =VLOOKUP($C9,TS3L6_ALL,11,FALSE)*F9 -> 0 | L9: =VLOOKUP($C9,TS3L6_ALL,12,FALSE) -> L6N47b
C12: Opzione Rack HPE con PDU Trifase | D12: =HYPERLINK("https://convenzioni.converge.it/docs/ts3_datasheet/RACK_HPE.pdf","i") -> i
C13: Armadio Rack HPE 42U 600x1200, comprensivo di 2 PDU Trifase 22kVA con 36 connettori C13 e 12 connettori C19 collegamento spina industriale 32A IEC-60309 5 poli (3P+N+T) | E13: =IF(Riepilogo!$P$131>=1,Riepilogo!$K$131,Riepilogo!$K$132) -> TS3L6-RACK3PHN | J13: =VLOOKUP($C13,TS3L6_ALL,10,FALSE)*F13 -> 0 | K13: =VLOOKUP($C13,TS3L6_ALL,11,FALSE)*F13 -> 0 | L13: =VLOOKUP($C13,TS3L6_ALL,12,FALSE) -> L6N48b
C16: OpzRack | D16: =HYPERLINK("https://convenzioni.converge.it/docs/ts3_datasheet/TS3Rack.pdf","i") -> i
C17: Rack 42U con portata 1000 KG e 4 ruote + coppia PDU 12 prese Shuko bipasso ITA | E17: =IF(Riepilogo!$P$83>=1,Riepilogo!$K$83,Riepilogo!$K$84) -> TS3L6-RACKN | J17: =VLOOKUP($C17,TS3L6_ALL,10,FALSE)*F17 -> 0 | K17: =VLOOKUP($C17,TS3L6_ALL,11,FALSE) -> 0 | L17: =VLOOKUP($C17,TS3L6_ALL,12,FALSE) -> L6N32b
C19: Enclosure Dischi SAS (12 x 14TB HDD)
C20: HPE D3610 Enclosure, 12 x HDD 14TB SAS 7.2K LFF, 5Years 24x7 | E20: =IF(Riepilogo!$P$133>=1,Riepilogo!$K$133,Riepilogo!$K$134) -> TS3L6-E15Y247N | J20: =VLOOKUP($C20,TS3L6_ALL,10,FALSE)*F20 -> 0 | K20: =VLOOKUP($C20,TS3L6_ALL,11,FALSE)*F20 -> 0 | L20: =VLOOKUP($C20,TS3L6_ALL,12,FALSE) -> L6N53b
C22: Prodotti VMware | D22: =HYPERLINK("https://convenzioni.converge.it/docs/ts3_datasheet/HPE_VMWARE.pdf","i") -> i
C23: VMware vSphere Essentials Plus Kit OEM for 3 hosts (Max 2 processors per host) 3 Years | E23: =IF(Riepilogo!$P115>=1,Riepilogo!$K115,Riepilogo!$K116) -> TS3L6-VS7ESPK3N | J23: =VLOOKUP($C23,TS3L6_ALL,10,FALSE)*F23 -> 0 | K23: =VLOOKUP($C23,TS3L6_ALL,11,FALSE)*F23 -> 0 | L23: =VLOOKUP($C23,TS3L6_ALL,12,FALSE) -> L6N36b
C24: Upgrade: VMware vSphere Essentials plus Kit OEM to vSphere Standard Acceleration Kit OEM for 6 processors 3 Years E-LTU | E24: =IF(Riepilogo!$P117>=1,Riepilogo!$K117,Riepilogo!$K118) -> TS3L6-ESPSTDAKN | J24: 0 | K24: 0 | L24: L6N41b
C25: VMware vCenter Server Standard OEM for vSphere 3 Years E-LTU | E25: =IF(Riepilogo!$P119>=1,Riepilogo!$K119,Riepilogo!$K120) -> TS3L6-VCS7STDN | J25: 0 | K25: 0 | L25: L6N42b
C26: VMware vSphere Enterprise Plus OEM for 1 processor 3 Years E-LTU | E26: =IF(Riepilogo!$P121>=1,Riepilogo!$K121,Riepilogo!$K122) -> TS3L6-VS7EPLN | J26: 0 | K26: 0 | L26: L6N43b
C27: VMware vSphere Standard OEM for 1 processor 3 Years E-LTU | E27: =IF(Riepilogo!$P123>=1,Riepilogo!$K123,Riepilogo!$K124) -> TS3L6-VS7STDN | J27: 0 | K27: 0 | L27: L6N44b
C28: VMware vSAN Standard OEM for 1 processor 3 Years E-LTU | E28: =IF(Riepilogo!$P125>=1,Riepilogo!$K125,Riepilogo!$K126) -> TS3L6-ST7STDN | J28: 0 | K28: 0 | L28: L6N45b
C29: VMware vSAN Advanced OEM for 1 processor 3 Years E-LTU | E29: =IF(Riepilogo!$P127>=1,Riepilogo!$K127,Riepilogo!$K128) -> TS3L6-ST7ADVN | J29: 0 | K29: 0 | L29: L6N46b
C31: HPE G2 R8000 UPS | D31: =HYPERLINK("https://convenzioni.converge.it/docs/ts3_datasheet/HPEG2R8000UPS.pdf","i") -> i
C32: HPE G2 R8000 UPS 230V Outlets (6) C19 (2) IEC 32A/6U Rackmount INTL | E32: =IF(Riepilogo!$P$150>=1,Riepilogo!$K$150,Riepilogo!$K$151) -> TS3L6-UPSR8000N | J32: =VLOOKUP($C32,TS3L6_ALL,10,FALSE)*F32 -> 0 | K32: =VLOOKUP($C32,TS3L6_ALL,11,FALSE)*F32 -> 0 | L32: =VLOOKUP($C32,TS3L6_ALL,12,FALSE) -> L6N66B
C34: OpzUps (3000VA) | D34: =HYPERLINK("https://convenzioni.converge.it/docs/ts3_datasheet/RPMM_UPS.pdf","i") -> i
C35: BUNDLE PMEUPS3RTSER Comprensivo di UPS e scheda SNMP + Kit Rack incluso | E35: =IF(Riepilogo!$P$59>=1,Riepilogo!$K$59,Riepilogo!$K$60) -> TS3L6-UPSN | J35: =VLOOKUP($C35,TS3L6_ALL,10,FALSE)*F35 -> 0 | K35: =VLOOKUP($C35,TS3L6_ALL,11,FALSE) -> 0 | L35: =VLOOKUP($C35,TS3L6_ALL,12,FALSE) -> L6N20b
C37: OpzGUI | D37: =HYPERLINK("https://convenzioni.converge.it/docs/ts3_datasheet/KVM_datasheet_ITA.pdf","i") -> i
C38: Unità KVM - monitor 17", cavo combi PS2 e USB da 1,8mt, tastiera ita, touch pad | E38: =IF(Riepilogo!$P$61>=1,Riepilogo!$K$61,Riepilogo!$K$62) -> TS3L6-GUIN | J38: =VLOOKUP($C38,TS3L6_ALL,10,FALSE)*F38 -> 0 | K38: =VLOOKUP($C38,TS3L6_ALL,11,FALSE) -> 0 | L38: =VLOOKUP($C38,TS3L6_ALL,12,FALSE) -> L6N21b
C40: OpzKVM | D40: =HYPERLINK("https://convenzioni.converge.it/docs/ts3_datasheet/T9816NIP.pdf","i") -> i
C41: Switch 16 porte IP con relativi cavi combi PS/2 e USB inclusi | E41: =IF(Riepilogo!$P$63>=1,Riepilogo!$K$63,Riepilogo!$K$64) -> TS3L6-SWKVMN | J41: =VLOOKUP($C41,TS3L6_ALL,10,FALSE)*F41 -> 0 | K41: =VLOOKUP($C41,TS3L6_ALL,11,FALSE) -> 0 | L41: =VLOOKUP($C41,TS3L6_ALL,12,FALSE) -> L6N22b
C43: =IF(TS3L6_WINSRVALL>0,"OpzDeviceCal","") -> 
C44: =IF(TS3L6_WINSRVALL>0,"1-pack of Windows Server 2019/2016 Device CALs (STD or DC)","") ->  | E44: =IF(Riepilogo!$P$67>=1,Riepilogo!$K$67,Riepilogo!$K68) -> TS3L6-WINDVCALN | J44: =VLOOKUP($C44,TS3L6_ALL,10,FALSE)*F44 -> 0 | K44: =VLOOKUP($C44,TS3L6_ALL,11,FALSE) -> 0 | L44: =VLOOKUP($C44,TS3L6_ALL,12,FALSE) -> 
C46: =IF(TS3L6_WINSRVALL>0,"OpzUserCal","") -> 
C47: =IF(TS3L6_WINSRVALL>0,"1-pack of Windows Server 2019/2016 User CALs (STD or DC)","") ->  | E47: =IF(Riepilogo!$P$69>=1,Riepilogo!$K$69,Riepilogo!$K$70) -> TS3L6-WINUSCALN | J47: =VLOOKUP($C47,TS3L6_ALL,10,FALSE)*F47 -> 0 | K47: =VLOOKUP($C47,TS3L6_ALL,11,FALSE) -> 0 | L47: =VLOOKUP($C47,TS3L6_ALL,12,FALSE) -> 

Sheet ConfigurationTS3L6 (hidden)
A1: 1 | B1: 2 | C1: 3 | D1: 4 | E1: 5 | F1: 6 | G1: 7 | H1: 8 | I1: 9 | J1: 10 | K1: 11 | L1: 12 | M1: 13 | N1: 14 | O1: 15 | P1: 16 | Q1: 17 | R1: 18 | S1: 19 | T1: 20 | U1: 21 | V1: 22 | W1: 23 | X1: 24 | Y1: 25
B2: Module Name | C2: Option ID | D2: Option Name | E2: Option List Price | F2: SKUs | G2: Qty | H2: SKU Customer Kit | I2: Attributo | J2: Valore inserito | N2: N° | O2: Codice Convenzione
A3: Proliant DL560 Gen10 | B3: Chassis with 16 x 2.5 Hard Drives | D3: =VLOOKUP(N3,Tabella_prezzi!$A$3:$K$138,8,FALSE) -> Proliant DL560 Gen10 | H3: =VLOOKUP(N3,Tabella_prezzi!$A$3:$K$138,9,FALSE) -> L6N01-ServerDL560 | I3: =VLOOKUP(N3,Tabella_prezzi!$A$3:$K$138,3,FALSE) -> Server rackable quad-processore prest. | J3: =VLOOKUP(N3,Tabella_prezzi!$A$3:$K$138,4,FALSE) -> 5912 | N3: L6N01 | O3: =VLOOKUP(N3,Tabella_prezzi!$A$3:$K$138,6,FALSE) -> TS3L6-SRV
A4: Proliant DL560 Gen10 NVMe Configuration | B4: Chassis with 12 x 2.5 Hard Drives and 4 x 2.5 NVMe | D4: =VLOOKUP(N4,Tabella_prezzi!$A$3:$K$138,8,FALSE) -> Proliant DL560 Gen10 NVMe Configuration | H4: =VLOOKUP(N4,Tabella_prezzi!$A$3:$K$138,9,FALSE) -> L6N01b-ServerDL560 | I4: =VLOOKUP(N4,Tabella_prezzi!$A$3:$K$138,3,FALSE) -> Server rackable quad-processore prest. | J4: =VLOOKUP(N4,Tabella_prezzi!$A$3:$K$138,4,FALSE) -> 5912 | N4: L6N01b | O4: =VLOOKUP(N4,Tabella_prezzi!$A$3:$K$138,6,FALSE) -> TS3L6-SRVNVME
A6: TS3L6_Chassis
A7: Proliant DL560 Gen10 | B7: Chassis with 16 x 2.5 Hard Drives
A8: Proliant DL560 Gen10 NVMe Configuration | B8: Chassis with 12 x 2.5 Hard Drives and 4 x 2.5 NVMe
A10: TS3L6_CPU
A11: No Additional Processor | G11: 0 | I11: ="" ->  | M11: ="" ->  | N11: ="" ->  | O11: ="" -> 
A12: 2 x Intel Xeon-Gold 6252N (2.3GHz/24-core/150W) | D12: =VLOOKUP(N12,Tabella_prezzi!$A$3:$K$138,8,FALSE) -> Intel Xeon-Gold 6252N (2.3GHz/24-core/150W) Processor Kit for HPE ProLiant DL560 Gen10 | G12: 1 | H12: =VLOOKUP(N12,Tabella_prezzi!$A$3:$K$138,9,FALSE) -> L6N02-OpzCPU | I12: =VLOOKUP(N12,Tabella_prezzi!$A$3:$K$138,3,FALSE) -> Kit n. 2 Processori aggiuntivi | J12: =VLOOKUP(N12,Tabella_prezzi!$A$3:$K$138,4,FALSE) -> 2475 | L12: L6N02B | M12: =VLOOKUP(L12,Tabella_prezzi!$A$3:$K$138,6,FALSE) -> TS3L6-CPUN | N12: L6N02 | O12: =VLOOKUP(N12,Tabella_prezzi!$A$3:$K$138,6,FALSE) -> TS3L6-CPU
A13: 2 x Intel "POCHI CORE" | D13: =VLOOKUP(N13,Tabella_prezzi!$A$3:$K$138,8,FALSE) ->  | G13: 1 | H13: =VLOOKUP(N13,Tabella_prezzi!$A$3:$K$138,9,FALSE) ->  | I13: =VLOOKUP(N13,Tabella_prezzi!$A$3:$K$138,3,FALSE) ->  | K13: =VLOOKUP(N13,Tabella_prezzi!$A$3:$K$138,4,FALSE) ->  | L13: L4N48B | M13: =VLOOKUP(L13,Tabella_prezzi!$A$3:$K$138,6,FALSE) ->  | N13: L4N48 | O13: =VLOOKUP(N13,Tabella_prezzi!$A$3:$K$138,6,FALSE) -> 
A15: TS3L6_CPU8core
A16: 2 x Intel Xeon-Gold 6252N (2.3GHz/24-core/150W) | G16: 0 | I16: ="" ->  | L16: ="" ->  | M16: ="" ->  | N16: ="" ->  | O16: ="" -> 
A17: 2 x Intel "POCHI CORE" | D17: =VLOOKUP(N17,Tabella_prezzi!$A$3:$K$138,8,FALSE) ->  | G17: 1 | H17: =VLOOKUP(N17,Tabella_prezzi!$A$3:$K$138,9,FALSE) ->  | I17: =VLOOKUP(N17,Tabella_prezzi!$A$3:$K$138,3,FALSE) ->  | K17: =VLOOKUP(N17,Tabella_prezzi!$A$3:$K$138,4,FALSE) ->  | L17: L4N47B | M17: =VLOOKUP(L17,Tabella_prezzi!$A$3:$K$138,6,FALSE) ->  | N17: L4N47 | O17: =VLOOKUP(N17,Tabella_prezzi!$A$3:$K$138,6,FALSE) -> 
A19: TS3L6_CPU8coreadd
A20: No Additional Processor | G20: 0 | I20: ="" ->  | L20: ="" ->  | M20: ="" ->  | N20: ="" ->  | O20: ="" -> 
A21: 2 x Intel "POCHI CORE" | D21: =VLOOKUP(N21,Tabella_prezzi!$A$3:$K$138,8,FALSE) ->  | G21: 1 | H21: =VLOOKUP(N21,Tabella_prezzi!$A$3:$K$138,9,FALSE) ->  | I21: =VLOOKUP(N21,Tabella_prezzi!$A$3:$K$138,3,FALSE) ->  | K21: =VLOOKUP(N21,Tabella_prezzi!$A$3:$K$138,4,FALSE) ->  | L21: L4N48B | M21: =VLOOKUP(L21,Tabella_prezzi!$A$3:$K$138,6,FALSE) ->  | N21: L4N48 | O21: =VLOOKUP(N21,Tabella_prezzi!$A$3:$K$138,6,FALSE) -> 
A24: TS3L6_RAM (2CPU)
A25: 128GB (32GB) | B25: Memory Capacity | D25: HPE 32GB (1x32GB) Dual Rank x4 DDR4-2933 CAS-21-21-21 Registered Smart Memory Kit | G25: 0 | H25: =H26 -> L6N03-OpzRAM32GB | I25: ="" ->  | L25: ="" ->  | M25: ="" ->  | N25: ="" ->  | O25: ="" ->  | P25: ="" ->  | S25: ="" ->  | T25: ="" ->  | U25: ="" ->  | V25: ="" ->  | W25: ="" ->  | X25: 0
A26: 256GB (32GB) | B26: Memory Capacity | D26: HPE 32GB (1x32GB) Dual Rank x4 DDR4-2933 CAS-21-21-21 Registered Smart Memory Kit | G26: 4 | H26: =VLOOKUP(N26,Tabella_prezzi!$A$3:$K$138,9,FALSE) -> L6N03-OpzRAM32GB | I26: =VLOOKUP(N26,Tabella_prezzi!$A$3:$K$138,3,FALSE) -> OpzRAM32GB | J26: =VLOOKUP(N26,Tabella_prezzi!$A$3:$K$138,4,FALSE)*G26 -> 736 | L26: L6N03B | M26: =VLOOKUP(L26,Tabella_prezzi!$A$3:$K$138,6,FALSE) -> TS3L6-RAM32N | N26: L6N03 | O26: =VLOOKUP(N26,Tabella_prezzi!$A$3:$K$138,6,FALSE) -> TS3L6-RAM32 | P26: ="" ->  | S26: ="" ->  | T26: ="" ->  | U26: ="" ->  | V26: ="" ->  | W26: ="" ->  | X26: 0
A27: 256GB (64GB) | B27: Memory Capacity | D27: =VLOOKUP(V27,Tabella_prezzi!$A$3:$K$138,8,FALSE) -> HPE 64GB (1x64GB) Dual Rank x4 DDR4-2933 CAS-21-21-21 Registered Smart Memory Kit | G27: 0 | H27: ="" ->  | I27: ="" ->  | L27: ="" ->  | M27: ="" ->  | N27: ="" ->  | O27: ="" ->  | P27: =VLOOKUP(V27,Tabella_prezzi!$A$3:$K$138,9,FALSE) -> L6N04-OpzRAM64GB | Q27: =VLOOKUP(V27,Tabella_prezzi!$A$3:$K$138,3,FALSE) -> OpzRAM64GB | R27: =VLOOKUP(V27,Tabella_prezzi!$A$3:$K$138,4,FALSE)*X27 -> 1178 | T27: L6N04B | U27: =VLOOKUP(T27,Tabella_prezzi!$A$3:$K$138,6,FALSE) -> TS3L6-RAM64N | V27: L6N04 | W27: =VLOOKUP(V27,Tabella_prezzi!$A$3:$K$138,6,FALSE) -> TS3L6-RAM64 | X27: 2
A28: 384GB (32GB) | B28: Memory Capacity | D28: HPE 32GB (1x32GB) Dual Rank x4 DDR4-2933 CAS-21-21-21 Registered Smart Memory Kit | G28: 8 | H28: =VLOOKUP(N28,Tabella_prezzi!$A$3:$K$138,9,FALSE) -> L6N03-OpzRAM32GB | I28: =VLOOKUP(N28,Tabella_prezzi!$A$3:$K$138,3,FALSE) -> OpzRAM32GB | J28: =VLOOKUP(N28,Tabella_prezzi!$A$3:$K$138,4,FALSE)*G28 -> 1472 | L28: L6N03B | M28: =VLOOKUP(L28,Tabella_prezzi!$A$3:$K$138,6,FALSE) -> TS3L6-RAM32N | N28: L6N03 | O28: =VLOOKUP(N28,Tabella_prezzi!$A$3:$K$138,6,FALSE) -> TS3L6-RAM32 | P28: ="" ->  | S28: ="" ->  | T28: ="" ->  | U28: ="" ->  | V28: ="" ->  | W28: ="" ->  | X28: 0
A29: 384GB (MIX) | B29: Memory Capacity | D29: =VLOOKUP(V29,Tabella_prezzi!$A$3:$K$138,8,FALSE) -> HPE 64GB (1x64GB) Dual Rank x4 DDR4-2933 CAS-21-21-21 Registered Smart Memory Kit | G29: 0 | H29: ="" ->  | I29: ="" ->  | L29: ="" ->  | M29: ="" ->  | N29: ="" ->  | O29: ="" ->  | P29: =VLOOKUP(V29,Tabella_prezzi!$A$3:$K$138,9,FALSE) -> L6N04-OpzRAM64GB | Q29: =VLOOKUP(V29,Tabella_prezzi!$A$3:$K$138,3,FALSE) -> OpzRAM64GB | R29: =VLOOKUP(V29,Tabella_prezzi!$A$3:$K$138,4,FALSE)*X29 -> 2356 | T29: L6N04B | U29: =VLOOKUP(T29,Tabella_prezzi!$A$3:$K$138,6,FALSE) -> TS3L6-RAM64N | V29: L6N04 | W29: =VLOOKUP(V29,Tabella_prezzi!$A$3:$K$138,6,FALSE) -> TS3L6-RAM64 | X29: 4
A30: 512GB (32GB) | B30: Memory Capacity | D30: HPE 32GB (1x32GB) Dual Rank x4 DDR4-2933 CAS-21-21-21 Registered Smart Memory Kit | G30: 12 | H30: =VLOOKUP(N30,Tabella_prezzi!$A$3:$K$138,9,FALSE) -> L6N03-OpzRAM32GB | I30: =VLOOKUP(N30,Tabella_prezzi!$A$3:$K$138,3,FALSE) -> OpzRAM32GB | J30: =VLOOKUP(N30,Tabella_prezzi!$A$3:$K$138,4,FALSE)*G30 -> 2208 | L30: L6N03B | M30: =VLOOKUP(L30,Tabella_prezzi!$A$3:$K$138,6,FALSE) -> TS3L6-RAM32N | N30: L6N03 | O30: =VLOOKUP(N30,Tabella_prezzi!$A$3:$K$138,6,FALSE) -> TS3L6-RAM32 | P30: ="" ->  | S30: ="" ->  | T30: ="" ->  | U30: ="" ->  | V30: ="" ->  | W30: ="" ->  | X30: 0
A31: 512GB (MIX) | B31: Memory Capacity | D31: =VLOOKUP(V31,Tabella_prezzi!$A$3:$K$138,8,FALSE) -> HPE 64GB (1x64GB) Dual Rank x4 DDR4-2933 CAS-21-21-21 Registered Smart Memory Kit | G31: 4 | H31: =VLOOKUP(N31,Tabella_prezzi!$A$3:$K$138,9,FALSE) -> L6N03-OpzRAM32GB | I31: =VLOOKUP(N31,Tabella_prezzi!$A$3:$K$138,3,FALSE) -> OpzRAM32GB | J31: =VLOOKUP(N31,Tabella_prezzi!$A$3:$K$138,4,FALSE)*G31 -> 736 | L31: L6N03B | M31: =VLOOKUP(L31,Tabella_prezzi!$A$3:$K$138,6,FALSE) -> TS3L6-RAM32N | N31: L6N03 | O31: =VLOOKUP(N31,Tabella_prezzi!$A$3:$K$138,6,FALSE) -> TS3L6-RAM32 | P31: =VLOOKUP(V31,Tabella_prezzi!$A$3:$K$138,9,FALSE) -> L6N04-OpzRAM64GB | Q31: =VLOOKUP(V31,Tabella_prezzi!$A$3:$K$138,3,FALSE) -> OpzRAM64GB | R31: =VLOOKUP(V31,Tabella_prezzi!$A$3:$K$138,4,FALSE)*X31 -> 2356 | T31: L6N04B | U31: =VLOOKUP(T31,Tabella_prezzi!$A$3:$K$138,6,FALSE) -> TS3L6-RAM64N | V31: L6N04 | W31: =VLOOKUP(V31,Tabella_prezzi!$A$3:$K$138,6,FALSE) -> TS3L6-RAM64 | X31: 4
A32: 512GB (64GB) | B32: Memory Capacity | D32: =VLOOKUP(V32,Tabella_prezzi!$A$3:$K$138,8,FALSE) -> HPE 64GB (1x64GB) Dual Rank x4 DDR4-2933 CAS-21-21-21 Registered Smart Memory Kit | G32: 0 | H32: ="" ->  | I32: ="" ->  | L32: ="" ->  | M32: ="" ->  | N32: ="" ->  | O32: ="" ->  | P32: =VLOOKUP(V32,Tabella_prezzi!$A$3:$K$138,9,FALSE) -> L6N04-OpzRAM64GB | Q32: =VLOOKUP(V32,Tabella_prezzi!$A$3:$K$138,3,FALSE) -> OpzRAM64GB | R32: =VLOOKUP(V32,Tabella_prezzi!$A$3:$K$138,4,FALSE)*X32 -> 3534 | T32: L6N04B | U32: =VLOOKUP(T32,Tabella_prezzi!$A$3:$K$138,6,FALSE) -> TS3L6-RAM64N | V32: L6N04 | W32: =VLOOKUP(V32,Tabella_prezzi!$A$3:$K$138,6,FALSE) -> TS3L6-RAM64 | X32: 6
A33: 768GB (32GB) | B33: Memory Capacity | D33: HPE 32GB (1x32GB) Dual Rank x4 DDR4-2933 CAS-21-21-21 Registered Smart Memory Kit | G33: 20 | H33: =VLOOKUP(N33,Tabella_prezzi!$A$3:$K$138,9,FALSE) -> L6N03-OpzRAM32GB | I33: =VLOOKUP(N33,Tabella_prezzi!$A$3:$K$138,3,FALSE) -> OpzRAM32GB | J33: =VLOOKUP(N33,Tabella_prezzi!$A$3:$K$138,4,FALSE)*G33 -> 3680 | L33: L6N03B | M33: =VLOOKUP(L33,Tabella_prezzi!$A$3:$K$138,6,FALSE) -> TS3L6-RAM32N | N33: L6N03 | O33: =VLOOKUP(N33,Tabella_prezzi!$A$3:$K$138,6,FALSE) -> TS3L6-RAM32 | P33: ="" ->  | S33: ="" ->  | T33: ="" ->  | U33: ="" ->  | V33: ="" ->  | W33: ="" ->  | X33: 0
A34: 768GB (MIX) | B34: Memory Capacity | D34: =VLOOKUP(V34,Tabella_prezzi!$A$3:$K$138,8,FALSE) -> HPE 64GB (1x64GB) Dual Rank x4 DDR4-2933 CAS-21-21-21 Registered Smart Memory Kit | G34: 4 | H34: =VLOOKUP(N34,Tabella_prezzi!$A$3:$K$138,9,FALSE) -> L6N03-OpzRAM32GB | I34: =VLOOKUP(N34,Tabella_prezzi!$A$3:$K$138,3,FALSE) -> OpzRAM32GB | J34: =VLOOKUP(N34,Tabella_prezzi!$A$3:$K$138,4,FALSE)*G34 -> 736 | L34: L6N03B | M34: =VLOOKUP(L34,Tabella_prezzi!$A$3:$K$138,6,FALSE) -> TS3L6-RAM32N | N34: L6N03 | O34: =VLOOKUP(N34,Tabella_prezzi!$A$3:$K$138,6,FALSE) -> TS3L6-RAM32 | P34: =VLOOKUP(V34,Tabella_prezzi!$A$3:$K$138,9,FALSE) -> L6N04-OpzRAM64GB | Q34: =VLOOKUP(V34,Tabella_prezzi!$A$3:$K$138,3,FALSE) -> OpzRAM64GB | R34: =VLOOKUP(V34,Tabella_prezzi!$A$3:$K$138,4,FALSE)*X34 -> 4712 | T34: L6N04B | U34: =VLOOKUP(T34,Tabella_prezzi!$A$3:$K$138,6,FALSE) -> TS3L6-RAM64N | V34: L6N04 | W34: =VLOOKUP(V34,Tabella_prezzi!$A$3:$K$138,6,FALSE) -> TS3L6-RAM64 | X34: 8
A35: 768GB (64GB) | B35: Memory Capacity | D35: =VLOOKUP(V35,Tabella_prezzi!$A$3:$K$138,8,FALSE) -> HPE 64GB (1x64GB) Dual Rank x4 DDR4-2933 CAS-21-21-21 Registered Smart Memory Kit | G35: 0 | H35: ="" ->  | I35: ="" ->  | L35: ="" ->  | M35: ="" ->  | N35: ="" ->  | O35: ="" ->  | P35: =VLOOKUP(V35,Tabella_prezzi!$A$3:$K$138,9,FALSE) -> L6N04-OpzRAM64GB | Q35: =VLOOKUP(V35,Tabella_prezzi!$A$3:$K$138,3,FALSE) -> OpzRAM64GB | R35: =VLOOKUP(V35,Tabella_prezzi!$A$3:$K$138,4,FALSE)*X35 -> 5890 | T35: L6N04B | U35: =VLOOKUP(T35,Tabella_prezzi!$A$3:$K$138,6,FALSE) -> TS3L6-RAM64N | V35: L6N04 | W35: =VLOOKUP(V35,Tabella_prezzi!$A$3:$K$138,6,FALSE) -> TS3L6-RAM64 | X35: 10
A36: 1024GB (MIX) | B36: Memory Capacity | D36: =VLOOKUP(V36,Tabella_prezzi!$A$3:$K$138,8,FALSE) -> HPE 64GB (1x64GB) Dual Rank x4 DDR4-2933 CAS-21-21-21 Registered Smart Memory Kit | G36: 12 | H36: =VLOOKUP(N36,Tabella_prezzi!$A$3:$K$138,9,FALSE) -> L6N03-OpzRAM32GB | I36: =VLOOKUP(N36,Tabella_prezzi!$A$3:$K$138,3,FALSE) -> OpzRAM32GB | J36: =VLOOKUP(N36,Tabella_prezzi!$A$3:$K$138,4,FALSE)*G36 -> 2208 | L36: L6N03B | M36: =VLOOKUP(L36,Tabella_prezzi!$A$3:$K$138,6,FALSE) -> TS3L6-RAM32N | N36: L6N03 | O36: =VLOOKUP(N36,Tabella_prezzi!$A$3:$K$138,6,FALSE) -> TS3L6-RAM32 | P36: =VLOOKUP(V36,Tabella_prezzi!$A$3:$K$138,9,FALSE) -> L6N04-OpzRAM64GB | Q36: =VLOOKUP(V36,Tabella_prezzi!$A$3:$K$138,3,FALSE) -> OpzRAM64GB | R36: =VLOOKUP(V36,Tabella_prezzi!$A$3:$K$138,4,FALSE)*X36 -> 4712 | T36: L6N04B | U36: =VLOOKUP(T36,Tabella_prezzi!$A$3:$K$138,6,FALSE) -> TS3L6-RAM64N | V36: L6N04 | W36: =VLOOKUP(V36,Tabella_prezzi!$A$3:$K$138,6,FALSE) -> TS3L6-RAM64 | X36: 8
A37: 1024GB (64GB) | B37: Memory Capacity | D37: =VLOOKUP(V37,Tabella_prezzi!$A$3:$K$138,8,FALSE) -> HPE 64GB (1x64GB) Dual Rank x4 DDR4-2933 CAS-21-21-21 Registered Smart Memory Kit | G37: 0 | H37: ="" ->  | I37: ="" ->  | L37: ="" ->  | M37: ="" ->  | N37: ="" ->  | O37: ="" ->  | P37: =VLOOKUP(V37,Tabella_prezzi!$A$3:$K$138,9,FALSE) -> L6N04-OpzRAM64GB | Q37: =VLOOKUP(V37,Tabella_prezzi!$A$3:$K$138,3,FALSE) -> OpzRAM64GB | R37: =VLOOKUP(V37,Tabella_prezzi!$A$3:$K$138,4,FALSE)*X37 -> 8246 | T37: L6N04B | U37: =VLOOKUP(T37,Tabella_prezzi!$A$3:$K$138,6,FALSE) -> TS3L6-RAM64N | V37: L6N04 | W37: =VLOOKUP(V37,Tabella_prezzi!$A$3:$K$138,6,FALSE) -> TS3L6-RAM64 | X37: 14
A38: 1536GB (64GB) | B38: Memory Capacity | D38: =VLOOKUP(V38,Tabella_prezzi!$A$3:$K$138,8,FALSE) -> HPE 64GB (1x64GB) Dual Rank x4 DDR4-2933 CAS-21-21-21 Registered Smart Memory Kit | G38: 0 | H38: ="" ->  | I38: ="" ->  | L38: ="" ->  | M38: ="" ->  | N38: ="" ->  | O38: ="" ->  | P38: =VLOOKUP(V38,Tabella_prezzi!$A$3:$K$138,9,FALSE) -> L6N04-OpzRAM64GB | Q38: =VLOOKUP(V38,Tabella_prezzi!$A$3:$K$138,3,FALSE) -> OpzRAM64GB | R38: =VLOOKUP(V38,Tabella_prezzi!$A$3:$K$138,4,FALSE)*X38 -> 12958 | T38: L6N04B | U38: =VLOOKUP(T38,Tabella_prezzi!$A$3:$K$138,6,FALSE) -> TS3L6-RAM64N | V38: L6N04 | W38: =VLOOKUP(V38,Tabella_prezzi!$A$3:$K$138,6,FALSE) -> TS3L6-RAM64 | X38: 22
A40: TS3L6_RAM (4CPU)
A41: 256GB (32GB) | B41: Memory Capacity | D41: =VLOOKUP(N41,Tabella_prezzi!$A$3:$K$138,8,FALSE) -> HPE 32GB (1x32GB) Dual Rank x4 DDR4-2933 CAS-21-21-21 Registered Smart Memory Kit | G41: 4 | H41: =VLOOKUP(N41,Tabella_prezzi!$A$3:$K$138,9,FALSE) -> L6N03-OpzRAM32GB | I41: =VLOOKUP(N41,Tabella_prezzi!$A$3:$K$138,3,FALSE) -> OpzRAM32GB | J41: =VLOOKUP(N41,Tabella_prezzi!$A$3:$K$138,4,FALSE)*G41 -> 736 | L41: L6N03B | M41: =VLOOKUP(L41,Tabella_prezzi!$A$3:$K$138,6,FALSE) -> TS3L6-RAM32N | N41: L6N03 | O41: =VLOOKUP(N41,Tabella_prezzi!$A$3:$K$138,6,FALSE) -> TS3L6-RAM32 | P41: ="" ->  | S41: ="" ->  | T41: ="" ->  | U41: ="" ->  | V41: ="" ->  | W41: ="" ->  | X41: 0
A42: 512GB (32GB) | B42: Memory Capacity | D42: =VLOOKUP(N42,Tabella_prezzi!$A$3:$K$138,8,FALSE) -> HPE 32GB (1x32GB) Dual Rank x4 DDR4-2933 CAS-21-21-21 Registered Smart Memory Kit | G42: 12 | H42: =VLOOKUP(N42,Tabella_prezzi!$A$3:$K$138,9,FALSE) -> L6N03-OpzRAM32GB | I42: =VLOOKUP(N42,Tabella_prezzi!$A$3:$K$138,3,FALSE) -> OpzRAM32GB | J42: =VLOOKUP(N42,Tabella_prezzi!$A$3:$K$138,4,FALSE)*G42 -> 2208 | L42: L6N03B | M42: =VLOOKUP(L42,Tabella_prezzi!$A$3:$K$138,6,FALSE) -> TS3L6-RAM32N | N42: L6N03 | O42: =VLOOKUP(N42,Tabella_prezzi!$A$3:$K$138,6,FALSE) -> TS3L6-RAM32 | P42: ="" ->  | S42: ="" ->  | T42: ="" ->  | U42: ="" ->  | V42: ="" ->  | W42: ="" ->  | X42: 0
A43: 512GB (64GB) | B43: Memory Capacity | D43: =VLOOKUP(V43,Tabella_prezzi!$A$3:$K$138,8,FALSE) -> HPE 64GB (1x64GB) Dual Rank x4 DDR4-2933 CAS-21-21-21 Registered Smart Memory Kit | G43: 0 | H43: ="" ->  | I43: ="" ->  | L43: ="" ->  | M43: ="" ->  | N43: ="" ->  | O43: ="" ->  | P43: =VLOOKUP(V43,Tabella_prezzi!$A$3:$K$138,9,FALSE) -> L6N04-OpzRAM64GB | Q43: =VLOOKUP(V43,Tabella_prezzi!$A$3:$K$138,3,FALSE) -> OpzRAM64GB | R43: =VLOOKUP(V43,Tabella_prezzi!$A$3:$K$138,4,FALSE)*X43 -> 3534 | T43: L6N04B | U43: =VLOOKUP(T43,Tabella_prezzi!$A$3:$K$138,6,FALSE) -> TS3L6-RAM64N | V43: L6N04 | W43: =VLOOKUP(V43,Tabella_prezzi!$A$3:$K$138,6,FALSE) -> TS3L6-RAM64 | X43: 6
A44: 768GB (32GB) | B44: Memory Capacity | D44: =VLOOKUP(N44,Tabella_prezzi!$A$3:$K$138,8,FALSE) -> HPE 32GB (1x32GB) Dual Rank x4 DDR4-2933 CAS-21-21-21 Registered Smart Memory Kit | G44: 20 | H44: =VLOOKUP(N44,Tabella_prezzi!$A$3:$K$138,9,FALSE) -> L6N03-OpzRAM32GB | I44: =VLOOKUP(N44,Tabella_prezzi!$A$3:$K$138,3,FALSE) -> OpzRAM32GB | J44: =VLOOKUP(N44,Tabella_prezzi!$A$3:$K$138,4,FALSE)*G44 -> 3680 | L44: L6N03B | M44: =VLOOKUP(L44,Tabella_prezzi!$A$3:$K$138,6,FALSE) -> TS3L6-RAM32N | N44: L6N03 | O44: =VLOOKUP(N44,Tabella_prezzi!$A$3:$K$138,6,FALSE) -> TS3L6-RAM32 | P44: ="" ->  | S44: ="" ->  | T44: ="" ->  | U44: ="" ->  | V44: ="" ->  | W44: ="" ->  | X44: 0
A45: 768GB (MIX) | B45: Memory Capacity | D45: =VLOOKUP(N45,Tabella_prezzi!$A$3:$K$138,8,FALSE) -> HPE 32GB (1x32GB) Dual Rank x4 DDR4-2933 CAS-21-21-21 Registered Smart Memory Kit | G45: 4 | H45: =VLOOKUP(N45,Tabella_prezzi!$A$3:$K$138,9,FALSE) -> L6N03-OpzRAM32GB | I45: =VLOOKUP(N45,Tabella_prezzi!$A$3:$K$138,3,FALSE) -> OpzRAM32GB | J45: =VLOOKUP(N45,Tabella_prezzi!$A$3:$K$138,4,FALSE)*G45 -> 736 | L45: L6N03B | M45: =VLOOKUP(L45,Tabella_prezzi!$A$3:$K$138,6,FALSE) -> TS3L6-RAM32N | N45: L6N03 | O45: =VLOOKUP(N45,Tabella_prezzi!$A$3:$K$138,6,FALSE) -> TS3L6-RAM32 | P45: =VLOOKUP(V45,Tabella_prezzi!$A$3:$K$138,9,FALSE) -> L6N04-OpzRAM64GB | Q45: =VLOOKUP(V45,Tabella_prezzi!$A$3:$K$138,3,FALSE) -> OpzRAM64GB | R45: =VLOOKUP(V45,Tabella_prezzi!$A$3:$K$138,4,FALSE)*X45 -> 4712 | T45: L6N04B | U45: =VLOOKUP(T45,Tabella_prezzi!$A$3:$K$138,6,FALSE) -> TS3L6-RAM64N | V45: L6N04 | W45: =VLOOKUP(V45,Tabella_prezzi!$A$3:$K$138,6,FALSE) -> TS3L6-RAM64 | X45: 8
A46: 768GB (64GB) | B46: Memory Capacity | D46: =VLOOKUP(V46,Tabella_prezzi!$A$3:$K$138,8,FALSE) -> HPE 64GB (1x64GB) Dual Rank x4 DDR4-2933 CAS-21-21-21 Registered Smart Memory Kit | G46: 0 | H46: ="" ->  | I46: ="" ->  | L46: ="" ->  | M46: ="" ->  | N46: ="" ->  | O46: ="" ->  | P46: =VLOOKUP(V46,Tabella_prezzi!$A$3:$K$138,9,FALSE) -> L6N04-OpzRAM64GB | Q46: =VLOOKUP(V46,Tabella_prezzi!$A$3:$K$138,3,FALSE) -> OpzRAM64GB | R46: =VLOOKUP(V46,Tabella_prezzi!$A$3:$K$138,4,FALSE)*X46 -> 5890 | T46: L6N04B | U46: =VLOOKUP(T46,Tabella_prezzi!$A$3:$K$138,6,FALSE) -> TS3L6-RAM64N | V46: L6N04 | W46: =VLOOKUP(V46,Tabella_prezzi!$A$3:$K$138,6,FALSE) -> TS3L6-RAM64 | X46: 10
A47: 1024GB (32GB) | B47: Memory Capacity | D47: =VLOOKUP(N47,Tabella_prezzi!$A$3:$K$138,8,FALSE) -> HPE 32GB (1x32GB) Dual Rank x4 DDR4-2933 CAS-21-21-21 Registered Smart Memory Kit | G47: 28 | H47: =VLOOKUP(N47,Tabella_prezzi!$A$3:$K$138,9,FALSE) -> L6N03-OpzRAM32GB | I47: =VLOOKUP(N47,Tabella_prezzi!$A$3:$K$138,3,FALSE) -> OpzRAM32GB | J47: =VLOOKUP(N47,Tabella_prezzi!$A$3:$K$138,4,FALSE)*G47 -> 5152 | L47: L6N03B | M47: =VLOOKUP(L47,Tabella_prezzi!$A$3:$K$138,6,FALSE) -> TS3L6-RAM32N | N47: L6N03 | O47: =VLOOKUP(N47,Tabella_prezzi!$A$3:$K$138,6,FALSE) -> TS3L6-RAM32 | P47: ="" ->  | S47: ="" ->  | T47: ="" ->  | U47: ="" ->  | V47: ="" ->  | W47: ="" ->  | X47: 0
A48: 1024GB (MIX) | B48: Memory Capacity | D48: =VLOOKUP(N48,Tabella_prezzi!$A$3:$K$138,8,FALSE) -> HPE 32GB (1x32GB) Dual Rank x4 DDR4-2933 CAS-21-21-21 Registered Smart Memory Kit | G48: 12 | H48: =VLOOKUP(N48,Tabella_prezzi!$A$3:$K$138,9,FALSE) -> L6N03-OpzRAM32GB | I48: =VLOOKUP(N48,Tabella_prezzi!$A$3:$K$138,3,FALSE) -> OpzRAM32GB | J48: =VLOOKUP(N48,Tabella_prezzi!$A$3:$K$138,4,FALSE)*G48 -> 2208 | L48: L6N03B | M48: =VLOOKUP(L48,Tabella_prezzi!$A$3:$K$138,6,FALSE) -> TS3L6-RAM32N | N48: L6N03 | O48: =VLOOKUP(N48,Tabella_prezzi!$A$3:$K$138,6,FALSE) -> TS3L6-RAM32 | P48: =VLOOKUP(V48,Tabella_prezzi!$A$3:$K$138,9,FALSE) -> L6N04-OpzRAM64GB | Q48: =VLOOKUP(V48,Tabella_prezzi!$A$3:$K$138,3,FALSE) -> OpzRAM64GB | R48: =VLOOKUP(V48,Tabella_prezzi!$A$3:$K$138,4,FALSE)*X48 -> 4712 | T48: L6N04B | U48: =VLOOKUP(T48,Tabella_prezzi!$A$3:$K$138,6,FALSE) -> TS3L6-RAM64N | V48: L6N04 | W48: =VLOOKUP(V48,Tabella_prezzi!$A$3:$K$138,6,FALSE) -> TS3L6-RAM64 | X48: 8
A49: 1024GB (64GB) | B49: Memory Capacity | D49: =VLOOKUP(V49,Tabella_prezzi!$A$3:$K$138,8,FALSE) -> HPE 64GB (1x64GB) Dual Rank x4 DDR4-2933 CAS-21-21-21 Registered Smart Memory Kit | G49: 0 | H49: ="" ->  | I49: ="" ->  | L49: ="" ->  | M49: ="" ->  | N49: ="" ->  | O49: ="" ->  | P49: =VLOOKUP(V49,Tabella_prezzi!$A$3:$K$138,9,FALSE) -> L6N04-OpzRAM64GB | Q49: =VLOOKUP(V49,Tabella_prezzi!$A$3:$K$138,3,FALSE) -> OpzRAM64GB | R49: =VLOOKUP(V49,Tabella_prezzi!$A$3:$K$138,4,FALSE)*X49 -> 8246 | T49: L6N04B | U49: =VLOOKUP(T49,Tabella_prezzi!$A$3:$K$138,6,FALSE) -> TS3L6-RAM64N | V49: L6N04 | W49: =VLOOKUP(V49,Tabella_prezzi!$A$3:$K$138,6,FALSE) -> TS3L6-RAM64 | X49: 14
A50: 1536GB (32GB) | B50: Memory Capacity | D50: =VLOOKUP(N50,Tabella_prezzi!$A$3:$K$138,8,FALSE) -> HPE 32GB (1x32GB) Dual Rank x4 DDR4-2933 CAS-21-21-21 Registered Smart Memory Kit | G50: 44 | H50: =VLOOKUP(N50,Tabella_prezzi!$A$3:$K$138,9,FALSE) -> L6N03-OpzRAM32GB | I50: =VLOOKUP(N50,Tabella_prezzi!$A$3:$K$138,3,FALSE) -> OpzRAM32GB | J50: =VLOOKUP(N50,Tabella_prezzi!$A$3:$K$138,4,FALSE)*G50 -> 8096 | L50: L6N03B | M50: =VLOOKUP(L50,Tabella_prezzi!$A$3:$K$138,6,FALSE) -> TS3L6-RAM32N | N50: L6N03 | O50: =VLOOKUP(N50,Tabella_prezzi!$A$3:$K$138,6,FALSE) -> TS3L6-RAM32 | P50: ="" ->  | S50: ="" ->  | T50: ="" ->  | U50: ="" ->  | V50: ="" ->  | W50: ="" ->  | X50: 0
A51: 1536GB (MIX) | B51: Memory Capacity | D51: =VLOOKUP(N51,Tabella_prezzi!$A$3:$K$138,8,FALSE) -> HPE 32GB (1x32GB) Dual Rank x4 DDR4-2933 CAS-21-21-21 Registered Smart Memory Kit | G51: 12 | H51: =VLOOKUP(N51,Tabella_prezzi!$A$3:$K$138,9,FALSE) -> L6N03-OpzRAM32GB | I51: =VLOOKUP(N51,Tabella_prezzi!$A$3:$K$138,3,FALSE) -> OpzRAM32GB | J51: =VLOOKUP(N51,Tabella_prezzi!$A$3:$K$138,4,FALSE)*G51 -> 2208 | L51: L6N03B | M51: =VLOOKUP(L51,Tabella_prezzi!$A$3:$K$138,6,FALSE) -> TS3L6-RAM32N | N51: L6N03 | O51: =VLOOKUP(N51,Tabella_prezzi!$A$3:$K$138,6,FALSE) -> TS3L6-RAM32 | P51: =VLOOKUP(V51,Tabella_prezzi!$A$3:$K$138,9,FALSE) -> L6N04-OpzRAM64GB | Q51: =VLOOKUP(V51,Tabella_prezzi!$A$3:$K$138,3,FALSE) -> OpzRAM64GB | R51: =VLOOKUP(V51,Tabella_prezzi!$A$3:$K$138,4,FALSE)*X51 -> 9424 | T51: L6N04B | U51: =VLOOKUP(T51,Tabella_prezzi!$A$3:$K$138,6,FALSE) -> TS3L6-RAM64N | V51: L6N04 | W51: =VLOOKUP(V51,Tabella_prezzi!$A$3:$K$138,6,FALSE) -> TS3L6-RAM64 | X51: 16
A52: 1536GB (64GB) | B52: Memory Capacity | D52: =VLOOKUP(V52,Tabella_prezzi!$A$3:$K$138,8,FALSE) -> HPE 64GB (1x64GB) Dual Rank x4 DDR4-2933 CAS-21-21-21 Registered Smart Memory Kit | G52: 0 | H52: ="" ->  | I52: ="" ->  | L52: ="" ->  | M52: ="" ->  | N52: ="" ->  | O52: ="" ->  | P52: =VLOOKUP(V52,Tabella_prezzi!$A$3:$K$138,9,FALSE) -> L6N04-OpzRAM64GB | Q52: =VLOOKUP(V52,Tabella_prezzi!$A$3:$K$138,3,FALSE) -> OpzRAM64GB | R52: =VLOOKUP(V52,Tabella_prezzi!$A$3:$K$138,4,FALSE)*X52 -> 12958 | T52: L6N04B | U52: =VLOOKUP(T52,Tabella_prezzi!$A$3:$K$138,6,FALSE) -> TS3L6-RAM64N | V52: L6N04 | W52: =VLOOKUP(V52,Tabella_prezzi!$A$3:$K$138,6,FALSE) -> TS3L6-RAM64 | X52: 22
A53: 2048GB (MIX) | B53: Memory Capacity | D53: =VLOOKUP(N53,Tabella_prezzi!$A$3:$K$138,8,FALSE) -> HPE 32GB (1x32GB) Dual Rank x4 DDR4-2933 CAS-21-21-21 Registered Smart Memory Kit | G53: 28 | H53: =VLOOKUP(N53,Tabella_prezzi!$A$3:$K$138,9,FALSE) -> L6N03-OpzRAM32GB | I53: =VLOOKUP(N53,Tabella_prezzi!$A$3:$K$138,3,FALSE) -> OpzRAM32GB | J53: =VLOOKUP(N53,Tabella_prezzi!$A$3:$K$138,4,FALSE)*G53 -> 5152 | L53: L6N03B | M53: =VLOOKUP(L53,Tabella_prezzi!$A$3:$K$138,6,FALSE) -> TS3L6-RAM32N | N53: L6N03 | O53: =VLOOKUP(N53,Tabella_prezzi!$A$3:$K$138,6,FALSE) -> TS3L6-RAM32 | P53: =VLOOKUP(V53,Tabella_prezzi!$A$3:$K$138,9,FALSE) -> L6N04-OpzRAM64GB | Q53: =VLOOKUP(V53,Tabella_prezzi!$A$3:$K$138,3,FALSE) -> OpzRAM64GB | R53: =VLOOKUP(V53,Tabella_prezzi!$A$3:$K$138,4,FALSE)*X53 -> 9424 | T53: L6N04B | U53: =VLOOKUP(T53,Tabella_prezzi!$A$3:$K$138,6,FALSE) -> TS3L6-RAM64N | V53: L6N04 | W53: =VLOOKUP(V53,Tabella_prezzi!$A$3:$K$138,6,FALSE) -> TS3L6-RAM64 | X53: 16
A54: 2048GB (64GB) | B54: Memory Capacity | D54: =VLOOKUP(V54,Tabella_prezzi!$A$3:$K$138,8,FALSE) -> HPE 64GB (1x64GB) Dual Rank x4 DDR4-2933 CAS-21-21-21 Registered Smart Memory Kit | G54: 0 | H54: ="" ->  | I54: ="" ->  | L54: ="" ->  | M54: ="" ->  | N54: ="" ->  | O54: ="" ->  | P54: =VLOOKUP(V54,Tabella_prezzi!$A$3:$K$138,9,FALSE) -> L6N04-OpzRAM64GB | Q54: =VLOOKUP(V54,Tabella_prezzi!$A$3:$K$138,3,FALSE) -> OpzRAM64GB | R54: =VLOOKUP(V54,Tabella_prezzi!$A$3:$K$138,4,FALSE)*X54 -> 17670 | T54: L6N04B | U54: =VLOOKUP(T54,Tabella_prezzi!$A$3:$K$138,6,FALSE) -> TS3L6-RAM64N | V54: L6N04 | W54: =VLOOKUP(V54,Tabella_prezzi!$A$3:$K$138,6,FALSE) -> TS3L6-RAM64 | X54: 30
A55: 3072GB (64GB) | B55: Memory Capacity | D55: =VLOOKUP(V55,Tabella_prezzi!$A$3:$K$138,8,FALSE) -> HPE 64GB (1x64GB) Dual Rank x4 DDR4-2933 CAS-21-21-21 Registered Smart Memory Kit | G55: 0 | H55: ="" ->  | I55: ="" ->  | L55: ="" ->  | M55: ="" ->  | N55: ="" ->  | O55: ="" ->  | P55: =VLOOKUP(V55,Tabella_prezzi!$A$3:$K$138,9,FALSE) -> L6N04-OpzRAM64GB | Q55: =VLOOKUP(V55,Tabella_prezzi!$A$3:$K$138,3,FALSE) -> OpzRAM64GB | R55: =VLOOKUP(V55,Tabella_prezzi!$A$3:$K$138,4,FALSE)*X55 -> 27094 | T55: L6N04B | U55: =VLOOKUP(T55,Tabella_prezzi!$A$3:$K$138,6,FALSE) -> TS3L6-RAM64N | V55: L6N04 | W55: =VLOOKUP(V55,Tabella_prezzi!$A$3:$K$138,6,FALSE) -> TS3L6-RAM64 | X55: 46
A57: TS3L6_OS
A58: No Operating System | B58: Operating System | G58: 0 | I58: ="" ->  | L58: ="" ->  | M58: ="" ->  | N58: ="" ->  | O58: ="" ->  | P58: 0 | R58: ="" ->  | S58: ="" ->  | U58: 0 | V58: 0 | W58: 0 | X58: ="" ->  | Y58: ="" -> 
A59: [TS3L6-WINSRVSTD] Windows Server® 2019 Standard | B59: Operating System | D59: =VLOOKUP(N59,Tabella_prezzi!$A$3:$K$138,8,FALSE) -> Windows Server 2019,Standard,ROK,16CORE (for Distributor sale only) | G59: 1 | H59: =VLOOKUP(N59,Tabella_prezzi!$A$3:$K$138,9,FALSE) -> L6N23-OpzWinServSTD | I59: =VLOOKUP(N59,Tabella_prezzi!$A$3:$K$138,3,FALSE) -> OpzWinServSTD | J59: =VLOOKUP(N59,Tabella_prezzi!$A$3:$K$138,4,FALSE) -> 557 | L59: L6N23B | M59: =VLOOKUP(L59,Tabella_prezzi!$A$3:$K$138,6,FALSE) -> TS3L6-WINSTDN | N59: L6N23 | O59: =VLOOKUP(N59,Tabella_prezzi!$A$3:$K$138,6,FALSE) -> TS3L6-WINSTD | P59: 40 | Q59: =VLOOKUP(W59,Tabella_prezzi!$A$3:$K$138,9,FALSE) -> L6N26-OpzWinServSTD2core | R59: =VLOOKUP(W59,Tabella_prezzi!$A$3:$K$138,3,FALSE) -> OpzWinServSTD2core | S59: 3800 | T59: 1520 | U59: 16 | V59: L6N26B | W59: L6N26 | X59: =VLOOKUP(V59,Tabella_prezzi!$A$3:$K$138,6,FALSE) -> TS3L6-WINSRV2CN | Y59: =VLOOKUP(W59,Tabella_prezzi!$A$3:$K$138,6,FALSE) -> TS3L6-WINSRV2C
A60: [TS3L6-WINDC] Windows Server® 2019 DataCenter | B60: Operating System | D60: =VLOOKUP(N60,Tabella_prezzi!$A$3:$K$138,8,FALSE) -> Windows Server 2019,DataCtr,ROK,16CORE (for Distributor sale only) | G60: 1 | H60: =VLOOKUP(N60,Tabella_prezzi!$A$3:$K$138,9,FALSE) -> L6N27-OpzWinServDC | I60: =VLOOKUP(N60,Tabella_prezzi!$A$3:$K$138,3,FALSE) -> OpzWinServDC | J60: =VLOOKUP(N60,Tabella_prezzi!$A$3:$K$138,4,FALSE) -> 2228 | L60: L6N27B | M60: =VLOOKUP(L60,Tabella_prezzi!$A$3:$K$138,6,FALSE) -> TS3L6-WINDCN | N60: L6N27 | O60: =VLOOKUP(N60,Tabella_prezzi!$A$3:$K$138,6,FALSE) -> TS3L6-WINDC | P60: 40 | Q60: =VLOOKUP(W60,Tabella_prezzi!$A$3:$K$138,9,FALSE) -> L6N28-OpzWinServDC2core | R60: =VLOOKUP(W60,Tabella_prezzi!$A$3:$K$138,3,FALSE) -> OpzWinServDC2core | S60: 16480 | T60: 6592 | U60: 16 | V60: L6N28B | W60: L6N28 | X60: =VLOOKUP(V60,Tabella_prezzi!$A$3:$K$138,6,FALSE) -> TS3L6-WINDC2CN | Y60: =VLOOKUP(W60,Tabella_prezzi!$A$3:$K$138,6,FALSE) -> TS3L6-WINDC2C
A61: [TS3L6-LINUX] Ubuntu 18.04 LTS 64 Bit | B61: Operating System | D61: =VLOOKUP(N61,Tabella_prezzi!$A$3:$K$138,8,FALSE) -> Ubuntu 20.04 LTS 64 Bit | G61: 1 | H61: =VLOOKUP(N61,Tabella_prezzi!$A$3:$K$138,9,FALSE) -> L6N29-OpzOpenSource | I61: =VLOOKUP(N61,Tabella_prezzi!$A$3:$K$138,3,FALSE) -> OpzOpenSource | J61: =VLOOKUP(N61,Tabella_prezzi!$A$3:$K$138,4,FALSE) -> 51 | L61: L6N29B | M61: =VLOOKUP(L61,Tabella_prezzi!$A$3:$K$138,6,FALSE) -> TS3L6-LINUXN | N61: L6N29 | O61: =VLOOKUP(N61,Tabella_prezzi!$A$3:$K$138,6,FALSE) -> TS3L6-LINUX | P61: 0 | R61: ="" ->  | S61: ="" ->  | U61: 0 | V61: 0 | W61: 0 | X61: ="" ->  | Y61: ="" -> 
A63: TS3L6_HDD
A64: ="" ->  | G64: ="" ->  | I64: ="" ->  | L64: ="" ->  | M64: ="" ->  | N64: ="" ->  | O64: ="" -> 
A65: HPE 300GB SAS 12G Enterprise 10K SFF (2.5in) SC | B65: Hard Drives | D65: =VLOOKUP(N65,Tabella_prezzi!$A$3:$K$138,8,FALSE) -> HPE 300GB SAS 12G Enterprise 10K SFF (2.5in) SC 3yr Wty Digitally Signed Firmware HDD | G65: 1 | H65: =VLOOKUP(N65,Tabella_prezzi!$A$3:$K$138,9,FALSE) -> L6N12-OpzHDD300GB | I65: =VLOOKUP(N65,Tabella_prezzi!$A$3:$K$138,3,FALSE) -> OpzHDD300GB | J65: =VLOOKUP(N65,Tabella_prezzi!$A$3:$K$138,4,FALSE) -> 87 | L65: L6N12B | M65: =VLOOKUP(L65,Tabella_prezzi!$A$3:$K$138,6,FALSE) -> TS3L6-HDD300GBN | N65: L6N12 | O65: =VLOOKUP(N65,Tabella_prezzi!$A$3:$K$138,6,FALSE) -> TS3L6-HDD300GB
A66: HPE 1.2TB SAS 12G Enterprise 10K SFF (2.5in) SC | B66: Hard Drives | D66: =VLOOKUP(N66,Tabella_prezzi!$A$3:$K$138,8,FALSE) -> HPE 1.2TB SAS 12G Enterprise 10K SFF (2.5in) SC 3yr Wty Digitally Signed Firmware HDD | G66: 1 | H66: =VLOOKUP(N66,Tabella_prezzi!$A$3:$K$138,9,FALSE) -> L6N11-OpzHDD1TB | I66: =VLOOKUP(N66,Tabella_prezzi!$A$3:$K$138,3,FALSE) -> OpzHDD1TB | J66: =VLOOKUP(N66,Tabella_prezzi!$A$3:$K$138,4,FALSE) -> 136 | L66: L6N11B | M66: =VLOOKUP(L66,Tabella_prezzi!$A$3:$K$138,6,FALSE) -> TS3L6-HDD1TBN | N66: L6N11 | O66: =VLOOKUP(N66,Tabella_prezzi!$A$3:$K$138,6,FALSE) -> TS3L6-HDD1TB
A67: HPE 1.8TB SAS 12G Enterprise 10K SFF (2.5in) SC | B67: Hard Drives | D67: =VLOOKUP(N67,Tabella_prezzi!$A$3:$K$138,8,FALSE) -> HPE 1.8TB SAS 12G Enterprise 10K SFF (2.5in) SC 3yr Wty 512e Digitally Signed Firmware HDD | G67: 1 | H67: =VLOOKUP(N67,Tabella_prezzi!$A$3:$K$138,9,FALSE) -> L6N10-OpzHDD2TB | I67: =VLOOKUP(N67,Tabella_prezzi!$A$3:$K$138,3,FALSE) -> OpzHDD2TB | J67: =VLOOKUP(N67,Tabella_prezzi!$A$3:$K$138,4,FALSE) -> 189 | L67: L6N10B | M67: =VLOOKUP(L67,Tabella_prezzi!$A$3:$K$138,6,FALSE) -> TS3L6-HDD2TBN | N67: L6N10 | O67: =VLOOKUP(N67,Tabella_prezzi!$A$3:$K$138,6,FALSE) -> TS3L6-HDD2TB
A68: HPE 960GB SAS 12G Read Intensive SFF (2.5in) SC | B68: Hard Drives | D68: =VLOOKUP(N68,Tabella_prezzi!$A$3:$K$138,8,FALSE) -> HPE 960GB SAS 12G Read Intensive SFF (2.5in) SC 3yr Wty Value SAS Digitally Signed Firmware SSD | G68: 1 | H68: =VLOOKUP(N68,Tabella_prezzi!$A$3:$K$138,9,FALSE) -> L6N15-OpzSSD-RI800GB | I68: =VLOOKUP(N68,Tabella_prezzi!$A$3:$K$138,3,FALSE) -> OpzSSD-RI800GB | J68: =VLOOKUP(N68,Tabella_prezzi!$A$3:$K$138,4,FALSE) -> 461 | L68: L6N15B | M68: =VLOOKUP(L68,Tabella_prezzi!$A$3:$K$138,6,FALSE) -> TS3L6-RI800GBN | N68: L6N15 | O68: =VLOOKUP(N68,Tabella_prezzi!$A$3:$K$138,6,FALSE) -> TS3L6-RI800GB
A69: HPE 1.92TB SAS 12G Read Intensive SFF (2.5in) SC | B69: Hard Drives | D69: =VLOOKUP(N69,Tabella_prezzi!$A$3:$K$138,8,FALSE) -> HPE 1.92TB SAS 12G Read Intensive SFF (2.5in) SC 3yr Wty Value SAS Digitally Signed Firmware SSD | G69: 1 | H69: =VLOOKUP(N69,Tabella_prezzi!$A$3:$K$138,9,FALSE) -> L6N13-OpzSSD-RI1,6TB | I69: =VLOOKUP(N69,Tabella_prezzi!$A$3:$K$138,3,FALSE) -> OpzSSD-RI1,6TB | J69: =VLOOKUP(N69,Tabella_prezzi!$A$3:$K$138,4,FALSE) -> 714 | L69: L6N13B | M69: =VLOOKUP(L69,Tabella_prezzi!$A$3:$K$138,6,FALSE) -> TS3L6-RI1600GBN | N69: L6N13 | O69: =VLOOKUP(N69,Tabella_prezzi!$A$3:$K$138,6,FALSE) -> TS3L6-RI1600GB
A70: HPE 400GB SAS 12G Mixed Use SFF (2.5in) SC | B70: Hard Drives | D70: =VLOOKUP(N70,Tabella_prezzi!$A$3:$K$138,8,FALSE) -> HPE 400GB SAS 12G Mixed Use SFF (2.5in) SC 3yr Wty Digitally Signed Firmware SSD | G70: 1 | H70: =VLOOKUP(N70,Tabella_prezzi!$A$3:$K$138,9,FALSE) -> L6N17-OpzSSD-RI400GB | I70: =VLOOKUP(N70,Tabella_prezzi!$A$3:$K$138,3,FALSE) -> OpzSSD-RI400GB | J70: =VLOOKUP(N70,Tabella_prezzi!$A$3:$K$138,4,FALSE) -> 397 | L70: L6N17B | M70: =VLOOKUP(L70,Tabella_prezzi!$A$3:$K$138,6,FALSE) -> TS3L6-RI400GBN | N70: L6N17 | O70: =VLOOKUP(N70,Tabella_prezzi!$A$3:$K$138,6,FALSE) -> TS3L6-RI400GB
A71: HPE 800GB SAS 12G Mixed Use SFF (2.5in) SC | B71: Hard Drives | D71: =VLOOKUP(N71,Tabella_prezzi!$A$3:$K$138,8,FALSE) -> HPE 800GB SAS 12G Mixed Use SFF (2.5in) SC 3yr Wty SSD | G71: 1 | H71: =VLOOKUP(N71,Tabella_prezzi!$A$3:$K$138,9,FALSE) -> L6N16-OpzSSD-MU800GB | I71: =VLOOKUP(N71,Tabella_prezzi!$A$3:$K$138,3,FALSE) -> OpzSSD-MU800GB | J71: =VLOOKUP(N71,Tabella_prezzi!$A$3:$K$138,4,FALSE) -> 576 | L71: L6N16B | M71: =VLOOKUP(L71,Tabella_prezzi!$A$3:$K$138,6,FALSE) -> TS3L6-MU800GBN | N71: L6N16 | O71: =VLOOKUP(N71,Tabella_prezzi!$A$3:$K$138,6,FALSE) -> TS3L6-MU800GB
A72: HPE 1.6TB SAS 12G Mixed Use SFF (2.5in) SC | B72: Hard Drives | D72: =VLOOKUP(N72,Tabella_prezzi!$A$3:$K$138,8,FALSE) -> HPE 1.6TB SAS 12G Mixed Use SFF (2.5in) SC 3yr Wty SSD | G72: 1 | H72: =VLOOKUP(N72,Tabella_prezzi!$A$3:$K$138,9,FALSE) -> L6N14-OpzSSD-MU1,6TB | I72: =VLOOKUP(N72,Tabella_prezzi!$A$3:$K$138,3,FALSE) -> OpzSSD-MU1,6TB | J72: =VLOOKUP(N72,Tabella_prezzi!$A$3:$K$138,4,FALSE) -> 878 | L72: L6N14B | M72: =VLOOKUP(L72,Tabella_prezzi!$A$3:$K$138,6,FALSE) -> TS3L6-MU1600GBN | N72: L6N14 | O72: =VLOOKUP(N72,Tabella_prezzi!$A$3:$K$138,6,FALSE) -> TS3L6-MU1600GB
A73: HPE 800GB NVMe x4 Lanes Mixed Use SFF (2.5in) SCN | B73: Hard Drives | D73: =VLOOKUP(N73,Tabella_prezzi!$A$3:$K$138,8,FALSE) -> HPE 800GB NVMe x4 Lanes Mixed Use SFF (2.5in) SCN 3yr Wty Digitally Signed Firmware SSD | G73: 1 | H73: =VLOOKUP(N73,Tabella_prezzi!$A$3:$K$138,9,FALSE) -> 0 | I73: =VLOOKUP(N73,Tabella_prezzi!$A$3:$K$138,3,FALSE) -> OpzNVME800GB | J73: =VLOOKUP(N73,Tabella_prezzi!$A$3:$K$138,4,FALSE) -> 1219 | L73: L6N19B | M73: =VLOOKUP(L73,Tabella_prezzi!$A$3:$K$138,6,FALSE) -> TS3L6-NVME800N | N73: L6N19 | O73: =VLOOKUP(N73,Tabella_prezzi!$A$3:$K$138,6,FALSE) -> TS3L6-NVME800
A74: HPE 1.6TB NVMe x4 Lanes Mixed Use SFF (2.5in) SCN | B74: Hard Drives | D74: =VLOOKUP(N74,Tabella_prezzi!$A$3:$K$138,8,FALSE) -> HPE 1.6TB NVMe x4 Lanes Mixed Use SFF (2.5in) SCN 3yr Wty Digitally Signed Firmware SSD | G74: 1 | H74: =VLOOKUP(N74,Tabella_prezzi!$A$3:$K$138,9,FALSE) -> 0 | I74: =VLOOKUP(N74,Tabella_prezzi!$A$3:$K$138,3,FALSE) -> OpzNVME1,6TB | J74: =VLOOKUP(N74,Tabella_prezzi!$A$3:$K$138,4,FALSE) -> 1950 | L74: L6N18B | M74: =VLOOKUP(L74,Tabella_prezzi!$A$3:$K$138,6,FALSE) -> TS3L6-NVME1600N | N74: L6N18 | O74: =VLOOKUP(N74,Tabella_prezzi!$A$3:$K$138,6,FALSE) -> TS3L6-NVME1600
A76: Cavo “patch” di 3 mt RJ45 certificato per gigabit ethernet | D76: =VLOOKUP(N76,Tabella_prezzi!$A$3:$K$138,8,FALSE) -> Cavo “patch” di 3 mt RJ45 certificato per gigabit ethernet | G76: ="" ->  | H76: =VLOOKUP(N76,Tabella_prezzi!$A$3:$K$138,9,FALSE) -> TS3-OpzA20RJ45 | I76: =VLOOKUP(N76,Tabella_prezzi!$A$3:$K$138,3,FALSE) -> OpzRJ45 3m | K76: =VLOOKUP(N76,Tabella_prezzi!$A$3:$K$138,4,FALSE) -> 3 | L76: L6N34B | M76: =VLOOKUP(L76,Tabella_prezzi!$A$3:$K$138,6,FALSE) -> TS3L6-RJ453MN | N76: L6N34 | O76: =VLOOKUP(N76,Tabella_prezzi!$A$3:$K$138,6,FALSE) -> TS3L6-RJ453M
A79: TS3L6_WARRANTY
A80: Manutenzione in garanzia (36 mesi) | D80: RESTRICTED:ProSupport One Data Center and Next Business Day Onsite Service Volume Low, 39 Month(s) | G80: ="" ->  | I80: ="" ->  | L80: ="" ->  | M80: ="" ->  | N80: ="" ->  | O80: ="" -> 
A81: [TS3L6-5Y] Manutenzione in garanzia (60 mesi) | D81: =VLOOKUP(N81,Tabella_prezzi!$A$3:$K$138,8,FALSE) -> Estensione della manutenzione in garanzia per ulteriori 24 mesi | G81: 1 | H81: =VLOOKUP(N81,Tabella_prezzi!$A$3:$K$333,9,FALSE) -> L6N31-OpzEstensione24 | I81: =VLOOKUP(N81,Tabella_prezzi!$A$3:$K$333,3,FALSE) -> OpzEstensione24 | J81: =VLOOKUP(N81,Tabella_prezzi!$A$3:$K$333,4,FALSE) -> 558 | L81: L6N31B | M81: =VLOOKUP(L81,Tabella_prezzi!$A$3:$K$138,6,FALSE) -> TS3L6-5YN | N81: L6N31 | O81: =VLOOKUP(N81,Tabella_prezzi!$A$3:$K$138,6,FALSE) -> TS3L6-5Y
A83: TS3L6_ILO
A84: None | G84: ="" ->  | I84: ="" ->  | L84: ="" ->  | M84: ="" ->  | N84: ="" ->  | O84: ="" -> 
A85: [TS3L6-OV3YILO] HPE OneView Advanced with iLO Advanced | D85: =VLOOKUP(N85,Tabella_prezzi!$A$3:$K$138,8,FALSE) -> HPE OV 3yr 24x7 Supp Phys 1 Svr Lic | G85: 1 | H85: =VLOOKUP(N85,Tabella_prezzi!$A$3:$K$333,9,FALSE) -> TS3-OpzA20ILO | I85: =VLOOKUP(N85,Tabella_prezzi!$A$3:$K$333,3,FALSE) -> 0 | K85: =VLOOKUP(N85,Tabella_prezzi!$A$3:$K$333,4,FALSE) -> 480 | L85: L6N35B | M85: =VLOOKUP(L85,Tabella_prezzi!$A$3:$K$138,6,FALSE) -> TS3L6-OV3YILON | N85: L6N35 | O85: =VLOOKUP(N85,Tabella_prezzi!$A$3:$K$138,6,FALSE) -> TS3L6-OV3YILO
A87: TS3L6_USB32
A88: None | G88: ="" ->  | I88: ="" ->  | L88: ="" ->  | M88: ="" ->  | N88: ="" ->  | O88: ="" -> 
A89: [TS3L6-DUAL32GB] HPE 32GB Dual microSD RAID 1 USB Boot Drive | D89: =VLOOKUP(N89,Tabella_prezzi!$A$3:$K$138,8,FALSE) -> HPE 32GB Dual microSD RAID 1 USB Boot Drive | G89: 1 | H89: =VLOOKUP(N89,Tabella_prezzi!$A$3:$K$333,9,FALSE) -> TS3-OpzA20D32GB | I89: =VLOOKUP(N89,Tabella_prezzi!$A$3:$K$333,3,FALSE) -> 0 | K89: =VLOOKUP(N89,Tabella_prezzi!$A$3:$K$333,4,FALSE) -> 250 | L89: L6N50B | M89: =VLOOKUP(L89,Tabella_prezzi!$A$3:$K$138,6,FALSE) -> TS3L6-DUAL32GBN | N89: L6N50 | O89: =VLOOKUP(N89,Tabella_prezzi!$A$3:$K$138,6,FALSE) -> TS3L6-DUAL32GB
A91: TS3L6_KYHDD
A92: ="" ->  | G92: ="" ->  | I92: ="" ->  | L92: ="" ->  | M92: ="" ->  | N92: ="" ->  | O92: ="" -> 
A93: Hard Disk Retention | D93: =VLOOKUP(N93,Tabella_prezzi!$A$3:$K$138,8,FALSE) -> Hard Disk Retention 36m | G93: 1 | H93: =VLOOKUP(N93,Tabella_prezzi!$A$3:$K$333,9,FALSE) -> L6N30-OpzHDDRetention | I93: =VLOOKUP(N93,Tabella_prezzi!$A$3:$K$333,3,FALSE) -> OpzHDDRetention | J93: =VLOOKUP(N93,Tabella_prezzi!$A$3:$K$333,4,FALSE) -> 446 | L93: L6N30B | M93: =VLOOKUP(L93,Tabella_prezzi!$A$3:$K$138,6,FALSE) -> TS3L6-HDRTNN | N93: L6N30 | O93: =VLOOKUP(N93,Tabella_prezzi!$A$3:$K$138,6,FALSE) -> TS3L6-HDRTN
A94: Hard Disk Retention (60 mesi) | D94: =VLOOKUP(N94,Tabella_prezzi!$A$3:$K$138,8,FALSE) -> Hard Disk Retention 60m | G94: 1 | H94: =VLOOKUP(N94,Tabella_prezzi!$A$3:$K$333,9,FALSE) -> L6N33-OpzHDDRetention60 | I94: =VLOOKUP(N94,Tabella_prezzi!$A$3:$K$333,3,FALSE) -> OpzHDDRetention | J94: =VLOOKUP(N94,Tabella_prezzi!$A$3:$K$333,4,FALSE) -> 743 | L94: L6N33B | M94: =VLOOKUP(L94,Tabella_prezzi!$A$3:$K$138,6,FALSE) -> TS3L6-HDRTN60N | N94: L6N33 | O94: =VLOOKUP(N94,Tabella_prezzi!$A$3:$K$138,6,FALSE) -> TS3L6-HDRTN60
A96: HPE DL5x0 Gen10 12Gb SAS Expander Card Kit with Cables | G96: ="" ->  | J96: 0 | K96: 0 | M96: TS3L6-SASBAY1N | O96: TS3L6-SASBAY1
A98: TS3L6_PCI_A
A99: ="" ->  | G99: ="" ->  | I99: ="" ->  | L99: ="" ->  | M99: ="" ->  | N99: ="" ->  | O99: ="" -> 
A100: [TS3L6-LAN1] HPE Ethernet 1Gb 2-port 332T Adapter | D100: =VLOOKUP(N100,Tabella_prezzi!$A$3:$K$138,8,FALSE) -> HPE Ethernet 1Gb 2-port 332T Adapter | G100: 1 | H100: =VLOOKUP(N100,Tabella_prezzi!$A$3:$K$138,9,FALSE) -> L6N05-OpzGigabit | I100: =VLOOKUP(N100,Tabella_prezzi!$A$3:$K$138,3,FALSE) -> OpzGigabit | J100: =VLOOKUP(N100,Tabella_prezzi!$A$3:$K$138,4,FALSE) -> 25 | L100: L6N05B | M100: =VLOOKUP(L100,Tabella_prezzi!$A$3:$K$138,6,FALSE) -> TS3L6-LAN1N | N100: L6N05 | O100: =VLOOKUP(N100,Tabella_prezzi!$A$3:$K$138,6,FALSE) -> TS3L6-LAN1
A101: [TS3L6-LAN10] HPE Ethernet 10Gb 2-port 548SFP+ Adapter | D101: =VLOOKUP(N101,Tabella_prezzi!$A$3:$K$138,8,FALSE) -> HPE Ethernet 10Gb 2-port 548SFP+ Adapter | G101: 1 | H101: =VLOOKUP(N101,Tabella_prezzi!$A$3:$K$138,9,FALSE) -> L6N06-OpzGigabit10Gbps | I101: =VLOOKUP(N101,Tabella_prezzi!$A$3:$K$138,3,FALSE) -> OpzGigabit10Gbps | J101: =VLOOKUP(N101,Tabella_prezzi!$A$3:$K$138,4,FALSE) -> 218 | L101: L6N06B | M101: =VLOOKUP(L101,Tabella_prezzi!$A$3:$K$138,6,FALSE) -> TS3L6-LAN10N | N101: L6N06 | O101: =VLOOKUP(N101,Tabella_prezzi!$A$3:$K$138,6,FALSE) -> TS3L6-LAN10
A102: [TS3L6-LAN25] HPE Ethernet 10/25Gb 2-port 640SFP28 Adapter | D102: =VLOOKUP(N102,Tabella_prezzi!$A$3:$K$138,8,FALSE) -> HPE Ethernet 10/25Gb 2-port 640SFP28 Adapter | G102: 1 | H102: =VLOOKUP(N102,Tabella_prezzi!$A$3:$K$138,9,FALSE) -> L6N07-OpzGigabit25Gbps | I102: =VLOOKUP(N102,Tabella_prezzi!$A$3:$K$138,3,FALSE) -> OpzGigabit25Gbps | J102: =VLOOKUP(N102,Tabella_prezzi!$A$3:$K$138,4,FALSE) -> 669 | L102: L6N07B | M102: =VLOOKUP(L102,Tabella_prezzi!$A$3:$K$138,6,FALSE) -> TS3L6-LAN25N | N102: L6N07 | O102: =VLOOKUP(N102,Tabella_prezzi!$A$3:$K$138,6,FALSE) -> TS3L6-LAN25
A103: [TS3L6-CNA10] HPE StoreFabric CN1300R 10/25Gb Dual Port Converged Network Adapter | D103: =VLOOKUP(N103,Tabella_prezzi!$A$3:$K$138,8,FALSE) -> HPE StoreFabric CN1300R 10/25Gb Dual Port Converged Network Adapter | G103: 1 | H103: =VLOOKUP(N103,Tabella_prezzi!$A$3:$K$138,9,FALSE) -> L6N08-OpzCNA10Gbps | I103: =VLOOKUP(N103,Tabella_prezzi!$A$3:$K$138,3,FALSE) -> OpzGigabit10Gbps CNA | J103: =VLOOKUP(N103,Tabella_prezzi!$A$3:$K$138,4,FALSE) -> 402 | L103: L6N08B | M103: =VLOOKUP(L103,Tabella_prezzi!$A$3:$K$138,6,FALSE) -> TS3L6-CNA10N | N103: L6N08 | O103: =VLOOKUP(N103,Tabella_prezzi!$A$3:$K$138,6,FALSE) -> TS3L6-CNA10
A104: [TS3L6-FC16] HPE StoreFabric SN1100Q 16Gb Dual Port Fibre Channel Host Bus Adapter | D104: =VLOOKUP(N104,Tabella_prezzi!$A$3:$K$138,8,FALSE) -> HPE StoreFabric SN1100Q 16Gb Dual Port Fibre Channel Host Bus Adapter | G104: 1 | H104: =VLOOKUP(N104,Tabella_prezzi!$A$3:$K$138,9,FALSE) -> L6N09-OpzFibreChannel | I104: =VLOOKUP(N104,Tabella_prezzi!$A$3:$K$138,3,FALSE) -> OpzFibreChannel | J104: =VLOOKUP(N104,Tabella_prezzi!$A$3:$K$138,4,FALSE) -> 325 | L104: L6N09B | M104: =VLOOKUP(L104,Tabella_prezzi!$A$3:$K$138,6,FALSE) -> TS3L6-FC16N | N104: L6N09 | O104: =VLOOKUP(N104,Tabella_prezzi!$A$3:$K$138,6,FALSE) -> TS3L6-FC16
A105: -=-=-=-=-=-=-=-=-=-=-=-=-=-=-=-=-20%-=-=-=-=-=-=-=-=-=-=-=-=-=-=-=-=-
A106: [TS3L6-CTRL-P] HPE Smart Array Controller PCIe per Software Defined Storage | D106: =VLOOKUP(N106,Tabella_prezzi!$A$3:$K$138,8,FALSE) -> HPE Smart Array Controller PCIe per Software Defined Storage | G106: 1 | H106: =VLOOKUP(N106,Tabella_prezzi!$A$3:$K$138,9,FALSE) -> TS3-OpzA20CTRLP | I106: =VLOOKUP(N106,Tabella_prezzi!$A$3:$K$138,3,FALSE) -> 0 | K106: =VLOOKUP(N106,Tabella_prezzi!$A$3:$K$138,4,FALSE) -> 196 | L106: L6N57B | M106: =VLOOKUP(L106,Tabella_prezzi!$A$3:$K$138,6,FALSE) -> TS3L6-CTRL-PN | N106: L6N57 | O106: =VLOOKUP(N106,Tabella_prezzi!$A$3:$K$138,6,FALSE) -> TS3L6-CTRL-P
A107: [TS3L6-CTRL-E] HPE Smart Array Controller PCIe per Disk Enclosure esterno | D107: =VLOOKUP(N107,Tabella_prezzi!$A$3:$K$138,8,FALSE) -> HPE Smart Array Controller PCIe per Disk Enclosure esterno | G107: 1 | H107: =VLOOKUP(N107,Tabella_prezzi!$A$3:$K$138,9,FALSE) -> TS3-OpzA20CTRLE | I107: =VLOOKUP(N107,Tabella_prezzi!$A$3:$K$138,3,FALSE) -> 0 | K107: =VLOOKUP(N107,Tabella_prezzi!$A$3:$K$138,4,FALSE) -> 235 | L107: L6N52B | M107: =VLOOKUP(L107,Tabella_prezzi!$A$3:$K$138,6,FALSE) -> TS3L6-CTRL-EN | N107: L6N52 | O107: =VLOOKUP(N107,Tabella_prezzi!$A$3:$K$138,6,FALSE) -> TS3L6-CTRL-E
A108: [TS3L6-CTRL-OS] HPE Controller PCIe OS Boot Device Raid1 2x480GB NVMe M.2 SSD | D108: =VLOOKUP(N108,Tabella_prezzi!$A$3:$K$138,8,FALSE) -> HPE Controller PCIe OS Boot Device Raid1 2x480GB NVMe M.2 SSD | G108: 1 | H108: =VLOOKUP(N108,Tabella_prezzi!$A$3:$K$138,9,FALSE) -> TS3-OpzA20CTRLOS | I108: =VLOOKUP(N108,Tabella_prezzi!$A$3:$K$138,3,FALSE) -> 0 | K108: =VLOOKUP(N108,Tabella_prezzi!$A$3:$K$138,4,FALSE) -> 484 | L108: L6N51B | M108: =VLOOKUP(L108,Tabella_prezzi!$A$3:$K$138,6,FALSE) -> TS3L6-CTRL-OSN | N108: L6N51 | O108: =VLOOKUP(N108,Tabella_prezzi!$A$3:$K$138,6,FALSE) -> TS3L6-CTRL-OS
A109: [TS3L6-LAN10T] HPE Ethernet 10Gb 2-port BASE-T BCM57416 Adapter | D109: =VLOOKUP(N109,Tabella_prezzi!$A$3:$K$138,8,FALSE) -> HPE Ethernet 10Gb 2-port BASE-T BCM57416 Adapter | G109: 1 | H109: =VLOOKUP(N109,Tabella_prezzi!$A$3:$K$138,9,FALSE) -> TS3-OpzA2010GBT | I109: =VLOOKUP(N109,Tabella_prezzi!$A$3:$K$138,3,FALSE) -> 0 | K109: =VLOOKUP(N109,Tabella_prezzi!$A$3:$K$138,4,FALSE) -> 298 | L109: L6N64B | M109: =VLOOKUP(L109,Tabella_prezzi!$A$3:$K$301,6,FALSE) -> TS3L6-LAN10T | N109: L6N64 | O109: =VLOOKUP(N109,Tabella_prezzi!$A$3:$K$138,6,FALSE) -> TS3L6-LAN10T
A110: [TS3L6-X710SFP] HPE Ethernet 10Gb 2-port SFP+ X710-DA2 Adapter | D110: =VLOOKUP(N110,Tabella_prezzi!$A$3:$K$138,8,FALSE) -> HPE Ethernet 10Gb 2-port SFP+ X710-DA2 Adapter | G110: 1 | H110: =VLOOKUP(N110,Tabella_prezzi!$A$3:$K$138,9,FALSE) -> TS3-OpzX710SFP | I110: =VLOOKUP(N110,Tabella_prezzi!$A$3:$K$138,3,FALSE) -> 0 | K110: =VLOOKUP(N110,Tabella_prezzi!$A$3:$K$138,4,FALSE) -> 380 | L110: L6N63B | M110: =VLOOKUP(L110,Tabella_prezzi!$A$3:$K$301,6,FALSE) -> TS3L6-X710SFPN | N110: L6N63 | O110: =VLOOKUP(N110,Tabella_prezzi!$A$3:$K$138,6,FALSE) -> TS3L6-X710SFP
A111: [TS3L6-OP101] HPE 100Gb 1-port OP101 QSFP28 x16 PCIe Gen3 Intel Omni-Path Architecture | D111: =VLOOKUP(N111,Tabella_prezzi!$A$3:$K$138,8,FALSE) -> HPE 100Gb 1-port OP101 QSFP28 x16 PCIe Gen3 with Intel Omni-Path Architecture Adapter | G111: 1 | H111: =VLOOKUP(N111,Tabella_prezzi!$A$3:$K$138,9,FALSE) -> TS3-OpzA20OP101 | I111: =VLOOKUP(N111,Tabella_prezzi!$A$3:$K$138,3,FALSE) -> 0 | K111: =VLOOKUP(N111,Tabella_prezzi!$A$3:$K$138,4,FALSE) -> 498 | L111: L6N37B | M111: =VLOOKUP(L111,Tabella_prezzi!$A$3:$K$138,6,FALSE) -> TS3L6-OP101N | N111: L6N37 | O111: =VLOOKUP(N111,Tabella_prezzi!$A$3:$K$138,6,FALSE) -> TS3L6-OP101
A113: TS3L6_PCI_B GPU
A114: ="" ->  | G114: ="" ->  | I114: ="" ->  | L114: ="" ->  | M114: ="" ->  | N114: ="" ->  | O114: ="" -> 
A115: [TS3L6-LAN1] HPE Ethernet 1Gb 2-port 332T Adapter | D115: =VLOOKUP(N115,Tabella_prezzi!$A$3:$K$138,8,FALSE) -> HPE Ethernet 1Gb 2-port 332T Adapter | G115: 1 | H115: =VLOOKUP(N115,Tabella_prezzi!$A$3:$K$138,9,FALSE) -> L6N05-OpzGigabit | I115: =VLOOKUP(N115,Tabella_prezzi!$A$3:$K$138,3,FALSE) -> OpzGigabit | J115: =VLOOKUP(N115,Tabella_prezzi!$A$3:$K$138,4,FALSE) -> 25 | L115: L6N05B | M115: =VLOOKUP(L115,Tabella_prezzi!$A$3:$K$138,6,FALSE) -> TS3L6-LAN1N | N115: L6N05 | O115: =VLOOKUP(N115,Tabella_prezzi!$A$3:$K$138,6,FALSE) -> TS3L6-LAN1
A116: [TS3L6-LAN10] HPE Ethernet 10Gb 2-port 548SFP+ Adapter | D116: =VLOOKUP(N116,Tabella_prezzi!$A$3:$K$138,8,FALSE) -> HPE Ethernet 10Gb 2-port 548SFP+ Adapter | G116: 1 | H116: =VLOOKUP(N116,Tabella_prezzi!$A$3:$K$138,9,FALSE) -> L6N06-OpzGigabit10Gbps | I116: =VLOOKUP(N116,Tabella_prezzi!$A$3:$K$138,3,FALSE) -> OpzGigabit10Gbps | J116: =VLOOKUP(N116,Tabella_prezzi!$A$3:$K$138,4,FALSE) -> 218 | L116: L6N06B | M116: =VLOOKUP(L116,Tabella_prezzi!$A$3:$K$138,6,FALSE) -> TS3L6-LAN10N | N116: L6N06 | O116: =VLOOKUP(N116,Tabella_prezzi!$A$3:$K$138,6,FALSE) -> TS3L6-LAN10
A117: [TS3L6-LAN25] HPE Ethernet 10/25Gb 2-port 640SFP28 Adapter | D117: =VLOOKUP(N117,Tabella_prezzi!$A$3:$K$138,8,FALSE) -> HPE Ethernet 10/25Gb 2-port 640SFP28 Adapter | G117: 1 | H117: =VLOOKUP(N117,Tabella_prezzi!$A$3:$K$138,9,FALSE) -> L6N07-OpzGigabit25Gbps | I117: =VLOOKUP(N117,Tabella_prezzi!$A$3:$K$138,3,FALSE) -> OpzGigabit25Gbps | J117: =VLOOKUP(N117,Tabella_prezzi!$A$3:$K$138,4,FALSE) -> 669 | L117: L6N07B | M117: =VLOOKUP(L117,Tabella_prezzi!$A$3:$K$138,6,FALSE) -> TS3L6-LAN25N | N117: L6N07 | O117: =VLOOKUP(N117,Tabella_prezzi!$A$3:$K$138,6,FALSE) -> TS3L6-LAN25
A118: [TS3L6-CNA10] HPE StoreFabric CN1300R 10/25Gb Dual Port Converged Network Adapter | D118: =VLOOKUP(N118,Tabella_prezzi!$A$3:$K$138,8,FALSE) -> HPE StoreFabric CN1300R 10/25Gb Dual Port Converged Network Adapter | G118: 1 | H118: =VLOOKUP(N118,Tabella_prezzi!$A$3:$K$138,9,FALSE) -> L6N08-OpzCNA10Gbps | I118: =VLOOKUP(N118,Tabella_prezzi!$A$3:$K$138,3,FALSE) -> OpzGigabit10Gbps CNA | J118: =VLOOKUP(N118,Tabella_prezzi!$A$3:$K$138,4,FALSE) -> 402 | L118: L6N08B | M118: =VLOOKUP(L118,Tabella_prezzi!$A$3:$K$138,6,FALSE) -> TS3L6-CNA10N | N118: L6N08 | O118: =VLOOKUP(N118,Tabella_prezzi!$A$3:$K$138,6,FALSE) -> TS3L6-CNA10
A119: [TS3L6-FC16] HPE StoreFabric SN1100Q 16Gb Dual Port Fibre Channel Host Bus Adapter | D119: =VLOOKUP(N119,Tabella_prezzi!$A$3:$K$138,8,FALSE) -> HPE StoreFabric SN1100Q 16Gb Dual Port Fibre Channel Host Bus Adapter | G119: 1 | H119: =VLOOKUP(N119,Tabella_prezzi!$A$3:$K$138,9,FALSE) -> L6N09-OpzFibreChannel | I119: =VLOOKUP(N119,Tabella_prezzi!$A$3:$K$138,3,FALSE) -> OpzFibreChannel | J119: =VLOOKUP(N119,Tabella_prezzi!$A$3:$K$138,4,FALSE) -> 325 | L119: L6N09B | M119: =VLOOKUP(L119,Tabella_prezzi!$A$3:$K$138,6,FALSE) -> TS3L6-FC16N | N119: L6N09 | O119: =VLOOKUP(N119,Tabella_prezzi!$A$3:$K$138,6,FALSE) -> TS3L6-FC16
A120: -=-=-=-=-=-=-=-=-=-=-=-=-=-=-=-=-20%-=-=-=-=-=-=-=-=-=-=-=-=-=-=-=-=-
A121: [TS3L6-CTRL-P] HPE Smart Array Controller PCIe per Software Defined Storage | D121: =VLOOKUP(N121,Tabella_prezzi!$A$3:$K$138,8,FALSE) -> HPE Smart Array Controller PCIe per Software Defined Storage | G121: 1 | H121: =VLOOKUP(N121,Tabella_prezzi!$A$3:$K$138,9,FALSE) -> TS3-OpzA20CTRLP | I121: =VLOOKUP(N121,Tabella_prezzi!$A$3:$K$138,3,FALSE) -> 0 | K121: =VLOOKUP(N121,Tabella_prezzi!$A$3:$K$138,4,FALSE) -> 196 | L121: L6N57B | M121: =VLOOKUP(L121,Tabella_prezzi!$A$3:$K$138,6,FALSE) -> TS3L6-CTRL-PN | N121: L6N57 | O121: =VLOOKUP(N121,Tabella_prezzi!$A$3:$K$138,6,FALSE) -> TS3L6-CTRL-P
A122: [TS3L6-CTRL-E] HPE Smart Array Controller PCIe per Disk Enclosure esterno | D122: =VLOOKUP(N122,Tabella_prezzi!$A$3:$K$138,8,FALSE) -> HPE Smart Array Controller PCIe per Disk Enclosure esterno | G122: 1 | H122: =VLOOKUP(N122,Tabella_prezzi!$A$3:$K$138,9,FALSE) -> TS3-OpzA20CTRLE | I122: =VLOOKUP(N122,Tabella_prezzi!$A$3:$K$138,3,FALSE) -> 0 | K122: =VLOOKUP(N122,Tabella_prezzi!$A$3:$K$138,4,FALSE) -> 235 | L122: L6N52B | M122: =VLOOKUP(L122,Tabella_prezzi!$A$3:$K$138,6,FALSE) -> TS3L6-CTRL-EN | N122: L6N52 | O122: =VLOOKUP(N122,Tabella_prezzi!$A$3:$K$138,6,FALSE) -> TS3L6-CTRL-E
A123: [TS3L6-CTRL-OS] HPE Controller PCIe OS Boot Device Raid1 2x480GB NVMe M.2 SSD | D123: =VLOOKUP(N123,Tabella_prezzi!$A$3:$K$138,8,FALSE) -> HPE Controller PCIe OS Boot Device Raid1 2x480GB NVMe M.2 SSD | G123: 1 | H123: =VLOOKUP(N123,Tabella_prezzi!$A$3:$K$138,9,FALSE) -> TS3-OpzA20CTRLOS | I123: =VLOOKUP(N123,Tabella_prezzi!$A$3:$K$138,3,FALSE) -> 0 | K123: =VLOOKUP(N123,Tabella_prezzi!$A$3:$K$138,4,FALSE) -> 484 | L123: L6N51B | M123: =VLOOKUP(L123,Tabella_prezzi!$A$3:$K$138,6,FALSE) -> TS3L6-CTRL-OSN | N123: L6N51 | O123: =VLOOKUP(N123,Tabella_prezzi!$A$3:$K$138,6,FALSE) -> TS3L6-CTRL-OS
A124: [TS3L6-LAN10T] HPE Ethernet 10Gb 2-port BASE-T BCM57416 Adapter | D124: =VLOOKUP(N124,Tabella_prezzi!$A$3:$K$138,8,FALSE) -> HPE Ethernet 10Gb 2-port BASE-T BCM57416 Adapter | G124: 1 | H124: =VLOOKUP(N124,Tabella_prezzi!$A$3:$K$138,9,FALSE) -> TS3-OpzA2010GBT | I124: =VLOOKUP(N124,Tabella_prezzi!$A$3:$K$138,3,FALSE) -> 0 | K124: =VLOOKUP(N124,Tabella_prezzi!$A$3:$K$138,4,FALSE) -> 298 | L124: L6N64B | M124: =VLOOKUP(L124,Tabella_prezzi!$A$3:$K$301,6,FALSE) -> TS3L6-LAN10T | N124: L6N64 | O124: =VLOOKUP(N124,Tabella_prezzi!$A$3:$K$138,6,FALSE) -> TS3L6-LAN10T
A125: [TS3L6-X710SFP] HPE Ethernet 10Gb 2-port SFP+ X710-DA2 Adapter | D125: HPE Ethernet 10Gb 2-port SFP+ X710-DA2 Adapter | G125: 1 | H125: =VLOOKUP(N125,Tabella_prezzi!$A$3:$K$138,9,FALSE) -> TS3-OpzX710SFP | I125: =VLOOKUP(N125,Tabella_prezzi!$A$3:$K$138,3,FALSE) -> 0 | K125: =VLOOKUP(N125,Tabella_prezzi!$A$3:$K$138,4,FALSE) -> 380 | L125: L6N63B | M125: =VLOOKUP(L125,Tabella_prezzi!$A$3:$K$301,6,FALSE) -> TS3L6-X710SFPN | N125: L6N63 | O125: =VLOOKUP(N125,Tabella_prezzi!$A$3:$K$138,6,FALSE) -> TS3L6-X710SFP
A126: [TS3L6-TESLAT4] HPE NVIDIA Tesla T4 16GB Module | D126: =VLOOKUP(N126,Tabella_prezzi!$A$3:$K$138,8,FALSE) -> HPE NVIDIA Tesla T4 16GB Module | G126: 1 | H126: =VLOOKUP(N126,Tabella_prezzi!$A$3:$K$138,9,FALSE) -> TS3-OpzA20HPET4 | I126: =VLOOKUP(N126,Tabella_prezzi!$A$3:$K$138,3,FALSE) -> 0 | K126: =VLOOKUP(N126,Tabella_prezzi!$A$3:$K$138,4,FALSE) -> 2542 | L126: L6N54B | M126: =VLOOKUP(L126,Tabella_prezzi!$A$3:$K$138,6,FALSE) -> TS3L6-TESLAT4N | N126: L6N54 | O126: =VLOOKUP(N126,Tabella_prezzi!$A$3:$K$138,6,FALSE) -> TS3L6-TESLAT4
A127: [TS3L6-OP101] HPE 100Gb 1-port OP101 QSFP28 x16 PCIe Gen3 Intel Omni-Path Architecture | D127: =VLOOKUP(N127,Tabella_prezzi!$A$3:$K$138,8,FALSE) -> HPE 100Gb 1-port OP101 QSFP28 x16 PCIe Gen3 with Intel Omni-Path Architecture Adapter | G127: 1 | H127: =VLOOKUP(N127,Tabella_prezzi!$A$3:$K$138,9,FALSE) -> TS3-OpzA20OP101 | I127: =VLOOKUP(N127,Tabella_prezzi!$A$3:$K$138,3,FALSE) -> 0 | K127: =VLOOKUP(N127,Tabella_prezzi!$A$3:$K$138,4,FALSE) -> 498 | L127: L6N37B | M127: =VLOOKUP(L127,Tabella_prezzi!$A$3:$K$138,6,FALSE) -> TS3L6-OP101N | N127: L6N37 | O127: =VLOOKUP(N127,Tabella_prezzi!$A$3:$K$138,6,FALSE) -> TS3L6-OP101
A128: [TS3L6-P2200] NVIDIA Quadro P2200 GPU Module for HPE | D128: =VLOOKUP(N128,Tabella_prezzi!$A$3:$K$138,8,FALSE) -> NVIDIA Quadro P2200 GPU Module for HPE | G128: 1 | H128: =VLOOKUP(N128,Tabella_prezzi!$A$3:$K$138,9,FALSE) -> TS3-OpzA20P2200 | I128: =VLOOKUP(N128,Tabella_prezzi!$A$3:$K$138,3,FALSE) -> 0 | K128: =VLOOKUP(N128,Tabella_prezzi!$A$3:$K$138,4,FALSE) -> 590 | L128: L6N55B | M128: =VLOOKUP(L128,Tabella_prezzi!$A$3:$K$138,6,FALSE) -> TS3L6-P2200N | N128: L6N55 | O128: =VLOOKUP(N128,Tabella_prezzi!$A$3:$K$138,6,FALSE) -> TS3L6-P2200
A129: =CONCATENATE("[",C129,"] ",D129) -> []
A130: OmniPath Cable
A131: HPE 3M 100Gb QSFP28 Omni-Path Optical Power Class 2 Cable | D131: =VLOOKUP(N131,Tabella_prezzi!$A$3:$K$138,8,FALSE) -> HPE 3M 100Gb QSFP28 Omni-Path Optical Power Class 2 Cable | G131: 1 | H131: =VLOOKUP(N131,Tabella_prezzi!$A$3:$K$138,9,FALSE) -> TS3-OpzA20O3M | I131: =VLOOKUP(N131,Tabella_prezzi!$A$3:$K$138,3,FALSE) -> 0 | K131: =VLOOKUP(N131,Tabella_prezzi!$A$3:$K$138,4,FALSE) -> 445 | L131: L6N38B | M131: =VLOOKUP(L131,Tabella_prezzi!$A$3:$K$138,6,FALSE) -> TS3L6-DACAOCM3N | N131: L6N38 | O131: =VLOOKUP(N131,Tabella_prezzi!$A$3:$K$138,6,FALSE) -> TS3L6-DACAOCM3
A132: HPE 5M 100Gb QSFP28 Omni-Path Optical Power Class 2 Cable | D132: =VLOOKUP(N132,Tabella_prezzi!$A$3:$K$138,8,FALSE) -> HPE 5M 100Gb QSFP28 Omni-Path Optical Power Class 2 Cable | G132: 1 | H132: =VLOOKUP(N132,Tabella_prezzi!$A$3:$K$138,9,FALSE) -> TS3-OpzA20O5M | I132: =VLOOKUP(N132,Tabella_prezzi!$A$3:$K$138,3,FALSE) -> 0 | K132: =VLOOKUP(N132,Tabella_prezzi!$A$3:$K$138,4,FALSE) -> 495 | L132: L6N39B | M132: =VLOOKUP(L132,Tabella_prezzi!$A$3:$K$138,6,FALSE) -> TS3L6-DACAOCM5N | N132: L6N39 | O132: =VLOOKUP(N132,Tabella_prezzi!$A$3:$K$138,6,FALSE) -> TS3L6-DACAOCM5
A133: HPE 7M 100Gb QSFP28 Omni-Path Optical Power Class 2 Cable | D133: =VLOOKUP(N133,Tabella_prezzi!$A$3:$K$138,8,FALSE) -> HPE 7M 100Gb QSFP28 Omni-Path Optical Power Class 2 Cable | G133: 1 | H133: =VLOOKUP(N133,Tabella_prezzi!$A$3:$K$138,9,FALSE) -> TS3-OpzA20O7M | I133: =VLOOKUP(N133,Tabella_prezzi!$A$3:$K$138,3,FALSE) -> 0 | K133: =VLOOKUP(N133,Tabella_prezzi!$A$3:$K$138,4,FALSE) -> 545 | L133: L6N40B | M133: =VLOOKUP(L133,Tabella_prezzi!$A$3:$K$138,6,FALSE) -> TS3L6-DACAOCM7N | N133: L6N40 | O133: =VLOOKUP(N133,Tabella_prezzi!$A$3:$K$138,6,FALSE) -> TS3L6-DACAOCM7
A135: HD_BAY
A136: Standard | G136: ="" ->  | I136: ="" ->  | K136: 0 | L136: ="" ->  | M136: ="" ->  | N136: ="" ->  | O136: ="" -> 
A137: [TS3L6-SASBAY1] HPE DL560 Gen10 8SFF HDD Bay1 Kit | D137: =VLOOKUP(N137,Tabella_prezzi!$A$3:$K$138,8,FALSE) -> Kit per ulteriori 8 HDD (HPE DL560 Gen10 8SFF HDD Bay1) comprensivo di SAS Expander | G137: 1 | H137: =VLOOKUP(N137,Tabella_prezzi!$A$3:$K$138,9,FALSE) -> TS3-OpzA20HBAY1 | I137: =VLOOKUP(N137,Tabella_prezzi!$A$3:$K$138,3,FALSE) -> 0 | K137: =VLOOKUP(N137,Tabella_prezzi!$A$3:$K$138,4,FALSE) -> 800 | L137: L6N49B | M137: =VLOOKUP(L137,Tabella_prezzi!$A$3:$K$138,6,FALSE) -> TS3L6-SASBAY1N | N137: L6N49 | O137: =VLOOKUP(N137,Tabella_prezzi!$A$3:$K$138,6,FALSE) -> TS3L6-SASBAY1
A139: BUNDLE PMEUPS3RTSER Comprensivo di UPS e scheda SNMP + Kit Rack incluso | D139: =VLOOKUP(N139,Tabella_prezzi!$A$3:$K$138,8,FALSE) -> BUNDLE PMEUPS3RTSER Comprensivo di UPS e scheda SNMP | G139: 1 | H139: =VLOOKUP(N139,Tabella_prezzi!$A$3:$K$138,9,FALSE) -> L6N20-OpzUps | I139: =VLOOKUP(N139,Tabella_prezzi!$A$3:$K$138,3,FALSE) -> OpzUps (3000VA) | J139: =VLOOKUP(N139,Tabella_prezzi!$A$3:$K$138,4,FALSE) -> 312 | L139: L6N20b | M139: =VLOOKUP(L139,Tabella_prezzi!$A$3:$K$138,6,FALSE) -> TS3L6-UPSN | N139: L6N20 | O139: =VLOOKUP(N139,Tabella_prezzi!$A$3:$K$138,6,FALSE) -> TS3L6-UPS
A140: Unità KVM - monitor 17", cavo combi PS2 e USB da 1,8mt, tastiera ita, touch pad | D140: =VLOOKUP(N140,Tabella_prezzi!$A$3:$K$138,8,FALSE) -> Unità KVM - monitor 17", cavo combi PS/2&USB da 1,8mt, tastiera italiana, touch pad | G140: 1 | H140: =VLOOKUP(N140,Tabella_prezzi!$A$3:$K$138,9,FALSE) -> L6N21-OpzGUI | I140: =VLOOKUP(N140,Tabella_prezzi!$A$3:$K$138,3,FALSE) -> OpzGUI | J140: =VLOOKUP(N140,Tabella_prezzi!$A$3:$K$138,4,FALSE) -> 443 | L140: L6N21b | M140: =VLOOKUP(L140,Tabella_prezzi!$A$3:$K$138,6,FALSE) -> TS3L6-GUIN | N140: L6N21 | O140: =VLOOKUP(N140,Tabella_prezzi!$A$3:$K$138,6,FALSE) -> TS3L6-GUI
A141: Switch 16 porte IP con relativi cavi combi PS/2 e USB inclusi | D141: =VLOOKUP(N141,Tabella_prezzi!$A$3:$K$138,8,FALSE) -> Switch 16 porte IP con relativi cavi combi PS/2&USB inclusi | G141: 1 | H141: =VLOOKUP(N141,Tabella_prezzi!$A$3:$K$138,9,FALSE) -> L6N22-OpzKVM | I141: =VLOOKUP(N141,Tabella_prezzi!$A$3:$K$138,3,FALSE) -> OpzKVM | J141: =VLOOKUP(N141,Tabella_prezzi!$A$3:$K$138,4,FALSE) -> 511 | L141: L6N22b | M141: =VLOOKUP(L141,Tabella_prezzi!$A$3:$K$138,6,FALSE) -> TS3L6-SWKVMN | N141: L6N22 | O141: =VLOOKUP(N141,Tabella_prezzi!$A$3:$K$138,6,FALSE) -> TS3L6-SWKVM
A142: 1-pack of Windows Server 2019/2016 Device CALs (STD or DC) | D142: =VLOOKUP(N142,Tabella_prezzi!$A$3:$K$138,8,FALSE) -> 1-pack of Windows Server 2019/2016 Device CALs (STD or DC) Cus Kit | G142: 1 | H142: =VLOOKUP(N142,Tabella_prezzi!$A$3:$K$138,9,FALSE) -> L6N24-OpzDeviceCal | I142: =VLOOKUP(N142,Tabella_prezzi!$A$3:$K$138,3,FALSE) -> OpzDeviceCal | J142: =VLOOKUP(N142,Tabella_prezzi!$A$3:$K$138,4,FALSE) -> 21 | L142: L6N24b | M142: =VLOOKUP(L142,Tabella_prezzi!$A$3:$K$138,6,FALSE) -> TS3L6-WINDVCALN | N142: L6N24 | O142: =VLOOKUP(N142,Tabella_prezzi!$A$3:$K$138,6,FALSE) -> TS3L6-WINDVCAL
A143: 1-pack of Windows Server 2019/2016 User CALs (STD or DC) | D143: =VLOOKUP(N143,Tabella_prezzi!$A$3:$K$138,8,FALSE) -> 1-pack of Windows Server 2019/2016 User CALs (STD or DC) Cus Kit | G143: 1 | H143: =VLOOKUP(N143,Tabella_prezzi!$A$3:$K$138,9,FALSE) -> L6N25-OpzUserCal | I143: =VLOOKUP(N143,Tabella_prezzi!$A$3:$K$138,3,FALSE) -> OpzUserCal | J143: =VLOOKUP(N143,Tabella_prezzi!$A$3:$K$138,4,FALSE) -> 21 | L143: L6N25b | M143: =VLOOKUP(L143,Tabella_prezzi!$A$3:$K$138,6,FALSE) -> TS3L6-WINUSCALN | N143: L6N25 | O143: =VLOOKUP(N143,Tabella_prezzi!$A$3:$K$138,6,FALSE) -> TS3L6-WINUSCAL
A144: Rack 42U con portata 1000 KG e 4 ruote + coppia PDU 12 prese Shuko bipasso ITA | D144: =VLOOKUP(N144,Tabella_prezzi!$A$3:$K$138,8,FALSE) -> Armadio Rack 42U | G144: 1 | H144: =VLOOKUP(N144,Tabella_prezzi!$A$3:$K$138,9,FALSE) -> L6N32-OpzRack | I144: =VLOOKUP(N144,Tabella_prezzi!$A$3:$K$138,3,FALSE) -> OpzRack | J144: =VLOOKUP(N144,Tabella_prezzi!$A$3:$K$138,4,FALSE) -> 511 | L144: L6N32b | M144: =VLOOKUP(L144,Tabella_prezzi!$A$3:$K$138,6,FALSE) -> TS3L6-RACKN | N144: L6N32 | O144: =VLOOKUP(N144,Tabella_prezzi!$A$3:$K$138,6,FALSE) -> TS3L6-RACK
A145: VMware vSphere Essentials Plus Kit OEM for 3 hosts (Max 2 processors per host) 3 Years | D145: =VLOOKUP(N145,Tabella_prezzi!$A$3:$K$138,8,FALSE) -> VMware vSphere Essentials Plus Kit OEM for 3 hosts (Max 2 processors per host) 3 Years | G145: 1 | H145: =VLOOKUP(N145,Tabella_prezzi!$A$3:$K$138,9,FALSE) -> TS3-OpzA20ESPK3 | I145: =VLOOKUP(N145,Tabella_prezzi!$A$3:$K$138,3,FALSE) -> 0 | K145: =VLOOKUP(N145,Tabella_prezzi!$A$3:$K$138,4,FALSE) -> 5620 | L145: L6N36b | M145: =VLOOKUP(L145,Tabella_prezzi!$A$3:$K$138,6,FALSE) -> TS3L6-VS7ESPK3N | N145: L6N36 | O145: =VLOOKUP(N145,Tabella_prezzi!$A$3:$K$138,6,FALSE) -> TS3L6-VS7ESPK3
A146: Upgrade: VMware vSphere Essentials plus Kit OEM to vSphere Standard Acceleration Kit OEM for 6 processors 3 Years E-LTU | D146: =VLOOKUP(N146,Tabella_prezzi!$A$3:$K$138,8,FALSE) -> Upgrade: VMware vSphere Essentials plus Kit OEM to vSphere Standard Acceleration Kit OEM for 6 processors 3 Years E-LTU | G146: 1 | H146: =VLOOKUP(N146,Tabella_prezzi!$A$3:$K$138,9,FALSE) -> TS3-OpzA20HVMW1 | I146: =VLOOKUP(N146,Tabella_prezzi!$A$3:$K$138,3,FALSE) -> 0 | K146: =VLOOKUP(N146,Tabella_prezzi!$A$3:$K$138,4,FALSE) -> 14628 | L146: L6N41b | M146: =VLOOKUP(L146,Tabella_prezzi!$A$3:$K$138,6,FALSE) -> TS3L6-ESPSTDAKN | N146: L6N41 | O146: =VLOOKUP(N146,Tabella_prezzi!$A$3:$K$138,6,FALSE) -> TS3L6-ESPSTDAK
A147: VMware vCenter Server Standard OEM for vSphere 3 Years E-LTU | D147: =VLOOKUP(N147,Tabella_prezzi!$A$3:$K$138,8,FALSE) -> VMware vCenter Server Standard OEM for vSphere 3 Years E-LTU | G147: 1 | H147: =VLOOKUP(N147,Tabella_prezzi!$A$3:$K$138,9,FALSE) -> TS3-OpzA20HVMW2 | I147: =VLOOKUP(N147,Tabella_prezzi!$A$3:$K$138,3,FALSE) -> 0 | K147: =VLOOKUP(N147,Tabella_prezzi!$A$3:$K$138,4,FALSE) -> 8372 | L147: L6N42b | M147: =VLOOKUP(L147,Tabella_prezzi!$A$3:$K$138,6,FALSE) -> TS3L6-VCS7STDN | N147: L6N42 | O147: =VLOOKUP(N147,Tabella_prezzi!$A$3:$K$138,6,FALSE) -> TS3L6-VCS7STD
A148: VMware vSphere Enterprise Plus OEM for 1 processor 3 Years E-LTU | D148: =VLOOKUP(N148,Tabella_prezzi!$A$3:$K$138,8,FALSE) -> VMware vSphere Enterprise Plus OEM for 1 processor 3 Years E-LTU | G148: 1 | H148: =VLOOKUP(N148,Tabella_prezzi!$A$3:$K$138,9,FALSE) -> TS3-OpzA20HVMW3 | I148: =VLOOKUP(N148,Tabella_prezzi!$A$3:$K$138,3,FALSE) -> 0 | K148: =VLOOKUP(N148,Tabella_prezzi!$A$3:$K$138,4,FALSE) -> 4872 | L148: L6N43b | M148: =VLOOKUP(L148,Tabella_prezzi!$A$3:$K$138,6,FALSE) -> TS3L6-VS7EPLN | N148: L6N43 | O148: =VLOOKUP(N148,Tabella_prezzi!$A$3:$K$138,6,FALSE) -> TS3L6-VS7EPL
A149: VMware vSphere Standard OEM for 1 processor 3 Years E-LTU | D149: =VLOOKUP(N149,Tabella_prezzi!$A$3:$K$138,8,FALSE) -> VMware vSphere Standard OEM for 1 processor 3 Years E-LTU | G149: 1 | H149: =VLOOKUP(N149,Tabella_prezzi!$A$3:$K$138,9,FALSE) -> TS3-OpzA20HVMW4 | I149: =VLOOKUP(N149,Tabella_prezzi!$A$3:$K$138,3,FALSE) -> 0 | K149: =VLOOKUP(N149,Tabella_prezzi!$A$3:$K$138,4,FALSE) -> 1558 | L149: L6N44b | M149: =VLOOKUP(L149,Tabella_prezzi!$A$3:$K$138,6,FALSE) -> TS3L6-VS7STDN | N149: L6N44 | O149: =VLOOKUP(N149,Tabella_prezzi!$A$3:$K$138,6,FALSE) -> TS3L6-VS7STD
A150: VMware vSAN Standard OEM for 1 processor 3 Years E-LTU | D150: =VLOOKUP(N150,Tabella_prezzi!$A$3:$K$138,8,FALSE) -> VMware vSAN Standard OEM for 1 processor 3 Years E-LTU | G150: 1 | H150: =VLOOKUP(N150,Tabella_prezzi!$A$3:$K$138,9,FALSE) -> TS3-OpzA20HVMW5 | I150: =VLOOKUP(N150,Tabella_prezzi!$A$3:$K$138,3,FALSE) -> 0 | K150: =VLOOKUP(N150,Tabella_prezzi!$A$3:$K$138,4,FALSE) -> 3478 | L150: L6N45b | M150: =VLOOKUP(L150,Tabella_prezzi!$A$3:$K$138,6,FALSE) -> TS3L6-ST7STDN | N150: L6N45 | O150: =VLOOKUP(N150,Tabella_prezzi!$A$3:$K$138,6,FALSE) -> TS3L6-ST7STD
A151: VMware vSAN Advanced OEM for 1 processor 3 Years E-LTU | D151: =VLOOKUP(N151,Tabella_prezzi!$A$3:$K$138,8,FALSE) -> VMware vSAN Advanced OEM for 1 processor 3 Years E-LTU | G151: 1 | H151: =VLOOKUP(N151,Tabella_prezzi!$A$3:$K$138,9,FALSE) -> TS3-OpzA20HVMW6 | I151: =VLOOKUP(N151,Tabella_prezzi!$A$3:$K$138,3,FALSE) -> 0 | K151: =VLOOKUP(N151,Tabella_prezzi!$A$3:$K$138,4,FALSE) -> 5579 | L151: L6N46b | M151: =VLOOKUP(L151,Tabella_prezzi!$A$3:$K$138,6,FALSE) -> TS3L6-ST7ADVN | N151: L6N46 | O151: =VLOOKUP(N151,Tabella_prezzi!$A$3:$K$138,6,FALSE) -> TS3L6-ST7ADV
A152: Armadio Rack HPE 42U 600x1200, comprensivo di 2 PDU Monofase 7.3kVA con 36 connettori C13 e 12 connettori C19 collegamento spina industriale 32A IEC-60309 3 poli (2P+T) | D152: =VLOOKUP(N152,Tabella_prezzi!$A$3:$K$138,8,FALSE) -> Armadio Rack HPE 42U 600x1200, comprensivo di 2 PDU Monofase 7.3kVA con 36 connettori C13 e 12 connettori C19 collegamento spina industriale 32A IEC-60309 3 poli (2P+T) | G152: 1 | H152: =VLOOKUP(N152,Tabella_prezzi!$A$3:$K$138,9,FALSE) -> TS3-OpzA20RMONO | I152: =VLOOKUP(N152,Tabella_prezzi!$A$3:$K$138,3,FALSE) -> 0 | K152: =VLOOKUP(N152,Tabella_prezzi!$A$3:$K$138,4,FALSE) -> 2200 | L152: L6N47b | M152: =VLOOKUP(L152,Tabella_prezzi!$A$3:$K$138,6,FALSE) -> TS3L6-RACKMONON | N152: L6N47 | O152: =VLOOKUP(N152,Tabella_prezzi!$A$3:$K$138,6,FALSE) -> TS3L6-RACKMONO
A153: Armadio Rack HPE 42U 600x1200, comprensivo di 2 PDU Trifase 22kVA con 36 connettori C13 e 12 connettori C19 collegamento spina industriale 32A IEC-60309 5 poli (3P+N+T) | D153: =VLOOKUP(N153,Tabella_prezzi!$A$3:$K$138,8,FALSE) -> Armadio Rack HPE 42U 600x1200, comprensivo di 2 PDU Trifase 22kVA con 36 connettori C13 e 12 connettori C19 collegamento spina industriale 32A IEC-60309 5 poli (3P+N+T) | G153: 1 | H153: =VLOOKUP(N153,Tabella_prezzi!$A$3:$K$138,9,FALSE) -> TS3-OpzA20R3PH | I153: =VLOOKUP(N153,Tabella_prezzi!$A$3:$K$138,3,FALSE) -> 0 | K153: =VLOOKUP(N153,Tabella_prezzi!$A$3:$K$138,4,FALSE) -> 2539 | L153: L6N48b | M153: =VLOOKUP(L153,Tabella_prezzi!$A$3:$K$138,6,FALSE) -> TS3L6-RACK3PHN | N153: L6N48 | O153: =VLOOKUP(N153,Tabella_prezzi!$A$3:$K$138,6,FALSE) -> TS3L6-RACK3PH
A154: HPE D3610 Enclosure, 12 x HDD 14TB SAS 7.2K LFF, 5Years 24x7 | D154: =VLOOKUP(N154,Tabella_prezzi!$A$3:$K$138,8,FALSE) -> HPE D3610 Enclosure, 12 x HDD 14TB SAS 7.2K LFF, 5Years 24x7 | G154: 1 | H154: =VLOOKUP(N154,Tabella_prezzi!$A$3:$K$138,9,FALSE) -> TS3-OpzA20E1524 | I154: =VLOOKUP(N154,Tabella_prezzi!$A$3:$K$138,3,FALSE) -> 0 | K154: =VLOOKUP(N154,Tabella_prezzi!$A$3:$K$138,4,FALSE) -> 15770 | L154: L6N53b | M154: =VLOOKUP(L154,Tabella_prezzi!$A$3:$K$138,6,FALSE) -> TS3L6-E15Y247N | N154: L6N53 | O154: =VLOOKUP(N154,Tabella_prezzi!$A$3:$K$138,6,FALSE) -> TS3L6-E15Y247
A155: Cavo DAC HPE 10GB SFP+ SFP+ 3 metri | D155: Cavo DAC HPE 10GB SFP+ SFP+ 3 metri | G155: 1 | H155: TS3-OpzX240M3 | I155: =VLOOKUP(N155,Tabella_prezzi!$A$3:$K$138,3,FALSE) -> 0 | K155: =VLOOKUP(N155,Tabella_prezzi!$A$3:$K$138,4,FALSE) -> 114 | L155: L6N58B | M155: =VLOOKUP(L155,Tabella_prezzi!$A$3:$K$138,6,FALSE) -> TS3L6-DAC10GB3MN | N155: L6N58 | O155: =VLOOKUP(N155,Tabella_prezzi!$A$3:$K$138,6,FALSE) -> TS3L6-DAC10GB3M
A156: HPE Premier Flex LC/LC OM4 2f 2m Cbl | D156: HPE Premier Flex LC/LC OM4 2f 2m Cbl | G156: 1 | H156: TS3-OpzOM4M2 | I156: =VLOOKUP(N156,Tabella_prezzi!$A$3:$K$138,3,FALSE) -> 0 | K156: =VLOOKUP(N156,Tabella_prezzi!$A$3:$K$138,4,FALSE) -> 72 | L156: L6N59B | M156: =VLOOKUP(L156,Tabella_prezzi!$A$3:$K$138,6,FALSE) -> TS3L6-OM4M2N | N156: L6N59 | O156: =VLOOKUP(N156,Tabella_prezzi!$A$3:$K$138,6,FALSE) -> TS3L6-OM4M2
A157: HPE 25Gb SFP28 to SFP28 3m DAC | D157: HPE 25Gb SFP28 to SFP28 3m DAC | G157: 1 | H157: TS3-Opz25GBM3 | I157: =VLOOKUP(N157,Tabella_prezzi!$A$3:$K$138,3,FALSE) -> 0 | K157: =VLOOKUP(N157,Tabella_prezzi!$A$3:$K$138,4,FALSE) -> 149 | L157: L6N60B | M157: =VLOOKUP(L157,Tabella_prezzi!$A$3:$K$138,6,FALSE) -> TS3L6-DAC25GBM3N | N157: L6N60 | O157: =VLOOKUP(N157,Tabella_prezzi!$A$3:$K$138,6,FALSE) -> TS3L6-DAC25GBM3
A158: HPE 10G SFP+ LR Transceiver | D158: HPE 10G SFP+ LR Transceiver | G158: 1 | H158: TS3-Opz10OTLR | I158: =VLOOKUP(N158,Tabella_prezzi!$A$3:$K$138,3,FALSE) -> 0 | K158: =VLOOKUP(N158,Tabella_prezzi!$A$3:$K$138,4,FALSE) -> 512 | L158: L6N61B | M158: =VLOOKUP(L158,Tabella_prezzi!$A$3:$K$138,6,FALSE) -> TS3L6-10OTLRN | N158: L6N61 | O158: =VLOOKUP(N158,Tabella_prezzi!$A$3:$K$138,6,FALSE) -> TS3L6-10OTLR
A159: HPE 10G SFP+ SR Transceiver | D159: HPE 10G SFP+ SR Transceiver | G159: 1 | H159: TS3-Opz10OTSR | I159: =VLOOKUP(N159,Tabella_prezzi!$A$3:$K$138,3,FALSE) -> 0 | K159: =VLOOKUP(N159,Tabella_prezzi!$A$3:$K$138,4,FALSE) -> 230 | L159: L6N62B | M159: =VLOOKUP(L159,Tabella_prezzi!$A$3:$K$308,6,FALSE) -> TS3L6-10OTSRN | N159: L6N62 | O159: =VLOOKUP(N159,Tabella_prezzi!$A$3:$K$138,6,FALSE) -> TS3L6-10OTSR
A162: HPE G2 R8000 UPS 230V Outlets (6) C19 (2) IEC 32A/6U Rackmount INTL | D162: HPE G2 R8000 UPS 230V Outlets (6) C19 (2) IEC 32A/6U Rackmount INTL | G162: 1 | H162: TS3L6-UPSR8000 | I162: =VLOOKUP(N162,Tabella_prezzi!$A$3:$K$180,3,FALSE) -> 0 | K162: =VLOOKUP(N162,Tabella_prezzi!$A$3:$K$180,4,FALSE) -> 3200 | L162: L6N66B | M162: =VLOOKUP(L162,Tabella_prezzi!$A$3:$K$308,6,FALSE) -> TS3L6-UPSR8000N | N162: L6N66 | O162: =VLOOKUP(N162,Tabella_prezzi!$A$3:$K$180,6,FALSE) -> TS3L6-UPSR8000
A166: HPE Smart Array P816i-a SR G10 | G166: ="" ->  | I166: ="" ->  | K166: 0 | L166: ="" ->  | M166: ="" ->  | N166: ="" ->  | O166: ="" -> 
A167: HPE Smart Array Controller SDS | D167: =VLOOKUP(N167,Tabella_prezzi!$A$3:$K$138,8,FALSE) -> HPE Smart Array Controller per Software Defined Storage in sostituzione del Controller in configurazione BASE | G167: 1 | H167: =VLOOKUP(N167,Tabella_prezzi!$A$3:$K$138,9,FALSE) -> TS3-OpzA20CTRLA | I167: =VLOOKUP(N167,Tabella_prezzi!$A$3:$K$138,3,FALSE) -> 0 | K167: =VLOOKUP(N167,Tabella_prezzi!$A$3:$K$138,4,FALSE) -> 124 | L167: L6N56B | M167: =VLOOKUP(L167,Tabella_prezzi!$A$3:$K$308,6,FALSE) -> TS3L6-CTRL-AN | N167: L6N56 | O167: =VLOOKUP(N167,Tabella_prezzi!$A$3:$K$138,6,FALSE) -> TS3L6-CTRL-A
A172: None | G172: ="" ->  | I172: ="" ->  | K172: 0 | L172: ="" ->  | M172: ="" ->  | N172: ="" ->  | O172: ="" -> 
A173: HPE 480GB SATA RI M.2 | D173: =VLOOKUP(N173,Tabella_prezzi!$A$3:$K$138,8,FALSE) -> HPE 480GB SATA RI M.2 2280 5300P SSD | G173: 1 | H173: =VLOOKUP(N173,Tabella_prezzi!$A$3:$K$138,9,FALSE) -> TS3-OpzM2480GB | I173: =VLOOKUP(N173,Tabella_prezzi!$A$3:$K$138,3,FALSE) -> 0 | K173: =VLOOKUP(N173,Tabella_prezzi!$A$3:$K$138,4,FALSE) -> 292 | L173: L6N65B | M173: =VLOOKUP(L173,Tabella_prezzi!$A$3:$K$308,6,FALSE) -> TS3L6-M2480GBN | N173: L6N65 | O173: =VLOOKUP(N173,Tabella_prezzi!$A$3:$K$138,6,FALSE) -> TS3L6-M2480GB

Sheet Tabella_prezzi (hidden)
A2: N° | C2: Attributo | D2: Valore inserito | E2: N° | F2: Codice Convenzione | G2: Qty: | H2: Description: | I2: Manufacturer Part | J2: Sku Number: | K2: Brand
A3: L6N01 | B3: 1 | C3: Server rackable quad-processore prest. | D3: 5912 | E3: L6N01 | F3: TS3L6-SRV | G3: 1 | H3: Proliant DL560 Gen10 | I3: L6N01-ServerDL560 | J3: - | K3: HPE
A4: L6N02 | B4: 2 | C4: Kit n. 2 Processori aggiuntivi | D4: 2475 | E4: L6N02 | F4: TS3L6-CPU | G4: 2 | H4: Intel Xeon-Gold 6252N (2.3GHz/24-core/150W) Processor Kit for HPE ProLiant DL560 Gen10 | I4: L6N02-OpzCPU | J4: P02960-B21 | K4: HPE
G5: 1 | H5: HPE DL5x0 Gen10 CPU Version 2 Mezzanine Board Kit | J5: P07991-B21 | K5: HPE
A6: L6N03 | B6: 3 | C6: OpzRAM32GB | D6: 184 | E6: L6N03 | F6: TS3L6-RAM32 | G6: 1 | H6: HPE 32GB (1x32GB) Dual Rank x4 DDR4-2933 CAS-21-21-21 Registered Smart Memory Kit | I6: L6N03-OpzRAM32GB | J6: P00924-B21 | K6: HPE
A7: L6N04 | B7: 4 | C7: OpzRAM64GB | D7: 589 | E7: L6N04 | F7: TS3L6-RAM64 | G7: 1 | H7: HPE 64GB (1x64GB) Dual Rank x4 DDR4-2933 CAS-21-21-21 Registered Smart Memory Kit | I7: L6N04-OpzRAM64GB | J7: P00930-B21 | K7: HPE
A8: L6N05 | B8: 5 | C8: OpzGigabit | D8: 25 | E8: L6N05 | F8: TS3L6-LAN1 | G8: 1 | H8: HPE Ethernet 1Gb 2-port 332T Adapter | I8: L6N05-OpzGigabit | J8: 615732-B21 | K8: HPE
A9: L6N06 | B9: 6 | C9: OpzGigabit10Gbps | D9: 218 | E9: L6N06 | F9: TS3L6-LAN10 | G9: 1 | H9: HPE Ethernet 10Gb 2-port 548SFP+ Adapter | I9: L6N06-OpzGigabit10Gbps | J9: P11338-B21 | K9: HPE
G10: 2 | H10: HPE BladeSystem c-Class 10Gb SFP+ SR Transceiver | J10: 455883-B21 | K10: HPE
A11: L6N07 | B11: 7 | C11: OpzGigabit25Gbps | D11: 669 | E11: L6N07 | F11: TS3L6-LAN25 | G11: 1 | H11: HPE Ethernet 10/25Gb 2-port 640SFP28 Adapter | I11: L6N07-OpzGigabit25Gbps | J11: 817753-B21 | K11: HPE
G12: 2 | H12: HPE 25Gb SFP28 SR 100m Transceiver | J12: 845398-B21 | K12: HPE
A13: L6N08 | B13: 8 | C13: OpzGigabit10Gbps CNA | D13: 402 | E13: L6N08 | F13: TS3L6-CNA10 | G13: 1 | H13: HPE StoreFabric CN1300R 10/25Gb Dual Port Converged Network Adapter | I13: L6N08-OpzCNA10Gbps | J13: Q0F09A | K13: HPE
G14: 2 | H14: HPE BladeSystem c-Class 10Gb SFP+ SR Transceiver | J14: 455883-B21 | K14: HPE
A15: L6N09 | B15: 9 | C15: OpzFibreChannel | D15: 325 | E15: L6N09 | F15: TS3L6-FC16 | G15: 1 | H15: HPE StoreFabric SN1100Q 16Gb Dual Port Fibre Channel Host Bus Adapter | I15: L6N09-OpzFibreChannel | J15: P9D94A | K15: HPE
A16: L6N10 | B16: 10 | C16: OpzHDD2TB | D16: 189 | E16: L6N10 | F16: TS3L6-HDD2TB | G16: 1 | H16: HPE 1.8TB SAS 12G Enterprise 10K SFF (2.5in) SC 3yr Wty 512e Digitally Signed Firmware HDD | I16: L6N10-OpzHDD2TB | J16: 872481-B21 | K16: HPE
A17: L6N11 | B17: 11 | C17: OpzHDD1TB | D17: 136 | E17: L6N11 | F17: TS3L6-HDD1TB | G17: 1 | H17: HPE 1.2TB SAS 12G Enterprise 10K SFF (2.5in) SC 3yr Wty Digitally Signed Firmware HDD | I17: L6N11-OpzHDD1TB | J17: 872479-B21 | K17: HPE
A18: L6N12 | B18: 12 | C18: OpzHDD300GB | D18: 87 | E18: L6N12 | F18: TS3L6-HDD300GB | G18: 1 | H18: HPE 300GB SAS 12G Enterprise 10K SFF (2.5in) SC 3yr Wty Digitally Signed Firmware HDD | I18: L6N12-OpzHDD300GB | J18: 872475-B21 | K18: HPE
A19: L6N13 | B19: 13 | C19: OpzSSD-RI1,6TB | D19: 714 | E19: L6N13 | F19: TS3L6-RI1600GB | G19: 1 | H19: HPE 1.92TB SAS 12G Read Intensive SFF (2.5in) SC 3yr Wty Value SAS Digitally Signed Firmware SSD | I19: L6N13-OpzSSD-RI1,6TB | J19: P10442-B21 | K19: HPE
A20: L6N14 | B20: 14 | C20: OpzSSD-MU1,6TB | D20: 878 | E20: L6N14 | F20: TS3L6-MU1600GB | G20: 1 | H20: HPE 1.6TB SAS 12G Mixed Use SFF (2.5in) SC 3yr Wty SSD | I20: L6N14-OpzSSD-MU1,6TB | J20: P19915-B21 | K20: HPE
A21: L6N15 | B21: 15 | C21: OpzSSD-RI800GB | D21: 461 | E21: L6N15 | F21: TS3L6-RI800GB | G21: 1 | H21: HPE 960GB SAS 12G Read Intensive SFF (2.5in) SC 3yr Wty Value SAS Digitally Signed Firmware SSD | I21: L6N15-OpzSSD-RI800GB | J21: P10440-B21 | K21: HPE
A22: L6N16 | B22: 16 | C22: OpzSSD-MU800GB | D22: 576 | E22: L6N16 | F22: TS3L6-MU800GB | G22: 1 | H22: HPE 800GB SAS 12G Mixed Use SFF (2.5in) SC 3yr Wty SSD | I22: L6N16-OpzSSD-MU800GB | J22: P19913-B21 | K22: HPE
A23: L6N17 | B23: 17 | C23: OpzSSD-RI400GB | D23: 397 | E23: L6N17 | F23: TS3L6-RI400GB | G23: 1 | H23: HPE 400GB SAS 12G Mixed Use SFF (2.5in) SC 3yr Wty Digitally Signed Firmware SSD | I23: L6N17-OpzSSD-RI400GB | J23: P09088-B21 | K23: HPE
A24: L6N18 | B24: 18 | C24: OpzNVME1,6TB | D24: 1950 | E24: L6N18 | F24: TS3L6-NVME1600 | G24: 1 | H24: HPE 1.6TB NVMe x4 Lanes Mixed Use SFF (2.5in) SCN 3yr Wty Digitally Signed Firmware SSD | J24: P13670-B21 | K24: HPE
A25: L6N19 | B25: 19 | C25: OpzNVME800GB | D25: 1219 | E25: L6N19 | F25: TS3L6-NVME800 | G25: 1 | H25: HPE 800GB NVMe x4 Lanes Mixed Use SFF (2.5in) SCN 3yr Wty Digitally Signed Firmware SSD | J25: P13668-B21 | K25: HPE
A26: L6N20 | B26: 20 | C26: OpzUps (3000VA) | D26: 312 | E26: L6N20 | F26: TS3L6-UPS | G26: 1 | H26: BUNDLE PMEUPS3RTSER Comprensivo di UPS e scheda SNMP | I26: L6N20-OpzUps | J26: RPMM9/3K | K26: PowerMe
G27: 1 | H27: KIT RACK incluso nella fornitura | K27: DELL
A28: L6N21 | B28: 21 | C28: OpzGUI | D28: 443 | E28: L6N21 | F28: TS3L6-GUI | G28: 1 | H28: Unità KVM - monitor 17", cavo combi PS/2&USB da 1,8mt, tastiera italiana, touch pad | I28: L6N21-OpzGUI | J28: F9857N | K28: Tecnosteel
A29: L6N22 | B29: 22 | C29: OpzKVM | D29: 511 | E29: L6N22 | F29: TS3L6-SWKVM | G29: 1 | H29: Switch 16 porte IP con relativi cavi combi PS/2&USB inclusi | I29: L6N22-OpzKVM | J29: T9816NIP | K29: Tecnosteel
A30: L6N23 | B30: 23 | C30: OpzWinServSTD | D30: 557 | E30: L6N23 | F30: TS3L6-WINSTD | G30: 1 | H30: Windows Server 2019,Standard,ROK,16CORE (for Distributor sale only) | I30: L6N23-OpzWinServSTD | J30: P11058-B21 | K30: HPE
A31: L6N24 | B31: 24 | C31: OpzDeviceCal | D31: 21 | E31: L6N24 | F31: TS3L6-WINDVCAL | G31: 1 | H31: 1-pack of Windows Server 2019/2016 Device CALs (STD or DC) Cus Kit | I31: L6N24-OpzDeviceCal | J31: P11076-A21 | K31: HPE
A32: L6N25 | B32: 25 | C32: OpzUserCal | D32: 21 | E32: L6N25 | F32: TS3L6-WINUSCAL | G32: 1 | H32: 1-pack of Windows Server 2019/2016 User CALs (STD or DC) Cus Kit | I32: L6N25-OpzUserCal | J32: P11075-A21 | K32: HPE
A33: L6N26 | B33: 26 | C33: OpzWinServSTD2core | D33: 95 | E33: L6N26 | F33: TS3L6-WINSRV2C | G33: 1 | H33: MS2019 Standard Ed, Additional License, 2 CORE,NO MEDIA/KEY, Customer Kit | I33: L6N26-OpzWinServSTD2core | J33: P11066-A21 | K33: HPE
A34: L6N27 | B34: 27 | C34: OpzWinServDC | D34: 2228 | E34: L6N27 | F34: TS3L6-WINDC | G34: 1 | H34: Windows Server 2019,DataCtr,ROK,16CORE (for Distributor sale only) | I34: L6N27-OpzWinServDC | J34: P11061-B21 | K34: HPE
A35: L6N28 | B35: 28 | C35: OpzWinServDC2core | D35: 412 | E35: L6N28 | F35: TS3L6-WINDC2C | G35: 1 | H35: MS2019 Datacenter Ed, Additional License, 2 CORE,NO MEDIA/KEY, Customer Kit | I35: L6N28-OpzWinServDC2core | J35: P11069-A21 | K35: HPE
A36: L6N29 | B36: 29 | C36: OpzOpenSource | D36: 51 | E36: L6N29 | F36: TS3L6-LINUX | G36: 1 | H36: Ubuntu 20.04 LTS 64 Bit | I36: L6N29-OpzOpenSource | K36: HPE
A37: L6N30 | B37: 30 | C37: OpzHDDRetention | D37: 446 | E37: L6N30 | F37: TS3L6-HDRTN | G37: 1 | H37: Hard Disk Retention 36m | I37: L6N30-OpzHDDRetention | K37: HPE
A38: L6N31 | B38: 31 | C38: OpzEstensione24 | D38: 558 | E38: L6N31 | F38: TS3L6-5Y | G38: 1 | H38: Estensione della manutenzione in garanzia per ulteriori 24 mesi | I38: L6N31-OpzEstensione24 | K38: HPE
A39: L6N32 | B39: 32 | C39: OpzRack | D39: 511 | E39: L6N32 | F39: TS3L6-RACK | G39: 1 | H39: Armadio Rack 42U | I39: L6N32-OpzRack | J39: P6142NCONSIP | K39: Tecnosteel
A40: L6N33 | B40: 33 | C40: OpzHDDRetention | D40: 743 | E40: L6N33 | F40: TS3L6-HDRTN60 | G40: 1 | H40: Hard Disk Retention 60m | I40: L6N33-OpzHDDRetention60
A41: L6N34 | B41: 34 | C41: OpzRJ45 3m | D41: 3 | E41: L6N34 | F41: TS3L6-RJ453M | G41: 1 | H41: Cavo “patch” di 3 mt RJ45 certificato per gigabit ethernet | I41: TS3-OpzA20RJ45 | J41: CAVORJ45
A42: L6N35 | B42: 35 | D42: 480 | E42: L6N35 | F42: TS3L6-OV3YILO | G42: 1 | H42: HPE OV 3yr 24x7 Supp Phys 1 Svr Lic | I42: TS3-OpzA20ILO
A43: L6N36 | B43: 36 | D43: 5620 | E43: L6N36 | F43: TS3L6-VS7ESPK3 | G43: 1 | H43: VMware vSphere Essentials Plus Kit OEM for 3 hosts (Max 2 processors per host) 3 Years | I43: TS3-OpzA20ESPK3
A44: L6N37 | B44: 37 | D44: 498 | E44: L6N37 | F44: TS3L6-OP101 | G44: 1 | H44: HPE 100Gb 1-port OP101 QSFP28 x16 PCIe Gen3 with Intel Omni-Path Architecture Adapter | I44: TS3-OpzA20OP101
A45: L6N38 | B45: 38 | D45: 445 | E45: L6N38 | F45: TS3L6-DACAOCM3 | G45: 1 | H45: HPE 3M 100Gb QSFP28 Omni-Path Optical Power Class 2 Cable | I45: TS3-OpzA20O3M
A46: L6N39 | B46: 39 | D46: 495 | E46: L6N39 | F46: TS3L6-DACAOCM5 | G46: 1 | H46: HPE 5M 100Gb QSFP28 Omni-Path Optical Power Class 2 Cable | I46: TS3-OpzA20O5M
A47: L6N40 | B47: 40 | D47: 545 | E47: L6N40 | F47: TS3L6-DACAOCM7 | G47: 1 | H47: HPE 7M 100Gb QSFP28 Omni-Path Optical Power Class 2 Cable | I47: TS3-OpzA20O7M
A48: L6N41 | B48: 41 | D48: 14628 | E48: L6N41 | F48: TS3L6-ESPSTDAK | G48: 1 | H48: Upgrade: VMware vSphere Essentials plus Kit OEM to vSphere Standard Acceleration Kit OEM for 6 processors 3 Years E-LTU | I48: TS3-OpzA20HVMW1
A49: L6N42 | B49: 42 | D49: 8372 | E49: L6N42 | F49: TS3L6-VCS7STD | G49: 1 | H49: VMware vCenter Server Standard OEM for vSphere 3 Years E-LTU | I49: TS3-OpzA20HVMW2
A50: L6N43 | B50: 43 | D50: 4872 | E50: L6N43 | F50: TS3L6-VS7EPL | G50: 1 | H50: VMware vSphere Enterprise Plus OEM for 1 processor 3 Years E-LTU | I50: TS3-OpzA20HVMW3
A51: L6N44 | B51: 44 | D51: 1558 | E51: L6N44 | F51: TS3L6-VS7STD | G51: 1 | H51: VMware vSphere Standard OEM for 1 processor 3 Years E-LTU | I51: TS3-OpzA20HVMW4
A52: L6N45 | B52: 45 | D52: 3478 | E52: L6N45 | F52: TS3L6-ST7STD | G52: 1 | H52: VMware vSAN Standard OEM for 1 processor 3 Years E-LTU | I52: TS3-OpzA20HVMW5
A53: L6N46 | B53: 46 | D53: 5579 | E53: L6N46 | F53: TS3L6-ST7ADV | G53: 1 | H53: VMware vSAN Advanced OEM for 1 processor 3 Years E-LTU | I53: TS3-OpzA20HVMW6
A54: L6N47 | B54: 47 | D54: 2200 | E54: L6N47 | F54: TS3L6-RACKMONO | G54: 1 | H54: Armadio Rack HPE 42U 600x1200, comprensivo di 2 PDU Monofase 7.3kVA con 36 connettori C13 e 12 connettori C19 collegamento spina industriale 32A IEC-60309 3 poli (2P+T) | I54: TS3-OpzA20RMONO
A55: L6N48 | B55: 48 | D55: 2539 | E55: L6N48 | F55: TS3L6-RACK3PH | G55: 1 | H55: Armadio Rack HPE 42U 600x1200, comprensivo di 2 PDU Trifase 22kVA con 36 connettori C13 e 12 connettori C19 collegamento spina industriale 32A IEC-60309 5 poli (3P+N+T) | I55: TS3-OpzA20R3PH
A56: L6N49 | B56: 49 | D56: 800 | E56: L6N49 | F56: TS3L6-SASBAY1 | G56: 1 | H56: Kit per ulteriori 8 HDD (HPE DL560 Gen10 8SFF HDD Bay1) comprensivo di SAS Expander | I56: TS3-OpzA20HBAY1
A57: L6N50 | B57: 50 | D57: 250 | E57: L6N50 | F57: TS3L6-DUAL32GB | G57: 1 | H57: HPE 32GB Dual microSD RAID 1 USB Boot Drive | I57: TS3-OpzA20D32GB
A58: L6N51 | B58: 51 | D58: 484 | E58: L6N51 | F58: TS3L6-CTRL-OS | G58: 1 | H58: HPE Controller PCIe OS Boot Device Raid1 2x480GB NVMe M.2 SSD | I58: TS3-OpzA20CTRLOS
A59: L6N52 | B59: 52 | D59: 235 | E59: L6N52 | F59: TS3L6-CTRL-E | G59: 1 | H59: HPE Smart Array Controller PCIe per Disk Enclosure esterno | I59: TS3-OpzA20CTRLE
A60: L6N53 | B60: 53 | D60: 15770 | E60: L6N53 | F60: TS3L6-E15Y247 | G60: 1 | H60: HPE D3610 Enclosure, 12 x HDD 14TB SAS 7.2K LFF, 5Years 24x7 | I60: TS3-OpzA20E1524
A61: L6N54 | B61: 54 | D61: 2542 | E61: L6N54 | F61: TS3L6-TESLAT4 | G61: 1 | H61: HPE NVIDIA Tesla T4 16GB Module | I61: TS3-OpzA20HPET4
A62: L6N55 | B62: 55 | D62: 590 | E62: L6N55 | F62: TS3L6-P2200 | G62: 1 | H62: NVIDIA Quadro P2200 GPU Module for HPE | I62: TS3-OpzA20P2200
A63: L6N56 | B63: 56 | D63: 124 | E63: L6N56 | F63: TS3L6-CTRL-A | G63: 1 | H63: HPE Smart Array Controller per Software Defined Storage in sostituzione del Controller in configurazione BASE | I63: TS3-OpzA20CTRLA
A64: L6N57 | B64: 57 | D64: 196 | E64: L6N57 | F64: TS3L6-CTRL-P | G64: 1 | H64: HPE Smart Array Controller PCIe per Software Defined Storage | I64: TS3-OpzA20CTRLP
A65: L6N58 | B65: 58 | D65: 114 | E65: L6N58 | F65: TS3L6-DAC10GB3M | G65: 1 | H65: Cavo DAC HPE 10GB SFP+ SFP+ 3 metri | I65: TS3-OpzA20DAC10M3
A66: L6N59 | B66: 59 | D66: 72 | E66: L6N59 | F66: TS3L6-OM4M2 | G66: 1 | H66: HPE Premier Flex LC/LC OM4 2f 2m Cbl | I66: TS3-OpzOM4M2
A67: L6N60 | B67: 60 | D67: 149 | E67: L6N60 | F67: TS3L6-DAC25GBM3 | G67: 1 | H67: HPE 25Gb SFP28 to SFP28 3m DAC | I67: TS3-Opz25GBM3 | J67: 844477-B21
A68: L6N61 | B68: 61 | D68: 512 | E68: L6N61 | F68: TS3L6-10OTLR | G68: 1 | H68: HPE 10G SFP+ LR Transceiver | I68: TS3-Opz10OTLR
A69: L6N62 | B69: 62 | D69: 230 | E69: L6N62 | F69: TS3L6-10OTSR | G69: 1 | H69: HPE 10G SFP+ SR Transceiver | I69: TS3-Opz10OTSR
A70: L6N63 | B70: 63 | D70: 380 | E70: L6N63 | F70: TS3L6-X710SFP | G70: 1 | H70: HPE Ethernet 10Gb 2-port SFP+ X710-DA2 Adapter | I70: TS3-OpzX710SFP
A71: L6N64 | B71: 64 | D71: 298 | E71: L6N64 | F71: TS3L6-LAN10T | G71: 1 | H71: HPE Ethernet 10Gb 2-port BASE-T BCM57416 Adapter | I71: TS3-OpzA2010GBT
A72: L6N65 | B72: 65 | D72: 292 | E72: L6N65 | F72: TS3L6-M2480GB | G72: 1 | H72: HPE 480GB SATA RI M.2 2280 5300P SSD | I72: TS3-OpzM2480GB | J72: P19890-B21 | K72: HPE
A73: L6N01b | B73: 1 | C73: Server rackable quad-processore prest. | D73: 5912 | E73: L6N01b | F73: TS3L6-SRVNVME | G73: 1 | H73: Proliant DL560 Gen10 NVMe Configuration | I73: L6N01b-ServerDL560 | J73: - | K73: HPE
A74: L6N02B | B74: 2 | C74: Kit n. 2 Processori aggiuntivi | D74: 2475 | E74: L6N02B | F74: TS3L6-CPUN | G74: 2 | H74: Intel Xeon-Gold 6252N (2.3GHz/24-core/150W) Processor Kit for HPE ProLiant DL560 Gen10 | I74: L6N02-OpzCPU | J74: P02960-B21 | K74: HPE
G75: 1 | H75: HPE DL5x0 Gen10 CPU Version 2 Mezzanine Board Kit | J75: P07991-B21 | K75: HPE
A76: L6N03B | B76: 3 | C76: OpzRAM32GB | D76: 184 | E76: L6N03B | F76: TS3L6-RAM32N | G76: 1 | H76: HPE 32GB (1x32GB) Dual Rank x4 DDR4-2933 CAS-21-21-21 Registered Smart Memory Kit | I76: L6N03-OpzRAM32GB | J76: P00924-B21 | K76: HPE
A77: L6N04B | B77: 4 | C77: OpzRAM64GB | D77: 589 | E77: L6N04B | F77: TS3L6-RAM64N | G77: 1 | H77: HPE 64GB (1x64GB) Dual Rank x4 DDR4-2933 CAS-21-21-21 Registered Smart Memory Kit | I77: L6N04-OpzRAM64GB | J77: P00930-B21 | K77: HPE
A78: L6N05B | B78: 5 | C78: OpzGigabit | D78: 25 | E78: L6N05B | F78: TS3L6-LAN1N | G78: 1 | H78: HPE Ethernet 1Gb 2-port 332T Adapter | I78: L6N05-OpzGigabit | J78: 615732-B21 | K78: HPE
A79: L6N06B | B79: 6 | C79: OpzGigabit10Gbps | D79: 218 | E79: L6N06B | F79: TS3L6-LAN10N | G79: 1 | H79: HPE Ethernet 10Gb 2-port 548SFP+ Adapter | I79: L6N06-OpzGigabit10Gbps | J79: P11338-B21 | K79: HPE
G80: 2 | H80: HPE BladeSystem c-Class 10Gb SFP+ SR Transceiver | J80: 455883-B21 | K80: HPE
A81: L6N07B | B81: 7 | C81: OpzGigabit25Gbps | D81: 669 | E81: L6N07B | F81: TS3L6-LAN25N | G81: 1 | H81: HPE Ethernet 10/25Gb 2-port 640SFP28 Adapter | I81: L6N07-OpzGigabit25Gbps | J81: 817753-B21 | K81: HPE
G82: 2 | H82: HPE 25Gb SFP28 SR 100m Transceiver | J82: 845398-B21 | K82: HPE
A83: L6N08B | B83: 8 | C83: OpzGigabit10Gbps CNA | D83: 402 | E83: L6N08B | F83: TS3L6-CNA10N | G83: 1 | H83: HPE StoreFabric CN1300R 10/25Gb Dual Port Converged Network Adapter | I83: L6N08-OpzCNA10Gbps | J83: Q0F09A | K83: HPE
G84: 2 | H84: HPE BladeSystem c-Class 10Gb SFP+ SR Transceiver | J84: 455883-B21 | K84: HPE
A85: L6N09B | B85: 9 | C85: OpzFibreChannel | D85: 325 | E85: L6N09B | F85: TS3L6-FC16N | G85: 1 | H85: HPE StoreFabric SN1100Q 16Gb Dual Port Fibre Channel Host Bus Adapter | I85: L6N09-OpzFibreChannel | J85: P9D94A | K85: HPE
A86: L6N10B | B86: 10 | C86: OpzHDD2TB | D86: 189 | E86: L6N10B | F86: TS3L6-HDD2TBN | G86: 1 | H86: HPE 1.8TB SAS 12G Enterprise 10K SFF (2.5in) SC 3yr Wty 512e Digitally Signed Firmware HDD | I86: L6N10-OpzHDD2TB | J86: 872481-B21 | K86: HPE
A87: L6N11B | B87: 11 | C87: OpzHDD1TB | D87: 136 | E87: L6N11B | F87: TS3L6-HDD1TBN | G87: 1 | H87: HPE 1.2TB SAS 12G Enterprise 10K SFF (2.5in) SC 3yr Wty Digitally Signed Firmware HDD | I87: L6N11-OpzHDD1TB | J87: 872479-B21 | K87: HPE
A88: L6N12B | B88: 12 | C88: OpzHDD300GB | D88: 87 | E88: L6N12B | F88: TS3L6-HDD300GBN | G88: 1 | H88: HPE 300GB SAS 12G Enterprise 10K SFF (2.5in) SC 3yr Wty Digitally Signed Firmware HDD | I88: L6N12-OpzHDD300GB | J88: 872475-B21 | K88: HPE
A89: L6N13B | B89: 13 | C89: OpzSSD-RI1,6TB | D89: 714 | E89: L6N13B | F89: TS3L6-RI1600GBN | G89: 1 | H89: HPE 1.92TB SAS 12G Read Intensive SFF (2.5in) SC 3yr Wty Value SAS Digitally Signed Firmware SSD | I89: L6N13-OpzSSD-RI1,6TB | J89: P10442-B21 | K89: HPE
A90: L6N14B | B90: 14 | C90: OpzSSD-MU1,6TB | D90: 878 | E90: L6N14B | F90: TS3L6-MU1600GBN | G90: 1 | H90: HPE 1.6TB SAS 12G Mixed Use SFF (2.5in) SC 3yr Wty SSD | I90: L6N14-OpzSSD-MU1,6TB | J90: P19915-B21 | K90: HPE
A91: L6N15B | B91: 15 | C91: OpzSSD-RI800GB | D91: 461 | E91: L6N15B | F91: TS3L6-RI800GBN | G91: 1 | H91: HPE 960GB SAS 12G Read Intensive SFF (2.5in) SC 3yr Wty Value SAS Digitally Signed Firmware SSD | I91: L6N15-OpzSSD-RI800GB | J91: P10440-B21 | K91: HPE
A92: L6N16B | B92: 16 | C92: OpzSSD-MU800GB | D92: 576 | E92: L6N16B | F92: TS3L6-MU800GBN | G92: 1 | H92: HPE 800GB SAS 12G Mixed Use SFF (2.5in) SC 3yr Wty SSD | I92: L6N16-OpzSSD-MU800GB | J92: P19913-B21 | K92: HPE
A93: L6N17B | B93: 17 | C93: OpzSSD-RI400GB | D93: 397 | E93: L6N17B | F93: TS3L6-RI400GBN | G93: 1 | H93: HPE 400GB SAS 12G Mixed Use SFF (2.5in) SC 3yr Wty Digitally Signed Firmware SSD | I93: L6N17-OpzSSD-RI400GB | J93: P09088-B21 | K93: HPE
A94: L6N18B | B94: 18 | C94: OpzNVME1,6TB | D94: 1950 | E94: L6N18B | F94: TS3L6-NVME1600N | G94: 1 | H94: HPE 1.6TB NVMe x4 Lanes Mixed Use SFF (2.5in) SCN 3yr Wty Digitally Signed Firmware SSD | I94: L6N18-OpzNVME1,6TB | J94: P13670-B21 | K94: HPE
A95: L6N19B | B95: 19 | C95: OpzNVME800GB | D95: 1219 | E95: L6N19B | F95: TS3L6-NVME800N | G95: 1 | H95: HPE 800GB NVMe x4 Lanes Mixed Use SFF (2.5in) SCN 3yr Wty Digitally Signed Firmware SSD | I95: L6N19-OpzNVME800GB | J95: P13668-B21 | K95: HPE
A96: L6N20B | B96: 20 | C96: OpzUps (3000VA) | D96: 312 | E96: L6N20B | F96: TS3L6-UPSN | G96: 1 | H96: BUNDLE PMEUPS3RTSER Comprensivo di UPS e scheda SNMP | I96: L6N20-OpzUps | J96: RPMM9/3K | K96: PowerMe
G97: 1 | H97: KIT RACK incluso nella fornitura | K97: DELL
A98: L6N21B | B98: 21 | C98: OpzGUI | D98: 443 | E98: L6N21B | F98: TS3L6-GUIN | G98: 1 | H98: Unità KVM - monitor 17", cavo combi PS/2&USB da 1,8mt, tastiera italiana, touch pad | I98: L6N21-OpzGUI | J98: F9857N | K98: Tecnosteel
A99: L6N22B | B99: 22 | C99: OpzKVM | D99: 511 | E99: L6N22B | F99: TS3L6-SWKVMN | G99: 1 | H99: Switch 16 porte IP con relativi cavi combi PS/2&USB inclusi | I99: L6N22-OpzKVM | J99: T9816NIP | K99: Tecnosteel
A100: L6N23B | B100: 23 | C100: OpzWinServSTD | D100: 557 | E100: L6N23B | F100: TS3L6-WINSTDN | G100: 1 | H100: Windows Server 2019,Standard,ROK,16CORE (for Distributor sale only) | I100: L6N23-OpzWinServSTD | J100: P11058-B21 | K100: HPE
A101: L6N24B | B101: 24 | C101: OpzDeviceCal | D101: 21 | E101: L6N24B | F101: TS3L6-WINDVCALN | G101: 1 | H101: 1-pack of Windows Server 2019/2016 Device CALs (STD or DC) Cus Kit | I101: L6N24-OpzDeviceCal | J101: P11076-A21 | K101: HPE
A102: L6N25B | B102: 25 | C102: OpzUserCal | D102: 21 | E102: L6N25B | F102: TS3L6-WINUSCALN | G102: 1 | H102: 1-pack of Windows Server 2019/2016 User CALs (STD or DC) Cus Kit | I102: L6N25-OpzUserCal | J102: P11075-A21 | K102: HPE
A103: L6N26B | B103: 26 | C103: OpzWinServSTD2core | D103: 95 | E103: L6N26B | F103: TS3L6-WINSRV2CN | G103: 1 | H103: MS2019 Standard Ed, Additional License, 2 CORE,NO MEDIA/KEY, Customer Kit | I103: L6N26-OpzWinServSTD2core | J103: P11066-A21 | K103: HPE
A104: L6N27B | B104: 27 | C104: OpzWinServDC | D104: 2228 | E104: L6N27B | F104: TS3L6-WINDCN | G104: 1 | H104: Windows Server 2019,DataCtr,ROK,16CORE (for Distributor sale only) | I104: L6N27-OpzWinServDC | J104: P11061-B21 | K104: HPE
A105: L6N28B | B105: 28 | C105: OpzWinServDC2core | D105: 412 | E105: L6N28B | F105: TS3L6-WINDC2CN | G105: 1 | H105: MS2019 Datacenter Ed, Additional License, 2 CORE,NO MEDIA/KEY, Customer Kit | I105: L6N28-OpzWinServDC2core | J105: P11069-A21 | K105: HPE
A106: L6N29B | B106: 29 | C106: OpzOpenSource | D106: 51 | E106: L6N29B | F106: TS3L6-LINUXN | G106: 1 | H106: Ubuntu 20.04 LTS 64 Bit | I106: L6N29-OpzOpenSource | K106: HPE
A107: L6N30B | B107: 30 | C107: OpzHDDRetention | D107: 446 | E107: L6N30B | F107: TS3L6-HDRTNN | G107: 1 | H107: Hard Disk Retention 36m | I107: L6N30-OpzHDDRetention | K107: HPE
A108: L6N31B | B108: 31 | C108: OpzEstensione24 | D108: 558 | E108: L6N31B | F108: TS3L6-5YN | G108: 1 | H108: Estensione della manutenzione in garanzia per ulteriori 24 mesi | I108: L6N31-OpzEstensione24 | K108: HPE
A109: L6N32B | B109: 32 | C109: OpzRack | D109: 511 | E109: L6N32B | F109: TS3L6-RACKN | G109: 1 | H109: Armadio Rack 42U | I109: L6N32-OpzRack | J109: P6142NCONSIP | K109: Tecnosteel
A110: L6N33B | B110: 33 | C110: OpzHDDRetention | D110: 743 | E110: L6N33B | F110: TS3L6-HDRTN60N | G110: 1 | H110: Hard Disk Retention 60m | I110: L6N33-OpzHDDRetention60
A111: L6N34B | B111: 34 | C111: OpzRJ45 3m | D111: 3 | E111: L6N34B | F111: TS3L6-RJ453MN | G111: 1 | H111: Cavo “patch” di 3 mt RJ45 certificato per gigabit ethernet | I111: TS3-OpzA20RJ45 | J111: CAVORJ45
A112: L6N35B | B112: 35 | D112: 480 | E112: L6N35B | F112: TS3L6-OV3YILON | G112: 1 | H112: HPE OV 3yr 24x7 Supp Phys 1 Svr Lic | I112: TS3-OpzA20ILO
A113: L6N36B | B113: 36 | D113: 5620 | E113: L6N36B | F113: TS3L6-VS7ESPK3N | G113: 1 | H113: VMware vSphere Essentials Plus Kit OEM for 3 hosts (Max 2 processors per host) 3 Years | I113: TS3-OpzA20ESPK3
A114: L6N37B | B114: 37 | D114: 498 | E114: L6N37B | F114: TS3L6-OP101N | G114: 1 | H114: HPE 100Gb 1-port OP101 QSFP28 x16 PCIe Gen3 with Intel Omni-Path Architecture Adapter | I114: TS3-OpzA20OP101
A115: L6N38B | B115: 38 | D115: 445 | E115: L6N38B | F115: TS3L6-DACAOCM3N | G115: 1 | H115: HPE 3M 100Gb QSFP28 Omni-Path Optical Power Class 2 Cable | I115: TS3-OpzA20O3M
A116: L6N39B | B116: 39 | D116: 495 | E116: L6N39B | F116: TS3L6-DACAOCM5N | G116: 1 | H116: HPE 5M 100Gb QSFP28 Omni-Path Optical Power Class 2 Cable | I116: TS3-OpzA20O5M
A117: L6N40B | B117: 40 | D117: 545 | E117: L6N40B | F117: TS3L6-DACAOCM7N | G117: 1 | H117: HPE 7M 100Gb QSFP28 Omni-Path Optical Power Class 2 Cable | I117: TS3-OpzA20O7M
A118: L6N41B | B118: 41 | D118: 14628 | E118: L6N41B | F118: TS3L6-ESPSTDAKN | G118: 1 | H118: Upgrade: VMware vSphere Essentials plus Kit OEM to vSphere Standard Acceleration Kit OEM for 6 processors 3 Years E-LTU | I118: TS3-OpzA20HVMW1
A119: L6N42B | B119: 42 | D119: 8372 | E119: L6N42B | F119: TS3L6-VCS7STDN | G119: 1 | H119: VMware vCenter Server Standard OEM for vSphere 3 Years E-LTU | I119: TS3-OpzA20HVMW2
A120: L6N43B | B120: 43 | D120: 4872 | E120: L6N43B | F120: TS3L6-VS7EPLN | G120: 1 | H120: VMware vSphere Enterprise Plus OEM for 1 processor 3 Years E-LTU | I120: TS3-OpzA20HVMW3
A121: L6N44B | B121: 44 | D121: 1558 | E121: L6N44B | F121: TS3L6-VS7STDN | G121: 1 | H121: VMware vSphere Standard OEM for 1 processor 3 Years E-LTU | I121: TS3-OpzA20HVMW4
A122: L6N45B | B122: 45 | D122: 3478 | E122: L6N45B | F122: TS3L6-ST7STDN | G122: 1 | H122: VMware vSAN Standard OEM for 1 processor 3 Years E-LTU | I122: TS3-OpzA20HVMW5
A123: L6N46B | B123: 46 | D123: 5579 | E123: L6N46B | F123: TS3L6-ST7ADVN | G123: 1 | H123: VMware vSAN Advanced OEM for 1 processor 3 Years E-LTU | I123: TS3-OpzA20HVMW6
A124: L6N47B | B124: 47 | D124: 2200 | E124: L6N47B | F124: TS3L6-RACKMONON | G124: 1 | H124: Armadio Rack HPE 42U 600x1200, comprensivo di 2 PDU Monofase 7.3kVA con 36 connettori C13 e 12 connettori C19 collegamento spina industriale 32A IEC-60309 3 poli (2P+T) | I124: TS3-OpzA20RMONO
A125: L6N48B | B125: 48 | D125: 2539 | E125: L6N48B | F125: TS3L6-RACK3PHN | G125: 1 | H125: Armadio Rack HPE 42U 600x1200, comprensivo di 2 PDU Trifase 22kVA con 36 connettori C13 e 12 connettori C19 collegamento spina industriale 32A IEC-60309 5 poli (3P+N+T) | I125: TS3-OpzA20R3PH
A126: L6N49B | B126: 49 | D126: 800 | E126: L6N49B | F126: TS3L6-SASBAY1N | G126: 1 | H126: Kit per ulteriori 8 HDD (HPE DL560 Gen10 8SFF HDD Bay1) comprensivo di SAS Expander | I126: TS3-OpzA20HBAY1
A127: L6N50B | B127: 50 | D127: 250 | E127: L6N50B | F127: TS3L6-DUAL32GBN | G127: 1 | H127: HPE 32GB Dual microSD RAID 1 USB Boot Drive | I127: TS3-OpzA20D32GB
A128: L6N51B | B128: 51 | D128: 484 | E128: L6N51B | F128: TS3L6-CTRL-OSN | G128: 1 | H128: HPE Controller PCIe OS Boot Device Raid1 2x480GB NVMe M.2 SSD | I128: TS3-OpzA20CTRLOS
A129: L6N52B | B129: 52 | D129: 235 | E129: L6N52B | F129: TS3L6-CTRL-EN | G129: 1 | H129: HPE Smart Array Controller PCIe per Disk Enclosure esterno | I129: TS3-OpzA20CTRLE
A130: L6N53B | B130: 53 | D130: 15770 | E130: L6N53B | F130: TS3L6-E15Y247N | G130: 1 | H130: HPE D3610 Enclosure, 12 x HDD 14TB SAS 7.2K LFF, 5Years 24x7 | I130: TS3-OpzA20E1524
A131: L6N54B | B131: 54 | D131: 2542 | E131: L6N54B | F131: TS3L6-TESLAT4N | G131: 1 | H131: HPE NVIDIA Tesla T4 16GB Module | I131: TS3-OpzA20HPET4
A132: L6N55B | B132: 55 | D132: 590 | E132: L6N55B | F132: TS3L6-P2200N | G132: 1 | H132: NVIDIA Quadro P2200 GPU Module for HPE | I132: TS3-OpzA20P2200
A133: L6N56B | B133: 56 | D133: 124 | E133: L6N56B | F133: TS3L6-CTRL-AN | G133: 1 | H133: HPE Smart Array Controller per Software Defined Storage in sostituzione del Controller in configurazione BASE | I133: TS3-OpzA20CTRLA
A134: L6N57B | B134: 57 | D134: 196 | E134: L6N57B | F134: TS3L6-CTRL-PN | G134: 1 | H134: HPE Smart Array Controller PCIe per Software Defined Storage | I134: TS3-OpzA20CTRLP
A135: L6N58B | B135: 58 | D135: 114 | E135: L6N58B | F135: TS3L6-DAC10GB3MN | G135: 1 | H135: Cavo DAC HPE 10GB SFP+ SFP+ 3 metri | I135: TS3-OpzA20DAC10M3
A136: L6N59B | B136: 59 | D136: 72 | E136: L6N59B | F136: TS3L6-OM4M2N | G136: 1 | H136: HPE Premier Flex LC/LC OM4 2f 2m Cbl | I136: TS3-OpzOM4M2
A137: L6N60B | B137: 60 | D137: 149 | E137: L6N60B | F137: TS3L6-DAC25GBM3N | G137: 1 | H137: HPE 25Gb SFP28 to SFP28 3m DAC | I137: TS3-Opz25GBM3 | J137: 844477-B21
A138: L6N61B | B138: 61 | D138: 512 | E138: L6N61B | F138: TS3L6-10OTLRN | G138: 1 | H138: HPE 10G SFP+ LR Transceiver | I138: TS3-Opz10OTLR
A139: L6N62B | B139: 62 | D139: 230 | E139: L6N62B | F139: TS3L6-10OTSRN | G139: 1 | H139: HPE 10G SFP+ SR Transceiver | I139: TS3-Opz10OTSR
A140: L6N63B | B140: 63 | D140: 380 | E140: L6N63B | F140: TS3L6-X710SFPN | G140: 1 | H140: HPE Ethernet 10Gb 2-port SFP+ X710-DA2 Adapter | I140: TS3-OpzX710SFP | J140: 727055-B21
A141: L6N64B | B141: 64 | D141: 298 | E141: L6N64B | F141: TS3L6-LAN10T | G141: 1 | H141: HPE Ethernet 10Gb 2-port BASE-T BCM57416 Adapter | I141: TS3-OpzA2010GBT | J141: 867707-B21
A142: L6N65B | B142: 65 | D142: 292 | E142: L6N65B | F142: TS3L6-M2480GBN | G142: 1 | H142: HPE 480GB SATA RI M.2 2280 5300P SSD | I142: TS3-OpzM2480GB | J142: P19890-B21 | K142: HPE
A143: L6N66 | B143: 66 | D143: 3200 | E143: L6N66 | F143: TS3L6-UPSR8000 | G143: 1 | H143: HPE G2 R8000 UPS 230V Outlets (6) C19 (2) IEC 32A/6U Rackmount INTL | I143: TS3-OpzA20UPSR8000 | K143: HPE
A144: L6N66B | B144: 67 | D144: 3200 | E144: L6N66B | F144: TS3L6-UPSR8000N | G144: 1 | H144: HPE G2 R8000 UPS 230V Outlets (6) C19 (2) IEC 32A/6U Rackmount INTL | I144: TS3-OpzA20UPSR8000 | K144: HPE
A145: L6N68 | B145: 68 | E145: L6N68
A146: L6N69 | B146: 69 | E146: L6N69
A147: L6N70 | B147: 70 | E147: L6N70
A148: L6N71 | B148: 71 | E148: L6N71
A149: L6N72 | B149: 72 | E149: L6N72
A150: L6N73 | B150: 73 | E150: L6N73
A151: L6N74 | B151: 74 | E151: L6N74
A152: L6N75 | B152: 75 | E152: L6N75
A153: L6N76 | B153: 76 | E153: L6N76
A154: L6N77 | B154: 77 | E154: L6N77
A155: L6N78 | B155: 78 | E155: L6N78
A156: L6N79 | B156: 79 | E156: L6N79
A157: L6N80 | B157: 80 | E157: L6N80
A158: L6N81 | B158: 81 | E158: L6N81
A159: L6N82 | B159: 82 | E159: L6N82
A160: L6N83 | B160: 83 | E160: L6N83
A161: L6N84 | B161: 84 | E161: L6N84
A162: L6N85 | B162: 85 | E162: L6N85
A163: L6N86 | B163: 86 | E163: L6N86
A164: L6N87 | B164: 87 | E164: L6N87
A165: L6N88 | B165: 88 | E165: L6N88
A166: L6N89 | B166: 89 | E166: L6N89
A167: L6N90 | B167: 90 | E167: L6N90
A168: L6N91 | B168: 91 | E168: L6N91
A169: L6N92 | B169: 92 | E169: L6N92
A170: L6N93 | B170: 93 | E170: L6N93
A171: L6N94 | B171: 94 | E171: L6N94
A172: L6N95 | B172: 95 | E172: L6N95
A173: L6N96 | B173: 96 | E173: L6N96
A174: L6N97 | B174: 97 | E174: L6N97
A175: L6N98 | B175: 98 | E175: L6N98
A176: L6N99 | B176: 99 | E176: L6N99
A177: L6N100 | B177: 100 | E177: L6N100

Sheet Riepilogo
J1: 1
B2: Ente: | J2: 1 | L2: ente | M2: =IF(D2>0,0,1) -> 1
J3: 1
B4: Ordine N. | E4: =M7 -> ERRORE DI MANCATA COMPILAZIONE DATI NECESSARI PER L'ORDINATIVO | J4: 1 | L4: N°ordine | M4: =IF(D4>0,0,1) -> 1
E5: =M8 ->  | J5: 1
B6: Data | E6: =M9 ->  | J6: 1 | L6: data | M6: =IF(D6>0,0,1) -> 1
E7: =M10 ->  | J7: 1 | L7: ERRORE1 | M7: =IF(M2+M4+M6+M11+M13+M16+M18+O18+O13,"ERRORE DI MANCATA COMPILAZIONE DATI NECESSARI PER L'ORDINATIVO","") -> ERRORE DI MANCATA COMPILAZIONE DATI NECESSARI PER L'ORDINATIVO | N7: =IF(M7="",0,1) -> 1
B8: Totale IVA incl. | D8: =G156 -> 0 | E8: =IF(Q11=0,"CONFIGURATORE OK", "") ->  | G8: Version 4.5 | J8: 1 | L8: Warning2 | M8: =IF(G153>D153,"!!! ATTENZIONE !!! L'IMPORTO 20% SUPERA IL VALORE MASSIMO CONSENTITO","") ->  | N8: =IF(M8="",0,1) -> 0
J9: 1 | L9: ERRORE3 | M9: ="" ->  | N9: =IF(M9="",0,1) -> 0
J10: 1 | L10: Waning4 | M10: =IF(N10>0,"!!! ATTENZIONE !!! COMPLETARE IL CAMPO NOTE NELLE CONFIGURAZIONI","") ->  | N10: =IF(M22>0,O10,0)+IF(N22>0,P10,0)+IF(O22>0,Q10,0) -> 0 | O10: =IF(Lotto6_DL560_1!$H$34="Specificare la configurazione RAID per l'installazione del Sistema Operativo, se richiesto. e/o inserire eventuali note.",1,0) -> 1 | P10: =IF(Lotto6_DL560_2!$H$36="Specificare la configurazione RAID per l'installazione del Sistema Operativo, se richiesto. e/o inserire eventuali note.",1,0) -> 0 | Q10: =IF(Lotto6_DL560_3!$H$31="Specificare la configurazione RAID per l'installazione del Sistema Operativo, se richiesto. e/o inserire eventuali note.",1,0) -> 0
B11: Referente Consegna | J11: 1 | L11: ref1 | M11: =IF(D11>0,0,1) -> 1 | O11: Verifica Errori | Q11: =N7+N9 -> 1
J12: 1
B13: Telefono | D13: email | J13: 1 | L13: tel1 | M13: =IF(C13>0,0,1) -> 1 | N13: mail1 | O13: =IF(E13>0,0,1) -> 1
J14: 1
J15: 1
B16: Referente Installazione | J16: 1 | L16: ref2 | M16: =IF(D16>0,0,1) -> 1
J17: 1
B18: Telefono | D18: email | J18: 1 | L18: tel2 | M18: =IF(C18>0,0,1) -> 1 | N18: mail2 | O18: =IF(E18>0,0,1) -> 1
J19: 1
J20: 1 | M20: Server1 | N20: Server2 | O20: Server3 | P20: Totale
B21: TECNOLOGIE SERVER 3 LOTTO 6 - LISTA ARTICOLI IN CONVENZIONE - | J21: =IF($G$152>0,1,0) -> 0
B22: Quantità | C22: Codice Articolo Produttore | D22: Codice Articolo Convenzione | E22: Descrizione | F22: Costo unitario | G22: Costo complessivo | J22: =IF($G$152>0,1,0) -> 0 | K22: Codice Convenzione | L22: N° | M22: =Lotto6_DL560_1!F5 -> 0 | N22: =Lotto6_DL560_2!F5 -> 0 | O22: =Lotto6_DL560_3!F5 -> 0 | Q22: Qty_1 | R22: Qty_2 | S22: Qty_3
B23: =IF(P23>0,P23,"") ->  | C23: =IF(B23="","",VLOOKUP(L23,Tabella_prezzi!$A$3:$K$138,9,FALSE)) ->  | D23: =IF(B23="","",VLOOKUP(L23,Tabella_prezzi!$A$3:$K$138,6,FALSE)) ->  | E23: =IF(B23="","",VLOOKUP(L23,Tabella_prezzi!$A$3:$K$138,8,FALSE)) ->  | F23: =IF(B23="","",VLOOKUP(L23,Tabella_prezzi!$A$3:$K$138,4,FALSE)) ->  | G23: =IF(C23="","",F23*B23) ->  | J23: =IF(B23="",0,1) -> 0 | K23: =VLOOKUP(L23,Tabella_prezzi!A2:K138,6,FALSE) -> TS3L6-SRV | L23: L6N01 | M23: =COUNTIF(TS3L6_L6N_1,L23)*$M$22 -> 0 | N23: =COUNTIF(TS3L6_L6N_2,L23)*$N$22 -> 0 | O23: =COUNTIF(TS3L6_L6N_3,L23)*$O$22 -> 0 | P23: =SUM(M23:O23) -> 0 | T23: =Lotto6_DL560_1!L9 -> L6N01 | U23: =Lotto6_DL560_1!F9 ->  | V23: =Lotto6_DL560_2!L9 -> L6N01 | W23: =Lotto6_DL560_2!F9 ->  | X23: =Lotto6_DL560_3!L9 -> L6N01 | Y23: =Lotto6_DL560_3!F9 ->  | AA23: =ISODD(J23) -> FALSE | AB23: server
B24: =IF(P24>0,P24,"") ->  | C24: =IF(B24="","",VLOOKUP(L24,Tabella_prezzi!$A$3:$K$138,9,FALSE)) ->  | D24: =IF(B24="","",VLOOKUP(L24,Tabella_prezzi!$A$3:$K$138,6,FALSE)) ->  | E24: =IF(B24="","",VLOOKUP(L24,Tabella_prezzi!$A$3:$K$138,8,FALSE)) ->  | F24: =IF(B24="","",VLOOKUP(L24,Tabella_prezzi!$A$3:$K$138,4,FALSE)) ->  | G24: =IF(C24="","",F24*B24) ->  | J24: =IF(B24="",0,1) -> 0 | K24: =VLOOKUP(L24,Tabella_prezzi!A3:K139,6,FALSE) -> TS3L6-SRVNVME | L24: L6N01b | M24: =COUNTIF(TS3L6_L6N_1,L24)*$M$22 -> 0 | N24: =COUNTIF(TS3L6_L6N_2,L24)*$N$22 -> 0 | O24: =COUNTIF(TS3L6_L6N_3,L24)*$O$22 -> 0 | P24: =SUM(M24:O24) -> 0 | T24: =Lotto6_DL560_1!L10 -> 0 | U24: =Lotto6_DL560_1!F10 -> 0 | V24: =Lotto6_DL560_2!L10 -> 0 | W24: =Lotto6_DL560_2!F10 -> 0 | X24: =Lotto6_DL560_3!L10 -> 0 | Y24: =Lotto6_DL560_3!F10 -> 0 | AA24: =ISODD(J24) -> FALSE | AB24: server
B25: =IF(P25>0,P25,"") ->  | C25: =IF(B25="","",VLOOKUP(L25,Tabella_prezzi!$A$3:$K$138,9,FALSE)) ->  | D25: =IF(B25="","",VLOOKUP(L25,Tabella_prezzi!$A$3:$K$138,6,FALSE)) ->  | E25: =IF(B25="","",VLOOKUP(L25,Tabella_prezzi!$A$3:$K$138,8,FALSE)) ->  | F25: =IF(B25="","",VLOOKUP(L25,Tabella_prezzi!$A$3:$K$138,4,FALSE)) ->  | G25: =IF(C25="","",F25*B25) ->  | J25: 0 | K25: =VLOOKUP(L25,Tabella_prezzi!A3:K139,6,FALSE) -> TS3L6-CPU | L25: L6N02 | M25: =COUNTIF(TS3L6_L6N_1,L25)*$M$22 -> 0 | N25: =COUNTIF(TS3L6_L6N_2,L25)*$N$22 -> 0 | O25: =COUNTIF(TS3L6_L6N_3,L25)*$O$22 -> 0 | P25: 0 | T25: =Lotto6_DL560_1!L18 ->  | U25: =Lotto6_DL560_1!F18 -> 0 | V25: =Lotto6_DL560_2!L20 -> 0 | W25: =Lotto6_DL560_2!F20 -> 0 | X25: =Lotto6_DL560_3!L20 -> 0 | Y25: =Lotto6_DL560_3!F20 -> 0 | AA25: =ISODD(SUM($J$23:J25)) -> FALSE | AB25: Cpu
B26: =IF(P26>0,P26,"") ->  | C26: =IF(B26="","",VLOOKUP(L26,Tabella_prezzi!$A$3:$K$138,9,FALSE)) ->  | D26: =IF(B26="","",VLOOKUP(L26,Tabella_prezzi!$A$3:$K$138,6,FALSE)) ->  | E26: =IF(B26="","",VLOOKUP(L26,Tabella_prezzi!$A$3:$K$138,8,FALSE)) ->  | F26: =IF(B26="","",VLOOKUP(L26,Tabella_prezzi!$A$3:$K$138,4,FALSE)) ->  | G26: =IF(C26="","",F26*B26) ->  | J26: 0 | K26: =VLOOKUP(L26,Tabella_prezzi!A4:K140,6,FALSE) -> TS3L6-CPUN | L26: L6N02b | M26: =COUNTIF(TS3L6_L6N_1,L26)*$M$22 -> 0 | N26: =COUNTIF(TS3L6_L6N_2,L26)*$N$22 -> 0 | O26: =COUNTIF(TS3L6_L6N_3,L26)*$O$22 -> 0 | P26: =SUM(M26:O26) -> 0 | AA26: =ISODD(SUM($J$23:J26)) -> FALSE
B27: =IF(P27>0,P27,"") ->  | C27: =IF(B27="","",VLOOKUP(L27,Tabella_prezzi!$A$3:$K$138,9,FALSE)) ->  | D27: =IF(B27="","",VLOOKUP(L27,Tabella_prezzi!$A$3:$K$138,6,FALSE)) ->  | E27: =IF(B27="","",VLOOKUP(L27,Tabella_prezzi!$A$3:$K$138,8,FALSE)) ->  | F27: =IF(B27="","",VLOOKUP(L27,Tabella_prezzi!$A$3:$K$138,4,FALSE)) ->  | G27: =IF(C27="","",F27*B27) ->  | J27: 0 | K27: =VLOOKUP(L27,Tabella_prezzi!A3:K140,6,FALSE) -> TS3L6-RAM32 | L27: L6N03 | M27: =COUNTIF(TS3L6_L6N_1,L27)*$M$22*Q27 -> 0 | N27: =COUNTIF(TS3L6_L6N_2,L27)*$N$22*R27 -> 0 | O27: =COUNTIF(TS3L6_L6N_3,L27)*$O$22*S27 -> 0 | P27: 0 | Q27: =Lotto6_DL560_1!$F$21 -> 0 | R27: =Lotto6_DL560_2!$F$21 -> 0 | S27: =Lotto6_DL560_3!$F$21 -> 0 | T27: =Lotto6_DL560_1!L21 ->  | U27: =Lotto6_DL560_1!F21 -> 0 | V27: =Lotto6_DL560_2!L24 -> 0 | W27: =Lotto6_DL560_2!F24 -> 0 | X27: =Lotto6_DL560_3!L24 -> 0 | Y27: =Lotto6_DL560_3!F24 -> 0 | AA27: =ISODD(SUM($J$23:J27)) -> FALSE | AB27: ram
B28: =IF(P28>0,P28,"") ->  | C28: =IF(B28="","",VLOOKUP(L28,Tabella_prezzi!$A$3:$K$138,9,FALSE)) ->  | D28: =IF(B28="","",VLOOKUP(L28,Tabella_prezzi!$A$3:$K$138,6,FALSE)) ->  | E28: =IF(B28="","",VLOOKUP(L28,Tabella_prezzi!$A$3:$K$138,8,FALSE)) ->  | F28: =IF(B28="","",VLOOKUP(L28,Tabella_prezzi!$A$3:$K$138,4,FALSE)) ->  | G28: =IF(C28="","",F28*B28) ->  | J28: =IF(B28="",0,1) -> 0 | K28: =VLOOKUP(L28,Tabella_prezzi!A4:K141,6,FALSE) -> TS3L6-RAM32N | L28: L6N03b | M28: =COUNTIF(TS3L6_L6N_1,L28)*$M$22*Q28 -> 0 | N28: =COUNTIF(TS3L6_L6N_2,L28)*$N$22*R28 -> 0 | O28: =COUNTIF(TS3L6_L6N_3,L28)*$O$22*S28 -> 0 | P28: =SUM(M28:O28) -> 0 | Q28: =Lotto6_DL560_1!$F$21 -> 0 | R28: =Lotto6_DL560_2!$F$21 -> 0 | S28: =Lotto6_DL560_3!$F$21 -> 0 | T28: =Lotto6_DL560_1!L22 ->  | U28: =Lotto6_DL560_1!F22 -> 0 | V28: =Lotto6_DL560_2!L25 ->  | W28: =Lotto6_DL560_2!F25 -> 0 | X28: =Lotto6_DL560_3!L25 ->  | Y28: =Lotto6_DL560_3!F25 -> 0 | AA28: =ISODD(SUM($J$23:J28)) -> FALSE
C29: =IF(B29="","",VLOOKUP(L29,Tabella_prezzi!$A$3:$K$138,9,FALSE)) ->  | D29: =IF(B29="","",VLOOKUP(L29,Tabella_prezzi!$A$3:$K$138,6,FALSE)) ->  | E29: =IF(B29="","",VLOOKUP(L29,Tabella_prezzi!$A$3:$K$138,8,FALSE)) ->  | F29: =IF(B29="","",VLOOKUP(L29,Tabella_prezzi!$A$3:$K$138,4,FALSE)) ->  | J29: 0 | K29: =VLOOKUP(L29,Tabella_prezzi!A3:K141,6,FALSE) -> TS3L6-RAM64 | L29: L6N04 | M29: =COUNTIF(TS3L6_L6N_1,L29)*$M$22*Q29 -> 0 | N29: =COUNTIF(TS3L6_L6N_2,L29)*$N$22*R29 -> 0 | O29: =COUNTIF(TS3L6_L6N_3,L29)*$O$22*S29 -> 0 | P29: 0 | Q29: =Lotto6_DL560_1!$F$22 -> 0 | R29: =Lotto6_DL560_2!$F$22 -> 0 | S29: =Lotto6_DL560_3!$F$22 -> 0 | T29: =Lotto6_DL560_1!L25 ->  | U29: =Lotto6_DL560_1!F25 -> 0 | V29: =Lotto6_DL560_2!L32 -> 0 | W29: =Lotto6_DL560_2!F32 -> 0 | X29: =Lotto6_DL560_3!L27 -> 0 | Y29: =Lotto6_DL560_3!F27 -> 0 | AA29: =ISODD(SUM($J$23:J29)) -> FALSE | AB29: ram
B30: =IF(P30>0,P30,"") ->  | C30: =IF(B30="","",VLOOKUP(L30,Tabella_prezzi!$A$3:$K$138,9,FALSE)) ->  | D30: =IF(B30="","",VLOOKUP(L30,Tabella_prezzi!$A$3:$K$138,6,FALSE)) ->  | E30: =IF(B30="","",VLOOKUP(L30,Tabella_prezzi!$A$3:$K$138,8,FALSE)) ->  | F30: =IF(B30="","",VLOOKUP(L30,Tabella_prezzi!$A$3:$K$138,4,FALSE)) ->  | G30: =IF(C30="","",F30*B30) ->  | J30: 0 | K30: =VLOOKUP(L30,Tabella_prezzi!A4:K142,6,FALSE) -> TS3L6-RAM64N | L30: L6N04b | M30: =COUNTIF(TS3L6_L6N_1,L30)*$M$22*Q30 -> 0 | N30: =COUNTIF(TS3L6_L6N_2,L30)*$N$22*R30 -> 0 | O30: =COUNTIF(TS3L6_L6N_3,L30)*$O$22*S30 -> 0 | P30: =SUM(M30:O30) -> 0 | Q30: =Lotto6_DL560_1!$F$22 -> 0 | R30: =Lotto6_DL560_2!$F$22 -> 0 | S30: =Lotto6_DL560_3!$F$22 -> 0 | AA30: =ISODD(SUM($J$23:J30)) -> FALSE
C31: =IF(B31="","",VLOOKUP(L31,Tabella_prezzi!$A$3:$K$138,9,FALSE)) ->  | D31: =IF(B31="","",VLOOKUP(L31,Tabella_prezzi!$A$3:$K$138,6,FALSE)) ->  | E31: =IF(B31="","",VLOOKUP(L31,Tabella_prezzi!$A$3:$K$138,8,FALSE)) ->  | F31: =IF(B31="","",VLOOKUP(L31,Tabella_prezzi!$A$3:$K$138,4,FALSE)) ->  | J31: 0 | K31: =VLOOKUP(L31,Tabella_prezzi!A3:K142,6,FALSE) -> TS3L6-LAN1 | L31: L6N05 | M31: =COUNTIF(TS3L6_L6N_1,L31)*$M$22 -> 0 | N31: =COUNTIF(TS3L6_L6N_2,L31)*$N$22 -> 0 | O31: =COUNTIF(TS3L6_L6N_3,L31)*$O$22 -> 0 | P31: 0 | T31: =Lotto6_DL560_1!L39 -> L6N12 | U31: =Lotto6_DL560_1!F39 -> 0 | V31: =Lotto6_DL560_2!L39 -> L6N12 | W31: =Lotto6_DL560_2!F40 -> 0 | X31: =Lotto6_DL560_3!L35 -> 0 | Y31: =Lotto6_DL560_3!F35 -> Disponibili | AA31: =ISODD(SUM($J$23:J31)) -> FALSE | AB31: Sist Op
C32: =IF(B32="","",VLOOKUP(L32,Tabella_prezzi!$A$3:$K$138,9,FALSE)) ->  | D32: =IF(B32="","",VLOOKUP(L32,Tabella_prezzi!$A$3:$K$138,6,FALSE)) ->  | E32: =IF(B32="","",VLOOKUP(L32,Tabella_prezzi!$A$3:$K$138,8,FALSE)) ->  | F32: =IF(B32="","",VLOOKUP(L32,Tabella_prezzi!$A$3:$K$138,4,FALSE)) ->  | J32: 0 | K32: =VLOOKUP(L32,Tabella_prezzi!A3:K143,6,FALSE) -> TS3L6-LAN1N | L32: L6N05b | M32: 0 | N32: 0 | O32: 0 | P32: 0 | T32: =Lotto6_DL560_1!L41 -> L6N11 | U32: =Lotto6_DL560_1!F41 -> 0 | V32: =Lotto6_DL560_2!L42 -> 0 | W32: =Lotto6_DL560_2!F42 -> 0 | X32: =Lotto6_DL560_3!L37 -> 0 | Y32: =Lotto6_DL560_3!F37 ->  | AA32: =ISODD(SUM($J$23:J32)) -> FALSE | AB32: hd2tb
C33: =IF(B33="","",VLOOKUP(L33,Tabella_prezzi!$A$3:$K$138,9,FALSE)) ->  | D33: =IF(B33="","",VLOOKUP(L33,Tabella_prezzi!$A$3:$K$138,6,FALSE)) ->  | E33: =IF(B33="","",VLOOKUP(L33,Tabella_prezzi!$A$3:$K$138,8,FALSE)) ->  | F33: =IF(B33="","",VLOOKUP(L33,Tabella_prezzi!$A$3:$K$138,4,FALSE)) ->  | J33: 0 | K33: =VLOOKUP(L33,Tabella_prezzi!A3:K144,6,FALSE) -> TS3L6-LAN10 | L33: L6N06 | M33: 0 | N33: 0 | O33: 0 | P33: 0 | T33: =Lotto6_DL560_1!L43 -> L6N10 | U33: =Lotto6_DL560_1!F43 -> 0 | V33: =Lotto6_DL560_2!L44 -> 0 | W33: =Lotto6_DL560_2!F44 -> 0 | X33: =Lotto6_DL560_3!L39 -> L6N12 | Y33: =Lotto6_DL560_3!F39 -> 0 | AA33: =ISODD(SUM($J$23:J33)) -> FALSE | AB33: hd1tb
C34: =IF(B34="","",VLOOKUP(L34,Tabella_prezzi!$A$3:$K$138,9,FALSE)) ->  | D34: =IF(B34="","",VLOOKUP(L34,Tabella_prezzi!$A$3:$K$138,6,FALSE)) ->  | E34: =IF(B34="","",VLOOKUP(L34,Tabella_prezzi!$A$3:$K$138,8,FALSE)) ->  | F34: =IF(B34="","",VLOOKUP(L34,Tabella_prezzi!$A$3:$K$138,4,FALSE)) ->  | J34: 0 | K34: =VLOOKUP(L34,Tabella_prezzi!A3:K145,6,FALSE) -> TS3L6-LAN10N | L34: L6N06b | M34: 0 | N34: 0 | O34: 0 | P34: 0 | T34: =Lotto6_DL560_1!#REF! ->  | U34: =Lotto6_DL560_1!#REF! ->  | V34: =Lotto6_DL560_2!L46 -> 0 | W34: =Lotto6_DL560_2!F46 -> 0 | X34: =Lotto6_DL560_3!L41 -> L6N11 | Y34: =Lotto6_DL560_3!F41 -> 0 | AA34: =ISODD(SUM($J$23:J34)) -> FALSE | AB34: hd300gb
C35: =IF(B35="","",VLOOKUP(L35,Tabella_prezzi!$A$3:$K$138,9,FALSE)) ->  | D35: =IF(B35="","",VLOOKUP(L35,Tabella_prezzi!$A$3:$K$138,6,FALSE)) ->  | E35: =IF(B35="","",VLOOKUP(L35,Tabella_prezzi!$A$3:$K$138,8,FALSE)) ->  | F35: =IF(B35="","",VLOOKUP(L35,Tabella_prezzi!$A$3:$K$138,4,FALSE)) ->  | J35: 0 | K35: =VLOOKUP(L35,Tabella_prezzi!A3:K146,6,FALSE) -> TS3L6-LAN25 | L35: L6N07 | M35: 0 | N35: 0 | O35: 0 | P35: 0 | T35: =Lotto6_DL560_1!#REF! ->  | U35: =Lotto6_DL560_1!#REF! ->  | V35: =Lotto6_DL560_2!L48 -> 0 | W35: =Lotto6_DL560_2!F48 -> 0 | X35: =Lotto6_DL560_3!L43 -> L6N10 | Y35: =Lotto6_DL560_3!F43 -> 0 | AA35: =ISODD(SUM($J$23:J35)) -> FALSE | AB35: ssd960GB
C36: =IF(B36="","",VLOOKUP(L36,Tabella_prezzi!$A$3:$K$138,9,FALSE)) ->  | D36: =IF(B36="","",VLOOKUP(L36,Tabella_prezzi!$A$3:$K$138,6,FALSE)) ->  | E36: =IF(B36="","",VLOOKUP(L36,Tabella_prezzi!$A$3:$K$138,8,FALSE)) ->  | F36: =IF(B36="","",VLOOKUP(L36,Tabella_prezzi!$A$3:$K$138,4,FALSE)) ->  | J36: 0 | K36: =VLOOKUP(L36,Tabella_prezzi!A3:K147,6,FALSE) -> TS3L6-LAN25N | L36: L6N07b | M36: 0 | N36: 0 | O36: 0 | P36: 0 | T36: =Lotto6_DL560_1!L72 ->  | U36: =Lotto6_DL560_1!F72 ->  | V36: =Lotto6_DL560_2!L57 -> 0 | W36: =Lotto6_DL560_2!F57 -> 0 | X36: =Lotto6_DL560_3!L52 -> 0 | Y36: =Lotto6_DL560_3!F52 -> 0 | AA36: =ISODD(SUM($J$23:J36)) -> FALSE | AB36: ssd480GB
C37: =IF(B37="","",VLOOKUP(L37,Tabella_prezzi!$A$3:$K$138,9,FALSE)) ->  | D37: =IF(B37="","",VLOOKUP(L37,Tabella_prezzi!$A$3:$K$138,6,FALSE)) ->  | E37: =IF(B37="","",VLOOKUP(L37,Tabella_prezzi!$A$3:$K$138,8,FALSE)) ->  | F37: =IF(B37="","",VLOOKUP(L37,Tabella_prezzi!$A$3:$K$138,4,FALSE)) ->  | J37: 0 | K37: =VLOOKUP(L37,Tabella_prezzi!A3:K148,6,FALSE) -> TS3L6-CNA10 | L37: L6N08 | M37: 0 | N37: 0 | O37: 0 | P37: 0 | T37: =Lotto6_DL560_1!L75 ->  | U37: =Lotto6_DL560_1!F75 ->  | V37: =Lotto6_DL560_2!L60 -> 0 | W37: =Lotto6_DL560_2!F60 -> 0 | X37: =Lotto6_DL560_3!L55 ->  | Y37: =Lotto6_DL560_3!F55 -> 0 | AA37: =ISODD(SUM($J$23:J37)) -> FALSE | AB37: pci1
C38: =IF(B38="","",VLOOKUP(L38,Tabella_prezzi!$A$3:$K$138,9,FALSE)) ->  | D38: =IF(B38="","",VLOOKUP(L38,Tabella_prezzi!$A$3:$K$138,6,FALSE)) ->  | E38: =IF(B38="","",VLOOKUP(L38,Tabella_prezzi!$A$3:$K$138,8,FALSE)) ->  | F38: =IF(B38="","",VLOOKUP(L38,Tabella_prezzi!$A$3:$K$138,4,FALSE)) ->  | J38: 0 | K38: =VLOOKUP(L38,Tabella_prezzi!A3:K149,6,FALSE) -> TS3L6-CNA10N | L38: L6N08b | M38: 0 | N38: 0 | O38: 0 | P38: 0 | T38: =Lotto6_DL560_1!L78 ->  | U38: =Lotto6_DL560_1!F78 ->  | V38: =Lotto6_DL560_2!L66 -> 0 | W38: =Lotto6_DL560_2!F66 -> 0 | X38: =Lotto6_DL560_3!L58 -> 0 | Y38: =Lotto6_DL560_3!F58 -> 0 | AA38: =ISODD(SUM($J$23:J38)) -> FALSE | AB38: pci2
C39: =IF(B39="","",VLOOKUP(L39,Tabella_prezzi!$A$3:$K$138,9,FALSE)) ->  | D39: =IF(B39="","",VLOOKUP(L39,Tabella_prezzi!$A$3:$K$138,6,FALSE)) ->  | E39: =IF(B39="","",VLOOKUP(L39,Tabella_prezzi!$A$3:$K$138,8,FALSE)) ->  | F39: =IF(B39="","",VLOOKUP(L39,Tabella_prezzi!$A$3:$K$138,4,FALSE)) ->  | J39: 0 | K39: =VLOOKUP(L39,Tabella_prezzi!A3:K150,6,FALSE) -> TS3L6-FC16 | L39: L6N09 | M39: 0 | N39: 0 | O39: 0 | P39: 0 | T39: =Lotto6_DL560_1!L81 ->  | U39: =Lotto6_DL560_1!F81 ->  | V39: =Lotto6_DL560_2!L69 -> 0 | W39: =Lotto6_DL560_2!F69 -> 0 | X39: =Lotto6_DL560_3!L61 ->  | Y39: =Lotto6_DL560_3!F61 ->  | AA39: =ISODD(SUM($J$23:J39)) -> FALSE | AB39: pci3
C40: =IF(B40="","",VLOOKUP(L40,Tabella_prezzi!$A$3:$K$138,9,FALSE)) ->  | D40: =IF(B40="","",VLOOKUP(L40,Tabella_prezzi!$A$3:$K$138,6,FALSE)) ->  | E40: =IF(B40="","",VLOOKUP(L40,Tabella_prezzi!$A$3:$K$138,8,FALSE)) ->  | F40: =IF(B40="","",VLOOKUP(L40,Tabella_prezzi!$A$3:$K$138,4,FALSE)) ->  | J40: 0 | K40: =VLOOKUP(L40,Tabella_prezzi!A3:K151,6,FALSE) -> TS3L6-FC16N | L40: L6N09b | M40: 0 | N40: 0 | O40: 0 | P40: 0 | T40: =Lotto6_DL560_1!L84 ->  | U40: =Lotto6_DL560_1!F84 ->  | V40: =Lotto6_DL560_2!L72 ->  | W40: =Lotto6_DL560_2!F72 ->  | X40: =Lotto6_DL560_3!L64 ->  | Y40: =Lotto6_DL560_3!F64 ->  | AA40: =ISODD(SUM($J$23:J40)) -> FALSE | AB40: pci4
C41: =IF(B41="","",VLOOKUP(L41,Tabella_prezzi!$A$3:$K$138,9,FALSE)) ->  | D41: =IF(B41="","",VLOOKUP(L41,Tabella_prezzi!$A$3:$K$138,6,FALSE)) ->  | E41: =IF(B41="","",VLOOKUP(L41,Tabella_prezzi!$A$3:$K$138,8,FALSE)) ->  | F41: =IF(B41="","",VLOOKUP(L41,Tabella_prezzi!$A$3:$K$138,4,FALSE)) ->  | J41: 0 | K41: =VLOOKUP(L41,Tabella_prezzi!A3:K152,6,FALSE) -> TS3L6-HDD2TB | L41: L6N10 | M41: =COUNTIF(TS3L6_L6N_1,L41)*$M$22*Q41 -> 0 | N41: =COUNTIF(TS3L6_L6N_2,L41)*$N$22*R41 -> 0 | O41: =COUNTIF(TS3L6_L6N_3,L41)*$O$22*S41 -> 0 | P41: 0 | Q41: =Lotto6_DL560_1!$F$43 -> 0 | R41: =Lotto6_DL560_2!$F$43 -> 0 | S41: =Lotto6_DL560_3!$F$43 -> 0 | T41: =Lotto6_DL560_1!L87 ->  | U41: =Lotto6_DL560_1!F87 ->  | V41: =Lotto6_DL560_2!L75 ->  | W41: =Lotto6_DL560_2!F75 ->  | X41: =Lotto6_DL560_3!L67 -> 0 | Y41: =Lotto6_DL560_3!F67 -> 0 | AA41: =ISODD(SUM($J$23:J41)) -> FALSE | AB41: pci5
C42: =IF(B42="","",VLOOKUP(L42,Tabella_prezzi!$A$3:$K$138,9,FALSE)) ->  | D42: =IF(B42="","",VLOOKUP(L42,Tabella_prezzi!$A$3:$K$138,6,FALSE)) ->  | E42: =IF(B42="","",VLOOKUP(L42,Tabella_prezzi!$A$3:$K$138,8,FALSE)) ->  | F42: =IF(B42="","",VLOOKUP(L42,Tabella_prezzi!$A$3:$K$138,4,FALSE)) ->  | J42: 0 | K42: =VLOOKUP(L42,Tabella_prezzi!A4:K153,6,FALSE) -> TS3L6-HDD2TBN | L42: L6N10b | M42: =COUNTIF(TS3L6_L6N_1,L42)*$M$22*Q42 -> 0 | N42: =COUNTIF(TS3L6_L6N_2,L42)*$N$22*R42 -> 0 | O42: =COUNTIF(TS3L6_L6N_3,L42)*$O$22*S42 -> 0 | P42: =SUM(M42:O42) -> 0 | Q42: =Lotto6_DL560_1!$F$43 -> 0 | R42: =Lotto6_DL560_2!$F$43 -> 0 | S42: =Lotto6_DL560_3!$F$43 -> 0 | AA42: =ISODD(SUM($J$23:J42)) -> FALSE
C43: =IF(B43="","",VLOOKUP(L43,Tabella_prezzi!$A$3:$K$138,9,FALSE)) ->  | D43: =IF(B43="","",VLOOKUP(L43,Tabella_prezzi!$A$3:$K$138,6,FALSE)) ->  | E43: =IF(B43="","",VLOOKUP(L43,Tabella_prezzi!$A$3:$K$138,8,FALSE)) ->  | F43: =IF(B43="","",VLOOKUP(L43,Tabella_prezzi!$A$3:$K$138,4,FALSE)) ->  | J43: 0 | K43: =VLOOKUP(L43,Tabella_prezzi!A3:K153,6,FALSE) -> TS3L6-HDD1TB | L43: L6N11 | M43: 0 | N43: 0 | O43: 0 | P43: 0 | Q43: =Lotto6_DL560_1!$F$41 -> 0 | R43: =Lotto6_DL560_2!$F$41 -> 0 | S43: =Lotto6_DL560_3!$F$41 -> 0 | T43: =Lotto6_DL560_1!L90 ->  | U43: =Lotto6_DL560_1!F90 ->  | V43: =Lotto6_DL560_2!L78 ->  | W43: =Lotto6_DL560_2!F78 ->  | X43: =Lotto6_DL560_3!L70 -> 0 | Y43: =Lotto6_DL560_3!F70 -> 0 | AA43: =ISODD(SUM($J$23:J43)) -> FALSE | AB43: pci6
C44: =IF(B44="","",VLOOKUP(L44,Tabella_prezzi!$A$3:$K$138,9,FALSE)) ->  | D44: =IF(B44="","",VLOOKUP(L44,Tabella_prezzi!$A$3:$K$138,6,FALSE)) ->  | E44: =IF(B44="","",VLOOKUP(L44,Tabella_prezzi!$A$3:$K$138,8,FALSE)) ->  | F44: =IF(B44="","",VLOOKUP(L44,Tabella_prezzi!$A$3:$K$138,4,FALSE)) ->  | J44: 0 | K44: =VLOOKUP(L44,Tabella_prezzi!A4:K154,6,FALSE) -> TS3L6-HDD1TBN | L44: L6N11b | M44: =COUNTIF(TS3L6_L6N_1,L44)*$M$22*Q44 -> 0 | N44: =COUNTIF(TS3L6_L6N_2,L44)*$N$22*R44 -> 0 | O44: =COUNTIF(TS3L6_L6N_3,L44)*$O$22*S44 -> 0 | P44: =SUM(M44:O44) -> 0 | Q44: =Lotto6_DL560_1!$F$41 -> 0 | R44: =Lotto6_DL560_2!$F$41 -> 0 | S44: =Lotto6_DL560_3!$F$41 -> 0 | AA44: =ISODD(SUM($J$23:J44)) -> FALSE
C45: =IF(B45="","",VLOOKUP(L45,Tabella_prezzi!$A$3:$K$138,9,FALSE)) ->  | D45: =IF(B45="","",VLOOKUP(L45,Tabella_prezzi!$A$3:$K$138,6,FALSE)) ->  | E45: =IF(B45="","",VLOOKUP(L45,Tabella_prezzi!$A$3:$K$138,8,FALSE)) ->  | F45: =IF(B45="","",VLOOKUP(L45,Tabella_prezzi!$A$3:$K$138,4,FALSE)) ->  | J45: 0 | K45: =VLOOKUP(L45,Tabella_prezzi!A3:K154,6,FALSE) -> TS3L6-HDD300GB | L45: L6N12 | M45: 0 | N45: 0 | O45: 0 | P45: 0 | Q45: =Lotto6_DL560_1!$F$39 -> 0 | R45: =Lotto6_DL560_2!$F$39 -> 0 | S45: =Lotto6_DL560_3!$F$39 -> 0 | T45: =Lotto6_DL560_1!L93 ->  | U45: =Lotto6_DL560_1!F93 ->  | V45: =Lotto6_DL560_2!L81 ->  | W45: =Lotto6_DL560_2!F81 ->  | X45: =Lotto6_DL560_3!L73 -> 0 | Y45: =Lotto6_DL560_3!F73 -> 0 | AA45: =ISODD(SUM($J$23:J45)) -> FALSE | AB45: pci7
C46: =IF(B46="","",VLOOKUP(L46,Tabella_prezzi!$A$3:$K$138,9,FALSE)) ->  | D46: =IF(B46="","",VLOOKUP(L46,Tabella_prezzi!$A$3:$K$138,6,FALSE)) ->  | E46: =IF(B46="","",VLOOKUP(L46,Tabella_prezzi!$A$3:$K$138,8,FALSE)) ->  | F46: =IF(B46="","",VLOOKUP(L46,Tabella_prezzi!$A$3:$K$138,4,FALSE)) ->  | J46: 0 | K46: =VLOOKUP(L46,Tabella_prezzi!A6:K156,6,FALSE) -> TS3L6-HDD300GBN | L46: L6N12b | M46: =COUNTIF(TS3L6_L6N_1,L46)*$M$22*Q46 -> 0 | N46: =COUNTIF(TS3L6_L6N_2,L46)*$N$22*R46 -> 0 | O46: =COUNTIF(TS3L6_L6N_3,L46)*$O$22*S46 -> 0 | P46: =SUM(M46:O46) -> 0 | Q46: =Lotto6_DL560_1!$F$39 -> 0 | R46: =Lotto6_DL560_2!$F$39 -> 0 | S46: =Lotto6_DL560_3!$F$39 -> 0 | AA46: =ISODD(SUM($J$23:J46)) -> FALSE
C47: =IF(B47="","",VLOOKUP(L47,Tabella_prezzi!$A$3:$K$138,9,FALSE)) ->  | D47: =IF(B47="","",VLOOKUP(L47,Tabella_prezzi!$A$3:$K$138,6,FALSE)) ->  | E47: =IF(B47="","",VLOOKUP(L47,Tabella_prezzi!$A$3:$K$138,8,FALSE)) ->  | F47: =IF(B47="","",VLOOKUP(L47,Tabella_prezzi!$A$3:$K$138,4,FALSE)) ->  | J47: 0 | K47: =VLOOKUP(L47,Tabella_prezzi!A3:K155,6,FALSE) -> TS3L6-RI1600GB | L47: L6N13 | M47: 0 | N47: 0 | O47: 0 | P47: 0 | Q47: =Lotto6_DL560_1!$F$47 -> 0 | R47: =Lotto6_DL560_2!$F$47 -> 0 | S47: =Lotto6_DL560_3!$F$47 -> 0 | T47: =Lotto6_DL560_1!L26 -> 0 | U47: =Lotto6_DL560_1!F26 -> 0 | V47: =Lotto6_DL560_2!L33 ->  | W47: =Lotto6_DL560_2!F33 ->  | X47: =Lotto6_DL560_3!L28 -> 0 | Y47: =Lotto6_DL560_3!F28 -> 0 | AA47: =ISODD(SUM($J$23:J47)) -> FALSE | AB47: pci8
C48: =IF(B48="","",VLOOKUP(L48,Tabella_prezzi!$A$3:$K$138,9,FALSE)) ->  | D48: =IF(B48="","",VLOOKUP(L48,Tabella_prezzi!$A$3:$K$138,6,FALSE)) ->  | E48: =IF(B48="","",VLOOKUP(L48,Tabella_prezzi!$A$3:$K$138,8,FALSE)) ->  | F48: =IF(B48="","",VLOOKUP(L48,Tabella_prezzi!$A$3:$K$138,4,FALSE)) ->  | J48: 0 | K48: =VLOOKUP(L48,Tabella_prezzi!A8:K158,6,FALSE) -> TS3L6-RI1600GBN | L48: L6N13b | M48: =COUNTIF(TS3L6_L6N_1,L48)*$M$22*Q48 -> 0 | N48: =COUNTIF(TS3L6_L6N_2,L48)*$N$22*R48 -> 0 | O48: =COUNTIF(TS3L6_L6N_3,L48)*$O$22*S48 -> 0 | P48: =SUM(M48:O48) -> 0 | Q48: =Lotto6_DL560_1!$F$47 -> 0 | R48: =Lotto6_DL560_2!$F$47 -> 0 | S48: =Lotto6_DL560_3!$F$47 -> 0 | AA48: =ISODD(SUM($J$23:J48)) -> FALSE
C49: =IF(B49="","",VLOOKUP(L49,Tabella_prezzi!$A$3:$K$138,9,FALSE)) ->  | D49: =IF(B49="","",VLOOKUP(L49,Tabella_prezzi!$A$3:$K$138,6,FALSE)) ->  | E49: =IF(B49="","",VLOOKUP(L49,Tabella_prezzi!$A$3:$K$138,8,FALSE)) ->  | F49: =IF(B49="","",VLOOKUP(L49,Tabella_prezzi!$A$3:$K$138,4,FALSE)) ->  | J49: 0 | K49: =VLOOKUP(L49,Tabella_prezzi!A3:K156,6,FALSE) -> TS3L6-MU1600GB | L49: L6N14 | M49: 0 | N49: 0 | O49: 0 | P49: 0 | Q49: =Lotto6_DL560_1!$F$51 -> 0 | R49: =Lotto6_DL560_2!$F$51 -> 0 | S49: =Lotto6_DL560_3!$F$51 -> 0 | AA49: =ISODD(SUM($J$23:J49)) -> FALSE | AB49: win2core
C50: =IF(B50="","",VLOOKUP(L50,Tabella_prezzi!$A$3:$K$138,9,FALSE)) ->  | D50: =IF(B50="","",VLOOKUP(L50,Tabella_prezzi!$A$3:$K$138,6,FALSE)) ->  | E50: =IF(B50="","",VLOOKUP(L50,Tabella_prezzi!$A$3:$K$138,8,FALSE)) ->  | F50: =IF(B50="","",VLOOKUP(L50,Tabella_prezzi!$A$3:$K$138,4,FALSE)) ->  | J50: 0 | K50: =VLOOKUP(L50,Tabella_prezzi!A10:K160,6,FALSE) -> TS3L6-MU1600GBN | L50: L6N14b | M50: =COUNTIF(TS3L6_L6N_1,L50)*$M$22*Q50 -> 0 | N50: =COUNTIF(TS3L6_L6N_2,L50)*$N$22*R50 -> 0 | O50: =COUNTIF(TS3L6_L6N_3,L50)*$O$22*S50 -> 0 | P50: =SUM(M50:O50) -> 0 | Q50: =Lotto6_DL560_1!$F$51 -> 0 | R50: =Lotto6_DL560_2!$F$51 -> 0 | S50: =Lotto6_DL560_3!$F$51 -> 0 | AA50: =ISODD(SUM($J$23:J50)) -> FALSE
C51: =IF(B51="","",VLOOKUP(L51,Tabella_prezzi!$A$3:$K$138,9,FALSE)) ->  | D51: =IF(B51="","",VLOOKUP(L51,Tabella_prezzi!$A$3:$K$138,6,FALSE)) ->  | E51: =IF(B51="","",VLOOKUP(L51,Tabella_prezzi!$A$3:$K$138,8,FALSE)) ->  | F51: =IF(B51="","",VLOOKUP(L51,Tabella_prezzi!$A$3:$K$138,4,FALSE)) ->  | J51: 0 | K51: =VLOOKUP(L51,Tabella_prezzi!A3:K157,6,FALSE) -> TS3L6-RI800GB | L51: L6N15 | M51: 0 | N51: 0 | O51: 0 | P51: 0 | Q51: =Lotto6_DL560_1!$F$45 -> 0 | R51: =Lotto6_DL560_2!$F$45 -> 0 | S51: =Lotto6_DL560_3!$F$45 -> 0 | AA51: =ISODD(SUM($J$23:J51)) -> FALSE
C52: =IF(B52="","",VLOOKUP(L52,Tabella_prezzi!$A$3:$K$138,9,FALSE)) ->  | D52: =IF(B52="","",VLOOKUP(L52,Tabella_prezzi!$A$3:$K$138,6,FALSE)) ->  | E52: =IF(B52="","",VLOOKUP(L52,Tabella_prezzi!$A$3:$K$138,8,FALSE)) ->  | F52: =IF(B52="","",VLOOKUP(L52,Tabella_prezzi!$A$3:$K$138,4,FALSE)) ->  | J52: 0 | K52: =VLOOKUP(L52,Tabella_prezzi!A12:K162,6,FALSE) -> TS3L6-RI800GBN | L52: L6N15b | M52: =COUNTIF(TS3L6_L6N_1,L52)*$M$22*Q52 -> 0 | N52: =COUNTIF(TS3L6_L6N_2,L52)*$N$22*R52 -> 0 | O52: =COUNTIF(TS3L6_L6N_3,L52)*$O$22*S52 -> 0 | P52: =SUM(M52:O52) -> 0 | Q52: =Lotto6_DL560_1!$F$45 -> 0 | R52: =Lotto6_DL560_2!$F$45 -> 0 | S52: =Lotto6_DL560_3!$F$45 -> 0 | AA52: =ISODD(SUM($J$23:J52)) -> FALSE
C53: =IF(B53="","",VLOOKUP(L53,Tabella_prezzi!$A$3:$K$138,9,FALSE)) ->  | D53: =IF(B53="","",VLOOKUP(L53,Tabella_prezzi!$A$3:$K$138,6,FALSE)) ->  | E53: =IF(B53="","",VLOOKUP(L53,Tabella_prezzi!$A$3:$K$138,8,FALSE)) ->  | F53: =IF(B53="","",VLOOKUP(L53,Tabella_prezzi!$A$3:$K$138,4,FALSE)) ->  | J53: 0 | K53: =VLOOKUP(L53,Tabella_prezzi!A3:K158,6,FALSE) -> TS3L6-MU800GB | L53: L6N16 | M53: 0 | N53: 0 | O53: 0 | P53: 0 | Q53: =Lotto6_DL560_1!$F$49-2 -> 0 | R53: =Lotto6_DL560_2!$F$49-2 -> 0 | S53: =Lotto6_DL560_3!$F$49-2 -> 0 | T53: =COUNTIF(TS3L6_L6N_1,L53) -> 1 | AA53: =ISODD(SUM($J$23:J53)) -> FALSE
C54: =IF(B54="","",VLOOKUP(L54,Tabella_prezzi!$A$3:$K$138,9,FALSE)) ->  | D54: =IF(B54="","",VLOOKUP(L54,Tabella_prezzi!$A$3:$K$138,6,FALSE)) ->  | E54: =IF(B54="","",VLOOKUP(L54,Tabella_prezzi!$A$3:$K$138,8,FALSE)) ->  | F54: =IF(B54="","",VLOOKUP(L54,Tabella_prezzi!$A$3:$K$138,4,FALSE)) ->  | J54: 0 | K54: =VLOOKUP(L54,Tabella_prezzi!A14:K164,6,FALSE) -> TS3L6-MU800GBN | L54: L6N16b | M54: =COUNTIF(TS3L6_L6N_1,L54)*$M$22*Q54 -> 0 | N54: =COUNTIF(TS3L6_L6N_2,L54)*$N$22*R54 -> 0 | O54: =COUNTIF(TS3L6_L6N_3,L54)*$O$22*S54 -> 0 | P54: =SUM(M54:O54) -> 0 | Q54: =Lotto6_DL560_1!$F$49-2 -> 0 | R54: =Lotto6_DL560_2!$F$49-2 -> 0 | S54: =Lotto6_DL560_3!$F$49-2 -> 0 | T54: =COUNTIF(TS3L6_L6N_1,L54) -> 0 | AA54: =ISODD(SUM($J$23:J54)) -> FALSE
C55: =IF(B55="","",VLOOKUP(L55,Tabella_prezzi!$A$3:$K$138,9,FALSE)) ->  | D55: =IF(B55="","",VLOOKUP(L55,Tabella_prezzi!$A$3:$K$138,6,FALSE)) ->  | E55: =IF(B55="","",VLOOKUP(L55,Tabella_prezzi!$A$3:$K$138,8,FALSE)) ->  | F55: =IF(B55="","",VLOOKUP(L55,Tabella_prezzi!$A$3:$K$138,4,FALSE)) ->  | J55: 0 | K55: =VLOOKUP(L55,Tabella_prezzi!A3:K159,6,FALSE) -> TS3L6-RI400GB | L55: L6N17 | M55: 0 | N55: =COUNTIF(TS3L6_L6N_2,L55)*$N$22*R55 -> 0 | O55: =COUNTIF(TS3L6_L6N_3,L55)*$O$22*S55 -> 0 | P55: 0 | AA55: =ISODD(SUM($J$23:J55)) -> FALSE
C56: =IF(B56="","",VLOOKUP(L56,Tabella_prezzi!$A$3:$K$138,9,FALSE)) ->  | D56: =IF(B56="","",VLOOKUP(L56,Tabella_prezzi!$A$3:$K$138,6,FALSE)) ->  | E56: =IF(B56="","",VLOOKUP(L56,Tabella_prezzi!$A$3:$K$138,8,FALSE)) ->  | F56: =IF(B56="","",VLOOKUP(L56,Tabella_prezzi!$A$3:$K$138,4,FALSE)) ->  | J56: 0 | K56: =VLOOKUP(L56,Tabella_prezzi!A16:K166,6,FALSE) -> TS3L6-RI400GBN | L56: L6N17b | M56: =COUNTIF(TS3L6_L6N_1,L56)*$M$22*Q56 -> 0 | N56: =COUNTIF(TS3L6_L6N_2,L56)*$N$22*R56 -> 0 | O56: =COUNTIF(TS3L6_L6N_3,L56)*$O$22*S56 -> 0 | P56: 0 | AA56: =ISODD(SUM($J$23:J56)) -> FALSE
C57: =IF(B57="","",VLOOKUP(L57,Tabella_prezzi!$A$3:$K$138,9,FALSE)) ->  | D57: =IF(B57="","",VLOOKUP(L57,Tabella_prezzi!$A$3:$K$138,6,FALSE)) ->  | E57: =IF(B57="","",VLOOKUP(L57,Tabella_prezzi!$A$3:$K$138,8,FALSE)) ->  | F57: =IF(B57="","",VLOOKUP(L57,Tabella_prezzi!$A$3:$K$138,4,FALSE)) ->  | J57: 0 | K57: =VLOOKUP(L57,Tabella_prezzi!A17:K167,6,FALSE) -> TS3L6-NVME1600N | L57: L6N18b | M57: =COUNTIF(TS3L6_L6N_1,L57)*$M$22*Q57 -> 0 | N57: =COUNTIF(TS3L6_L6N_2,L57)*$N$22*R57 -> 0 | O57: =COUNTIF(TS3L6_L6N_3,L57)*$O$22*S57 -> 0 | P57: 0 | Q57: =Lotto6_DL560_1!$F$55 -> 0 | R57: =Lotto6_DL560_2!$F$55 -> 0 | S57: =Lotto6_DL560_3!$F$55 -> 0 | T57: =COUNTIF(TS3L6_L6N_2,L57) -> 0 | AA57: =ISODD(SUM($J$23:J57)) -> FALSE
C58: =IF(B58="","",VLOOKUP(L58,Tabella_prezzi!$A$3:$K$138,9,FALSE)) ->  | D58: =IF(B58="","",VLOOKUP(L58,Tabella_prezzi!$A$3:$K$138,6,FALSE)) ->  | E58: =IF(B58="","",VLOOKUP(L58,Tabella_prezzi!$A$3:$K$138,8,FALSE)) ->  | F58: =IF(B58="","",VLOOKUP(L58,Tabella_prezzi!$A$3:$K$138,4,FALSE)) ->  | J58: 0 | K58: =VLOOKUP(L58,Tabella_prezzi!A18:K168,6,FALSE) -> TS3L6-NVME800N | L58: L6N19b | M58: =COUNTIF(TS3L6_L6N_1,L58)*$M$22*Q58 -> 0 | N58: =COUNTIF(TS3L6_L6N_2,L58)*$N$22*R58 -> 0 | O58: =COUNTIF(TS3L6_L6N_3,L58)*$O$22*S58 -> 0 | P58: 0 | Q58: =Lotto6_DL560_1!$F$53 -> 0 | R58: =Lotto6_DL560_2!$F$53 -> 0 | S58: =Lotto6_DL560_3!$F$53 -> 0 | T58: =COUNTIF(TS3L6_L6N_2,L58) -> 0 | AA58: =ISODD(SUM($J$23:J58)) -> FALSE
C59: =IF(B59="","",VLOOKUP(L59,Tabella_prezzi!$A$3:$K$138,9,FALSE)) ->  | D59: =IF(B59="","",VLOOKUP(L59,Tabella_prezzi!$A$3:$K$138,6,FALSE)) ->  | E59: =IF(B59="","",VLOOKUP(L59,Tabella_prezzi!$A$3:$K$138,8,FALSE)) ->  | F59: =IF(B59="","",VLOOKUP(L59,Tabella_prezzi!$A$3:$K$138,4,FALSE)) ->  | J59: 0 | K59: =VLOOKUP(L59,Tabella_prezzi!A3:K161,6,FALSE) -> TS3L6-UPS | L59: L6N20 | M59: =IF($P$23>=1,Altre_Opzioni!$F$35,0) -> 0 | P59: 0 | AA59: =ISODD(SUM($J$23:J59)) -> FALSE
C60: =IF(B60="","",VLOOKUP(L60,Tabella_prezzi!$A$3:$K$138,9,FALSE)) ->  | D60: =IF(B60="","",VLOOKUP(L60,Tabella_prezzi!$A$3:$K$138,6,FALSE)) ->  | E60: =IF(B60="","",VLOOKUP(L60,Tabella_prezzi!$A$3:$K$138,8,FALSE)) ->  | F60: =IF(B60="","",VLOOKUP(L60,Tabella_prezzi!$A$3:$K$138,4,FALSE)) ->  | J60: 0 | K60: =VLOOKUP(L60,Tabella_prezzi!A20:K170,6,FALSE) -> TS3L6-UPSN | L60: L6N20b | M60: =IF($P$24>=1,Altre_Opzioni!$F$35,0) -> 0 | P60: =IF(P59>=1,0,Altre_Opzioni!$F$35) -> 0 | AA60: =ISODD(SUM($J$23:J60)) -> FALSE
C61: =IF(B61="","",VLOOKUP(L61,Tabella_prezzi!$A$3:$K$138,9,FALSE)) ->  | D61: =IF(B61="","",VLOOKUP(L61,Tabella_prezzi!$A$3:$K$138,6,FALSE)) ->  | E61: =IF(B61="","",VLOOKUP(L61,Tabella_prezzi!$A$3:$K$138,8,FALSE)) ->  | F61: =IF(B61="","",VLOOKUP(L61,Tabella_prezzi!$A$3:$K$138,4,FALSE)) ->  | J61: 0 | K61: =VLOOKUP(L61,Tabella_prezzi!A3:K162,6,FALSE) -> TS3L6-GUI | L61: L6N21 | M61: =IF($P$23>=1,Altre_Opzioni!$F$38,0) -> 0 | P61: =SUM(M61:O61) -> 0 | AA61: =ISODD(SUM($J$23:J61)) -> FALSE
C62: =IF(B62="","",VLOOKUP(L62,Tabella_prezzi!$A$3:$K$138,9,FALSE)) ->  | D62: =IF(B62="","",VLOOKUP(L62,Tabella_prezzi!$A$3:$K$138,6,FALSE)) ->  | E62: =IF(B62="","",VLOOKUP(L62,Tabella_prezzi!$A$3:$K$138,8,FALSE)) ->  | F62: =IF(B62="","",VLOOKUP(L62,Tabella_prezzi!$A$3:$K$138,4,FALSE)) ->  | J62: 0 | K62: =VLOOKUP(L62,Tabella_prezzi!A22:K172,6,FALSE) -> TS3L6-GUIN | L62: L6N21b | M62: =IF($P$24>=1,Altre_Opzioni!$F$38,0) -> 0 | P62: =IF(P61>=1,0,Altre_Opzioni!$F$38) -> 0 | AA62: =ISODD(SUM($J$23:J62)) -> FALSE
C63: =IF(B63="","",VLOOKUP(L63,Tabella_prezzi!$A$3:$K$138,9,FALSE)) ->  | D63: =IF(B63="","",VLOOKUP(L63,Tabella_prezzi!$A$3:$K$138,6,FALSE)) ->  | E63: =IF(B63="","",VLOOKUP(L63,Tabella_prezzi!$A$3:$K$138,8,FALSE)) ->  | F63: =IF(B63="","",VLOOKUP(L63,Tabella_prezzi!$A$3:$K$138,4,FALSE)) ->  | J63: 0 | K63: =VLOOKUP(L63,Tabella_prezzi!A3:K163,6,FALSE) -> TS3L6-SWKVM | L63: L6N22 | M63: =IF($P$23>=1,Altre_Opzioni!$F$41,0) -> 0 | P63: =SUM(M63:O63) -> 0 | AA63: =ISODD(SUM($J$23:J63)) -> FALSE
C64: =IF(B64="","",VLOOKUP(L64,Tabella_prezzi!$A$3:$K$138,9,FALSE)) ->  | D64: =IF(B64="","",VLOOKUP(L64,Tabella_prezzi!$A$3:$K$138,6,FALSE)) ->  | E64: =IF(B64="","",VLOOKUP(L64,Tabella_prezzi!$A$3:$K$138,8,FALSE)) ->  | F64: =IF(B64="","",VLOOKUP(L64,Tabella_prezzi!$A$3:$K$138,4,FALSE)) ->  | J64: 0 | K64: =VLOOKUP(L64,Tabella_prezzi!A24:K174,6,FALSE) -> TS3L6-SWKVMN | L64: L6N22b | M64: =IF($P$24>=1,Altre_Opzioni!$F$41,0) -> 0 | P64: =IF(P63>=1,0,Altre_Opzioni!$F$41) -> 0 | AA64: =ISODD(SUM($J$23:J64)) -> FALSE
C65: =IF(B65="","",VLOOKUP(L65,Tabella_prezzi!$A$3:$K$138,9,FALSE)) ->  | D65: =IF(B65="","",VLOOKUP(L65,Tabella_prezzi!$A$3:$K$138,6,FALSE)) ->  | E65: =IF(B65="","",VLOOKUP(L65,Tabella_prezzi!$A$3:$K$138,8,FALSE)) ->  | F65: =IF(B65="","",VLOOKUP(L65,Tabella_prezzi!$A$3:$K$138,4,FALSE)) ->  | J65: 0 | K65: =VLOOKUP(L65,Tabella_prezzi!A3:K164,6,FALSE) -> TS3L6-WINSTD | L65: L6N23 | M65: =COUNTIF(TS3L6_L6N_1,L65)*$M$22 -> 0 | N65: =COUNTIF(TS3L6_L6N_2,L65)*$N$22 -> 0 | O65: =COUNTIF(TS3L6_L6N_3,L65)*$O$22 -> 0 | P65: 0 | AA65: =ISODD(SUM($J$23:J65)) -> FALSE
C66: =IF(B66="","",VLOOKUP(L66,Tabella_prezzi!$A$3:$K$138,9,FALSE)) ->  | D66: =IF(B66="","",VLOOKUP(L66,Tabella_prezzi!$A$3:$K$138,6,FALSE)) ->  | E66: =IF(B66="","",VLOOKUP(L66,Tabella_prezzi!$A$3:$K$138,8,FALSE)) ->  | F66: =IF(B66="","",VLOOKUP(L66,Tabella_prezzi!$A$3:$K$138,4,FALSE)) ->  | J66: 0 | K66: =VLOOKUP(L66,Tabella_prezzi!A26:K176,6,FALSE) -> TS3L6-WINSTDN | L66: L6N23b | M66: =COUNTIF(TS3L6_L6N_1,L66)*$M$22 -> 0 | N66: =COUNTIF(TS3L6_L6N_2,L66)*$N$22 -> 0 | O66: =COUNTIF(TS3L6_L6N_3,L66)*$O$22 -> 0 | P66: =SUM(M66:O66) -> 0 | AA66: =ISODD(SUM($J$23:J66)) -> FALSE
C67: =IF(B67="","",VLOOKUP(L67,Tabella_prezzi!$A$3:$K$138,9,FALSE)) ->  | D67: =IF(B67="","",VLOOKUP(L67,Tabella_prezzi!$A$3:$K$138,6,FALSE)) ->  | E67: =IF(B67="","",VLOOKUP(L67,Tabella_prezzi!$A$3:$K$138,8,FALSE)) ->  | F67: =IF(B67="","",VLOOKUP(L67,Tabella_prezzi!$A$3:$K$138,4,FALSE)) ->  | J67: 0 | K67: =VLOOKUP(L67,Tabella_prezzi!A27:K177,6,FALSE) -> TS3L6-WINDVCAL | L67: L6N24 | M67: =IF($P$23>=1,Altre_Opzioni!$F$44,0) -> 0 | P67: =SUM(M67:O67) -> 0 | AA67: =ISODD(SUM($J$23:J67)) -> FALSE
C68: =IF(B68="","",VLOOKUP(L68,Tabella_prezzi!$A$3:$K$138,9,FALSE)) ->  | D68: =IF(B68="","",VLOOKUP(L68,Tabella_prezzi!$A$3:$K$138,6,FALSE)) ->  | E68: =IF(B68="","",VLOOKUP(L68,Tabella_prezzi!$A$3:$K$138,8,FALSE)) ->  | F68: =IF(B68="","",VLOOKUP(L68,Tabella_prezzi!$A$3:$K$138,4,FALSE)) ->  | J68: 0 | K68: =VLOOKUP(L68,Tabella_prezzi!A28:K178,6,FALSE) -> TS3L6-WINDVCALN | L68: L6N24b | M68: =IF($P$24>=1,Altre_Opzioni!$F$44,0) -> 0 | P68: =IF(P67>=1,0,Altre_Opzioni!$F$44) -> 0 | AA68: =ISODD(SUM($J$23:J68)) -> FALSE
C69: =IF(B69="","",VLOOKUP(L69,Tabella_prezzi!$A$3:$K$138,9,FALSE)) ->  | D69: =IF(B69="","",VLOOKUP(L69,Tabella_prezzi!$A$3:$K$138,6,FALSE)) ->  | E69: =IF(B69="","",VLOOKUP(L69,Tabella_prezzi!$A$3:$K$138,8,FALSE)) ->  | F69: =IF(B69="","",VLOOKUP(L69,Tabella_prezzi!$A$3:$K$138,4,FALSE)) ->  | J69: 0 | K69: =VLOOKUP(L69,Tabella_prezzi!A29:K179,6,FALSE) -> TS3L6-WINUSCAL | L69: L6N25 | M69: =IF($P$23>=1,Altre_Opzioni!$F$47,0) -> 0 | P69: =SUM(M69:O69) -> 0 | AA69: =ISODD(SUM($J$23:J69)) -> FALSE
C70: =IF(B70="","",VLOOKUP(L70,Tabella_prezzi!$A$3:$K$138,9,FALSE)) ->  | D70: =IF(B70="","",VLOOKUP(L70,Tabella_prezzi!$A$3:$K$138,6,FALSE)) ->  | E70: =IF(B70="","",VLOOKUP(L70,Tabella_prezzi!$A$3:$K$138,8,FALSE)) ->  | F70: =IF(B70="","",VLOOKUP(L70,Tabella_prezzi!$A$3:$K$138,4,FALSE)) ->  | J70: 0 | K70: =VLOOKUP(L70,Tabella_prezzi!A30:K180,6,FALSE) -> TS3L6-WINUSCALN | L70: L6N25b | M70: =IF($P$24>=1,Altre_Opzioni!$F$47,0) -> 0 | P70: =IF(P69>=1,0,Altre_Opzioni!$F$47) -> 0 | AA70: =ISODD(SUM($J$23:J70)) -> FALSE
C71: =IF(B71="","",VLOOKUP(L71,Tabella_prezzi!$A$3:$K$138,9,FALSE)) ->  | D71: =IF(B71="","",VLOOKUP(L71,Tabella_prezzi!$A$3:$K$138,6,FALSE)) ->  | E71: =IF(B71="","",VLOOKUP(L71,Tabella_prezzi!$A$3:$K$138,8,FALSE)) ->  | F71: =IF(B71="","",VLOOKUP(L71,Tabella_prezzi!$A$3:$K$138,4,FALSE)) ->  | J71: 0 | K71: =VLOOKUP(L71,Tabella_prezzi!A3:K165,6,FALSE) -> TS3L6-WINSRV2C | L71: L6N26 | M71: =COUNTIF(TS3L6_L6N_1,L71)*$M$22*Q71 -> 0 | N71: =COUNTIF(TS3L6_L6N_2,L71)*$N$22*R71 -> 0 | O71: =COUNTIF(TS3L6_L6N_3,L71)*$O$22*S71 -> 0 | P71: 0 | Q71: =Lotto6_DL560_1!$F$26 -> 0 | R71: =Lotto6_DL560_2!$F$26 -> 0 | S71: =Lotto6_DL560_3!$F$26 -> 0 | AA71: =ISODD(SUM($J$23:J71)) -> FALSE
C72: =IF(B72="","",VLOOKUP(L72,Tabella_prezzi!$A$3:$K$138,9,FALSE)) ->  | D72: =IF(B72="","",VLOOKUP(L72,Tabella_prezzi!$A$3:$K$138,6,FALSE)) ->  | E72: =IF(B72="","",VLOOKUP(L72,Tabella_prezzi!$A$3:$K$138,8,FALSE)) ->  | F72: =IF(B72="","",VLOOKUP(L72,Tabella_prezzi!$A$3:$K$138,4,FALSE)) ->  | J72: 0 | K72: =VLOOKUP(L72,Tabella_prezzi!A28:K178,6,FALSE) -> TS3L6-WINSRV2CN | L72: L6N26b | M72: =COUNTIF(TS3L6_L6N_1,L72)*$M$22*Q72 -> 0 | N72: =COUNTIF(TS3L6_L6N_2,L72)*$N$22*R72 -> 0 | O72: =COUNTIF(TS3L6_L6N_3,L72)*$O$22*S72 -> 0 | P72: =SUM(M72:O72) -> 0 | Q72: =Lotto6_DL560_1!$F$26 -> 0 | R72: =Lotto6_DL560_2!$F$26 -> 0 | S72: =Lotto6_DL560_3!$F$26 -> 0 | AA72: =ISODD(SUM($J$23:J72)) -> FALSE
C73: =IF(B73="","",VLOOKUP(L73,Tabella_prezzi!$A$3:$K$138,9,FALSE)) ->  | D73: =IF(B73="","",VLOOKUP(L73,Tabella_prezzi!$A$3:$K$138,6,FALSE)) ->  | E73: =IF(B73="","",VLOOKUP(L73,Tabella_prezzi!$A$3:$K$138,8,FALSE)) ->  | F73: =IF(B73="","",VLOOKUP(L73,Tabella_prezzi!$A$3:$K$138,4,FALSE)) ->  | J73: 0 | K73: =VLOOKUP(L73,Tabella_prezzi!A3:K187,6,FALSE) -> TS3L6-WINDC | L73: L6N27 | M73: =COUNTIF(TS3L6_L6N_1,L73)*$M$22 -> 0 | N73: =COUNTIF(TS3L6_L6N_2,L73)*$N$22 -> 0 | O73: =COUNTIF(TS3L6_L6N_3,L73)*$O$22 -> 0 | P73: =SUM(M73:O73) -> 0 | AA73: =ISODD(SUM($J$23:J73)) -> FALSE
C74: =IF(B74="","",VLOOKUP(L74,Tabella_prezzi!$A$3:$K$138,9,FALSE)) ->  | D74: =IF(B74="","",VLOOKUP(L74,Tabella_prezzi!$A$3:$K$138,6,FALSE)) ->  | E74: =IF(B74="","",VLOOKUP(L74,Tabella_prezzi!$A$3:$K$138,8,FALSE)) ->  | F74: =IF(B74="","",VLOOKUP(L74,Tabella_prezzi!$A$3:$K$138,4,FALSE)) ->  | J74: 0 | K74: =VLOOKUP(L74,Tabella_prezzi!A30:K180,6,FALSE) -> TS3L6-WINDCN | L74: L6N27b | M74: =COUNTIF(TS3L6_L6N_1,L74)*$M$22 -> 0 | N74: =COUNTIF(TS3L6_L6N_2,L74)*$N$22 -> 0 | O74: =COUNTIF(TS3L6_L6N_3,L74)*$O$22 -> 0 | P74: =SUM(M74:O74) -> 0 | V74: =P65+P66+P73+P74 -> 0 | AA74: =ISODD(SUM($J$23:J74)) -> FALSE
C75: =IF(B75="","",VLOOKUP(L75,Tabella_prezzi!$A$3:$K$138,9,FALSE)) ->  | D75: =IF(B75="","",VLOOKUP(L75,Tabella_prezzi!$A$3:$K$138,6,FALSE)) ->  | E75: =IF(B75="","",VLOOKUP(L75,Tabella_prezzi!$A$3:$K$138,8,FALSE)) ->  | F75: =IF(B75="","",VLOOKUP(L75,Tabella_prezzi!$A$3:$K$138,4,FALSE)) ->  | J75: 0 | K75: =VLOOKUP(L75,Tabella_prezzi!A3:K188,6,FALSE) -> TS3L6-WINDC2C | L75: L6N28 | M75: =COUNTIF(TS3L6_L6N_1,L75)*$M$22*Q75 -> 0 | N75: =COUNTIF(TS3L6_L6N_2,L75)*$N$22*R75 -> 0 | O75: =COUNTIF(TS3L6_L6N_3,L75)*$O$22*S75 -> 0 | P75: =SUM(M75:O75) -> 0 | Q75: =Lotto6_DL560_1!$F$26 -> 0 | R75: =Lotto6_DL560_2!$F$26 -> 0 | S75: =Lotto6_DL560_3!$F$26 -> 0 | AA75: =ISODD(SUM($J$23:J75)) -> FALSE
C76: =IF(B76="","",VLOOKUP(L76,Tabella_prezzi!$A$3:$K$138,9,FALSE)) ->  | D76: =IF(B76="","",VLOOKUP(L76,Tabella_prezzi!$A$3:$K$138,6,FALSE)) ->  | E76: =IF(B76="","",VLOOKUP(L76,Tabella_prezzi!$A$3:$K$138,8,FALSE)) ->  | F76: =IF(B76="","",VLOOKUP(L76,Tabella_prezzi!$A$3:$K$138,4,FALSE)) ->  | J76: 0 | K76: =VLOOKUP(L76,Tabella_prezzi!A32:K182,6,FALSE) -> TS3L6-WINDC2CN | L76: L6N28b | M76: =COUNTIF(TS3L6_L6N_1,L76)*$M$22*Q76 -> 0 | N76: =COUNTIF(TS3L6_L6N_2,L76)*$N$22*R76 -> 0 | O76: =COUNTIF(TS3L6_L6N_3,L76)*$O$22*S76 -> 0 | P76: =SUM(M76:O76) -> 0 | Q76: =Lotto6_DL560_1!$F$26 -> 0 | R76: =Lotto6_DL560_2!$F$26 -> 0 | S76: =Lotto6_DL560_3!$F$26 -> 0 | AA76: =ISODD(SUM($J$23:J76)) -> FALSE
C77: =IF(B77="","",VLOOKUP(L77,Tabella_prezzi!$A$3:$K$138,9,FALSE)) ->  | D77: =IF(B77="","",VLOOKUP(L77,Tabella_prezzi!$A$3:$K$138,6,FALSE)) ->  | E77: =IF(B77="","",VLOOKUP(L77,Tabella_prezzi!$A$3:$K$138,8,FALSE)) ->  | F77: =IF(B77="","",VLOOKUP(L77,Tabella_prezzi!$A$3:$K$138,4,FALSE)) ->  | J77: 0 | K77: =VLOOKUP(L77,Tabella_prezzi!A3:K168,6,FALSE) -> TS3L6-LINUX | L77: L6N29 | M77: =COUNTIF(TS3L6_L6N_1,L77)*$M$22 -> 0 | N77: =COUNTIF(TS3L6_L6N_2,L77)*$N$22 -> 0 | O77: =COUNTIF(TS3L6_L6N_3,L77)*$O$22 -> 0 | P77: 0 | AA77: =ISODD(SUM($J$23:J77)) -> FALSE
C78: =IF(B78="","",VLOOKUP(L78,Tabella_prezzi!$A$3:$K$138,9,FALSE)) ->  | D78: =IF(B78="","",VLOOKUP(L78,Tabella_prezzi!$A$3:$K$138,6,FALSE)) ->  | E78: =IF(B78="","",VLOOKUP(L78,Tabella_prezzi!$A$3:$K$138,8,FALSE)) ->  | F78: =IF(B78="","",VLOOKUP(L78,Tabella_prezzi!$A$3:$K$138,4,FALSE)) ->  | J78: 0 | K78: =VLOOKUP(L78,Tabella_prezzi!A38:K188,6,FALSE) -> TS3L6-LINUXN | L78: L6N29b | M78: =COUNTIF(TS3L6_L6N_1,L78)*$M$22 -> 0 | N78: =COUNTIF(TS3L6_L6N_2,L78)*$N$22 -> 0 | O78: =COUNTIF(TS3L6_L6N_3,L78)*$O$22 -> 0 | P78: =SUM(M78:O78) -> 0 | AA78: =ISODD(SUM($J$23:J78)) -> FALSE
C79: =IF(B79="","",VLOOKUP(L79,Tabella_prezzi!$A$3:$K$138,9,FALSE)) ->  | D79: =IF(B79="","",VLOOKUP(L79,Tabella_prezzi!$A$3:$K$138,6,FALSE)) ->  | E79: =IF(B79="","",VLOOKUP(L79,Tabella_prezzi!$A$3:$K$138,8,FALSE)) ->  | F79: =IF(B79="","",VLOOKUP(L79,Tabella_prezzi!$A$3:$K$138,4,FALSE)) ->  | J79: 0 | K79: =VLOOKUP(L79,Tabella_prezzi!A3:K169,6,FALSE) -> TS3L6-HDRTN | L79: L6N30 | M79: 0 | N79: 0 | O79: 0 | P79: 0 | AA79: =ISODD(SUM($J$23:J79)) -> FALSE
C80: =IF(B80="","",VLOOKUP(L80,Tabella_prezzi!$A$3:$K$138,9,FALSE)) ->  | D80: =IF(B80="","",VLOOKUP(L80,Tabella_prezzi!$A$3:$K$138,6,FALSE)) ->  | E80: =IF(B80="","",VLOOKUP(L80,Tabella_prezzi!$A$3:$K$138,8,FALSE)) ->  | F80: =IF(B80="","",VLOOKUP(L80,Tabella_prezzi!$A$3:$K$138,4,FALSE)) ->  | J80: 0 | K80: =VLOOKUP(L80,Tabella_prezzi!A40:K190,6,FALSE) -> TS3L6-HDRTNN | L80: L6N30b | M80: =COUNTIF(TS3L6_L6N_1,L80)*$M$22 -> 0 | N80: =COUNTIF(TS3L6_L6N_2,L80)*$N$22 -> 0 | O80: =COUNTIF(TS3L6_L6N_3,L80)*$O$22 -> 0 | P80: =SUM(M80:O80) -> 0 | AA80: =ISODD(SUM($J$23:J80)) -> FALSE
C81: =IF(B81="","",VLOOKUP(L81,Tabella_prezzi!$A$3:$K$138,9,FALSE)) ->  | D81: =IF(B81="","",VLOOKUP(L81,Tabella_prezzi!$A$3:$K$138,6,FALSE)) ->  | E81: =IF(B81="","",VLOOKUP(L81,Tabella_prezzi!$A$3:$K$138,8,FALSE)) ->  | F81: =IF(B81="","",VLOOKUP(L81,Tabella_prezzi!$A$3:$K$138,4,FALSE)) ->  | J81: 0 | K81: =VLOOKUP(L81,Tabella_prezzi!A3:K170,6,FALSE) -> TS3L6-5Y | L81: L6N31 | M81: 0 | N81: 0 | O81: 0 | P81: 0 | AA81: =ISODD(SUM($J$23:J81)) -> FALSE
C82: =IF(B82="","",VLOOKUP(L82,Tabella_prezzi!$A$3:$K$138,9,FALSE)) ->  | D82: =IF(B82="","",VLOOKUP(L82,Tabella_prezzi!$A$3:$K$138,6,FALSE)) ->  | E82: =IF(B82="","",VLOOKUP(L82,Tabella_prezzi!$A$3:$K$138,8,FALSE)) ->  | F82: =IF(B82="","",VLOOKUP(L82,Tabella_prezzi!$A$3:$K$138,4,FALSE)) ->  | J82: 0 | K82: =VLOOKUP(L82,Tabella_prezzi!A73:K192,6,FALSE) -> TS3L6-5YN | L82: L6N31b | M82: =COUNTIF(TS3L6_L6N_1,L82)*$M$22 -> 0 | N82: =COUNTIF(TS3L6_L6N_2,L82)*$N$22 -> 0 | O82: =COUNTIF(TS3L6_L6N_3,L82)*$O$22 -> 0 | P82: =SUM(M82:O82) -> 0 | AA82: =ISODD(SUM($J$23:J82)) -> FALSE
C83: =IF(B83="","",VLOOKUP(L83,Tabella_prezzi!$A$3:$K$138,9,FALSE)) ->  | D83: =IF(B83="","",VLOOKUP(L83,Tabella_prezzi!$A$3:$K$138,6,FALSE)) ->  | E83: =IF(B83="","",VLOOKUP(L83,Tabella_prezzi!$A$3:$K$138,8,FALSE)) ->  | F83: =IF(B83="","",VLOOKUP(L83,Tabella_prezzi!$A$3:$K$138,4,FALSE)) ->  | J83: 0 | K83: =VLOOKUP(L83,Tabella_prezzi!A3:K171,6,FALSE) -> TS3L6-RACK | L83: L6N32 | M83: =IF($P$23>=1,Altre_Opzioni!$F$17,0) -> 0 | P83: 0 | AA83: =ISODD(SUM($J$23:J83)) -> FALSE
C84: =IF(B84="","",VLOOKUP(L84,Tabella_prezzi!$A$3:$K$138,9,FALSE)) ->  | D84: =IF(B84="","",VLOOKUP(L84,Tabella_prezzi!$A$3:$K$138,6,FALSE)) ->  | E84: =IF(B84="","",VLOOKUP(L84,Tabella_prezzi!$A$3:$K$138,8,FALSE)) ->  | F84: =IF(B84="","",VLOOKUP(L84,Tabella_prezzi!$A$3:$K$138,4,FALSE)) ->  | J84: 0 | K84: =VLOOKUP(L84,Tabella_prezzi!A4:K172,6,FALSE) -> TS3L6-RACKN | L84: L6N32b | M84: =IF($P$24>=1,Altre_Opzioni!$F$17,0) -> 0 | P84: =IF($P$83>=1,0,Altre_Opzioni!$F$17) -> 0 | AA84: =ISODD(SUM($J$23:J84)) -> FALSE
C85: =IF(B85="","",VLOOKUP(L85,Tabella_prezzi!$A$3:$K$138,9,FALSE)) ->  | D85: =IF(B85="","",VLOOKUP(L85,Tabella_prezzi!$A$3:$K$138,6,FALSE)) ->  | E85: =IF(B85="","",VLOOKUP(L85,Tabella_prezzi!$A$3:$K$138,8,FALSE)) ->  | F85: =IF(B85="","",VLOOKUP(L85,Tabella_prezzi!$A$3:$K$138,4,FALSE)) ->  | J85: 0 | K85: =VLOOKUP(L85,Tabella_prezzi!A5:K173,6,FALSE) -> TS3L6-HDRTN60 | L85: L6N33 | M85: =COUNTIF(TS3L6_L6N_1,L85)*$M$22 -> 0 | N85: =COUNTIF(TS3L6_L6N_2,L85)*$N$22 -> 0 | O85: =COUNTIF(TS3L6_L6N_3,L85)*$O$22 -> 0 | P85: =SUM(M85:O85) -> 0 | AA85: =ISODD(SUM($J$23:J85)) -> FALSE
B86: =IF(P86>0,P86,"") ->  | C86: =IF(B86="","",VLOOKUP(L86,Tabella_prezzi!$A$3:$K$138,9,FALSE)) ->  | D86: =IF(B86="","",VLOOKUP(L86,Tabella_prezzi!$A$3:$K$138,6,FALSE)) ->  | E86: =IF(B86="","",VLOOKUP(L86,Tabella_prezzi!$A$3:$K$138,8,FALSE)) ->  | F86: =IF(B86="","",VLOOKUP(L86,Tabella_prezzi!$A$3:$K$138,4,FALSE)) ->  | G86: =IF(C86="","",F86*B86) ->  | J86: 0 | K86: =VLOOKUP(L86,Tabella_prezzi!A6:K174,6,FALSE) -> TS3L6-HDRTN60N | L86: L6N33b | M86: =COUNTIF(TS3L6_L6N_1,L86)*$M$22 -> 0 | N86: =COUNTIF(TS3L6_L6N_2,L86)*$N$22 -> 0 | O86: =COUNTIF(TS3L6_L6N_3,L86)*$O$22 -> 0 | P86: =SUM(M86:O86) -> 0 | AA86: =ISODD(SUM($J$23:J86)) -> FALSE
B87: TECNOLOGIE SERVER 3 LOTTO 6 - LISTA ULTERIORI ARTICOLI IN CONVENZIONE (20%) - | J87: =IF($G$153>0,1,0) -> 0 | T87: =Lotto6_DL560_1!O121 ->  | U87: =Lotto6_DL560_1!F121 ->  | V87: =Lotto6_DL560_2!L99 ->  | W87: =Lotto6_DL560_2!F99 -> 0 | X87: =Lotto6_DL560_3!L91 -> 0 | Y87: =Lotto6_DL560_3!F91 -> 0 | AA87: =ISODD(SUM($J$23:J87)) -> FALSE | AB87: retention
B88: Quantità | C88: Codice Articolo Produttore | D88: Codice Articolo Convenzione | E88: Descrizione | F88: Costo unitario | G88: Costo complessivo | J88: =IF($G$153>0,1,0) -> 0 | T88: =Lotto6_DL560_1!L118 ->  | U88: =Lotto6_DL560_1!F118 ->  | V88: =Lotto6_DL560_2!L96 ->  | W88: =Lotto6_DL560_2!F96 ->  | X88: =Lotto6_DL560_3!L88 -> 0 | Y88: =Lotto6_DL560_3!F88 -> 0 | AA88: =ISODD(SUM($J$23:J88)) -> FALSE | AB88: warranty
B89: =IF(P89>0,P89,"") ->  | C89: =IF(B89="","",VLOOKUP(L89,Tabella_prezzi!$A$3:$K$138,9,FALSE)) ->  | D89: =IF(B89="","",VLOOKUP(L89,Tabella_prezzi!$A$3:$K$138,6,FALSE)) ->  | E89: =IF(B89="","",VLOOKUP(L89,Tabella_prezzi!$A$3:$K$138,8,FALSE)) ->  | F89: =IF(B89="","",VLOOKUP(L89,Tabella_prezzi!$A$3:$K$138,4,FALSE)) ->  | G89: =IF(C89="","",F89*B89) ->  | J89: =IF(B89="",0,1) -> 0 | K89: =VLOOKUP(L89,Tabella_prezzi!A3:K190,6,FALSE) -> TS3L6-RJ453M | L89: L6N34 | M89: =COUNTIF(TS3L6_L6N_1,L89)*$M$22*Q89 -> 0 | N89: =COUNTIF(TS3L6_L6N_2,L89)*$N$22*R89 -> 0 | O89: =COUNTIF(TS3L6_L6N_3,L89)*$O$22*S89 -> 0 | P89: =SUM(M89:O89) -> 0 | Q89: =Lotto6_DL560_1!$F$115 -> 5 | R89: =Lotto6_DL560_2!$F$115 -> 5 | S89: =Lotto6_DL560_3!$F$115 -> 5 | AA89: =ISODD(SUM($J$23:J89)) -> FALSE
C90: =IF(B90="","",VLOOKUP(L90,Tabella_prezzi!$A$3:$K$138,9,FALSE)) ->  | D90: =IF(B90="","",VLOOKUP(L90,Tabella_prezzi!$A$3:$K$138,6,FALSE)) ->  | E90: =IF(B90="","",VLOOKUP(L90,Tabella_prezzi!$A$3:$K$138,8,FALSE)) ->  | F90: =IF(B90="","",VLOOKUP(L90,Tabella_prezzi!$A$3:$K$138,4,FALSE)) ->  | J90: =IF(B90="",0,1) -> 0 | K90: =VLOOKUP(L90,Tabella_prezzi!A3:K158,6,FALSE) -> TS3L6-RJ453MN | L90: L6N34b | M90: =COUNTIF(TS3L6_L6N_1,L90)*$M$22*Q90 -> 0 | N90: =COUNTIF(TS3L6_L6N_2,L90)*$N$22*R90 -> 0 | O90: =COUNTIF(TS3L6_L6N_3,L90)*$O$22*S90 -> 0 | P90: =SUM(M90:O90) -> 0 | Q90: =Lotto6_DL560_1!$F$115 -> 5 | R90: =Lotto6_DL560_2!$F$115 -> 5 | S90: =Lotto6_DL560_3!$F$115 -> 5 | T90: =Lotto6_DL560_1!#REF! ->  | U90: =Lotto6_DL560_1!#REF! ->  | V90: =Lotto6_DL560_2!L108 ->  | W90: =Lotto6_DL560_2!F108 -> 0 | X90: =Lotto6_DL560_3!L95 -> 0 | Y90: =Lotto6_DL560_3!F95 -> 0 | AA90: =ISODD(SUM($J$23:J90)) -> FALSE | AB90: ups
C91: =IF(B91="","",VLOOKUP(L91,Tabella_prezzi!$A$3:$K$138,9,FALSE)) ->  | D91: =IF(B91="","",VLOOKUP(L91,Tabella_prezzi!$A$3:$K$138,6,FALSE)) ->  | E91: =IF(B91="","",VLOOKUP(L91,Tabella_prezzi!$A$3:$K$138,8,FALSE)) ->  | F91: =IF(B91="","",VLOOKUP(L91,Tabella_prezzi!$A$3:$K$138,4,FALSE)) ->  | G91: =IF(C91="","",F91*B91) ->  | J91: =IF(B91="",0,1) -> 0 | K91: =VLOOKUP(L91,Tabella_prezzi!A3:K159,6,FALSE) -> TS3L6-OV3YILO | L91: L6N35 | M91: =COUNTIF(TS3L6_L6N_1,L91)*$M$22 -> 0 | N91: =COUNTIF(TS3L6_L6N_2,L91)*$N$22 -> 0 | O91: =COUNTIF(TS3L6_L6N_3,L91)*$O$22 -> 0 | P91: 0 | T91: =Lotto6_DL560_1!#REF! ->  | U91: =Lotto6_DL560_1!#REF! ->  | V91: =Lotto6_DL560_2!L111 -> 0 | W91: =Lotto6_DL560_2!F111 -> 0 | X91: =Lotto6_DL560_3!L98 -> 0 | Y91: =Lotto6_DL560_3!F98 -> 0 | AA91: =ISODD(SUM($J$23:J91)) -> FALSE | AB91: gui
C92: =IF(B92="","",VLOOKUP(L92,Tabella_prezzi!$A$3:$K$138,9,FALSE)) ->  | D92: =IF(B92="","",VLOOKUP(L92,Tabella_prezzi!$A$3:$K$138,6,FALSE)) ->  | E92: =IF(B92="","",VLOOKUP(L92,Tabella_prezzi!$A$3:$K$138,8,FALSE)) ->  | F92: =IF(B92="","",VLOOKUP(L92,Tabella_prezzi!$A$3:$K$138,4,FALSE)) ->  | J92: 0 | K92: =VLOOKUP(L92,Tabella_prezzi!A3:K160,6,FALSE) -> TS3L6-OP101 | L92: L6N37 | M92: =COUNTIF(TS3L6_L6N_1,L92)*$M$22 -> 0 | N92: 0 | O92: 0 | P92: 0 | T92: =Lotto6_DL560_1!#REF! ->  | U92: =Lotto6_DL560_1!#REF! ->  | V92: =Lotto6_DL560_2!L93 ->  | W92: =Lotto6_DL560_2!F93 ->  | X92: =Lotto6_DL560_3!L85 -> 0 | Y92: =Lotto6_DL560_3!F85 -> 0 | AA92: =ISODD(SUM($J$23:J92)) -> FALSE
C93: =IF(B93="","",VLOOKUP(L93,Tabella_prezzi!$A$3:$K$138,9,FALSE)) ->  | D93: =IF(B93="","",VLOOKUP(L93,Tabella_prezzi!$A$3:$K$138,6,FALSE)) ->  | E93: =IF(B93="","",VLOOKUP(L93,Tabella_prezzi!$A$3:$K$138,8,FALSE)) ->  | F93: =IF(B93="","",VLOOKUP(L93,Tabella_prezzi!$A$3:$K$138,4,FALSE)) ->  | J93: 0 | K93: =VLOOKUP(L93,Tabella_prezzi!A3:K161,6,FALSE) -> TS3L6-DACAOCM3 | L93: L6N38 | M93: =COUNTIF(TS3L6_L6N_1,L93)*$M$22*Q93 -> 0 | N93: =COUNTIF(TS3L6_L6N_2,L93)*$N$22*R93 -> 0 | O93: =COUNTIF(TS3L6_L6N_3,L93)*$O$22*S93 -> 0 | P93: 0 | Q93: =Lotto6_DL560_1!$F$99 -> 0 | R93: =Lotto6_DL560_2!$F$99 -> 0 | S93: =Lotto6_DL560_3!$F$99 -> 0 | T93: =Lotto6_DL560_1!L115 -> L6N34 | U93: =Lotto6_DL560_1!F115 -> 5 | V93: =Lotto6_DL560_2!L90 ->  | W93: =Lotto6_DL560_2!F90 ->  | X93: =Lotto6_DL560_3!L82 -> 0 | Y93: =Lotto6_DL560_3!F82 -> 0 | AA93: =ISODD(SUM($J$23:J93)) -> FALSE
C94: =IF(B94="","",VLOOKUP(L94,Tabella_prezzi!$A$3:$K$138,9,FALSE)) ->  | D94: =IF(B94="","",VLOOKUP(L94,Tabella_prezzi!$A$3:$K$138,6,FALSE)) ->  | E94: =IF(B94="","",VLOOKUP(L94,Tabella_prezzi!$A$3:$K$138,8,FALSE)) ->  | F94: =IF(B94="","",VLOOKUP(L94,Tabella_prezzi!$A$3:$K$138,4,FALSE)) ->  | J94: 0 | K94: =VLOOKUP(L94,Tabella_prezzi!A3:K162,6,FALSE) -> TS3L6-DACAOCM5 | L94: L6N39 | M94: =COUNTIF(TS3L6_L6N_1,L94)*$M$22*Q94 -> 0 | N94: =COUNTIF(TS3L6_L6N_2,L94)*$N$22*R94 -> 0 | O94: =COUNTIF(TS3L6_L6N_3,L94)*$O$22*S94 -> 0 | P94: 0 | Q94: =Lotto6_DL560_1!$F$100 -> 0 | R94: =Lotto6_DL560_2!$F$100 -> 0 | S94: =Lotto6_DL560_3!$F$100 -> 0 | T94: =Lotto6_DL560_1!L99 ->  | U94: =Lotto6_DL560_1!F99 -> 0 | V94: =Lotto6_DL560_2!L87 ->  | W94: =Lotto6_DL560_2!F87 ->  | X94: =Lotto6_DL560_3!L79 -> 0 | Y94: =Lotto6_DL560_3!F79 -> 0 | AA94: =ISODD(SUM($J$23:J94)) -> FALSE
C95: =IF(B95="","",VLOOKUP(L95,Tabella_prezzi!$A$3:$K$138,9,FALSE)) ->  | D95: =IF(B95="","",VLOOKUP(L95,Tabella_prezzi!$A$3:$K$138,6,FALSE)) ->  | E95: =IF(B95="","",VLOOKUP(L95,Tabella_prezzi!$A$3:$K$138,8,FALSE)) ->  | F95: =IF(B95="","",VLOOKUP(L95,Tabella_prezzi!$A$3:$K$138,4,FALSE)) ->  | J95: 0 | K95: =VLOOKUP(L95,Tabella_prezzi!A3:K163,6,FALSE) -> TS3L6-DACAOCM7 | L95: L6N40 | M95: =COUNTIF(TS3L6_L6N_1,L95)*$M$22*Q95 -> 0 | N95: =COUNTIF(TS3L6_L6N_2,L95)*$N$22*R95 -> 0 | O95: =COUNTIF(TS3L6_L6N_3,L95)*$O$22*S95 -> 0 | P95: 0 | Q95: =Lotto6_DL560_1!$F$101 -> 0 | R95: =Lotto6_DL560_2!$F$101 -> 0 | S95: =Lotto6_DL560_3!$F$101 -> 0 | T95: =Lotto6_DL560_1!L96 ->  | U95: =Lotto6_DL560_1!F96 ->  | V95: =Lotto6_DL560_2!L84 ->  | W95: =Lotto6_DL560_2!F84 ->  | X95: =Lotto6_DL560_3!L76 -> 0 | Y95: =Lotto6_DL560_3!F76 -> 0 | AA95: =ISODD(SUM($J$23:J95)) -> FALSE
C96: =IF(B96="","",VLOOKUP(L96,Tabella_prezzi!$A$3:$K$138,9,FALSE)) ->  | D96: =IF(B96="","",VLOOKUP(L96,Tabella_prezzi!$A$3:$K$138,6,FALSE)) ->  | E96: =IF(B96="","",VLOOKUP(L96,Tabella_prezzi!$A$3:$K$138,8,FALSE)) ->  | F96: =IF(B96="","",VLOOKUP(L96,Tabella_prezzi!$A$3:$K$138,4,FALSE)) ->  | J96: 0 | K96: =VLOOKUP(L96,Tabella_prezzi!A3:K164,6,FALSE) -> TS3L6-SASBAY1 | L96: L6N49 | M96: 0 | N96: 0 | O96: 0 | P96: 0 | T96: =Lotto6_DL560_1!L12 -> 0 | U96: =Lotto6_DL560_1!F12 -> 0 | V96: =Lotto6_DL560_2!L11 -> 0 | W96: =Lotto6_DL560_2!F11 -> 0 | X96: =Lotto6_DL560_3!L11 -> 0 | Y96: =Lotto6_DL560_3!F11 -> 0 | AA96: =ISODD(SUM($J$23:J96)) -> FALSE
C97: =IF(B97="","",VLOOKUP(L97,Tabella_prezzi!$A$3:$K$138,9,FALSE)) ->  | D97: =IF(B97="","",VLOOKUP(L97,Tabella_prezzi!$A$3:$K$138,6,FALSE)) ->  | E97: =IF(B97="","",VLOOKUP(L97,Tabella_prezzi!$A$3:$K$138,8,FALSE)) ->  | F97: =IF(B97="","",VLOOKUP(L97,Tabella_prezzi!$A$3:$K$138,4,FALSE)) ->  | J97: 0 | K97: =VLOOKUP(L97,Tabella_prezzi!A3:K165,6,FALSE) -> TS3L6-DUAL32GB | L97: L6N50 | M97: 0 | N97: 0 | O97: 0 | P97: 0 | AA97: =ISODD(SUM($J$23:J97)) -> FALSE
C98: =IF(B98="","",VLOOKUP(L98,Tabella_prezzi!$A$3:$K$138,9,FALSE)) ->  | D98: =IF(B98="","",VLOOKUP(L98,Tabella_prezzi!$A$3:$K$138,6,FALSE)) ->  | E98: =IF(B98="","",VLOOKUP(L98,Tabella_prezzi!$A$3:$K$138,8,FALSE)) ->  | F98: =IF(B98="","",VLOOKUP(L98,Tabella_prezzi!$A$3:$K$138,4,FALSE)) ->  | J98: 0 | K98: =VLOOKUP(L98,Tabella_prezzi!A3:K166,6,FALSE) -> TS3L6-CTRL-OS | L98: L6N51 | M98: 0 | N98: 0 | O98: 0 | P98: 0 | AA98: =ISODD(SUM($J$23:J98)) -> FALSE
B99: =IF(P99>0,P99,"") ->  | C99: =IF(B99="","",VLOOKUP(L99,Tabella_prezzi!$A$3:$K$138,9,FALSE)) ->  | D99: =IF(B99="","",VLOOKUP(L99,Tabella_prezzi!$A$3:$K$138,6,FALSE)) ->  | E99: =IF(B99="","",VLOOKUP(L99,Tabella_prezzi!$A$3:$K$138,8,FALSE)) ->  | F99: =IF(B99="","",VLOOKUP(L99,Tabella_prezzi!$A$3:$K$138,4,FALSE)) ->  | G99: =IF(C99="","",F99*B99) ->  | J99: 0 | K99: =VLOOKUP(L99,Tabella_prezzi!A3:K167,6,FALSE) -> TS3L6-CTRL-E | L99: L6N52 | M99: 0 | N99: 0 | O99: 0 | P99: 0 | AA99: =ISODD(SUM($J$23:J99)) -> FALSE
C100: =IF(B100="","",VLOOKUP(L100,Tabella_prezzi!$A$3:$K$138,9,FALSE)) ->  | D100: =IF(B100="","",VLOOKUP(L100,Tabella_prezzi!$A$3:$K$138,6,FALSE)) ->  | E100: =IF(B100="","",VLOOKUP(L100,Tabella_prezzi!$A$3:$K$138,8,FALSE)) ->  | F100: =IF(B100="","",VLOOKUP(L100,Tabella_prezzi!$A$3:$K$138,4,FALSE)) ->  | J100: 0 | K100: =VLOOKUP(L100,Tabella_prezzi!A3:K168,6,FALSE) -> TS3L6-TESLAT4 | L100: L6N54 | M100: 0 | N100: 0 | O100: 0 | P100: 0 | AA100: =ISODD(SUM($J$23:J100)) -> FALSE
C101: =IF(B101="","",VLOOKUP(L101,Tabella_prezzi!$A$3:$K$138,9,FALSE)) ->  | D101: =IF(B101="","",VLOOKUP(L101,Tabella_prezzi!$A$3:$K$138,6,FALSE)) ->  | E101: =IF(B101="","",VLOOKUP(L101,Tabella_prezzi!$A$3:$K$138,8,FALSE)) ->  | F101: =IF(B101="","",VLOOKUP(L101,Tabella_prezzi!$A$3:$K$138,4,FALSE)) ->  | J101: 0 | K101: =VLOOKUP(L101,Tabella_prezzi!A3:K169,6,FALSE) -> TS3L6-P2200 | L101: L6N55 | M101: 0 | N101: 0 | O101: 0 | P101: 0 | AA101: =ISODD(SUM($J$23:J101)) -> FALSE
C102: =IF(B102="","",VLOOKUP(L102,Tabella_prezzi!$A$3:$K$138,9,FALSE)) ->  | D102: =IF(B102="","",VLOOKUP(L102,Tabella_prezzi!$A$3:$K$138,6,FALSE)) ->  | E102: =IF(B102="","",VLOOKUP(L102,Tabella_prezzi!$A$3:$K$138,8,FALSE)) ->  | F102: =IF(B102="","",VLOOKUP(L102,Tabella_prezzi!$A$3:$K$138,4,FALSE)) ->  | J102: 0 | K102: =VLOOKUP(L102,Tabella_prezzi!A3:K170,6,FALSE) -> TS3L6-CTRL-A | L102: L6N56 | M102: 0 | N102: 0 | O102: 0 | P102: 0 | AA102: =ISODD(SUM($J$23:J102)) -> FALSE
C103: =IF(B103="","",VLOOKUP(L103,Tabella_prezzi!$A$3:$K$138,9,FALSE)) ->  | D103: =IF(B103="","",VLOOKUP(L103,Tabella_prezzi!$A$3:$K$138,6,FALSE)) ->  | E103: =IF(B103="","",VLOOKUP(L103,Tabella_prezzi!$A$3:$K$138,8,FALSE)) ->  | F103: =IF(B103="","",VLOOKUP(L103,Tabella_prezzi!$A$3:$K$138,4,FALSE)) ->  | J103: 0 | K103: =VLOOKUP(L103,Tabella_prezzi!A3:K171,6,FALSE) -> TS3L6-CTRL-P | L103: L6N57 | M103: 0 | N103: 0 | O103: 0 | P103: 0 | AA103: =ISODD(SUM($J$23:J103)) -> FALSE
C104: =IF(B104="","",VLOOKUP(L104,Tabella_prezzi!$A$3:$K$138,9,FALSE)) ->  | D104: =IF(B104="","",VLOOKUP(L104,Tabella_prezzi!$A$3:$K$138,6,FALSE)) ->  | E104: =IF(B104="","",VLOOKUP(L104,Tabella_prezzi!$A$3:$K$138,8,FALSE)) ->  | F104: =IF(B104="","",VLOOKUP(L104,Tabella_prezzi!$A$3:$K$138,4,FALSE)) ->  | J104: 0 | K104: =VLOOKUP(L104,Tabella_prezzi!A3:K172,6,FALSE) -> TS3L6-OV3YILON | L104: L6N35B | M104: 0 | N104: 0 | O104: 0 | P104: 0 | AA104: =ISODD(SUM($J$23:J104)) -> FALSE
C105: =IF(B105="","",VLOOKUP(L105,Tabella_prezzi!$A$3:$K$138,9,FALSE)) ->  | D105: =IF(B105="","",VLOOKUP(L105,Tabella_prezzi!$A$3:$K$138,6,FALSE)) ->  | E105: =IF(B105="","",VLOOKUP(L105,Tabella_prezzi!$A$3:$K$138,8,FALSE)) ->  | F105: =IF(B105="","",VLOOKUP(L105,Tabella_prezzi!$A$3:$K$138,4,FALSE)) ->  | J105: 0 | K105: =VLOOKUP(L105,Tabella_prezzi!A3:K173,6,FALSE) -> TS3L6-OP101N | L105: L6N37B | M105: 0 | N105: 0 | O105: 0 | P105: 0 | AA105: =ISODD(SUM($J$23:J105)) -> FALSE
C106: =IF(B106="","",VLOOKUP(L106,Tabella_prezzi!$A$3:$K$138,9,FALSE)) ->  | D106: =IF(B106="","",VLOOKUP(L106,Tabella_prezzi!$A$3:$K$138,6,FALSE)) ->  | E106: =IF(B106="","",VLOOKUP(L106,Tabella_prezzi!$A$3:$K$138,8,FALSE)) ->  | F106: =IF(B106="","",VLOOKUP(L106,Tabella_prezzi!$A$3:$K$138,4,FALSE)) ->  | J106: 0 | K106: =VLOOKUP(L106,Tabella_prezzi!A3:K174,6,FALSE) -> TS3L6-DACAOCM3N | L106: L6N38B | M106: =COUNTIF(TS3L6_L6N_1,L106)*$M$22*Q106 -> 0 | N106: =COUNTIF(TS3L6_L6N_2,L106)*$N$22*R106 -> 0 | O106: =COUNTIF(TS3L6_L6N_3,L106)*$O$22*S106 -> 0 | P106: =SUM(M106:O106) -> 0 | Q106: =Lotto6_DL560_1!$F$99 -> 0 | R106: =Lotto6_DL560_2!$F$99 -> 0 | S106: =Lotto6_DL560_3!$F$99 -> 0 | AA106: =ISODD(SUM($J$23:J106)) -> FALSE
C107: =IF(B107="","",VLOOKUP(L107,Tabella_prezzi!$A$3:$K$138,9,FALSE)) ->  | D107: =IF(B107="","",VLOOKUP(L107,Tabella_prezzi!$A$3:$K$138,6,FALSE)) ->  | E107: =IF(B107="","",VLOOKUP(L107,Tabella_prezzi!$A$3:$K$138,8,FALSE)) ->  | F107: =IF(B107="","",VLOOKUP(L107,Tabella_prezzi!$A$3:$K$138,4,FALSE)) ->  | J107: 0 | K107: =VLOOKUP(L107,Tabella_prezzi!A3:K175,6,FALSE) -> TS3L6-DACAOCM5N | L107: L6N39B | M107: =COUNTIF(TS3L6_L6N_1,L107)*$M$22*Q107 -> 0 | N107: =COUNTIF(TS3L6_L6N_2,L107)*$N$22*R107 -> 0 | O107: =COUNTIF(TS3L6_L6N_3,L107)*$O$22*S107 -> 0 | P107: 0 | Q107: =Lotto6_DL560_1!$F$100 -> 0 | R107: =Lotto6_DL560_2!$F$100 -> 0 | S107: =Lotto6_DL560_3!$F$100 -> 0 | AA107: =ISODD(SUM($J$23:J107)) -> FALSE
C108: =IF(B108="","",VLOOKUP(L108,Tabella_prezzi!$A$3:$K$138,9,FALSE)) ->  | D108: =IF(B108="","",VLOOKUP(L108,Tabella_prezzi!$A$3:$K$138,6,FALSE)) ->  | E108: =IF(B108="","",VLOOKUP(L108,Tabella_prezzi!$A$3:$K$138,8,FALSE)) ->  | F108: =IF(B108="","",VLOOKUP(L108,Tabella_prezzi!$A$3:$K$138,4,FALSE)) ->  | J108: 0 | K108: =VLOOKUP(L108,Tabella_prezzi!A3:K176,6,FALSE) -> TS3L6-DACAOCM7N | L108: L6N40B | M108: =COUNTIF(TS3L6_L6N_1,L108)*$M$22*Q108 -> 0 | N108: =COUNTIF(TS3L6_L6N_2,L108)*$N$22*R108 -> 0 | O108: =COUNTIF(TS3L6_L6N_3,L108)*$O$22*S108 -> 0 | P108: 0 | Q108: =Lotto6_DL560_1!$F$101 -> 0 | R108: =Lotto6_DL560_2!$F$101 -> 0 | S108: =Lotto6_DL560_3!$F$101 -> 0 | AA108: =ISODD(SUM($J$23:J108)) -> FALSE
C109: =IF(B109="","",VLOOKUP(L109,Tabella_prezzi!$A$3:$K$138,9,FALSE)) ->  | D109: =IF(B109="","",VLOOKUP(L109,Tabella_prezzi!$A$3:$K$138,6,FALSE)) ->  | E109: =IF(B109="","",VLOOKUP(L109,Tabella_prezzi!$A$3:$K$138,8,FALSE)) ->  | F109: =IF(B109="","",VLOOKUP(L109,Tabella_prezzi!$A$3:$K$138,4,FALSE)) ->  | J109: 0 | K109: =VLOOKUP(L109,Tabella_prezzi!A3:K177,6,FALSE) -> TS3L6-SASBAY1N | L109: L6N49B | M109: 0 | N109: 0 | O109: 0 | P109: 0 | AA109: =ISODD(SUM($J$23:J109)) -> FALSE
C110: =IF(B110="","",VLOOKUP(L110,Tabella_prezzi!$A$3:$K$138,9,FALSE)) ->  | D110: =IF(B110="","",VLOOKUP(L110,Tabella_prezzi!$A$3:$K$138,6,FALSE)) ->  | E110: =IF(B110="","",VLOOKUP(L110,Tabella_prezzi!$A$3:$K$138,8,FALSE)) ->  | F110: =IF(B110="","",VLOOKUP(L110,Tabella_prezzi!$A$3:$K$138,4,FALSE)) ->  | J110: 0 | K110: =VLOOKUP(L110,Tabella_prezzi!A3:K178,6,FALSE) -> TS3L6-DUAL32GBN | L110: L6N50B | M110: =COUNTIF(TS3L6_L6N_1,L110)*$M$22 -> 0 | N110: =COUNTIF(TS3L6_L6N_2,L110)*$N$22 -> 0 | O110: =COUNTIF(TS3L6_L6N_3,L110)*$O$22 -> 0 | P110: =SUM(M110:O110) -> 0 | AA110: =ISODD(SUM($J$23:J110)) -> FALSE
C111: =IF(B111="","",VLOOKUP(L111,Tabella_prezzi!$A$3:$K$138,9,FALSE)) ->  | D111: =IF(B111="","",VLOOKUP(L111,Tabella_prezzi!$A$3:$K$138,6,FALSE)) ->  | E111: =IF(B111="","",VLOOKUP(L111,Tabella_prezzi!$A$3:$K$138,8,FALSE)) ->  | F111: =IF(B111="","",VLOOKUP(L111,Tabella_prezzi!$A$3:$K$138,4,FALSE)) ->  | J111: 0 | K111: =VLOOKUP(L111,Tabella_prezzi!A3:K179,6,FALSE) -> TS3L6-CTRL-OSN | L111: L6N51B | M111: 0 | N111: 0 | O111: 0 | P111: 0 | AA111: =ISODD(SUM($J$23:J111)) -> FALSE
C112: =IF(B112="","",VLOOKUP(L112,Tabella_prezzi!$A$3:$K$138,9,FALSE)) ->  | D112: =IF(B112="","",VLOOKUP(L112,Tabella_prezzi!$A$3:$K$138,6,FALSE)) ->  | E112: =IF(B112="","",VLOOKUP(L112,Tabella_prezzi!$A$3:$K$138,8,FALSE)) ->  | F112: =IF(B112="","",VLOOKUP(L112,Tabella_prezzi!$A$3:$K$138,4,FALSE)) ->  | J112: 0 | K112: =VLOOKUP(L112,Tabella_prezzi!A3:K180,6,FALSE) -> TS3L6-CTRL-EN | L112: L6N52B | M112: 0 | N112: 0 | O112: 0 | P112: 0 | AA112: =ISODD(SUM($J$23:J112)) -> FALSE
C113: =IF(B113="","",VLOOKUP(L113,Tabella_prezzi!$A$3:$K$138,9,FALSE)) ->  | D113: =IF(B113="","",VLOOKUP(L113,Tabella_prezzi!$A$3:$K$138,6,FALSE)) ->  | E113: =IF(B113="","",VLOOKUP(L113,Tabella_prezzi!$A$3:$K$138,8,FALSE)) ->  | F113: =IF(B113="","",VLOOKUP(L113,Tabella_prezzi!$A$3:$K$138,4,FALSE)) ->  | J113: 0 | K113: =VLOOKUP(L113,Tabella_prezzi!A3:K183,6,FALSE) -> TS3L6-CTRL-AN | L113: L6N56B | M113: 0 | N113: 0 | O113: 0 | P113: 0 | AA113: =ISODD(SUM($J$23:J113)) -> FALSE
C114: =IF(B114="","",VLOOKUP(L114,Tabella_prezzi!$A$3:$K$138,9,FALSE)) ->  | D114: =IF(B114="","",VLOOKUP(L114,Tabella_prezzi!$A$3:$K$138,6,FALSE)) ->  | E114: =IF(B114="","",VLOOKUP(L114,Tabella_prezzi!$A$3:$K$138,8,FALSE)) ->  | F114: =IF(B114="","",VLOOKUP(L114,Tabella_prezzi!$A$3:$K$138,4,FALSE)) ->  | J114: 0 | K114: =VLOOKUP(L114,Tabella_prezzi!A3:K184,6,FALSE) -> TS3L6-CTRL-PN | L114: L6N57B | M114: 0 | N114: 0 | O114: 0 | P114: 0 | AA114: =ISODD(SUM($J$23:J114)) -> FALSE
C115: =IF(B115="","",VLOOKUP(L115,Tabella_prezzi!$A$3:$K$138,9,FALSE)) ->  | D115: =IF(B115="","",VLOOKUP(L115,Tabella_prezzi!$A$3:$K$138,6,FALSE)) ->  | E115: =IF(B115="","",VLOOKUP(L115,Tabella_prezzi!$A$3:$K$138,8,FALSE)) ->  | F115: =IF(B115="","",VLOOKUP(L115,Tabella_prezzi!$A$3:$K$138,4,FALSE)) ->  | J115: 0 | K115: =VLOOKUP(L115,Tabella_prezzi!A3:K185,6,FALSE) -> TS3L6-VS7ESPK3 | L115: L6N36 | M115: =IF($P$23>=1,Altre_Opzioni!$F$23,0) -> 0 | P115: 0 | AA115: =ISODD(SUM($J$23:J115)) -> FALSE
C116: =IF(B116="","",VLOOKUP(L116,Tabella_prezzi!$A$3:$K$138,9,FALSE)) ->  | D116: =IF(B116="","",VLOOKUP(L116,Tabella_prezzi!$A$3:$K$138,6,FALSE)) ->  | E116: =IF(B116="","",VLOOKUP(L116,Tabella_prezzi!$A$3:$K$138,8,FALSE)) ->  | F116: =IF(B116="","",VLOOKUP(L116,Tabella_prezzi!$A$3:$K$138,4,FALSE)) ->  | J116: 0 | K116: =VLOOKUP(L116,Tabella_prezzi!A3:K186,6,FALSE) -> TS3L6-VS7ESPK3N | L116: L6N36B | M116: =IF($P$24>=1,Altre_Opzioni!$F$23,0) -> 0 | P116: =IF(P115>=1,0,Altre_Opzioni!$F$23) -> 0 | AA116: =ISODD(SUM($J$23:J116)) -> FALSE
C117: =IF(B117="","",VLOOKUP(L117,Tabella_prezzi!$A$3:$K$138,9,FALSE)) ->  | D117: =IF(B117="","",VLOOKUP(L117,Tabella_prezzi!$A$3:$K$138,6,FALSE)) ->  | E117: =IF(B117="","",VLOOKUP(L117,Tabella_prezzi!$A$3:$K$138,8,FALSE)) ->  | F117: =IF(B117="","",VLOOKUP(L117,Tabella_prezzi!$A$3:$K$138,4,FALSE)) ->  | J117: =IF(B117="",0,1) -> 0 | K117: =VLOOKUP(L117,Tabella_prezzi!A3:K189,6,FALSE) -> TS3L6-ESPSTDAK | L117: L6N41 | M117: =IF($P$23>=1,Altre_Opzioni!$F$24,0) -> 0 | P117: =SUM(M117:O117) -> 0 | AA117: =ISODD(SUM($J$23:J117)) -> FALSE
C118: =IF(B118="","",VLOOKUP(L118,Tabella_prezzi!$A$3:$K$138,9,FALSE)) ->  | D118: =IF(B118="","",VLOOKUP(L118,Tabella_prezzi!$A$3:$K$138,6,FALSE)) ->  | E118: =IF(B118="","",VLOOKUP(L118,Tabella_prezzi!$A$3:$K$138,8,FALSE)) ->  | F118: =IF(B118="","",VLOOKUP(L118,Tabella_prezzi!$A$3:$K$138,4,FALSE)) ->  | J118: 0 | K118: =VLOOKUP(L118,Tabella_prezzi!A3:K191,6,FALSE) -> TS3L6-ESPSTDAKN | L118: L6N41B | M118: =IF($P$24>=1,Altre_Opzioni!$F$24,0) -> 0 | P118: =IF(P117>=1,0,Altre_Opzioni!$F$24) -> 0 | AA118: =ISODD(SUM($J$23:J118)) -> FALSE
C119: =IF(B119="","",VLOOKUP(L119,Tabella_prezzi!$A$3:$K$138,9,FALSE)) ->  | D119: =IF(B119="","",VLOOKUP(L119,Tabella_prezzi!$A$3:$K$138,6,FALSE)) ->  | E119: =IF(B119="","",VLOOKUP(L119,Tabella_prezzi!$A$3:$K$138,8,FALSE)) ->  | F119: =IF(B119="","",VLOOKUP(L119,Tabella_prezzi!$A$3:$K$138,4,FALSE)) ->  | J119: 0 | K119: =VLOOKUP(L119,Tabella_prezzi!A3:K192,6,FALSE) -> TS3L6-VCS7STD | L119: L6N42 | M119: =IF($P$23>=1,Altre_Opzioni!$F$25,0) -> 0 | P119: =SUM(M119:O119) -> 0 | AA119: =ISODD(SUM($J$23:J119)) -> FALSE
C120: =IF(B120="","",VLOOKUP(L120,Tabella_prezzi!$A$3:$K$138,9,FALSE)) ->  | D120: =IF(B120="","",VLOOKUP(L120,Tabella_prezzi!$A$3:$K$138,6,FALSE)) ->  | E120: =IF(B120="","",VLOOKUP(L120,Tabella_prezzi!$A$3:$K$138,8,FALSE)) ->  | F120: =IF(B120="","",VLOOKUP(L120,Tabella_prezzi!$A$3:$K$138,4,FALSE)) ->  | J120: 0 | K120: =VLOOKUP(L120,Tabella_prezzi!A3:K193,6,FALSE) -> TS3L6-VCS7STDN | L120: L6N42B | M120: =IF($P$24>=1,Altre_Opzioni!$F$25,0) -> 0 | P120: =IF(P119>=1,0,Altre_Opzioni!$F$25) -> 0 | AA120: =ISODD(SUM($J$23:J120)) -> FALSE
C121: =IF(B121="","",VLOOKUP(L121,Tabella_prezzi!$A$3:$K$138,9,FALSE)) ->  | D121: =IF(B121="","",VLOOKUP(L121,Tabella_prezzi!$A$3:$K$138,6,FALSE)) ->  | E121: =IF(B121="","",VLOOKUP(L121,Tabella_prezzi!$A$3:$K$138,8,FALSE)) ->  | F121: =IF(B121="","",VLOOKUP(L121,Tabella_prezzi!$A$3:$K$138,4,FALSE)) ->  | J121: 0 | K121: =VLOOKUP(L121,Tabella_prezzi!A3:K194,6,FALSE) -> TS3L6-VS7EPL | L121: L6N43 | M121: =IF($P$23>=1,Altre_Opzioni!$F$26,0) -> 0 | P121: =SUM(M121:O121) -> 0 | AA121: =ISODD(SUM($J$23:J121)) -> FALSE
C122: =IF(B122="","",VLOOKUP(L122,Tabella_prezzi!$A$3:$K$138,9,FALSE)) ->  | D122: =IF(B122="","",VLOOKUP(L122,Tabella_prezzi!$A$3:$K$138,6,FALSE)) ->  | E122: =IF(B122="","",VLOOKUP(L122,Tabella_prezzi!$A$3:$K$138,8,FALSE)) ->  | F122: =IF(B122="","",VLOOKUP(L122,Tabella_prezzi!$A$3:$K$138,4,FALSE)) ->  | J122: 0 | K122: =VLOOKUP(L122,Tabella_prezzi!A3:K195,6,FALSE) -> TS3L6-VS7EPLN | L122: L6N43B | M122: =IF($P$24>=1,Altre_Opzioni!$F$26,0) -> 0 | P122: =IF(P121>=1,0,Altre_Opzioni!$F$26) -> 0 | AA122: =ISODD(SUM($J$23:J122)) -> FALSE
C123: =IF(B123="","",VLOOKUP(L123,Tabella_prezzi!$A$3:$K$138,9,FALSE)) ->  | D123: =IF(B123="","",VLOOKUP(L123,Tabella_prezzi!$A$3:$K$138,6,FALSE)) ->  | E123: =IF(B123="","",VLOOKUP(L123,Tabella_prezzi!$A$3:$K$138,8,FALSE)) ->  | F123: =IF(B123="","",VLOOKUP(L123,Tabella_prezzi!$A$3:$K$138,4,FALSE)) ->  | J123: 0 | K123: =VLOOKUP(L123,Tabella_prezzi!A3:K196,6,FALSE) -> TS3L6-VS7STD | L123: L6N44 | M123: =IF($P$23>=1,Altre_Opzioni!$F$27,0) -> 0 | P123: =SUM(M123:O123) -> 0 | AA123: =ISODD(SUM($J$23:J123)) -> FALSE
C124: =IF(B124="","",VLOOKUP(L124,Tabella_prezzi!$A$3:$K$138,9,FALSE)) ->  | D124: =IF(B124="","",VLOOKUP(L124,Tabella_prezzi!$A$3:$K$138,6,FALSE)) ->  | E124: =IF(B124="","",VLOOKUP(L124,Tabella_prezzi!$A$3:$K$138,8,FALSE)) ->  | F124: =IF(B124="","",VLOOKUP(L124,Tabella_prezzi!$A$3:$K$138,4,FALSE)) ->  | J124: 0 | K124: =VLOOKUP(L124,Tabella_prezzi!A3:K197,6,FALSE) -> TS3L6-VS7STDN | L124: L6N44B | M124: =IF($P$24>=1,Altre_Opzioni!$F$27,0) -> 0 | P124: =IF(P123>=1,0,Altre_Opzioni!$F$27) -> 0 | AA124: =ISODD(SUM($J$23:J124)) -> FALSE
C125: =IF(B125="","",VLOOKUP(L125,Tabella_prezzi!$A$3:$K$138,9,FALSE)) ->  | D125: =IF(B125="","",VLOOKUP(L125,Tabella_prezzi!$A$3:$K$138,6,FALSE)) ->  | E125: =IF(B125="","",VLOOKUP(L125,Tabella_prezzi!$A$3:$K$138,8,FALSE)) ->  | F125: =IF(B125="","",VLOOKUP(L125,Tabella_prezzi!$A$3:$K$138,4,FALSE)) ->  | J125: 0 | K125: =VLOOKUP(L125,Tabella_prezzi!A3:K198,6,FALSE) -> TS3L6-ST7STD | L125: L6N45 | M125: =IF($P$23>=1,Altre_Opzioni!$F$28,0) -> 0 | P125: =SUM(M125:O125) -> 0 | AA125: =ISODD(SUM($J$23:J125)) -> FALSE
C126: =IF(B126="","",VLOOKUP(L126,Tabella_prezzi!$A$3:$K$138,9,FALSE)) ->  | D126: =IF(B126="","",VLOOKUP(L126,Tabella_prezzi!$A$3:$K$138,6,FALSE)) ->  | E126: =IF(B126="","",VLOOKUP(L126,Tabella_prezzi!$A$3:$K$138,8,FALSE)) ->  | F126: =IF(B126="","",VLOOKUP(L126,Tabella_prezzi!$A$3:$K$138,4,FALSE)) ->  | J126: 0 | K126: =VLOOKUP(L126,Tabella_prezzi!A3:K199,6,FALSE) -> TS3L6-ST7STDN | L126: L6N45B | M126: =IF($P$24>=1,Altre_Opzioni!$F$28,0) -> 0 | P126: =IF(P125>=1,0,Altre_Opzioni!$F$28) -> 0 | AA126: =ISODD(SUM($J$23:J126)) -> FALSE
C127: =IF(B127="","",VLOOKUP(L127,Tabella_prezzi!$A$3:$K$138,9,FALSE)) ->  | D127: =IF(B127="","",VLOOKUP(L127,Tabella_prezzi!$A$3:$K$138,6,FALSE)) ->  | E127: =IF(B127="","",VLOOKUP(L127,Tabella_prezzi!$A$3:$K$138,8,FALSE)) ->  | F127: =IF(B127="","",VLOOKUP(L127,Tabella_prezzi!$A$3:$K$138,4,FALSE)) ->  | J127: 0 | K127: =VLOOKUP(L127,Tabella_prezzi!A3:K200,6,FALSE) -> TS3L6-ST7ADV | L127: L6N46 | M127: =IF($P$23>=1,Altre_Opzioni!$F$29,0) -> 0 | P127: =SUM(M127:O127) -> 0 | AA127: =ISODD(SUM($J$23:J127)) -> FALSE
C128: =IF(B128="","",VLOOKUP(L128,Tabella_prezzi!$A$3:$K$138,9,FALSE)) ->  | D128: =IF(B128="","",VLOOKUP(L128,Tabella_prezzi!$A$3:$K$138,6,FALSE)) ->  | E128: =IF(B128="","",VLOOKUP(L128,Tabella_prezzi!$A$3:$K$138,8,FALSE)) ->  | F128: =IF(B128="","",VLOOKUP(L128,Tabella_prezzi!$A$3:$K$138,4,FALSE)) ->  | J128: 0 | K128: =VLOOKUP(L128,Tabella_prezzi!A3:K201,6,FALSE) -> TS3L6-ST7ADVN | L128: L6N46B | M128: =IF($P$24>=1,Altre_Opzioni!$F$29,0) -> 0 | P128: =IF(P127>=1,0,Altre_Opzioni!$F$29) -> 0 | AA128: =ISODD(SUM($J$23:J128)) -> FALSE
C129: =IF(B129="","",VLOOKUP(L129,Tabella_prezzi!$A$3:$K$138,9,FALSE)) ->  | D129: =IF(B129="","",VLOOKUP(L129,Tabella_prezzi!$A$3:$K$138,6,FALSE)) ->  | E129: =IF(B129="","",VLOOKUP(L129,Tabella_prezzi!$A$3:$K$138,8,FALSE)) ->  | F129: =IF(B129="","",VLOOKUP(L129,Tabella_prezzi!$A$3:$K$138,4,FALSE)) ->  | J129: 0 | K129: =VLOOKUP(L129,Tabella_prezzi!A3:K202,6,FALSE) -> TS3L6-RACKMONO | L129: L6N47 | M129: =IF($P$23>=1,Altre_Opzioni!$F$9,0) -> 0 | P129: =SUM(M129:O129) -> 0 | AA129: =ISODD(SUM($J$23:J129)) -> FALSE
C130: =IF(B130="","",VLOOKUP(L130,Tabella_prezzi!$A$3:$K$138,9,FALSE)) ->  | D130: =IF(B130="","",VLOOKUP(L130,Tabella_prezzi!$A$3:$K$138,6,FALSE)) ->  | E130: =IF(B130="","",VLOOKUP(L130,Tabella_prezzi!$A$3:$K$138,8,FALSE)) ->  | F130: =IF(B130="","",VLOOKUP(L130,Tabella_prezzi!$A$3:$K$138,4,FALSE)) ->  | J130: 0 | K130: =VLOOKUP(L130,Tabella_prezzi!A3:K203,6,FALSE) -> TS3L6-RACKMONON | L130: L6N47B | M130: =IF($P$24>=1,Altre_Opzioni!$F$9,0) -> 0 | P130: =IF(P129>=1,0,Altre_Opzioni!$F$9) -> 0 | AA130: =ISODD(SUM($J$23:J130)) -> FALSE
C131: =IF(B131="","",VLOOKUP(L131,Tabella_prezzi!$A$3:$K$138,9,FALSE)) ->  | D131: =IF(B131="","",VLOOKUP(L131,Tabella_prezzi!$A$3:$K$138,6,FALSE)) ->  | E131: =IF(B131="","",VLOOKUP(L131,Tabella_prezzi!$A$3:$K$138,8,FALSE)) ->  | F131: =IF(B131="","",VLOOKUP(L131,Tabella_prezzi!$A$3:$K$138,4,FALSE)) ->  | J131: 0 | K131: =VLOOKUP(L131,Tabella_prezzi!A3:K204,6,FALSE) -> TS3L6-RACK3PH | L131: L6N48 | M131: =IF($P$23>=1,Altre_Opzioni!$F$13,0) -> 0 | P131: =SUM(M131:O131) -> 0 | AA131: =ISODD(SUM($J$23:J131)) -> FALSE
C132: =IF(B132="","",VLOOKUP(L132,Tabella_prezzi!$A$3:$K$138,9,FALSE)) ->  | D132: =IF(B132="","",VLOOKUP(L132,Tabella_prezzi!$A$3:$K$138,6,FALSE)) ->  | E132: =IF(B132="","",VLOOKUP(L132,Tabella_prezzi!$A$3:$K$138,8,FALSE)) ->  | F132: =IF(B132="","",VLOOKUP(L132,Tabella_prezzi!$A$3:$K$138,4,FALSE)) ->  | J132: 0 | K132: =VLOOKUP(L132,Tabella_prezzi!A3:K205,6,FALSE) -> TS3L6-RACK3PHN | L132: L6N48B | M132: =IF($P$24>=1,Altre_Opzioni!$F$13,0) -> 0 | P132: =IF(P131>=1,0,Altre_Opzioni!$F$13) -> 0 | AA132: =ISODD(SUM($J$23:J132)) -> FALSE
C133: =IF(B133="","",VLOOKUP(L133,Tabella_prezzi!$A$3:$K$138,9,FALSE)) ->  | D133: =IF(B133="","",VLOOKUP(L133,Tabella_prezzi!$A$3:$K$138,6,FALSE)) ->  | E133: =IF(B133="","",VLOOKUP(L133,Tabella_prezzi!$A$3:$K$138,8,FALSE)) ->  | F133: =IF(B133="","",VLOOKUP(L133,Tabella_prezzi!$A$3:$K$138,4,FALSE)) ->  | J133: 0 | K133: =VLOOKUP(L133,Tabella_prezzi!A3:K206,6,FALSE) -> TS3L6-E15Y247 | L133: L6N53 | M133: =IF($P$23>=1,Altre_Opzioni!$F$20,0) -> 0 | P133: =SUM(M133:O133) -> 0 | AA133: =ISODD(SUM($J$23:J133)) -> FALSE
C134: =IF(B134="","",VLOOKUP(L134,Tabella_prezzi!$A$3:$K$138,9,FALSE)) ->  | D134: =IF(B134="","",VLOOKUP(L134,Tabella_prezzi!$A$3:$K$138,6,FALSE)) ->  | E134: =IF(B134="","",VLOOKUP(L134,Tabella_prezzi!$A$3:$K$138,8,FALSE)) ->  | F134: =IF(B134="","",VLOOKUP(L134,Tabella_prezzi!$A$3:$K$138,4,FALSE)) ->  | J134: 0 | K134: =VLOOKUP(L134,Tabella_prezzi!A3:K207,6,FALSE) -> TS3L6-E15Y247N | L134: L6N53B | M134: =IF($P$24>=1,Altre_Opzioni!$F$20,0) -> 0 | P134: =IF(P133>=1,0,Altre_Opzioni!$F$20) -> 0 | AA134: =ISODD(SUM($J$23:J134)) -> FALSE
B135: =IF(P135>0,P135,"") ->  | C135: =IF(B135="","",VLOOKUP(L135,Tabella_prezzi!$A$3:$K$301,9,FALSE)) ->  | D135: =IF(B135="","",VLOOKUP(L135,Tabella_prezzi!$A$3:$K$301,6,FALSE)) ->  | E135: =IF(B135="","",VLOOKUP(L135,Tabella_prezzi!$A$3:$K$301,8,FALSE)) ->  | F135: =IF(B135="","",VLOOKUP(L135,Tabella_prezzi!$A$3:$K$301,4,FALSE)) ->  | G135: =IF(C135="","",F135*B135) ->  | J135: 0 | K135: =VLOOKUP(L135,Tabella_prezzi!A4:K208,6,FALSE) -> TS3L6-DAC10GB3MN | L135: L6N58B | M135: =COUNTIF(TS3L6_L6N_1,L135)*$M$22*Q135 -> 0 | N135: =COUNTIF(TS3L6_L6N_2,L135)*$N$22*R135 -> 0 | O135: =COUNTIF(TS3L6_L6N_3,L135)*$O$22*S135 -> 0 | P135: =SUM(M135:O135) -> 0 | Q135: =Lotto6_DL560_1!$F$108 -> 0 | R135: =Lotto6_DL560_2!$F$108 -> 0 | S135: =Lotto6_DL560_3!$F$108 -> 0 | AA135: =ISODD(SUM($J$23:J135)) -> FALSE
B136: =IF(P136>0,P136,"") ->  | C136: =IF(B136="","",VLOOKUP(L136,Tabella_prezzi!$A$3:$K$301,9,FALSE)) ->  | D136: =IF(B136="","",VLOOKUP(L136,Tabella_prezzi!$A$3:$K$301,6,FALSE)) ->  | E136: =IF(B136="","",VLOOKUP(L136,Tabella_prezzi!$A$3:$K$301,8,FALSE)) ->  | F136: =IF(B136="","",VLOOKUP(L136,Tabella_prezzi!$A$3:$K$301,4,FALSE)) ->  | G136: =IF(C136="","",F136*B136) ->  | J136: 0 | K136: =VLOOKUP(L136,Tabella_prezzi!A5:K209,6,FALSE) -> TS3L6-DAC10GB3M | L136: L6N58 | M136: 0 | N136: 0 | O136: 0 | P136: 0 | Q136: =Lotto6_DL560_1!$F$108 -> 0 | R136: =Lotto6_DL560_2!$F$108 -> 0 | S136: =Lotto6_DL560_3!$F$108 -> 0 | AA136: =ISODD(SUM($J$23:J136)) -> FALSE
C137: =IF(B137="","",VLOOKUP(L137,Tabella_prezzi!$A$3:$K$301,9,FALSE)) ->  | D137: =IF(B137="","",VLOOKUP(L137,Tabella_prezzi!$A$3:$K$301,6,FALSE)) ->  | E137: =IF(B137="","",VLOOKUP(L137,Tabella_prezzi!$A$3:$K$301,8,FALSE)) ->  | F137: =IF(B137="","",VLOOKUP(L137,Tabella_prezzi!$A$3:$K$301,4,FALSE)) ->  | J137: 0 | K137: =VLOOKUP(L137,Tabella_prezzi!A6:K210,6,FALSE) -> TS3L6-OM4M2N | L137: L6N59B | M137: 0 | N137: 0 | O137: 0 | P137: 0 | Q137: =Lotto6_DL560_1!$F$109 -> 0 | R137: =Lotto6_DL560_2!$F$109 -> 0 | S137: =Lotto6_DL560_3!$F$109 -> 0 | AA137: =ISODD(SUM($J$23:J137)) -> FALSE
C138: =IF(B138="","",VLOOKUP(L138,Tabella_prezzi!$A$3:$K$301,9,FALSE)) ->  | D138: =IF(B138="","",VLOOKUP(L138,Tabella_prezzi!$A$3:$K$301,6,FALSE)) ->  | E138: =IF(B138="","",VLOOKUP(L138,Tabella_prezzi!$A$3:$K$301,8,FALSE)) ->  | F138: =IF(B138="","",VLOOKUP(L138,Tabella_prezzi!$A$3:$K$301,4,FALSE)) ->  | J138: 0 | K138: =VLOOKUP(L138,Tabella_prezzi!A7:K211,6,FALSE) -> TS3L6-OM4M2 | L138: L6N59 | M138: 0 | N138: 0 | O138: 0 | P138: 0 | Q138: =Lotto6_DL560_1!$F$109 -> 0 | R138: =Lotto6_DL560_2!$F$109 -> 0 | S138: =Lotto6_DL560_3!$F$109 -> 0 | AA138: =ISODD(SUM($J$23:J138)) -> FALSE
C139: =IF(B139="","",VLOOKUP(L139,Tabella_prezzi!$A$3:$K$301,9,FALSE)) ->  | D139: =IF(B139="","",VLOOKUP(L139,Tabella_prezzi!$A$3:$K$301,6,FALSE)) ->  | E139: =IF(B139="","",VLOOKUP(L139,Tabella_prezzi!$A$3:$K$301,8,FALSE)) ->  | F139: =IF(B139="","",VLOOKUP(L139,Tabella_prezzi!$A$3:$K$301,4,FALSE)) ->  | J139: 0 | K139: =VLOOKUP(L139,Tabella_prezzi!A8:K212,6,FALSE) -> TS3L6-DAC25GBM3N | L139: L6N60B | M139: 0 | N139: 0 | O139: 0 | P139: 0 | Q139: =Lotto6_DL560_1!$F$110 -> 0 | R139: =Lotto6_DL560_2!$F$110 -> 0 | S139: =Lotto6_DL560_3!$F$110 -> 0 | AA139: =ISODD(SUM($J$23:J139)) -> FALSE
C140: =IF(B140="","",VLOOKUP(L140,Tabella_prezzi!$A$3:$K$301,9,FALSE)) ->  | D140: =IF(B140="","",VLOOKUP(L140,Tabella_prezzi!$A$3:$K$301,6,FALSE)) ->  | E140: =IF(B140="","",VLOOKUP(L140,Tabella_prezzi!$A$3:$K$301,8,FALSE)) ->  | F140: =IF(B140="","",VLOOKUP(L140,Tabella_prezzi!$A$3:$K$301,4,FALSE)) ->  | J140: 0 | K140: =VLOOKUP(L140,Tabella_prezzi!A9:K213,6,FALSE) -> TS3L6-DAC25GBM3 | L140: L6N60 | M140: 0 | N140: 0 | O140: 0 | P140: 0 | Q140: =Lotto6_DL560_1!$F$110 -> 0 | R140: =Lotto6_DL560_2!$F$110 -> 0 | S140: =Lotto6_DL560_3!$F$110 -> 0 | AA140: =ISODD(SUM($J$23:J140)) -> FALSE
C141: =IF(B141="","",VLOOKUP(L141,Tabella_prezzi!$A$3:$K$301,9,FALSE)) ->  | D141: =IF(B141="","",VLOOKUP(L141,Tabella_prezzi!$A$3:$K$301,6,FALSE)) ->  | E141: =IF(B141="","",VLOOKUP(L141,Tabella_prezzi!$A$3:$K$301,8,FALSE)) ->  | F141: =IF(B141="","",VLOOKUP(L141,Tabella_prezzi!$A$3:$K$301,4,FALSE)) ->  | J141: 0 | K141: =VLOOKUP(L141,Tabella_prezzi!A10:K214,6,FALSE) -> TS3L6-10OTLRN | L141: L6N61B | M141: 0 | N141: 0 | O141: 0 | P141: 0 | Q141: =Lotto6_DL560_1!$F$104 -> 0 | R141: =Lotto6_DL560_2!$F$104 -> 0 | S141: =Lotto6_DL560_3!$F$104 -> 0 | AA141: =ISODD(SUM($J$23:J141)) -> FALSE
C142: =IF(B142="","",VLOOKUP(L142,Tabella_prezzi!$A$3:$K$301,9,FALSE)) ->  | D142: =IF(B142="","",VLOOKUP(L142,Tabella_prezzi!$A$3:$K$301,6,FALSE)) ->  | E142: =IF(B142="","",VLOOKUP(L142,Tabella_prezzi!$A$3:$K$301,8,FALSE)) ->  | F142: =IF(B142="","",VLOOKUP(L142,Tabella_prezzi!$A$3:$K$301,4,FALSE)) ->  | J142: 0 | K142: =VLOOKUP(L142,Tabella_prezzi!A11:K215,6,FALSE) -> TS3L6-10OTLR | L142: L6N61 | M142: 0 | N142: 0 | O142: 0 | P142: 0 | Q142: =Lotto6_DL560_1!$F$104 -> 0 | R142: =Lotto6_DL560_2!$F$104 -> 0 | S142: =Lotto6_DL560_3!$F$104 -> 0 | AA142: =ISODD(SUM($J$23:J142)) -> FALSE
C143: =IF(B143="","",VLOOKUP(L143,Tabella_prezzi!$A$3:$K$301,9,FALSE)) ->  | D143: =IF(B143="","",VLOOKUP(L143,Tabella_prezzi!$A$3:$K$301,6,FALSE)) ->  | E143: =IF(B143="","",VLOOKUP(L143,Tabella_prezzi!$A$3:$K$301,8,FALSE)) ->  | F143: =IF(B143="","",VLOOKUP(L143,Tabella_prezzi!$A$3:$K$301,4,FALSE)) ->  | J143: 0 | K143: =VLOOKUP(L143,Tabella_prezzi!A12:K216,6,FALSE) -> TS3L6-10OTSRN | L143: L6N62B | M143: 0 | N143: 0 | O143: 0 | P143: 0 | Q143: =Lotto6_DL560_1!$F$105 -> 0 | R143: =Lotto6_DL560_2!$F$105 -> 0 | S143: =Lotto6_DL560_3!$F$105 -> 0 | AA143: =ISODD(SUM($J$23:J143)) -> FALSE
C144: =IF(B144="","",VLOOKUP(L144,Tabella_prezzi!$A$3:$K$301,9,FALSE)) ->  | D144: =IF(B144="","",VLOOKUP(L144,Tabella_prezzi!$A$3:$K$301,6,FALSE)) ->  | E144: =IF(B144="","",VLOOKUP(L144,Tabella_prezzi!$A$3:$K$301,8,FALSE)) ->  | F144: =IF(B144="","",VLOOKUP(L144,Tabella_prezzi!$A$3:$K$301,4,FALSE)) ->  | J144: 0 | K144: =VLOOKUP(L144,Tabella_prezzi!A13:K217,6,FALSE) -> TS3L6-10OTSR | L144: L6N62 | M144: 0 | N144: 0 | O144: 0 | P144: 0 | Q144: =Lotto6_DL560_1!$F$105 -> 0 | R144: =Lotto6_DL560_2!$F$105 -> 0 | S144: =Lotto6_DL560_3!$F$105 -> 0 | AA144: =ISODD(SUM($J$23:J144)) -> FALSE
C145: =IF(B145="","",VLOOKUP(L145,Tabella_prezzi!$A$3:$K$301,9,FALSE)) ->  | D145: =IF(B145="","",VLOOKUP(L145,Tabella_prezzi!$A$3:$K$301,6,FALSE)) ->  | E145: =IF(B145="","",VLOOKUP(L145,Tabella_prezzi!$A$3:$K$301,8,FALSE)) ->  | F145: =IF(B145="","",VLOOKUP(L145,Tabella_prezzi!$A$3:$K$301,4,FALSE)) ->  | J145: 0 | K145: =VLOOKUP(L145,Tabella_prezzi!A14:K218,6,FALSE) -> TS3L6-X710SFPN | L145: L6N63B | M145: =COUNTIF(TS3L6_L6N_1,L145)*$M$22 -> 0 | N145: =COUNTIF(TS3L6_L6N_2,L145)*$N$22 -> 0 | O145: =COUNTIF(TS3L6_L6N_3,L145)*$O$22 -> 0 | P145: 0 | AA145: =ISODD(SUM($J$23:J145)) -> FALSE
C146: =IF(B146="","",VLOOKUP(L146,Tabella_prezzi!$A$3:$K$301,9,FALSE)) ->  | D146: =IF(B146="","",VLOOKUP(L146,Tabella_prezzi!$A$3:$K$301,6,FALSE)) ->  | E146: =IF(B146="","",VLOOKUP(L146,Tabella_prezzi!$A$3:$K$301,8,FALSE)) ->  | F146: =IF(B146="","",VLOOKUP(L146,Tabella_prezzi!$A$3:$K$301,4,FALSE)) ->  | J146: 0 | K146: =VLOOKUP(L146,Tabella_prezzi!A15:K219,6,FALSE) -> TS3L6-X710SFP | L146: L6N63 | M146: =COUNTIF(TS3L6_L6N_1,L146)*$M$22 -> 0 | N146: =COUNTIF(TS3L6_L6N_2,L146)*$N$22 -> 0 | O146: =COUNTIF(TS3L6_L6N_3,L146)*$O$22 -> 0 | P146: =SUM(M146:O146) -> 0 | AA146: =ISODD(SUM($J$23:J146)) -> FALSE
C147: =IF(B147="","",VLOOKUP(L147,Tabella_prezzi!$A$3:$K$301,9,FALSE)) ->  | D147: =IF(B147="","",VLOOKUP(L147,Tabella_prezzi!$A$3:$K$301,6,FALSE)) ->  | E147: =IF(B147="","",VLOOKUP(L147,Tabella_prezzi!$A$3:$K$301,8,FALSE)) ->  | F147: =IF(B147="","",VLOOKUP(L147,Tabella_prezzi!$A$3:$K$301,4,FALSE)) ->  | J147: 0 | K147: =VLOOKUP(L147,Tabella_prezzi!A16:K220,6,FALSE) -> TS3L6-LAN10T | L147: L6N64B | M147: 0 | N147: 0 | O147: 0 | P147: 0 | AA147: =ISODD(SUM($J$23:J147)) -> FALSE
C148: =IF(B148="","",VLOOKUP(L148,Tabella_prezzi!$A$3:$K$301,9,FALSE)) ->  | D148: =IF(B148="","",VLOOKUP(L148,Tabella_prezzi!$A$3:$K$301,6,FALSE)) ->  | E148: =IF(B148="","",VLOOKUP(L148,Tabella_prezzi!$A$3:$K$301,8,FALSE)) ->  | F148: =IF(B148="","",VLOOKUP(L148,Tabella_prezzi!$A$3:$K$301,4,FALSE)) ->  | J148: 0 | K148: =VLOOKUP(L148,Tabella_prezzi!A17:K221,6,FALSE) -> TS3L6-LAN10T | L148: L6N64 | M148: 0 | N148: 0 | O148: 0 | P148: 0 | AA148: =ISODD(SUM($J$23:J148)) -> FALSE
C149: =IF(B149="","",VLOOKUP(L149,Tabella_prezzi!$A$3:$K$301,9,FALSE)) ->  | D149: =IF(B149="","",VLOOKUP(L149,Tabella_prezzi!$A$3:$K$301,6,FALSE)) ->  | E149: =IF(B149="","",VLOOKUP(L149,Tabella_prezzi!$A$3:$K$301,8,FALSE)) ->  | F149: =IF(B149="","",VLOOKUP(L149,Tabella_prezzi!$A$3:$K$301,4,FALSE)) ->  | J149: 0 | K149: =VLOOKUP(L149,Tabella_prezzi!A4:K209,6,FALSE) -> TS3L6-M2480GB | L149: L6N65 | M149: =COUNTIF(TS3L6_L6N_1,L149)*$M$22 -> 0 | N149: =COUNTIF(TS3L6_L6N_2,L149)*$N$22 -> 0 | O149: =COUNTIF(TS3L6_L6N_3,L149)*$O$22 -> 0 | P149: =SUM(M149:O149) -> 0
B150: =IF(P150>0,P150,"") ->  | C150: =IF(B150="","",VLOOKUP(L150,Tabella_prezzi!$A$3:$K$301,9,FALSE)) ->  | D150: =IF(B150="","",VLOOKUP(L150,Tabella_prezzi!$A$3:$K$301,6,FALSE)) ->  | E150: =IF(B150="","",VLOOKUP(L150,Tabella_prezzi!$A$3:$K$301,8,FALSE)) ->  | F150: =IF(B150="","",VLOOKUP(L150,Tabella_prezzi!$A$3:$K$301,4,FALSE)) ->  | G150: =IF(C150="","",F150*B150) ->  | J150: 0 | K150: =VLOOKUP(L150,Tabella_prezzi!A5:K210,6,FALSE) -> TS3L6-UPSR8000 | L150: L6N66 | M150: =IF($P$23>=1,Altre_Opzioni!$F$32,0) -> 0 | P150: =SUM(M150:O150) -> 0
C151: =IF(B151="","",VLOOKUP(L151,Tabella_prezzi!$A$3:$K$301,9,FALSE)) ->  | D151: =IF(B151="","",VLOOKUP(L151,Tabella_prezzi!$A$3:$K$301,6,FALSE)) ->  | E151: =IF(B151="","",VLOOKUP(L151,Tabella_prezzi!$A$3:$K$301,8,FALSE)) ->  | F151: =IF(B151="","",VLOOKUP(L151,Tabella_prezzi!$A$3:$K$301,4,FALSE)) ->  | J151: 0 | K151: =VLOOKUP(L151,Tabella_prezzi!A6:K211,6,FALSE) -> TS3L6-UPSR8000N | L151: L6N66B | M151: =IF($P$24>=1,Altre_Opzioni!$F$32,0) -> 0 | P151: 0
B152: Convenzione | G152: =SUM(G23:G86) -> 0 | J152: =IF(G152=0,0,1) -> 0
B153: Valore economico 20% consentito | D153: =G152/100*20 -> 0 | E153: Ulteriori componenti opzionali (20%) | G153: =SUM(G89:G151) -> 0 | J153: =IF(G153=0,0,1) -> 0 | M153: RTN | N153: RTN60 | O153: 5Y
B154: =IF(M154+N154+O154+M155+N155+O155>0,"Le estensioni di garanzia e/o i servizi di Hard Disk Retention sono inferiori al numero dei server","") ->  | E154: Totale iva esclusa | G154: =G153+G152 -> 0 | J154: =IF(G154=0,0,1) -> 0 | K154: Verifica garanzia | M154: =IF(B79="",0,IF(B23=B79,0,1)) -> 0 | N154: =IF(B85="",0,IF(B23=B85,0,1)) -> 0 | O154: =IF(B81="",0,IF(B23=B81,0,1)) -> 0
B155: I.V.A. | G155: =G154/100*22 -> 0 | J155: =IF(G155=0,0,1) -> 0 | K155: Verifica garanzia NVMe | M155: =IF(B80="",0,IF(B24=B80,0,1)) -> 0 | N155: =IF(B86="",0,IF(B24=B86,0,1)) -> 0 | O155: =IF(B82="",0,IF(B24=B82,0,1)) -> 0
B156: TOTALE ORDINE | G156: =G154+G155 -> 0 | J156: =IF(G156=0,0,1) -> 0
J157: 1

Sheet Configurazione
V1: 1
B2: =Riepilogo!M22 -> 0 | C2: Proliant DL560 Gen10 Configurazione 1 | E2: =Riepilogo!N22 -> 0 | F2: Proliant DL560 Gen10 Configurazione 2 | H2: =Riepilogo!O22 -> 0 | I2: Proliant DL560 Gen10 Configurazione 3 | V2: 1
C3: =IF(B2>0,CONCATENATE(Lotto6_DL560_1!$F$21*32+Lotto6_DL560_1!$F$22*64+128,"GB ",RIGHT(Lotto6_DL560_1!$C$21,6)),"") ->  | F3: =IF(E2>0,CONCATENATE(Lotto6_DL560_2!$F$21*32+Lotto6_DL560_2!$F$22*64+128,"GB ",RIGHT(Lotto6_DL560_2!$C$21,6)),"") ->  | I3: =IF(H2>0,CONCATENATE(Lotto6_DL560_3!$F$21*32+Lotto6_DL560_3!$F$22*64+128,"GB ",RIGHT(Lotto6_DL560_3!$C$21,6)),"") ->  | V3: 1
V4: =IF($U$5+$U$6>0,1,0) -> 0
B5: =IF(Riepilogo!M23>0,Riepilogo!M23/$B$2,"") ->  | C5: =IF(B5="","",Riepilogo!K23) ->  | E5: =IF(Riepilogo!N23>0,Riepilogo!N23/$E$2,"") ->  | F5: =IF(E5="","",Riepilogo!K23) ->  | H5: =IF(Riepilogo!O23>0,Riepilogo!O23/$H$2,"") ->  | I5: =IF(H5="","",Riepilogo!K23) ->  | L5: =IF(B5="",0,B5) -> 0 | O5: =IF(E5="",0,E5) -> 0 | R5: =IF(H5="",0,H5) -> 0 | U5: =SUM(L5:T5) -> 0 | V5: =IF($U$5+$U$6>0,1,0) -> 0 | W5: =ISODD(SUM($V$5:V5)) -> FALSE
B6: =IF(Riepilogo!M24>0,Riepilogo!M24/$B$2,"") ->  | C6: =IF(B6="","",Riepilogo!K24) ->  | E6: =IF(Riepilogo!N24>0,Riepilogo!N24/$E$2,"") ->  | F6: =IF(E6="","",Riepilogo!K24) ->  | H6: =IF(Riepilogo!O24>0,Riepilogo!O24/$H$2,"") ->  | I6: =IF(H6="","",Riepilogo!K24) ->  | L6: =IF(B6="",0,B6) -> 0 | O6: =IF(E6="",0,E6) -> 0 | R6: =IF(H6="",0,H6) -> 0 | U6: =SUM(L6:T6) -> 0 | V6: =IF(U6>0,1,0) -> 0 | W6: =ISODD(SUM($V$5:V6)) -> FALSE
B7: =IF(Riepilogo!M25>0,Riepilogo!M25/$B$2,"") ->  | C7: =IF(B7="","",Riepilogo!K25) ->  | E7: =IF(Riepilogo!N25>0,Riepilogo!N25/$E$2,"") ->  | F7: =IF(E7="","",Riepilogo!K25) ->  | H7: =IF(Riepilogo!O25>0,Riepilogo!O25/$H$2,"") ->  | I7: =IF(H7="","",Riepilogo!K25) ->  | L7: =IF(B7="",0,B7) -> 0 | O7: =IF(E7="",0,E7) -> 0 | R7: =IF(H7="",0,H7) -> 0 | U7: =SUM(L7:T7) -> 0 | V7: 0 | W7: =ISODD(SUM($V$5:V7)) -> FALSE
B8: =IF(Riepilogo!M26>0,Riepilogo!M26/$B$2,"") ->  | C8: =IF(B8="","",Riepilogo!K26) ->  | E8: =IF(Riepilogo!N26>0,Riepilogo!N26/$E$2,"") ->  | F8: =IF(E8="","",Riepilogo!K26) ->  | H8: =IF(Riepilogo!O26>0,Riepilogo!O26/$H$2,"") ->  | I8: =IF(H8="","",Riepilogo!K26) ->  | L8: 0 | O8: 0 | R8: 0 | U8: 0 | V8: 0 | W8: =ISODD(SUM($V$5:V8)) -> FALSE
B9: =IF(Riepilogo!M27>0,Riepilogo!M27/$B$2,"") ->  | C9: =IF(B9="","",Riepilogo!K27) ->  | E9: =IF(Riepilogo!N27>0,Riepilogo!N27/$E$2,"") ->  | F9: =IF(E9="","",Riepilogo!K27) ->  | H9: =IF(Riepilogo!O27>0,Riepilogo!O27/$H$2,"") ->  | I9: =IF(H9="","",Riepilogo!K27) ->  | L9: 0 | O9: 0 | R9: 0 | U9: 0 | V9: 0 | W9: =ISODD(SUM($V$5:V9)) -> FALSE
B10: =IF(Riepilogo!M28>0,Riepilogo!M28/$B$2,"") ->  | C10: =IF(B10="","",Riepilogo!K28) ->  | E10: =IF(Riepilogo!N28>0,Riepilogo!N28/$E$2,"") ->  | F10: =IF(E10="","",Riepilogo!K28) ->  | H10: =IF(Riepilogo!O28>0,Riepilogo!O28/$H$2,"") ->  | I10: =IF(H10="","",Riepilogo!K28) ->  | L10: =IF(B10="",0,B10) -> 0 | O10: =IF(E10="",0,E10) -> 0 | R10: =IF(H10="",0,H10) -> 0 | U10: =SUM(L10:T10) -> 0 | V10: =IF(U10>0,1,0) -> 0 | W10: =ISODD(SUM($V$5:V10)) -> FALSE
B11: =IF(Riepilogo!M29>0,Riepilogo!M29/$B$2,"") ->  | C11: =IF(B11="","",Riepilogo!K29) ->  | E11: =IF(Riepilogo!N29>0,Riepilogo!N29/$E$2,"") ->  | F11: =IF(E11="","",Riepilogo!K29) ->  | H11: =IF(Riepilogo!O29>0,Riepilogo!O29/$H$2,"") ->  | I11: =IF(H11="","",Riepilogo!K29) ->  | L11: 0 | O11: 0 | R11: 0 | U11: 0 | V11: 0 | W11: =ISODD(SUM($V$5:V11)) -> FALSE
B12: =IF(Riepilogo!M30>0,Riepilogo!M30/$B$2,"") ->  | C12: =IF(B12="","",Riepilogo!K30) ->  | E12: =IF(Riepilogo!N30>0,Riepilogo!N30/$E$2,"") ->  | F12: =IF(E12="","",Riepilogo!K30) ->  | H12: =IF(Riepilogo!O30>0,Riepilogo!O30/$H$2,"") ->  | I12: =IF(H12="","",Riepilogo!K30) ->  | L12: 0 | O12: 0 | R12: 0 | U12: 0 | V12: 0 | W12: =ISODD(SUM($V$5:V12)) -> FALSE
B13: =IF(Riepilogo!M31>0,Riepilogo!M31/$B$2,"") ->  | C13: =IF(B13="","",Riepilogo!K31) ->  | E13: =IF(Riepilogo!N31>0,Riepilogo!N31/$E$2,"") ->  | F13: =IF(E13="","",Riepilogo!K31) ->  | H13: =IF(Riepilogo!O31>0,Riepilogo!O31/$H$2,"") ->  | I13: =IF(H13="","",Riepilogo!K31) ->  | L13: 0 | O13: 0 | R13: 0 | U13: 0 | V13: 0 | W13: =ISODD(SUM($V$5:V13)) -> FALSE
B14: =IF(Riepilogo!M32>0,Riepilogo!M32/$B$2,"") ->  | C14: =IF(B14="","",Riepilogo!K32) ->  | E14: =IF(Riepilogo!N32>0,Riepilogo!N32/$E$2,"") ->  | F14: =IF(E14="","",Riepilogo!K32) ->  | H14: =IF(Riepilogo!O32>0,Riepilogo!O32/$H$2,"") ->  | I14: =IF(H14="","",Riepilogo!K32) ->  | L14: 0 | O14: 0 | R14: 0 | U14: 0 | V14: 0 | W14: =ISODD(SUM($V$5:V14)) -> FALSE
B15: =IF(Riepilogo!M33>0,Riepilogo!M33/$B$2,"") ->  | C15: =IF(B15="","",Riepilogo!K33) ->  | E15: =IF(Riepilogo!N33>0,Riepilogo!N33/$E$2,"") ->  | F15: =IF(E15="","",Riepilogo!K33) ->  | H15: =IF(Riepilogo!O33>0,Riepilogo!O33/$H$2,"") ->  | I15: =IF(H15="","",Riepilogo!K33) ->  | L15: 0 | O15: 0 | R15: 0 | U15: 0 | V15: 0 | W15: =ISODD(SUM($V$5:V15)) -> FALSE
B16: =IF(Riepilogo!M34>0,Riepilogo!M34/$B$2,"") ->  | C16: =IF(B16="","",Riepilogo!K34) ->  | E16: =IF(Riepilogo!N34>0,Riepilogo!N34/$E$2,"") ->  | F16: =IF(E16="","",Riepilogo!K34) ->  | H16: =IF(Riepilogo!O34>0,Riepilogo!O34/$H$2,"") ->  | I16: =IF(H16="","",Riepilogo!K34) ->  | L16: 0 | O16: 0 | R16: 0 | U16: 0 | V16: 0 | W16: =ISODD(SUM($V$5:V16)) -> FALSE
B17: =IF(Riepilogo!M35>0,Riepilogo!M35/$B$2,"") ->  | C17: =IF(B17="","",Riepilogo!K35) ->  | E17: =IF(Riepilogo!N35>0,Riepilogo!N35/$E$2,"") ->  | F17: =IF(E17="","",Riepilogo!K35) ->  | H17: =IF(Riepilogo!O35>0,Riepilogo!O35/$H$2,"") ->  | I17: =IF(H17="","",Riepilogo!K35) ->  | L17: 0 | O17: 0 | R17: 0 | U17: 0 | V17: 0 | W17: =ISODD(SUM($V$5:V17)) -> FALSE
B18: =IF(Riepilogo!M36>0,Riepilogo!M36/$B$2,"") ->  | C18: =IF(B18="","",Riepilogo!K36) ->  | E18: =IF(Riepilogo!N36>0,Riepilogo!N36/$E$2,"") ->  | F18: =IF(E18="","",Riepilogo!K36) ->  | H18: =IF(Riepilogo!O36>0,Riepilogo!O36/$H$2,"") ->  | I18: =IF(H18="","",Riepilogo!K36) ->  | L18: 0 | O18: 0 | R18: 0 | U18: 0 | V18: 0 | W18: =ISODD(SUM($V$5:V18)) -> FALSE
B19: =IF(Riepilogo!M37>0,Riepilogo!M37/$B$2,"") ->  | C19: =IF(B19="","",Riepilogo!K37) ->  | E19: =IF(Riepilogo!N37>0,Riepilogo!N37/$E$2,"") ->  | F19: =IF(E19="","",Riepilogo!K37) ->  | H19: =IF(Riepilogo!O37>0,Riepilogo!O37/$H$2,"") ->  | I19: =IF(H19="","",Riepilogo!K37) ->  | L19: 0 | O19: 0 | R19: 0 | U19: 0 | V19: 0 | W19: =ISODD(SUM($V$5:V19)) -> FALSE
B20: =IF(Riepilogo!M38>0,Riepilogo!M38/$B$2,"") ->  | C20: =IF(B20="","",Riepilogo!K38) ->  | E20: =IF(Riepilogo!N38>0,Riepilogo!N38/$E$2,"") ->  | F20: =IF(E20="","",Riepilogo!K38) ->  | H20: =IF(Riepilogo!O38>0,Riepilogo!O38/$H$2,"") ->  | I20: =IF(H20="","",Riepilogo!K38) ->  | L20: 0 | O20: 0 | R20: 0 | U20: 0 | V20: 0 | W20: =ISODD(SUM($V$5:V20)) -> FALSE
B21: =IF(Riepilogo!M39>0,Riepilogo!M39/$B$2,"") ->  | C21: =IF(B21="","",Riepilogo!K39) ->  | E21: =IF(Riepilogo!N39>0,Riepilogo!N39/$E$2,"") ->  | F21: =IF(E21="","",Riepilogo!K39) ->  | H21: =IF(Riepilogo!O39>0,Riepilogo!O39/$H$2,"") ->  | I21: =IF(H21="","",Riepilogo!K39) ->  | L21: 0 | O21: 0 | R21: 0 | U21: 0 | V21: 0 | W21: =ISODD(SUM($V$5:V21)) -> FALSE
B22: =IF(Riepilogo!M40>0,Riepilogo!M40/$B$2,"") ->  | C22: =IF(B22="","",Riepilogo!K40) ->  | E22: =IF(Riepilogo!N40>0,Riepilogo!N40/$E$2,"") ->  | F22: =IF(E22="","",Riepilogo!K40) ->  | H22: =IF(Riepilogo!O40>0,Riepilogo!O40/$H$2,"") ->  | I22: =IF(H22="","",Riepilogo!K40) ->  | L22: 0 | O22: 0 | R22: 0 | U22: 0 | V22: 0 | W22: =ISODD(SUM($V$5:V22)) -> FALSE
B23: =IF(Riepilogo!M41>0,Riepilogo!M41/$B$2,"") ->  | C23: =IF(B23="","",Riepilogo!K41) ->  | E23: =IF(Riepilogo!N41>0,Riepilogo!N41/$E$2,"") ->  | F23: =IF(E23="","",Riepilogo!K41) ->  | H23: =IF(Riepilogo!O41>0,Riepilogo!O41/$H$2,"") ->  | I23: =IF(H23="","",Riepilogo!K41) ->  | L23: 0 | O23: 0 | R23: 0 | U23: 0 | V23: 0 | W23: =ISODD(SUM($V$5:V23)) -> FALSE
B24: =IF(Riepilogo!M42>0,Riepilogo!M42/$B$2,"") ->  | C24: =IF(B24="","",Riepilogo!K42) ->  | E24: =IF(Riepilogo!N42>0,Riepilogo!N42/$E$2,"") ->  | F24: =IF(E24="","",Riepilogo!K42) ->  | H24: =IF(Riepilogo!O42>0,Riepilogo!O42/$H$2,"") ->  | I24: =IF(H24="","",Riepilogo!K42) ->  | L24: 0 | O24: 0 | R24: 0 | U24: 0 | V24: 0 | W24: =ISODD(SUM($V$5:V24)) -> FALSE
B25: =IF(Riepilogo!M43>0,Riepilogo!M43/$B$2,"") ->  | C25: =IF(B25="","",Riepilogo!K43) ->  | E25: =IF(Riepilogo!N43>0,Riepilogo!N43/$E$2,"") ->  | F25: =IF(E25="","",Riepilogo!K43) ->  | H25: =IF(Riepilogo!O43>0,Riepilogo!O43/$H$2,"") ->  | I25: =IF(H25="","",Riepilogo!K43) ->  | L25: 0 | O25: 0 | R25: 0 | U25: 0 | V25: 0 | W25: =ISODD(SUM($V$5:V25)) -> FALSE
B26: =IF(Riepilogo!M44>0,Riepilogo!M44/$B$2,"") ->  | C26: =IF(B26="","",Riepilogo!K44) ->  | E26: =IF(Riepilogo!N44>0,Riepilogo!N44/$E$2,"") ->  | F26: =IF(E26="","",Riepilogo!K44) ->  | H26: =IF(Riepilogo!O44>0,Riepilogo!O44/$H$2,"") ->  | I26: =IF(H26="","",Riepilogo!K44) ->  | L26: 0 | O26: 0 | R26: 0 | U26: 0 | V26: 0 | W26: =ISODD(SUM($V$5:V26)) -> FALSE
B27: =IF(Riepilogo!M45>0,Riepilogo!M45/$B$2,"") ->  | C27: =IF(B27="","",Riepilogo!K45) ->  | E27: =IF(Riepilogo!N45>0,Riepilogo!N45/$E$2,"") ->  | F27: =IF(E27="","",Riepilogo!K45) ->  | H27: =IF(Riepilogo!O45>0,Riepilogo!O45/$H$2,"") ->  | I27: =IF(H27="","",Riepilogo!K45) ->  | L27: 0 | O27: 0 | R27: 0 | U27: 0 | V27: 0 | W27: =ISODD(SUM($V$5:V27)) -> FALSE
B28: =IF(Riepilogo!M46>0,Riepilogo!M46/$B$2,"") ->  | C28: =IF(B28="","",Riepilogo!K46) ->  | E28: =IF(Riepilogo!N46>0,Riepilogo!N46/$E$2,"") ->  | F28: =IF(E28="","",Riepilogo!K46) ->  | H28: =IF(Riepilogo!O46>0,Riepilogo!O46/$H$2,"") ->  | I28: =IF(H28="","",Riepilogo!K46) ->  | L28: 0 | O28: 0 | R28: 0 | U28: 0 | V28: 0 | W28: =ISODD(SUM($V$5:V28)) -> FALSE
B29: =IF(Riepilogo!M47>0,Riepilogo!M47/$B$2,"") ->  | C29: =IF(B29="","",Riepilogo!K47) ->  | E29: =IF(Riepilogo!N47>0,Riepilogo!N47/$E$2,"") ->  | F29: =IF(E29="","",Riepilogo!K47) ->  | H29: =IF(Riepilogo!O47>0,Riepilogo!O47/$H$2,"") ->  | I29: =IF(H29="","",Riepilogo!K47) ->  | L29: 0 | O29: 0 | R29: 0 | U29: 0 | V29: 0 | W29: =ISODD(SUM($V$5:V29)) -> FALSE
B30: =IF(Riepilogo!M48>0,Riepilogo!M48/$B$2,"") ->  | C30: =IF(B30="","",Riepilogo!K48) ->  | E30: =IF(Riepilogo!N48>0,Riepilogo!N48/$E$2,"") ->  | F30: =IF(E30="","",Riepilogo!K48) ->  | H30: =IF(Riepilogo!O48>0,Riepilogo!O48/$H$2,"") ->  | I30: =IF(H30="","",Riepilogo!K48) ->  | L30: 0 | O30: 0 | R30: 0 | U30: 0 | V30: 0 | W30: =ISODD(SUM($V$5:V30)) -> FALSE
B31: =IF(Riepilogo!M49>0,Riepilogo!M49/$B$2,"") ->  | C31: =IF(B31="","",Riepilogo!K49) ->  | E31: =IF(Riepilogo!N49>0,Riepilogo!N49/$E$2,"") ->  | F31: =IF(E31="","",Riepilogo!K49) ->  | H31: =IF(Riepilogo!O49>0,Riepilogo!O49/$H$2,"") ->  | I31: =IF(H31="","",Riepilogo!K49) ->  | L31: 0 | O31: 0 | R31: 0 | U31: 0 | V31: 0 | W31: =ISODD(SUM($V$5:V31)) -> FALSE
B32: =IF(Riepilogo!M50>0,Riepilogo!M50/$B$2,"") ->  | C32: =IF(B32="","",Riepilogo!K50) ->  | E32: =IF(Riepilogo!N50>0,Riepilogo!N50/$E$2,"") ->  | F32: =IF(E32="","",Riepilogo!K50) ->  | H32: =IF(Riepilogo!O50>0,Riepilogo!O50/$H$2,"") ->  | I32: =IF(H32="","",Riepilogo!K50) ->  | L32: 0 | O32: 0 | R32: 0 | U32: 0 | V32: 0 | W32: =ISODD(SUM($V$5:V32)) -> FALSE
B33: =IF(Riepilogo!M51>0,Riepilogo!M51/$B$2,"") ->  | C33: =IF(B33="","",Riepilogo!K51) ->  | E33: =IF(Riepilogo!N51>0,Riepilogo!N51/$E$2,"") ->  | F33: =IF(E33="","",Riepilogo!K51) ->  | H33: =IF(Riepilogo!O51>0,Riepilogo!O51/$H$2,"") ->  | I33: =IF(H33="","",Riepilogo!K51) ->  | L33: 0 | O33: 0 | R33: 0 | U33: 0 | V33: 0 | W33: =ISODD(SUM($V$5:V33)) -> FALSE
B34: =IF(Riepilogo!M52>0,Riepilogo!M52/$B$2,"") ->  | C34: =IF(B34="","",Riepilogo!K52) ->  | E34: =IF(Riepilogo!N52>0,Riepilogo!N52/$E$2,"") ->  | F34: =IF(E34="","",Riepilogo!K52) ->  | H34: =IF(Riepilogo!O52>0,Riepilogo!O52/$H$2,"") ->  | I34: =IF(H34="","",Riepilogo!K52) ->  | L34: 0 | O34: 0 | R34: 0 | U34: 0 | V34: 0 | W34: =ISODD(SUM($V$5:V34)) -> FALSE
B35: =IF(Riepilogo!M53>0,Riepilogo!M53/$B$2,"") ->  | C35: =IF(B35="","",Riepilogo!K53) ->  | E35: =IF(Riepilogo!N53>0,Riepilogo!N53/$E$2,"") ->  | F35: =IF(E35="","",Riepilogo!K53) ->  | H35: =IF(Riepilogo!O53>0,Riepilogo!O53/$H$2,"") ->  | I35: =IF(H35="","",Riepilogo!K53) ->  | L35: 0 | O35: 0 | R35: 0 | U35: 0 | V35: 0 | W35: =ISODD(SUM($V$5:V35)) -> FALSE
B36: =IF(Riepilogo!M54>0,Riepilogo!M54/$B$2,"") ->  | C36: =IF(B36="","",Riepilogo!K54) ->  | E36: =IF(Riepilogo!N54>0,Riepilogo!N54/$E$2,"") ->  | F36: =IF(E36="","",Riepilogo!K54) ->  | H36: =IF(Riepilogo!O54>0,Riepilogo!O54/$H$2,"") ->  | I36: =IF(H36="","",Riepilogo!K54) ->  | L36: 0 | O36: 0 | R36: 0 | U36: 0 | V36: 0 | W36: =ISODD(SUM($V$5:V36)) -> FALSE
B37: =IF(Riepilogo!M55>0,Riepilogo!M55/$B$2,"") ->  | C37: =IF(B37="","",Riepilogo!K55) ->  | E37: =IF(Riepilogo!N55>0,Riepilogo!N55/$E$2,"") ->  | F37: =IF(E37="","",Riepilogo!K55) ->  | H37: =IF(Riepilogo!O55>0,Riepilogo!O55/$H$2,"") ->  | I37: =IF(H37="","",Riepilogo!K55) ->  | L37: 0 | O37: 0 | R37: 0 | U37: 0 | V37: 0 | W37: =ISODD(SUM($V$5:V37)) -> FALSE
B38: =IF(Riepilogo!M56>0,Riepilogo!M56/$B$2,"") ->  | C38: =IF(B38="","",Riepilogo!K56) ->  | E38: =IF(Riepilogo!N56>0,Riepilogo!N56/$E$2,"") ->  | F38: =IF(E38="","",Riepilogo!K56) ->  | H38: =IF(Riepilogo!O56>0,Riepilogo!O56/$H$2,"") ->  | I38: =IF(H38="","",Riepilogo!K56) ->  | L38: 0 | O38: 0 | R38: 0 | U38: 0 | V38: 0 | W38: =ISODD(SUM($V$5:V38)) -> FALSE
B39: =IF(Riepilogo!M57>0,Riepilogo!M57/$B$2,"") ->  | C39: =IF(B39="","",Riepilogo!K57) ->  | E39: =IF(Riepilogo!N57>0,Riepilogo!N57/$E$2,"") ->  | F39: =IF(E39="","",Riepilogo!K57) ->  | H39: =IF(Riepilogo!O57>0,Riepilogo!O57/$H$2,"") ->  | I39: =IF(H39="","",Riepilogo!K57) ->  | L39: 0 | O39: 0 | R39: 0 | U39: 0 | V39: 0 | W39: =ISODD(SUM($V$5:V39)) -> FALSE
B40: =IF(Riepilogo!M58>0,Riepilogo!M58/$B$2,"") ->  | C40: =IF(B40="","",Riepilogo!K58) ->  | E40: =IF(Riepilogo!N58>0,Riepilogo!N58/$E$2,"") ->  | F40: =IF(E40="","",Riepilogo!K58) ->  | H40: =IF(Riepilogo!O58>0,Riepilogo!O58/$H$2,"") ->  | I40: =IF(H40="","",Riepilogo!K58) ->  | L40: 0 | O40: 0 | R40: 0 | U40: 0 | V40: 0 | W40: =ISODD(SUM($V$5:V40)) -> FALSE
B41: =IF(Riepilogo!M65>0,Riepilogo!M65/$B$2,"") ->  | C41: =IF(B41="","",Riepilogo!K65) ->  | E41: =IF(Riepilogo!N65>0,Riepilogo!N65/$E$2,"") ->  | F41: =IF(E41="","",Riepilogo!K65) ->  | H41: =IF(Riepilogo!O65>0,Riepilogo!O65/$H$2,"") ->  | I41: =IF(H41="","",Riepilogo!K65) ->  | L41: 0 | O41: 0 | R41: 0 | U41: 0 | V41: 0 | W41: =ISODD(SUM($V$5:V41)) -> FALSE
B42: =IF(Riepilogo!M66>0,Riepilogo!M66/$B$2,"") ->  | C42: =IF(B42="","",Riepilogo!K66) ->  | E42: =IF(Riepilogo!N66>0,Riepilogo!N66/$E$2,"") ->  | F42: =IF(E42="","",Riepilogo!K66) ->  | H42: =IF(Riepilogo!O66>0,Riepilogo!O66/$H$2,"") ->  | I42: =IF(H42="","",Riepilogo!K66) ->  | L42: 0 | O42: 0 | R42: 0 | U42: 0 | V42: 0 | W42: =ISODD(SUM($V$5:V42)) -> FALSE
B43: =IF(Riepilogo!M71>0,Riepilogo!M71/$B$2,"") ->  | C43: =IF(B43="","",Riepilogo!K71) ->  | E43: =IF(Riepilogo!N71>0,Riepilogo!N71/$E$2,"") ->  | F43: =IF(E43="","",Riepilogo!K71) ->  | H43: =IF(Riepilogo!O71>0,Riepilogo!O71/$H$2,"") ->  | I43: =IF(H43="","",Riepilogo!K71) ->  | L43: 0 | O43: 0 | R43: 0 | U43: 0 | V43: 0 | W43: =ISODD(SUM($V$5:V43)) -> FALSE
B44: =IF(Riepilogo!M72>0,Riepilogo!M72/$B$2,"") ->  | C44: =IF(B44="","",Riepilogo!K72) ->  | E44: =IF(Riepilogo!N72>0,Riepilogo!N72/$E$2,"") ->  | F44: =IF(E44="","",Riepilogo!K72) ->  | H44: =IF(Riepilogo!O72>0,Riepilogo!O72/$H$2,"") ->  | I44: =IF(H44="","",Riepilogo!K72) ->  | L44: 0 | O44: 0 | R44: 0 | U44: 0 | V44: 0 | W44: =ISODD(SUM($V$5:V44)) -> FALSE
B45: =IF(Riepilogo!M73>0,Riepilogo!M73/$B$2,"") ->  | C45: =IF(B45="","",Riepilogo!K73) ->  | E45: =IF(Riepilogo!N73>0,Riepilogo!N73/$E$2,"") ->  | F45: =IF(E45="","",Riepilogo!K73) ->  | H45: =IF(Riepilogo!O73>0,Riepilogo!O73/$H$2,"") ->  | I45: =IF(H45="","",Riepilogo!K73) ->  | L45: 0 | O45: 0 | R45: 0 | U45: 0 | V45: 0 | W45: =ISODD(SUM($V$5:V45)) -> FALSE
B46: =IF(Riepilogo!M74>0,Riepilogo!M74/$B$2,"") ->  | C46: =IF(B46="","",Riepilogo!K74) ->  | E46: =IF(Riepilogo!N74>0,Riepilogo!N74/$E$2,"") ->  | F46: =IF(E46="","",Riepilogo!K74) ->  | H46: =IF(Riepilogo!O74>0,Riepilogo!O74/$H$2,"") ->  | I46: =IF(H46="","",Riepilogo!K74) ->  | L46: 0 | O46: 0 | R46: 0 | U46: 0 | V46: 0 | W46: =ISODD(SUM($V$5:V46)) -> FALSE
B47: =IF(Riepilogo!M75>0,Riepilogo!M75/$B$2,"") ->  | C47: =IF(B47="","",Riepilogo!K75) ->  | E47: =IF(Riepilogo!N75>0,Riepilogo!N75/$E$2,"") ->  | F47: =IF(E47="","",Riepilogo!K75) ->  | H47: =IF(Riepilogo!O75>0,Riepilogo!O75/$H$2,"") ->  | I47: =IF(H47="","",Riepilogo!K75) ->  | L47: 0 | O47: 0 | R47: 0 | U47: 0 | V47: 0 | W47: =ISODD(SUM($V$5:V47)) -> FALSE
B48: =IF(Riepilogo!M76>0,Riepilogo!M76/$B$2,"") ->  | C48: =IF(B48="","",Riepilogo!K76) ->  | E48: =IF(Riepilogo!N76>0,Riepilogo!N76/$E$2,"") ->  | F48: =IF(E48="","",Riepilogo!K76) ->  | H48: =IF(Riepilogo!O76>0,Riepilogo!O76/$H$2,"") ->  | I48: =IF(H48="","",Riepilogo!K76) ->  | L48: 0 | O48: 0 | R48: 0 | U48: 0 | V48: 0 | W48: =ISODD(SUM($V$5:V48)) -> FALSE
B49: =IF(Riepilogo!M77>0,Riepilogo!M77/$B$2,"") ->  | C49: =IF(B49="","",Riepilogo!K77) ->  | E49: =IF(Riepilogo!N77>0,Riepilogo!N77/$E$2,"") ->  | F49: =IF(E49="","",Riepilogo!K77) ->  | H49: =IF(Riepilogo!O77>0,Riepilogo!O77/$H$2,"") ->  | I49: =IF(H49="","",Riepilogo!K77) ->  | L49: 0 | O49: 0 | R49: 0 | U49: 0 | V49: 0 | W49: =ISODD(SUM($V$5:V49)) -> FALSE
B50: =IF(Riepilogo!M78>0,Riepilogo!M78/$B$2,"") ->  | C50: =IF(B50="","",Riepilogo!K78) ->  | E50: =IF(Riepilogo!N78>0,Riepilogo!N78/$E$2,"") ->  | F50: =IF(E50="","",Riepilogo!K78) ->  | H50: =IF(Riepilogo!O78>0,Riepilogo!O78/$H$2,"") ->  | I50: =IF(H50="","",Riepilogo!K78) ->  | L50: 0 | O50: 0 | R50: 0 | U50: 0 | V50: 0 | W50: =ISODD(SUM($V$5:V50)) -> FALSE
B51: =IF(Riepilogo!M79>0,Riepilogo!M79/$B$2,"") ->  | C51: =IF(B51="","",Riepilogo!K79) ->  | E51: =IF(Riepilogo!N79>0,Riepilogo!N79/$E$2,"") ->  | F51: =IF(E51="","",Riepilogo!K79) ->  | H51: =IF(Riepilogo!O79>0,Riepilogo!O79/$H$2,"") ->  | I51: =IF(H51="","",Riepilogo!K79) ->  | L51: 0 | O51: 0 | R51: 0 | U51: 0 | V51: 0 | W51: =ISODD(SUM($V$5:V51)) -> FALSE
B52: =IF(Riepilogo!M80>0,Riepilogo!M80/$B$2,"") ->  | C52: =IF(B52="","",Riepilogo!K80) ->  | E52: =IF(Riepilogo!N80>0,Riepilogo!N80/$E$2,"") ->  | F52: =IF(E52="","",Riepilogo!K80) ->  | H52: =IF(Riepilogo!O80>0,Riepilogo!O80/$H$2,"") ->  | I52: =IF(H52="","",Riepilogo!K80) ->  | L52: 0 | O52: 0 | R52: 0 | U52: 0 | V52: 0 | W52: =ISODD(SUM($V$5:V52)) -> FALSE
B53: =IF(Riepilogo!M81>0,Riepilogo!M81/$B$2,"") ->  | C53: =IF(B53="","",Riepilogo!K81) ->  | E53: =IF(Riepilogo!N81>0,Riepilogo!N81/$E$2,"") ->  | F53: =IF(E53="","",Riepilogo!K81) ->  | H53: =IF(Riepilogo!O81>0,Riepilogo!O81/$H$2,"") ->  | I53: =IF(H53="","",Riepilogo!K81) ->  | L53: 0 | O53: 0 | R53: 0 | U53: 0 | V53: 0 | W53: =ISODD(SUM($V$5:V53)) -> FALSE
B54: =IF(Riepilogo!M82>0,Riepilogo!M82/$B$2,"") ->  | C54: =IF(B54="","",Riepilogo!K82) ->  | E54: =IF(Riepilogo!N82>0,Riepilogo!N82/$E$2,"") ->  | F54: =IF(E54="","",Riepilogo!K82) ->  | H54: =IF(Riepilogo!O82>0,Riepilogo!O82/$H$2,"") ->  | I54: =IF(H54="","",Riepilogo!K82) ->  | L54: 0 | O54: 0 | R54: 0 | U54: 0 | V54: 0 | W54: =ISODD(SUM($V$5:V54)) -> FALSE
B55: =IF(Riepilogo!M85>0,Riepilogo!M85/$B$2,"") ->  | C55: =IF(B55="","",Riepilogo!K85) ->  | E55: =IF(Riepilogo!N85>0,Riepilogo!N85/$E$2,"") ->  | F55: =IF(E55="","",Riepilogo!K85) ->  | H55: =IF(Riepilogo!O85>0,Riepilogo!O85/$H$2,"") ->  | I55: =IF(H55="","",Riepilogo!K85) ->  | L55: 0 | O55: 0 | R55: 0 | U55: 0 | V55: 0 | W55: =ISODD(SUM($V$5:V55)) -> FALSE
B56: =IF(Riepilogo!M86>0,Riepilogo!M86/$B$2,"") ->  | C56: =IF(B56="","",Riepilogo!K86) ->  | E56: =IF(Riepilogo!N86>0,Riepilogo!N86/$E$2,"") ->  | F56: =IF(E56="","",Riepilogo!K86) ->  | H56: =IF(Riepilogo!O86>0,Riepilogo!O86/$H$2,"") ->  | I56: =IF(H56="","",Riepilogo!K86) ->  | L56: 0 | O56: 0 | R56: 0 | U56: 0 | V56: 0 | W56: =ISODD(SUM($V$5:V56)) -> FALSE
B57: =IF(Riepilogo!M87>0,Riepilogo!M87/$B$2,"") ->  | C57: =IF(B57="","",Riepilogo!K87) ->  | E57: =IF(Riepilogo!N87>0,Riepilogo!N87/$E$2,"") ->  | F57: =IF(E57="","",Riepilogo!K87) ->  | H57: =IF(Riepilogo!O87>0,Riepilogo!O87/$H$2,"") ->  | I57: =IF(H57="","",Riepilogo!K87) ->  | L57: 0 | O57: 0 | R57: 0 | U57: 0 | V57: 0 | W57: =ISODD(SUM($V$5:V57)) -> FALSE
B58: =IF(Riepilogo!M88>0,Riepilogo!M88/$B$2,"") ->  | C58: =IF(B58="","",Riepilogo!K88) ->  | E58: =IF(Riepilogo!N88>0,Riepilogo!N88/$E$2,"") ->  | F58: =IF(E58="","",Riepilogo!K88) ->  | H58: =IF(Riepilogo!O88>0,Riepilogo!O88/$H$2,"") ->  | I58: =IF(H58="","",Riepilogo!K88) ->  | L58: 0 | O58: 0 | R58: 0 | U58: 0 | V58: 0 | W58: =ISODD(SUM($V$5:V58)) -> FALSE
B59: =IF(Riepilogo!M89>0,Riepilogo!M89/$B$2,"") ->  | C59: =IF(B59="","",Riepilogo!K89) ->  | E59: =IF(Riepilogo!N89>0,Riepilogo!N89/$E$2,"") ->  | F59: =IF(E59="","",Riepilogo!K89) ->  | H59: =IF(Riepilogo!O89>0,Riepilogo!O89/$H$2,"") ->  | I59: =IF(H59="","",Riepilogo!K89) ->  | L59: 0 | O59: 0 | R59: 0 | U59: 0 | V59: 0 | W59: =ISODD(SUM($V$5:V59)) -> FALSE | X59: Inizio 20%
B60: =IF(Riepilogo!M90>0,Riepilogo!M90/$B$2,"") ->  | C60: =IF(B60="","",Riepilogo!K90) ->  | E60: =IF(Riepilogo!N90>0,Riepilogo!N90/$E$2,"") ->  | F60: =IF(E60="","",Riepilogo!K90) ->  | H60: =IF(Riepilogo!O90>0,Riepilogo!O90/$H$2,"") ->  | I60: =IF(H60="","",Riepilogo!K90) ->  | L60: =IF(B60="",0,B60) -> 0 | O60: =IF(E60="",0,E60) -> 0 | R60: =IF(H60="",0,H60) -> 0 | U60: =SUM(L60:T60) -> 0 | V60: =IF(U60>0,1,0) -> 0 | W60: =ISODD(SUM($V$5:V60)) -> FALSE
B61: =IF(Riepilogo!M91>0,Riepilogo!M91/$B$2,"") ->  | C61: =IF(B61="","",Riepilogo!K91) ->  | E61: =IF(Riepilogo!N91>0,Riepilogo!N91/$E$2,"") ->  | F61: =IF(E61="","",Riepilogo!K91) ->  | H61: =IF(Riepilogo!O91>0,Riepilogo!O91/$H$2,"") ->  | I61: =IF(H61="","",Riepilogo!K91) ->  | L61: 0 | O61: 0 | R61: 0 | U61: 0 | V61: 0 | W61: =ISODD(SUM($V$5:V61)) -> FALSE
B62: =IF(Riepilogo!M92>0,Riepilogo!M92/$B$2,"") ->  | C62: =IF(B62="","",Riepilogo!K92) ->  | E62: =IF(Riepilogo!N92>0,Riepilogo!N92/$E$2,"") ->  | F62: =IF(E62="","",Riepilogo!K92) ->  | H62: =IF(Riepilogo!O92>0,Riepilogo!O92/$H$2,"") ->  | I62: =IF(H62="","",Riepilogo!K92) ->  | L62: 0 | O62: 0 | R62: 0 | U62: 0 | V62: 0 | W62: =ISODD(SUM($V$5:V62)) -> FALSE
B63: =IF(Riepilogo!M93>0,Riepilogo!M93/$B$2,"") ->  | C63: =IF(B63="","",Riepilogo!K93) ->  | E63: =IF(Riepilogo!N93>0,Riepilogo!N93/$E$2,"") ->  | F63: =IF(E63="","",Riepilogo!K93) ->  | H63: =IF(Riepilogo!O93>0,Riepilogo!O93/$H$2,"") ->  | I63: =IF(H63="","",Riepilogo!K93) ->  | L63: 0 | O63: 0 | R63: 0 | U63: 0 | V63: 0 | W63: =ISODD(SUM($V$5:V63)) -> FALSE
B64: =IF(Riepilogo!M94>0,Riepilogo!M94/$B$2,"") ->  | C64: =IF(B64="","",Riepilogo!K94) ->  | E64: =IF(Riepilogo!N94>0,Riepilogo!N94/$E$2,"") ->  | F64: =IF(E64="","",Riepilogo!K94) ->  | H64: =IF(Riepilogo!O94>0,Riepilogo!O94/$H$2,"") ->  | I64: =IF(H64="","",Riepilogo!K94) ->  | L64: 0 | O64: 0 | R64: 0 | U64: 0 | V64: 0 | W64: =ISODD(SUM($V$5:V64)) -> FALSE
B65: =IF(Riepilogo!M95>0,Riepilogo!M95/$B$2,"") ->  | C65: =IF(B65="","",Riepilogo!K95) ->  | E65: =IF(Riepilogo!N95>0,Riepilogo!N95/$E$2,"") ->  | F65: =IF(E65="","",Riepilogo!K95) ->  | H65: =IF(Riepilogo!O95>0,Riepilogo!O95/$H$2,"") ->  | I65: =IF(H65="","",Riepilogo!K95) ->  | L65: 0 | O65: 0 | R65: 0 | U65: 0 | V65: 0 | W65: =ISODD(SUM($V$5:V65)) -> FALSE
B66: =IF(Riepilogo!M96>0,Riepilogo!M96/$B$2,"") ->  | C66: =IF(B66="","",Riepilogo!K96) ->  | E66: =IF(Riepilogo!N96>0,Riepilogo!N96/$E$2,"") ->  | F66: =IF(E66="","",Riepilogo!K96) ->  | H66: =IF(Riepilogo!O96>0,Riepilogo!O96/$H$2,"") ->  | I66: =IF(H66="","",Riepilogo!K96) ->  | L66: 0 | O66: 0 | R66: 0 | U66: 0 | V66: 0 | W66: =ISODD(SUM($V$5:V66)) -> FALSE
B67: =IF(Riepilogo!M97>0,Riepilogo!M97/$B$2,"") ->  | C67: =IF(B67="","",Riepilogo!K97) ->  | E67: =IF(Riepilogo!N97>0,Riepilogo!N97/$E$2,"") ->  | F67: =IF(E67="","",Riepilogo!K97) ->  | H67: =IF(Riepilogo!O97>0,Riepilogo!O97/$H$2,"") ->  | I67: =IF(H67="","",Riepilogo!K97) ->  | L67: 0 | O67: 0 | R67: 0 | U67: 0 | V67: 0 | W67: =ISODD(SUM($V$5:V67)) -> FALSE
B68: =IF(Riepilogo!M98>0,Riepilogo!M98/$B$2,"") ->  | C68: =IF(B68="","",Riepilogo!K98) ->  | E68: =IF(Riepilogo!N98>0,Riepilogo!N98/$E$2,"") ->  | F68: =IF(E68="","",Riepilogo!K98) ->  | H68: =IF(Riepilogo!O98>0,Riepilogo!O98/$H$2,"") ->  | I68: =IF(H68="","",Riepilogo!K98) ->  | L68: 0 | O68: 0 | R68: 0 | U68: 0 | V68: 0 | W68: =ISODD(SUM($V$5:V68)) -> FALSE
B69: =IF(Riepilogo!M99>0,Riepilogo!M99/$B$2,"") ->  | C69: =IF(B69="","",Riepilogo!K99) ->  | E69: =IF(Riepilogo!N99>0,Riepilogo!N99/$E$2,"") ->  | F69: =IF(E69="","",Riepilogo!K99) ->  | H69: =IF(Riepilogo!O99>0,Riepilogo!O99/$H$2,"") ->  | I69: =IF(H69="","",Riepilogo!K99) ->  | L69: 0 | O69: 0 | R69: 0 | U69: 0 | V69: 0 | W69: =ISODD(SUM($V$5:V69)) -> FALSE
B70: =IF(Riepilogo!M100>0,Riepilogo!M100/$B$2,"") ->  | C70: =IF(B70="","",Riepilogo!K100) ->  | E70: =IF(Riepilogo!N100>0,Riepilogo!N100/$E$2,"") ->  | F70: =IF(E70="","",Riepilogo!K100) ->  | H70: =IF(Riepilogo!O100>0,Riepilogo!O100/$H$2,"") ->  | I70: =IF(H70="","",Riepilogo!K100) ->  | L70: 0 | O70: 0 | R70: 0 | U70: 0 | V70: 0 | W70: =ISODD(SUM($V$5:V70)) -> FALSE
B71: =IF(Riepilogo!M101>0,Riepilogo!M101/$B$2,"") ->  | C71: =IF(B71="","",Riepilogo!K101) ->  | E71: =IF(Riepilogo!N101>0,Riepilogo!N101/$E$2,"") ->  | F71: =IF(E71="","",Riepilogo!K101) ->  | H71: =IF(Riepilogo!O101>0,Riepilogo!O101/$H$2,"") ->  | I71: =IF(H71="","",Riepilogo!K101) ->  | L71: 0 | O71: 0 | R71: 0 | U71: 0 | V71: 0 | W71: =ISODD(SUM($V$5:V71)) -> FALSE
B72: =IF(Riepilogo!M102>0,Riepilogo!M102/$B$2,"") ->  | C72: =IF(B72="","",Riepilogo!K102) ->  | E72: =IF(Riepilogo!N102>0,Riepilogo!N102/$E$2,"") ->  | F72: =IF(E72="","",Riepilogo!K102) ->  | H72: =IF(Riepilogo!O102>0,Riepilogo!O102/$H$2,"") ->  | I72: =IF(H72="","",Riepilogo!K102) ->  | L72: 0 | O72: 0 | R72: 0 | U72: 0 | V72: 0 | W72: =ISODD(SUM($V$5:V72)) -> FALSE
B73: =IF(Riepilogo!M103>0,Riepilogo!M103/$B$2,"") ->  | C73: =IF(B73="","",Riepilogo!K103) ->  | E73: =IF(Riepilogo!N103>0,Riepilogo!N103/$E$2,"") ->  | F73: =IF(E73="","",Riepilogo!K103) ->  | H73: =IF(Riepilogo!O103>0,Riepilogo!O103/$H$2,"") ->  | I73: =IF(H73="","",Riepilogo!K103) ->  | L73: 0 | O73: 0 | R73: 0 | U73: 0 | V73: 0 | W73: =ISODD(SUM($V$5:V73)) -> FALSE
B74: =IF(Riepilogo!M104>0,Riepilogo!M104/$B$2,"") ->  | C74: =IF(B74="","",Riepilogo!K104) ->  | E74: =IF(Riepilogo!N104>0,Riepilogo!N104/$E$2,"") ->  | F74: =IF(E74="","",Riepilogo!K104) ->  | H74: =IF(Riepilogo!O104>0,Riepilogo!O104/$H$2,"") ->  | I74: =IF(H74="","",Riepilogo!K104) ->  | L74: 0 | O74: 0 | R74: 0 | U74: 0 | V74: 0 | W74: =ISODD(SUM($V$5:V74)) -> FALSE
B75: =IF(Riepilogo!M105>0,Riepilogo!M105/$B$2,"") ->  | C75: =IF(B75="","",Riepilogo!K105) ->  | E75: =IF(Riepilogo!N105>0,Riepilogo!N105/$E$2,"") ->  | F75: =IF(E75="","",Riepilogo!K105) ->  | H75: =IF(Riepilogo!O105>0,Riepilogo!O105/$H$2,"") ->  | I75: =IF(H75="","",Riepilogo!K105) ->  | L75: 0 | O75: 0 | R75: 0 | U75: 0 | V75: 0 | W75: =ISODD(SUM($V$5:V75)) -> FALSE
B76: =IF(Riepilogo!M106>0,Riepilogo!M106/$B$2,"") ->  | C76: =IF(B76="","",Riepilogo!K106) ->  | E76: =IF(Riepilogo!N106>0,Riepilogo!N106/$E$2,"") ->  | F76: =IF(E76="","",Riepilogo!K106) ->  | H76: =IF(Riepilogo!O106>0,Riepilogo!O106/$H$2,"") ->  | I76: =IF(H76="","",Riepilogo!K106) ->  | L76: 0 | O76: 0 | R76: 0 | U76: 0 | V76: 0 | W76: =ISODD(SUM($V$5:V76)) -> FALSE
B77: =IF(Riepilogo!M107>0,Riepilogo!M107/$B$2,"") ->  | C77: =IF(B77="","",Riepilogo!K107) ->  | E77: =IF(Riepilogo!N107>0,Riepilogo!N107/$E$2,"") ->  | F77: =IF(E77="","",Riepilogo!K107) ->  | H77: =IF(Riepilogo!O107>0,Riepilogo!O107/$H$2,"") ->  | I77: =IF(H77="","",Riepilogo!K107) ->  | L77: 0 | O77: 0 | R77: 0 | U77: 0 | V77: 0 | W77: =ISODD(SUM($V$5:V77)) -> FALSE
B78: =IF(Riepilogo!M108>0,Riepilogo!M108/$B$2,"") ->  | C78: =IF(B78="","",Riepilogo!K108) ->  | E78: =IF(Riepilogo!N108>0,Riepilogo!N108/$E$2,"") ->  | F78: =IF(E78="","",Riepilogo!K108) ->  | H78: =IF(Riepilogo!O108>0,Riepilogo!O108/$H$2,"") ->  | I78: =IF(H78="","",Riepilogo!K108) ->  | L78: 0 | O78: 0 | R78: 0 | U78: 0 | V78: 0 | W78: =ISODD(SUM($V$5:V78)) -> FALSE
B79: =IF(Riepilogo!M109>0,Riepilogo!M109/$B$2,"") ->  | C79: =IF(B79="","",Riepilogo!K109) ->  | E79: =IF(Riepilogo!N109>0,Riepilogo!N109/$E$2,"") ->  | F79: =IF(E79="","",Riepilogo!K109) ->  | H79: =IF(Riepilogo!O109>0,Riepilogo!O109/$H$2,"") ->  | I79: =IF(H79="","",Riepilogo!K109) ->  | L79: =IF(B79="",0,B79) -> 0 | O79: =IF(E79="",0,E79) -> 0 | R79: =IF(H79="",0,H79) -> 0 | U79: =SUM(L79:T79) -> 0 | V79: =IF(U79>0,1,0) -> 0 | W79: =ISODD(SUM($V$5:V79)) -> FALSE
B80: =IF(Riepilogo!M110>0,Riepilogo!M110/$B$2,"") ->  | C80: =IF(B80="","",Riepilogo!K110) ->  | E80: =IF(Riepilogo!N110>0,Riepilogo!N110/$E$2,"") ->  | F80: =IF(E80="","",Riepilogo!K110) ->  | H80: =IF(Riepilogo!O110>0,Riepilogo!O110/$H$2,"") ->  | I80: =IF(H80="","",Riepilogo!K110) ->  | L80: 0 | O80: 0 | R80: 0 | U80: 0 | V80: 0 | W80: =ISODD(SUM($V$5:V80)) -> FALSE
B81: =IF(Riepilogo!M111>0,Riepilogo!M111/$B$2,"") ->  | C81: =IF(B81="","",Riepilogo!K111) ->  | E81: =IF(Riepilogo!N111>0,Riepilogo!N111/$E$2,"") ->  | F81: =IF(E81="","",Riepilogo!K111) ->  | H81: =IF(Riepilogo!O111>0,Riepilogo!O111/$H$2,"") ->  | I81: =IF(H81="","",Riepilogo!K111) ->  | L81: 0 | O81: 0 | R81: 0 | U81: 0 | V81: 0 | W81: =ISODD(SUM($V$5:V81)) -> FALSE
B82: =IF(Riepilogo!M112>0,Riepilogo!M112/$B$2,"") ->  | C82: =IF(B82="","",Riepilogo!K112) ->  | E82: =IF(Riepilogo!N112>0,Riepilogo!N112/$E$2,"") ->  | F82: =IF(E82="","",Riepilogo!K112) ->  | H82: =IF(Riepilogo!O112>0,Riepilogo!O112/$H$2,"") ->  | I82: =IF(H82="","",Riepilogo!K112) ->  | L82: 0 | O82: 0 | R82: 0 | U82: 0 | V82: 0 | W82: =ISODD(SUM($V$5:V82)) -> FALSE
B83: =IF(Riepilogo!M113>0,Riepilogo!M113/$B$2,"") ->  | C83: =IF(B83="","",Riepilogo!K113) ->  | E83: =IF(Riepilogo!N113>0,Riepilogo!N113/$E$2,"") ->  | F83: =IF(E83="","",Riepilogo!K113) ->  | H83: =IF(Riepilogo!O113>0,Riepilogo!O113/$H$2,"") ->  | I83: =IF(H83="","",Riepilogo!K113) ->  | L83: 0 | O83: 0 | R83: 0 | U83: 0 | V83: 0 | W83: =ISODD(SUM($V$5:V83)) -> FALSE
B84: =IF(Riepilogo!M114>0,Riepilogo!M114/$B$2,"") ->  | C84: =IF(B84="","",Riepilogo!K114) ->  | E84: =IF(Riepilogo!N114>0,Riepilogo!N114/$E$2,"") ->  | F84: =IF(E84="","",Riepilogo!K114) ->  | H84: =IF(Riepilogo!O114>0,Riepilogo!O114/$H$2,"") ->  | I84: =IF(H84="","",Riepilogo!K114) ->  | L84: =IF(B84="",0,B84) -> 0 | O84: =IF(E84="",0,E84) -> 0 | R84: =IF(H84="",0,H84) -> 0 | U84: =SUM(L84:T84) -> 0 | V84: =IF(U84>0,1,0) -> 0 | W84: =ISODD(SUM($V$5:V84)) -> FALSE
B85: =IF(Riepilogo!M135>0,Riepilogo!M135/$B$2,"") ->  | C85: =IF(B85="","",Riepilogo!K135) ->  | E85: =IF(Riepilogo!N135>0,Riepilogo!N135/$E$2,"") ->  | F85: =IF(E85="","",Riepilogo!K135) ->  | H85: =IF(Riepilogo!O135>0,Riepilogo!O135/$H$2,"") ->  | I85: =IF(H85="","",Riepilogo!K135) ->  | L85: 0 | O85: 0 | R85: 0 | U85: 0 | V85: 0 | W85: =ISODD(SUM($V$5:V85)) -> FALSE
B86: =IF(Riepilogo!M136>0,Riepilogo!M136/$B$2,"") ->  | C86: =IF(B86="","",Riepilogo!K136) ->  | E86: =IF(Riepilogo!N136>0,Riepilogo!N136/$E$2,"") ->  | F86: =IF(E86="","",Riepilogo!K136) ->  | H86: =IF(Riepilogo!O136>0,Riepilogo!O136/$H$2,"") ->  | I86: =IF(H86="","",Riepilogo!K136) ->  | L86: 0 | O86: 0 | R86: 0 | U86: 0 | V86: 0 | W86: =ISODD(SUM($V$5:V86)) -> FALSE
B87: =IF(Riepilogo!M137>0,Riepilogo!M137/$B$2,"") ->  | C87: =IF(B87="","",Riepilogo!K137) ->  | E87: =IF(Riepilogo!N137>0,Riepilogo!N137/$E$2,"") ->  | F87: =IF(E87="","",Riepilogo!K137) ->  | H87: =IF(Riepilogo!O137>0,Riepilogo!O137/$H$2,"") ->  | I87: =IF(H87="","",Riepilogo!K137) ->  | L87: 0 | O87: 0 | R87: 0 | U87: 0 | V87: 0 | W87: =ISODD(SUM($V$5:V87)) -> FALSE
B88: =IF(Riepilogo!M138>0,Riepilogo!M138/$B$2,"") ->  | C88: =IF(B88="","",Riepilogo!K138) ->  | E88: =IF(Riepilogo!N138>0,Riepilogo!N138/$E$2,"") ->  | F88: =IF(E88="","",Riepilogo!K138) ->  | H88: =IF(Riepilogo!O138>0,Riepilogo!O138/$H$2,"") ->  | I88: =IF(H88="","",Riepilogo!K138) ->  | L88: 0 | O88: 0 | R88: 0 | U88: 0 | V88: 0 | W88: =ISODD(SUM($V$5:V88)) -> FALSE
B89: =IF(Riepilogo!M139>0,Riepilogo!M139/$B$2,"") ->  | C89: =IF(B89="","",Riepilogo!K139) ->  | E89: =IF(Riepilogo!N139>0,Riepilogo!N139/$E$2,"") ->  | F89: =IF(E89="","",Riepilogo!K139) ->  | H89: =IF(Riepilogo!O139>0,Riepilogo!O139/$H$2,"") ->  | I89: =IF(H89="","",Riepilogo!K139) ->  | L89: 0 | O89: 0 | R89: 0 | U89: 0 | V89: 0 | W89: =ISODD(SUM($V$5:V89)) -> FALSE
B90: =IF(Riepilogo!M140>0,Riepilogo!M140/$B$2,"") ->  | C90: =IF(B90="","",Riepilogo!K140) ->  | E90: =IF(Riepilogo!N140>0,Riepilogo!N140/$E$2,"") ->  | F90: =IF(E90="","",Riepilogo!K140) ->  | H90: =IF(Riepilogo!O140>0,Riepilogo!O140/$H$2,"") ->  | I90: =IF(H90="","",Riepilogo!K140) ->  | L90: 0 | O90: 0 | R90: 0 | U90: 0 | V90: 0 | W90: =ISODD(SUM($V$5:V90)) -> FALSE
B91: =IF(Riepilogo!M141>0,Riepilogo!M141/$B$2,"") ->  | C91: =IF(B91="","",Riepilogo!K141) ->  | E91: =IF(Riepilogo!N141>0,Riepilogo!N141/$E$2,"") ->  | F91: =IF(E91="","",Riepilogo!K141) ->  | H91: =IF(Riepilogo!O141>0,Riepilogo!O141/$H$2,"") ->  | I91: =IF(H91="","",Riepilogo!K141) ->  | L91: 0 | O91: 0 | R91: 0 | U91: 0 | V91: 0 | W91: =ISODD(SUM($V$5:V91)) -> FALSE
B92: =IF(Riepilogo!M142>0,Riepilogo!M142/$B$2,"") ->  | C92: =IF(B92="","",Riepilogo!K142) ->  | E92: =IF(Riepilogo!N142>0,Riepilogo!N142/$E$2,"") ->  | F92: =IF(E92="","",Riepilogo!K142) ->  | H92: =IF(Riepilogo!O142>0,Riepilogo!O142/$H$2,"") ->  | I92: =IF(H92="","",Riepilogo!K142) ->  | L92: 0 | O92: 0 | R92: 0 | U92: 0 | V92: 0 | W92: =ISODD(SUM($V$5:V92)) -> FALSE
B93: =IF(Riepilogo!M143>0,Riepilogo!M143/$B$2,"") ->  | C93: =IF(B93="","",Riepilogo!K143) ->  | E93: =IF(Riepilogo!N143>0,Riepilogo!N143/$E$2,"") ->  | F93: =IF(E93="","",Riepilogo!K143) ->  | H93: =IF(Riepilogo!O143>0,Riepilogo!O143/$H$2,"") ->  | I93: =IF(H93="","",Riepilogo!K143) ->  | L93: 0 | O93: 0 | R93: 0 | U93: 0 | V93: 0 | W93: =ISODD(SUM($V$5:V93)) -> FALSE
B94: =IF(Riepilogo!M144>0,Riepilogo!M144/$B$2,"") ->  | C94: =IF(B94="","",Riepilogo!K144) ->  | E94: =IF(Riepilogo!N144>0,Riepilogo!N144/$E$2,"") ->  | F94: =IF(E94="","",Riepilogo!K144) ->  | H94: =IF(Riepilogo!O144>0,Riepilogo!O144/$H$2,"") ->  | I94: =IF(H94="","",Riepilogo!K144) ->  | L94: 0 | O94: 0 | R94: 0 | U94: 0 | V94: 0 | W94: =ISODD(SUM($V$5:V94)) -> FALSE
B95: =IF(Riepilogo!M145>0,Riepilogo!M145/$B$2,"") ->  | C95: =IF(B95="","",Riepilogo!K145) ->  | E95: =IF(Riepilogo!N145>0,Riepilogo!N145/$E$2,"") ->  | F95: =IF(E95="","",Riepilogo!K145) ->  | H95: =IF(Riepilogo!O145>0,Riepilogo!O145/$H$2,"") ->  | I95: =IF(H95="","",Riepilogo!K145) ->  | L95: 0 | O95: 0 | R95: 0 | U95: 0 | V95: 0 | W95: =ISODD(SUM($V$5:V95)) -> FALSE
B96: =IF(Riepilogo!M146>0,Riepilogo!M146/$B$2,"") ->  | C96: =IF(B96="","",Riepilogo!K146) ->  | E96: =IF(Riepilogo!N146>0,Riepilogo!N146/$E$2,"") ->  | F96: =IF(E96="","",Riepilogo!K146) ->  | H96: =IF(Riepilogo!O146>0,Riepilogo!O146/$H$2,"") ->  | I96: =IF(H96="","",Riepilogo!K146) ->  | L96: 0 | O96: 0 | R96: 0 | U96: 0 | V96: 0 | W96: =ISODD(SUM($V$5:V96)) -> FALSE
B97: =IF(Riepilogo!M147>0,Riepilogo!M147/$B$2,"") ->  | C97: =IF(B97="","",Riepilogo!K147) ->  | E97: =IF(Riepilogo!N147>0,Riepilogo!N147/$E$2,"") ->  | F97: =IF(E97="","",Riepilogo!K147) ->  | H97: =IF(Riepilogo!O147>0,Riepilogo!O147/$H$2,"") ->  | I97: =IF(H97="","",Riepilogo!K147) ->  | L97: 0 | O97: 0 | R97: 0 | U97: 0 | V97: 0 | W97: =ISODD(SUM($V$5:V97)) -> FALSE
B98: =IF(Riepilogo!M148>0,Riepilogo!M148/$B$2,"") ->  | C98: =IF(B98="","",Riepilogo!K148) ->  | E98: =IF(Riepilogo!N148>0,Riepilogo!N148/$E$2,"") ->  | F98: =IF(E98="","",Riepilogo!K148) ->  | H98: =IF(Riepilogo!O148>0,Riepilogo!O148/$H$2,"") ->  | I98: =IF(H98="","",Riepilogo!K148) ->  | L98: 0 | O98: 0 | R98: 0 | U98: 0 | V98: 0 | W98: =ISODD(SUM($V$5:V98)) -> FALSE
B99: =IF(Riepilogo!M149>0,Riepilogo!M149/$B$2,"") ->  | C99: =IF(B99="","",Riepilogo!K149) ->  | E99: =IF(Riepilogo!N149>0,Riepilogo!N149/$E$2,"") ->  | F99: =IF(E99="","",Riepilogo!K149) ->  | H99: =IF(Riepilogo!O149>0,Riepilogo!O149/$H$2,"") ->  | I99: =IF(H99="","",Riepilogo!K149) ->  | L99: =IF(B99="",0,B99) -> 0 | O99: =IF(E99="",0,E99) -> 0 | R99: =IF(H99="",0,H99) -> 0 | U99: =SUM(L99:T99) -> 0 | V99: =IF(U99>0,1,0) -> 0 | W99: =ISODD(SUM($V$5:V99)) -> FALSE
V100: =IF($U$5+$U$6>0,1,0) -> 0
B101: Configurazione RAID e/o NOTE | E101: Configurazione RAID e/o NOTE | H101: Configurazione RAID e/o NOTE | V101: =IF($U$5+$U$6>0,1,0) -> 0
B102: =Lotto6_DL560_1!H34 -> Specificare la configurazione RAID per l'installazione del Sistema Operativo, se richiesto. e/o inserire eventuali note. | E102: =Lotto6_DL560_2!H34 -> Specificare la configurazione RAID per l'installazione del Sistema Operativo, se richiesto. e/o inserire eventuali note. | H102: =Lotto6_DL560_3!H34 -> Specificare la configurazione RAID per l'installazione del Sistema Operativo, se richiesto. e/o inserire eventuali note. | V102: 0
V103: 0
V104: 0
V105: 0
V106: 0
V107: 0
V108: 0
V109: 0
V110: 0
V111: 0
V112: 0
V113: 0
V114: 0
V115: 0
B116: AREA RISERVATA AL FORNITORE | V116: 0
V117: 0
B118: VERIFICA STAGING | G118: VERIFICA INSTALLATORE | V118: 0
V119: 0
V120: 0
V121: 0
V122: 0
